{"text_format":"1","workbook":"xlsx","n_sheets":16,"sheets":["dropdowns","Menu Worksheet Instructions","SFA Notes","All Meals","Vegetable Subgroups","Optional VegBar","Monday","Tuesday","Wednesday","Thursday","Friday","Weekly Report","Weekly Menu","Monday (2)","Nutrient Instructions","Simplified Nutrient Assessment"],"not_rendered":{"charts":0,"images":2,"macros":0,"external_links":2,"defined_names":21,"comments":0,"pivot_tables":0},"unopened":[],"bounds":{"document_bytes":16777216,"sheet_cells":100000,"rows_first":2000,"rows_last":500,"rows_between":2000,"halvings":0,"cell_chars":16384,"cell_head_chars":4096},"cells_cut":0,"cells_raw":0,"read":"whole","date_system":"1900"}

{"sheet":"dropdowns","index":0,"n_rows":25,"n_cols":9,"rows_kept":25,"cut":false,"hidden":true,"merged":[]}
[]
[0.125,null,0.25,0.125,null,"Total offerings",null,null,"+"]
[0.25,null,0.5,0.25,null,"Total oz equivalents",null,null,"-"]
[0.375,null,0.75,0.375,null,null,null,null,"*"]
[0.5,null,1,0.5,null,null,null,null,"/"]
[0.625,null,1.25,0.625]
[0.75,null,1.5,0.75]
[0.875,null,1.75,0.875]
[1,null,2,1]
[1.125,null,null,1.125]
[1.25,null,null,1.25]
[1.375,null,null,1.375]
[1.5,null,null,1.5]
[1.625,null,null,1.625]
[1.75,null,null,1.75]
[1.875,null,null,1.875]
[2,null,null,2]
[null,null,null,2.125]
[null,null,null,2.25]
[null,null,null,2.375]
[null,null,null,2.5]
[null,null,null,2.625]
[null,null,null,2.75]
[null,null,null,2.875]
[null,null,null,3]

{"sheet":"Menu Worksheet Instructions","index":1,"n_rows":121,"n_cols":1,"rows_kept":121,"cut":false,"hidden":false,"merged":[[116,0,118,0]]}
[]
["Simplified Directions for Lunch Menu worksheet"]
["2023-05-26"]
["Materials needed:"]
["REMEMBER TO PERIODICALLY SAVE THE WORKSHEET AS IT IS BEING COMPLETED!!!!"]
["Materials needed:"]
["1 week menu (5 days)"]
["Portion sizes for all reimbursable menu items"]
["Contribution information for each menu item (CN Label, USDA Food Fact Sheet)"]
["Standardized Recipes"]
["Production Records  "]
["Click here for Team Nutrition resources like the Food Buying Guide"]
["Click here to go to the Food Buying Guide Calculator"]
[]
["Complete a Menu worksheet for the grade groups (K-5, K-8, 6-8, and 9-12) as appropriate. Separate Menu worksheets have been developed for breakfast and lunch. "]
["This Excel file has 12 tabs including the Simplified Nutrient Assessment (and two instruction pages).\n The name of each tab is located at the bottom of the workbook."]
["Click on the tab at the bottom of each tab to transfer to a different tab."]
["***It is very important to follow these steps in order; otherwise, the worksheet will not provide accurate results. The accuracy of the menu certification results are based on the accuracy of the information entered by the user. "]
[]
["Crediting Considerations"]
["Some vegetables and fruits do not credit on a volume as served basis (e.g. 1 cup credits as 1 cup)"]
["Tomato paste - refer to manufacturing information"]
["Dried fruit- twice the volume as served (1/2 cup credits as 1 cup)"]
["Raw leafy greens- half the volume as served (2 cups credits as 1 cup)"]
["Conversion must be made first, and CREDITABLE amounts entered into the menu worksheet. "]
["Example: if a salad with 2 cups of romaine lettuce is offered, “1” cup of vegetable (dark green) must be entered."]
[]
["SFA Notes"]
["This tab is for SFAs to provide notes and any additional information the State agency may instruct to include"]
[]
["Entering Meals into the “All Meals” Spreadsheet (column 1)"]
["Column 1:  “Meal Name.” "]
["***IMPORTANT: For purposes of Menu worksheet, SFAs must list reimbursable meals offered on the menu. Each reimbursable meal consists of all required food components: any grain/meat/meat alternates in a main dish and/or side dish, total amount of fruit offered with this meal, total amount of vegetables in a main dish and/or side dish, and amount of milk. The vegetable subgroups and types of milk will be recorded on a different tab.  "]
[" To simplify the menu entry process, type the name of the complete reimbursable meal by main dish name only."]
["To assist the State Agency reviewer, enter the name of the main dish to match the menu submitted for certification.\n (e.g. if vegetable pizza is called “Garden Power Flatbread,” insert “Garden Power Flatbread” into the menu worksheet)."]
["Once the meal name for Meal #1 has been entered, the meal components and corresponding serving sizes must be entered. "]
["ALL unique reimbursable meals offered over the course of the entire week must be entered.  If a cheese pizza is available every day, enter it once."]
["Each row should contain one meal until all meals offered over the week are entered"]
["Columns 2 through 6: Component Data Entry "]
["Each food component column lists the appropriate unit of measure (e.g. ounce equivalent for grains, cup for fruit). "]
["Each component is color coded (e.g. Fruit and Fruit juice are purple). This color scheme is consistent throughout."]
["Total fruit, fruit juice, vegetable and vegetable juice columns include a dropdown menu. Clicking on the gray box with the black downward arrow opens a list of serving sizes."]
["Total grains, whole grain-rich grains, grain based desserts, meat/meat alternates and milk do not have dropdown menus, the user will need to enter in the appropriate food quantities within the blank cells. "]
["***Do NOT enter text (such as “4 oz”) in these cells. Attempts to do so will result in an error message."]
["To assist in calculations there is an optional fraction calculator as well as a decimal to fraction converter to the left of the component entry section in the \"All Meals\" tab"]
["Meat/Meat Alternate (column 2)"]
["Meat/Meat Alternate (oz equivalent): Enter the amount of meat/meat alternates offered in the main dish and/or side dishes. "]
["Type in a value in ounce equivalents (to the nearest quarter ounce, or 0.25 ounce equivalents). Do NOT enter text (such as “4 oz”) in these cells. Attempts to do so will result in an error message"]
["Grains (columns 3, 3a, & 3b)"]
["SFAs must use ounce equivalents for all grains (based on 16 gram creditable grain)"]
["Column 3: Total Grains including whole grain-rich and desserts (oz equivalent): Enter the total number of ounce equivalents/servings of grains in the reimbursable meal."]
["Consider grains in the main dish (bun, breading, pasta), side dishes (e.g. rice, breadstick), and any other additional grains available to the student such as sliced bread and/or desserts. "]
["All grains both whole grain-rich and non whole grain-rich should be added together in this cell. "]
["Unlike the vegetable component, all grains in the meal MUST be included in the “Total grains” column (e.g. “extra” bread offered at the end of the serving line or rolls offered on the salad bar)."]
["All grains are measured in ounce equivalents and may be credited in quarter ounce equivalents. "]
["Do NOT enter text (such as “4 oz”) in these cells. Attempts to do so will result in an error message."]
["Column 3a: Whole grain-rich Only (oz equivalent): Enter the quantity of whole grain-rich grain contained in the meal. If the food item is not whole grain-rich, either leave the cell blank or type in a zero (“0”)."]
["Example:  The SFA serves a pizza with crust that is 2 oz equivalent of grains.  If the grains are deemed whole grain-rich, the SFA would enter “2” in the whole grain-rich box.  "]
["Column 3b: Grain Based Desserts (oz equivalents): Enter the quantity of grain based desserts offered in the meal. "]
["Ensure all three columns related to Grains are entered in ounce equivalents (e.g. a 0.75 oz eq cookie) and NOT in servings (e.g. 1 serving of dessert). If grain based desserts are not offered, either leave the cell blank or type in a zero (“0”). "]
["Fruit (columns 4 & 4a)"]
["Column 4: Total Fruit including juice (cups): Using the drop down menu, select the quantity of fruit offered with the reimbursable meal. Options range from 1/8 cup (smallest creditable amount) to 2 cups. "]
["Total fruit includes both whole fruit and fruit juice."]
["***IMPORTANT  scroll up or down through the options until “1” is highlighted.  The “enter” key must be pressed before moving to the next column. "]
["Column 4a: Fruit Juice Only (cups): If juice is part of the reimbursable meal, it will be reported in this column.  Juice is also included in the “Total Fruit including juice (cups) column,” however, the two boxes will NOT be added together. Select the portion size of juice. If juice is not offered with the reimbursable meal, leave the dropdown box blank. "]
["Vegetables (columns 5 & 5a)"]
["Column 5: Vegetables (cups): Include only vegetables offered that will be credited toward the reimbursable meal. Do not consider subgroups here just enter minimum amount of vegetables associated with this meal."]
["If several vegetable choices are offered, enter the minimum that the child is instructed to take. "]
["In the dropdown box, options range from 1/8 cup (the smallest creditable amount) to 2 cups. If more than 2 cups of vegetables are offered in this single meal, report 2 cups."]
["Column 5a: Vegetable Juice Only (cups): If juice is part of the reimbursable meal, it will be reported in this column.  Juice is also included in the “Total Vegetable including juice (cups) column,” however, the two boxes will NOT be added together. Select the portion size of juice. If juice is not offered with the reimbursable meal, leave the dropdown box blank. "]
["Milk (column 6)"]
["Column 6: Milk (cups): Enter the amount of milk offered. Milk is measured in cups and may be credited in 1/8 cup increments. "]
[]
["Optional Weekly Vegetable Tab (Optional VegBar)"]
["This tab is OPTIONAL depending on the weekly menu offerings.  This tab is for menus that offer the same vegetables in the same quantities at least two days a week. "]
["Vegetables entered in this tab must be accessible to all students."]
["The vegetable subgroups offered on salad/vegetable/garden bars may be entered here to reduce the burden of entering the SAME information for multiple days."]
["Each vegetable and the quantity (cups) offered must be selected under the appropriate subgroup. If the vegetable offered is not listed then select the \"unspecified\" entry for the appropriate subgroup. The name of the vegetable offered must be typed in the appropriate subgroup columns located below the selection section."]
["The quantity of each vegetable offered must be the planned serving size per student. "]
["NOTE:  The worksheet allows for one vegetable bar to be recorded in the Optional VegBar tab. If  a  vegetable bar that differs by day is offered, all offerings and quantities for each vegetable subgroup must be entered by subgroup on the day that vegetable bar was offered."]
[]
["Selecting Meals and Vegetables for each day of the week"]
["Step 1: Using the dropdown boxes in the “Reimbursable Meal” column, select the meal offered for each day(one meal per box). Only select the meals served on that day. "]
["Do NOT account for multiple serving lines. List all meals available to a child each day.  "]
["Once the meal is selected, columns in that row will automatically fill in from the data entered in the “All Meals” tab."]
["The worksheet will automatically check the daily requirements for each component and indicate with a \"yes\" or \"no\" whether the meal meets the daily minimum requirements."]
["Weekly requirement assessment is done in the \"Weekly Report\" tab."]
[]
["Step 2: Milk type: Scroll (go to the bottom of the screen and slide the bar to the right) to the right side of the screen until the table entitled “Milk Type” is viewable."]
["There are 5 types of milk listed. Click the small checkbox to the right of each type of milk offered each day. Depending on varieties selected, the last column in this section will turn green (Yes) or red (No)."]
["Step 3: Vegetable Subgroups: Report the specific vegetables offered in the daily menu. Scroll to the right until the “Vegetable Subgroup Tracker” table is in view. "]
["If the vegetables offered for each day include ALL vegetables entered in the Optional VegBar tab then select the check box under the Vegetable Subgroup Data Entry section. If different vegetables were offered or vegetables IN ADDITION to ALL vegetables entered in the Optional VegBar tab then proceed with the instructions below. NOTE:  The worksheet allows for one vegetable bar to be recorded in the Optional VegBar tab. If  a  vegetable bar that differs by day is offered, all offerings and quantities for each vegetable subgroup must be entered by subgroup on the day that vegetable bar was offered.\n"]
["Beginning with “Dark Green,” use dropdown boxes to select dark green vegetables offered in ANY of the meals offered that day. \nLeave this column blank if dark green vegetables are not offered."]
["For each dark green vegetable selected, the appropriate quantity provided each day must also be selected. In the second green column, use the dropdown box to select the correct amount of cups."]
["If the same dark green vegetable is offered in different food items on a day (e.g. 1 cup romaine in a chef salad, ½ cup romaine in a side salad), do NOT combine amounts. "]
["Once all types and quantities of dark green vegetables offered on each day are selected, locate the first row, labeled “Largest amount of dark green vegetables to select\""]
["This is to enter the  quantity of dark green vegetables available to a single child. "]
["For example, if two different main dishes are offered, such as a spinach pizza and a broccoli casserole, the amounts of spinach and broccoli would NOT be added together as the student cannot take both of those food items. This would also apply if more than one side dish with dark green vegetables is offered and students are instructed to take one choice. "]
[" It is very important the total amount is accurate. The “largest amount” information will help determine the weekly subgroup offerings and if the requirements are met."]
[" Once dark green vegetables have been entered, the same process must be repeated for each of the other four subgroups."]
[" If the vegetable offered is not listed then select the \"unspecified\" entry for the appropriate subgroup. The name of the vegetable offered must be typed in the appropriate subgroup columns located below the selection section."]
["To assist in calculations there is an optional fraction calculator as well as a decimal to fraction converter under the \"Milk Type\" box."]
["Once all vegetable subgroups are entered for one day, select the next day tab and repeat the above steps."]
[]
["Weekly Report"]
["Click on the “Weekly Report” tab. "]
["There are columns for Monday-Friday, a Weekly Total, the Weekly Requirement, and a Weekly Requirement Check."]
["On the left side of the sheet, in rows, are the food components. "]
["The weekly requirement check, similar to the daily requirement check, shows up as green (Yes) if the menu offered at least the minimum fruit requirement. Red (No) indicates if less than the requirement was offered."]
["For fruit and vegetables, there is also a weekly juice check to ensure no more than half of the weekly fruit offering is in the form of juice."]
["For vegetables, amounts of each subgroup offered each day are shown."]
["For grains, shows the daily minimum and maximum grain offered each day. These are added to report the total weekly minimum and maximum grains offered. "]
["There is also a third row that calculates the amount (in oz eq) of grain based desserts offered. "]
["The fourth and final row for grains calculates the amount of whole grain-rich grains offered, and the percentage of wholegrain-rich grains offered over the course of the week."]
["The weekly meat/meat alternate and milk offerings are calculated and compared to the requirements."]
["There is a section to the right of the requirement checks for SFAs and State agencies to provide comments."]
["The menu worksheet portion of the Certification Tool is complete. For the 8 cent certification, the SFA must submit a nutrient analysis or the Simplified Nutrient Assessment. SFAs completing the Simplified Nutrient Assessment can click on the link below or go to the \"Nutrient Instructions\" tab to complete the Assessment."]
[]
[]
["Click here to go to the Nutrient Instructions Tab"]
["Click here to go to the Simplified Nutrient Assessment"]

{"sheet":"SFA Notes","index":2,"n_rows":1,"n_cols":1,"rows_kept":1,"cut":false,"hidden":false,"merged":[[0,0,1,14],[2,0,43,14]]}
["SFA Certification Worksheet Notes\nLunch, Grades 9-12"]

{"sheet":"All Meals","index":3,"n_rows":62,"n_cols":26,"rows_kept":62,"cut":false,"hidden":false,"merged":[[16,25,17,25],[3,22,3,25],[8,13,9,13],[8,19,9,19],[5,5,5,6],[8,6,9,6],[10,25,12,25],[16,22,17,22],[14,22,15,22],[3,1,3,19],[5,22,12,22],[14,25,15,25],[7,13,7,16],[13,22,13,25],[8,7,9,7],[0,0,0,19],[5,7,5,19],[8,10,9,10],[7,7,7,10],[7,1,9,2],[8,3,9,3],[6,1,6,2],[7,4,7,6],[1,1,1,5],[2,6,2,19],[5,2,5,4],[1,6,1,19],[8,16,9,16],[8,5,9,5],[2,1,2,5],[8,4,9,4]]}
["Meal Pattern\nReimbursable Lunches\nGrades 9-12\n"]
[null,"SFA Name:"]
[null,"9-12 Menu #:\n"]
[null,"Enter each reimbursable lunch offered during the reference week and select or enter the quantity of each component. \nEach reimbursable meal consists of all required food components: any grain/meat/meat alternates in a main dish and/or side dish, total amount of fruit offered with this meal, total amount of vegetables in a main dish and/or side dish, and amount of milk. The vegetable subgroups and types of milk will be recorded on a different tab.  \n",null,null,null,null,null,null,null,null,null,null,null,null,null,null,null,null,null,null,null,null,"OPTIONAL Tools to Assist in Fraction and Decimal Calculations"]
[1,2,3,4,5,6,7,8,9,10,11,12,13,14,15,16,17,18,19,20]
[null,null,"Click here to go the Food Buying Guide Calculator","https://foodbuyingguide.fns.usda.gov/","https://foodbuyingguide.fns.usda.gov/","Click here to go the Instructions","'Menu Worksheet Instructions'!A1","Click here to the Weekly Report","'Weekly Report'!A1","'Weekly Report'!A1","'Weekly Report'!A1","'Weekly Report'!A1","'Weekly Report'!A1","'Weekly Report'!A1","'Weekly Report'!A1","'Weekly Report'!A1","'Weekly Report'!A1","'Weekly Report'!A1","'Weekly Report'!A1","'Weekly Report'!A1",null,null,"\n\nFraction Calculator: \nUse this calculator to add the number of cups.",1,{"$f":"INDEX(Cups,X6)","v":null}]
[null,1,null,2,3,"3a","3b",4,null,null,"4a",null,null,5,null,null,"5a",null,null,6]
[null,"Meal Name\nEnter the name of each reimbursable meal as found on the weekly menu.  Select the first blank if the component was not offered with the meal. \n** DO NOT DELETE ROWS**",null,"Meat/Meat Alternate \n(oz equivalents)","Grains\n(oz equivalent)",null,null,"Fruit (cups)\n**NOTE: Enter the CREDITABLE amount of dried fruit",null,null,null,null,null,"Vegetables\n(cups)",null,null,null,null,null,"Fluid Milk\n(cups)",null,null,null,1,{"$f":"INDEX(Cups,X8)","v":null}]
[null,null,null,"Enter the total meat/meat alternate ounces offered with this meal"," Enter the total grains ounce equivalents including whole grain rich and desserts offered with this meal","Of the grains offered with this meal, enter the number of ounce equivalents that are whole grain rich","Of the grains offered with this meal enter number of ounce equivalents that are grain based desserts","Select the number of cups of fruit including fruit juice offered with this meal","F_i","F_num","ONLY select the cups of fruit juice","J_i","J_num","Select the number of cups of vegetables including vegetable juice offered with this meal","V_i","V_num","ONLY select the cups of vegetable juice","jv_i","jv_num","Enter the number of cups of fluid milk offered with this meal",null,null,null,1,{"$f":"INDEX(Cups,X9)","v":null}]
[null,null,null,null,null,null,null,null,null,null,null,null,null,null,null,null,null,null,null,null,null,null,null,1,{"$f":"INDEX(Cups,X10)","v":null}]
[null,null,"Example: Chicken nuggets w/ roll and honey sauce",2,2.5,2,0.5,null,9,{"$f":"IF(I11=1,\"\",INDEX(Cups,I11))","v":null},null,5,{"$f":"IF(L11=1,\"\",INDEX(Cups,L11))","v":null},null,9,{"$f":"IF(O11=1, \"\", INDEX(Cups,O11))","v":null},null,1,{"$f":"IF(R11=1, \"\", INDEX(Cups,R11))","v":null},1,null,null,null,1,{"$f":"INDEX(Cups,X11)","v":null},{"$f":"SUM(Y6:Y11)","v":null}]
[1,null,null,null,null,null,null,null,null,null,null,null,null,null,null,null,null,null,{"$f":"IF(R12=1, \"\", INDEX(Cups,R12))","v":null}]
[2,1,"CHIX POPCORN BRD WGRAIN FC .28Z 4-8",2.18,2.34,0,0,null,9,{"$f":"IF(I13=1,\"\", INDEX(Cups,I13))","v":null},null,1,{"$f":"IF(L13=1,\"\",INDEX(Cups,L13))","v":null},null,4,{"$f":"IF(O13=1, \"\", INDEX(Cups,O13))","v":null},null,1,{"$f":"IF(R13=1, \"\", INDEX(Cups,R13))","v":null},1]
[3,2,"Hamburger",2,2,0,0,null,9,{"$f":"IF(I14=1,\"\", INDEX(Cups,I14))","v":null},null,1,{"$f":"IF(L14=1,\"\",INDEX(Cups,L14))","v":null},null,12,{"$f":"IF(O14=1, \"\", INDEX(Cups,O14))","v":null},null,1,{"$f":"IF(R14=1, \"\", INDEX(Cups,R14))","v":null},1,null,null,"Decimal/Fraction Converter\n(Rounded down to the nearest 1/8)"]
[4,3,"BEEF TACOS",3,2,0,0,null,9,{"$f":"IF(I15=1,\"\", INDEX(Cups,I15))","v":null},null,1,{"$f":"IF(L15=1,\"\",INDEX(Cups,L15))","v":null},null,13,{"$f":"IF(O15=1, \"\", INDEX(Cups,O15))","v":null},null,1,{"$f":"IF(R15=1, \"\", INDEX(Cups,R15))","v":null},1,null,null,"Enter the decimal you wish to convert to a fraction in the box:"]
[5,4,"Burrito Bowl-Beef",2.74,2.5,0,0,null,9,{"$f":"IF(I16=1,\"\", INDEX(Cups,I16))","v":null},null,1,{"$f":"IF(L16=1,\"\",INDEX(Cups,L16))","v":null},null,13,{"$f":"IF(O16=1, \"\", INDEX(Cups,O16))","v":null},null,1,{"$f":"IF(R16=1, \"\", INDEX(Cups,R16))","v":null},1]
[6,5,"Chipotle Chicken Club",3.75,1.5,0,0,null,9,{"$f":"IF(I17=1,\"\", INDEX(Cups,I17))","v":null},null,1,{"$f":"IF(L17=1,\"\",INDEX(Cups,L17))","v":null},null,14,{"$f":"IF(O17=1, \"\", INDEX(Cups,O17))","v":null},null,1,{"$f":"IF(R17=1, \"\", INDEX(Cups,R17))","v":null},1,null,null,"The decimal entered above has been converted to the following fraction:",null,null,{"$f":"FLOOR(Z15, 0.125)","v":null}]
[7,6,"Chicken Fried Rice",2.271,1.72,0,0,null,9,{"$f":"IF(I18=1,\"\", INDEX(Cups,I18))","v":null},null,1,{"$f":"IF(L18=1,\"\",INDEX(Cups,L18))","v":null},null,16,{"$f":"IF(O18=1, \"\", INDEX(Cups,O18))","v":null},null,1,{"$f":"IF(R18=1, \"\", INDEX(Cups,R18))","v":null},1]
[8,7,"Chicken Bacon Ranch Sandwich",2,2,0,0,null,9,{"$f":"IF(I19=1,\"\", INDEX(Cups,I19))","v":null},null,1,{"$f":"IF(L19=1,\"\",INDEX(Cups,L19))","v":null},null,9,{"$f":"IF(O19=1, \"\", INDEX(Cups,O19))","v":null},null,1,{"$f":"IF(R19=1, \"\", INDEX(Cups,R19))","v":null},1]
[9,8,null,null,null,null,null,null,1,{"$f":"IF(I20=1,\"\", INDEX(Cups,I20))","v":null},null,1,{"$f":"IF(L20=1,\"\",INDEX(Cups,L20))","v":null},null,1,{"$f":"IF(O20=1, \"\", INDEX(Cups,O20))","v":null},null,1,{"$f":"IF(R20=1, \"\", INDEX(Cups,R20))","v":null}]
[10,9,null,null,null,null,null,null,1,{"$f":"IF(I21=1,\"\", INDEX(Cups,I21))","v":null},null,1,{"$f":"IF(L21=1,\"\",INDEX(Cups,L21))","v":null},null,1,{"$f":"IF(O21=1, \"\", INDEX(Cups,O21))","v":null},null,1,{"$f":"IF(R21=1, \"\", INDEX(Cups,R21))","v":null}]
[11,10,null,null,null,null,null,null,1,{"$f":"IF(I22=1,\"\", INDEX(Cups,I22))","v":null},null,1,{"$f":"IF(L22=1,\"\",INDEX(Cups,L22))","v":null},null,1,{"$f":"IF(O22=1, \"\", INDEX(Cups,O22))","v":null},null,1,{"$f":"IF(R22=1, \"\", INDEX(Cups,R22))","v":null}]
[12,11,null,null,null,null,null,null,1,{"$f":"IF(I23=1,\"\", INDEX(Cups,I23))","v":null},null,1,{"$f":"IF(L23=1,\"\",INDEX(Cups,L23))","v":null},null,1,{"$f":"IF(O23=1, \"\", INDEX(Cups,O23))","v":null},null,1,{"$f":"IF(R23=1, \"\", INDEX(Cups,R23))","v":null}]
[13,12,null,null,null,null,null,null,1,{"$f":"IF(I24=1,\"\", INDEX(Cups,I24))","v":null},null,1,{"$f":"IF(L24=1,\"\",INDEX(Cups,L24))","v":null},null,1,{"$f":"IF(O24=1, \"\", INDEX(Cups,O24))","v":null},null,1,{"$f":"IF(R24=1, \"\", INDEX(Cups,R24))","v":null}]
[14,13,null,null,null,null,null,null,1,{"$f":"IF(I25=1,\"\", INDEX(Cups,I25))","v":null},null,1,{"$f":"IF(L25=1,\"\",INDEX(Cups,L25))","v":null},null,1,{"$f":"IF(O25=1, \"\", INDEX(Cups,O25))","v":null},null,1,{"$f":"IF(R25=1, \"\", INDEX(Cups,R25))","v":null}]
[15,14,null,null,null,null,null,null,1,{"$f":"IF(I26=1,\"\", INDEX(Cups,I26))","v":null},null,1,{"$f":"IF(L26=1,\"\",INDEX(Cups,L26))","v":null},null,1,{"$f":"IF(O26=1, \"\", INDEX(Cups,O26))","v":null},null,1,{"$f":"IF(R26=1, \"\", INDEX(Cups,R26))","v":null}]
[16,15,null,null,null,null,null,null,1,{"$f":"IF(I27=1,\"\", INDEX(Cups,I27))","v":null},null,1,{"$f":"IF(L27=1,\"\",INDEX(Cups,L27))","v":null},null,1,{"$f":"IF(O27=1, \"\", INDEX(Cups,O27))","v":null},null,1,{"$f":"IF(R27=1, \"\", INDEX(Cups,R27))","v":null}]
[17,16,null,null,null,null,null,null,1,{"$f":"IF(I28=1,\"\", INDEX(Cups,I28))","v":null},null,1,{"$f":"IF(L28=1,\"\",INDEX(Cups,L28))","v":null},null,1,{"$f":"IF(O28=1, \"\", INDEX(Cups,O28))","v":null},null,1,{"$f":"IF(R28=1, \"\", INDEX(Cups,R28))","v":null}]
[18,17,null,null,null,null,null,null,1,{"$f":"IF(I29=1,\"\", INDEX(Cups,I29))","v":null},null,1,{"$f":"IF(L29=1,\"\",INDEX(Cups,L29))","v":null},null,1,{"$f":"IF(O29=1, \"\", INDEX(Cups,O29))","v":null},null,1,{"$f":"IF(R29=1, \"\", INDEX(Cups,R29))","v":null}]
[19,18,null,null,null,null,null,null,1,{"$f":"IF(I30=1,\"\", INDEX(Cups,I30))","v":null},null,1,{"$f":"IF(L30=1,\"\",INDEX(Cups,L30))","v":null},null,1,{"$f":"IF(O30=1, \"\", INDEX(Cups,O30))","v":null},null,1,{"$f":"IF(R30=1, \"\", INDEX(Cups,R30))","v":null}]
[20,19,null,null,null,null,null,null,1,{"$f":"IF(I31=1,\"\", INDEX(Cups,I31))","v":null},null,1,{"$f":"IF(L31=1,\"\",INDEX(Cups,L31))","v":null},null,1,{"$f":"IF(O31=1, \"\", INDEX(Cups,O31))","v":null},null,1,{"$f":"IF(R31=1, \"\", INDEX(Cups,R31))","v":null}]
[21,20,null,null,null,null,null,null,1,{"$f":"IF(I32=1,\"\", INDEX(Cups,I32))","v":null},null,1,{"$f":"IF(L32=1,\"\",INDEX(Cups,L32))","v":null},null,1,{"$f":"IF(O32=1, \"\", INDEX(Cups,O32))","v":null},null,1,{"$f":"IF(R32=1, \"\", INDEX(Cups,R32))","v":null}]
[22,21,null,null,null,null,null,null,1,{"$f":"IF(I33=1,\"\", INDEX(Cups,I33))","v":null},null,1,{"$f":"IF(L33=1,\"\",INDEX(Cups,L33))","v":null},null,1,{"$f":"IF(O33=1, \"\", INDEX(Cups,O33))","v":null},null,1,{"$f":"IF(R33=1, \"\", INDEX(Cups,R33))","v":null}]
[23,22,null,null,null,null,null,null,1,{"$f":"IF(I34=1,\"\", INDEX(Cups,I34))","v":null},null,1,{"$f":"IF(L34=1,\"\",INDEX(Cups,L34))","v":null},null,1,{"$f":"IF(O34=1, \"\", INDEX(Cups,O34))","v":null},null,1,{"$f":"IF(R34=1, \"\", INDEX(Cups,R34))","v":null}]
[24,23,null,null,null,null,null,null,1,{"$f":"IF(I35=1,\"\", INDEX(Cups,I35))","v":null},null,1,{"$f":"IF(L35=1,\"\",INDEX(Cups,L35))","v":null},null,1,{"$f":"IF(O35=1, \"\", INDEX(Cups,O35))","v":null},null,1,{"$f":"IF(R35=1, \"\", INDEX(Cups,R35))","v":null}]
[25,24,null,null,null,null,null,null,1,{"$f":"IF(I36=1,\"\", INDEX(Cups,I36))","v":null},null,1,{"$f":"IF(L36=1,\"\",INDEX(Cups,L36))","v":null},null,1,{"$f":"IF(O36=1, \"\", INDEX(Cups,O36))","v":null},null,1,{"$f":"IF(R36=1, \"\", INDEX(Cups,R36))","v":null}]
[26,25,null,null,null,null,null,null,1,{"$f":"IF(I37=1,\"\", INDEX(Cups,I37))","v":null},null,1,{"$f":"IF(L37=1,\"\",INDEX(Cups,L37))","v":null},null,1,{"$f":"IF(O37=1, \"\", INDEX(Cups,O37))","v":null},null,1,{"$f":"IF(R37=1, \"\", INDEX(Cups,R37))","v":null}]
[27,26,null,null,null,null,null,null,1,{"$f":"IF(I38=1,\"\", INDEX(Cups,I38))","v":null},null,1,{"$f":"IF(L38=1,\"\",INDEX(Cups,L38))","v":null},null,1,{"$f":"IF(O38=1, \"\", INDEX(Cups,O38))","v":null},null,1,{"$f":"IF(R38=1, \"\", INDEX(Cups,R38))","v":null}]
[28,27,null,null,null,null,null,null,1,{"$f":"IF(I39=1,\"\", INDEX(Cups,I39))","v":null},null,1,{"$f":"IF(L39=1,\"\",INDEX(Cups,L39))","v":null},null,1,{"$f":"IF(O39=1, \"\", INDEX(Cups,O39))","v":null},null,1,{"$f":"IF(R39=1, \"\", INDEX(Cups,R39))","v":null}]
[29,28,null,null,null,null,null,null,1,{"$f":"IF(I40=1,\"\", INDEX(Cups,I40))","v":null},null,1,{"$f":"IF(L40=1,\"\",INDEX(Cups,L40))","v":null},null,1,{"$f":"IF(O40=1, \"\", INDEX(Cups,O40))","v":null},null,1,{"$f":"IF(R40=1, \"\", INDEX(Cups,R40))","v":null}]
[30,29,null,null,null,null,null,null,1,{"$f":"IF(I41=1,\"\", INDEX(Cups,I41))","v":null},null,1,{"$f":"IF(L41=1,\"\",INDEX(Cups,L41))","v":null},null,1,{"$f":"IF(O41=1, \"\", INDEX(Cups,O41))","v":null},null,1,{"$f":"IF(R41=1, \"\", INDEX(Cups,R41))","v":null}]
[31,30,null,null,null,null,null,null,1,{"$f":"IF(I42=1,\"\", INDEX(Cups,I42))","v":null},null,1,{"$f":"IF(L42=1,\"\",INDEX(Cups,L42))","v":null},null,1,{"$f":"IF(O42=1, \"\", INDEX(Cups,O42))","v":null},null,1,{"$f":"IF(R42=1, \"\", INDEX(Cups,R42))","v":null}]
[32,31,null,null,null,null,null,null,1,{"$f":"IF(I43=1,\"\", INDEX(Cups,I43))","v":null},null,1,{"$f":"IF(L43=1,\"\",INDEX(Cups,L43))","v":null},null,1,{"$f":"IF(O43=1, \"\", INDEX(Cups,O43))","v":null},null,1,{"$f":"IF(R43=1, \"\", INDEX(Cups,R43))","v":null}]
[33,32,null,null,null,null,null,null,1,{"$f":"IF(I44=1,\"\", INDEX(Cups,I44))","v":null},null,1,{"$f":"IF(L44=1,\"\",INDEX(Cups,L44))","v":null},null,1,{"$f":"IF(O44=1, \"\", INDEX(Cups,O44))","v":null},null,1,{"$f":"IF(R44=1, \"\", INDEX(Cups,R44))","v":null}]
[34,33,null,null,null,null,null,null,1,{"$f":"IF(I45=1,\"\", INDEX(Cups,I45))","v":null},null,1,{"$f":"IF(L45=1,\"\",INDEX(Cups,L45))","v":null},null,1,{"$f":"IF(O45=1, \"\", INDEX(Cups,O45))","v":null},null,1,{"$f":"IF(R45=1, \"\", INDEX(Cups,R45))","v":null}]
[35,34,null,null,null,null,null,null,1,{"$f":"IF(I46=1,\"\", INDEX(Cups,I46))","v":null},null,1,{"$f":"IF(L46=1,\"\",INDEX(Cups,L46))","v":null},null,1,{"$f":"IF(O46=1, \"\", INDEX(Cups,O46))","v":null},null,1,{"$f":"IF(R46=1, \"\", INDEX(Cups,R46))","v":null}]
[36,35,null,null,null,null,null,null,1,{"$f":"IF(I47=1,\"\", INDEX(Cups,I47))","v":null},null,1,{"$f":"IF(L47=1,\"\",INDEX(Cups,L47))","v":null},null,1,{"$f":"IF(O47=1, \"\", INDEX(Cups,O47))","v":null},null,1,{"$f":"IF(R47=1, \"\", INDEX(Cups,R47))","v":null}]
[37,36,null,null,null,null,null,null,1,{"$f":"IF(I48=1,\"\", INDEX(Cups,I48))","v":null},null,1,{"$f":"IF(L48=1,\"\",INDEX(Cups,L48))","v":null},null,1,{"$f":"IF(O48=1, \"\", INDEX(Cups,O48))","v":null},null,1,{"$f":"IF(R48=1, \"\", INDEX(Cups,R48))","v":null}]
[38,37,null,null,null,null,null,null,1,{"$f":"IF(I49=1,\"\", INDEX(Cups,I49))","v":null},null,1,{"$f":"IF(L49=1,\"\",INDEX(Cups,L49))","v":null},null,1,{"$f":"IF(O49=1, \"\", INDEX(Cups,O49))","v":null},null,1,{"$f":"IF(R49=1, \"\", INDEX(Cups,R49))","v":null}]
[39,38,null,null,null,null,null,null,1,{"$f":"IF(I50=1,\"\", INDEX(Cups,I50))","v":null},null,1,{"$f":"IF(L50=1,\"\",INDEX(Cups,L50))","v":null},null,1,{"$f":"IF(O50=1, \"\", INDEX(Cups,O50))","v":null},null,1,{"$f":"IF(R50=1, \"\", INDEX(Cups,R50))","v":null}]
[40,39,null,null,null,null,null,null,1,{"$f":"IF(I51=1,\"\", INDEX(Cups,I51))","v":null},null,1,{"$f":"IF(L51=1,\"\",INDEX(Cups,L51))","v":null},null,1,{"$f":"IF(O51=1, \"\", INDEX(Cups,O51))","v":null},null,1,{"$f":"IF(R51=1, \"\", INDEX(Cups,R51))","v":null}]
[41,40,null,null,null,null,null,null,1,{"$f":"IF(I52=1,\"\", INDEX(Cups,I52))","v":null},null,1,{"$f":"IF(L52=1,\"\",INDEX(Cups,L52))","v":null},null,1,{"$f":"IF(O52=1, \"\", INDEX(Cups,O52))","v":null},null,1,{"$f":"IF(R52=1, \"\", INDEX(Cups,R52))","v":null}]
[42,41,null,null,null,null,null,null,1,{"$f":"IF(I53=1,\"\", INDEX(Cups,I53))","v":null},null,1,{"$f":"IF(L53=1,\"\",INDEX(Cups,L53))","v":null},null,1,{"$f":"IF(O53=1, \"\", INDEX(Cups,O53))","v":null},null,1,{"$f":"IF(R53=1, \"\", INDEX(Cups,R53))","v":null}]
[43,42,null,null,null,null,null,null,1,{"$f":"IF(I54=1,\"\", INDEX(Cups,I54))","v":null},null,1,{"$f":"IF(L54=1,\"\",INDEX(Cups,L54))","v":null},null,1,{"$f":"IF(O54=1, \"\", INDEX(Cups,O54))","v":null},null,1,{"$f":"IF(R54=1, \"\", INDEX(Cups,R54))","v":null}]
[44,43,null,null,null,null,null,null,1,{"$f":"IF(I55=1,\"\", INDEX(Cups,I55))","v":null},null,1,{"$f":"IF(L55=1,\"\",INDEX(Cups,L55))","v":null},null,1,{"$f":"IF(O55=1, \"\", INDEX(Cups,O55))","v":null},null,1,{"$f":"IF(R55=1, \"\", INDEX(Cups,R55))","v":null}]
[45,44,null,null,null,null,null,null,1,{"$f":"IF(I56=1,\"\", INDEX(Cups,I56))","v":null},null,1,{"$f":"IF(L56=1,\"\",INDEX(Cups,L56))","v":null},null,1,{"$f":"IF(O56=1, \"\", INDEX(Cups,O56))","v":null},null,1,{"$f":"IF(R56=1, \"\", INDEX(Cups,R56))","v":null}]
[46,45,null,null,null,null,null,null,1,{"$f":"IF(I57=1,\"\", INDEX(Cups,I57))","v":null},null,1,{"$f":"IF(L57=1,\"\",INDEX(Cups,L57))","v":null},null,1,{"$f":"IF(O57=1, \"\", INDEX(Cups,O57))","v":null},null,1,{"$f":"IF(R57=1, \"\", INDEX(Cups,R57))","v":null}]
[47,46,null,null,null,null,null,null,1,{"$f":"IF(I58=1,\"\", INDEX(Cups,I58))","v":null},null,1,{"$f":"IF(L58=1,\"\",INDEX(Cups,L58))","v":null},null,1,{"$f":"IF(O58=1, \"\", INDEX(Cups,O58))","v":null},null,1,{"$f":"IF(R58=1, \"\", INDEX(Cups,R58))","v":null}]
[48,47,null,null,null,null,null,null,1,{"$f":"IF(I59=1,\"\", INDEX(Cups,I59))","v":null},null,1,{"$f":"IF(L59=1,\"\",INDEX(Cups,L59))","v":null},null,1,{"$f":"IF(O59=1, \"\", INDEX(Cups,O59))","v":null},null,1,{"$f":"IF(R59=1, \"\", INDEX(Cups,R59))","v":null}]
[49,48,null,null,null,null,null,null,1,{"$f":"IF(I60=1,\"\", INDEX(Cups,I60))","v":null},null,1,{"$f":"IF(L60=1,\"\",INDEX(Cups,L60))","v":null},null,1,{"$f":"IF(O60=1, \"\", INDEX(Cups,O60))","v":null},null,1,{"$f":"IF(R60=1, \"\", INDEX(Cups,R60))","v":null}]
[50,49,null,null,null,null,null,null,1,{"$f":"IF(I61=1,\"\", INDEX(Cups,I61))","v":null},null,1,{"$f":"IF(L61=1,\"\",INDEX(Cups,L61))","v":null},null,1,{"$f":"IF(O61=1, \"\", INDEX(Cups,O61))","v":null},null,1,{"$f":"IF(R61=1, \"\", INDEX(Cups,R61))","v":null}]
[null,50,null,null,null,null,null,null,1,{"$f":"IF(I62=1,\"\", INDEX(Cups,I62))","v":null},null,1,{"$f":"IF(L62=1,\"\",INDEX(Cups,L62))","v":null},null,1,{"$f":"IF(O62=1, \"\", INDEX(Cups,O62))","v":null},null,1,{"$f":"IF(R62=1, \"\", INDEX(Cups,R62))","v":null}]

{"sheet":"Vegetable Subgroups","index":4,"n_rows":41,"n_cols":5,"rows_kept":41,"cut":false,"hidden":true,"merged":[[0,0,0,4],[1,0,1,4]]}
["Vegetable Subgroups \nLunch, Grades 9-12"]
["Classify each vegetable offered during the week in a creditable amount in the appropriate subgroup column. You may inlcude vegetables offered as part of an entrée in creditable amounts. Some of the commonly offered vegetables in each subgroup are entered below.\nType any additional vegetables offered during the week in the empty rows in each subgroup column."]
["DARK GREEN vegetables offered during the week ","RED/ORANGE vegetables offered during the week","BEANS/PEAS (Legumes) offered during the week","STARCHY vegetables offered during the week","OTHER\n (any other type of vegetable)\noffered during the week"]
[]
["Arugula lettuce","Carrot juice ","Black beans ","Corn","Artichokes "]
["Bok choy","Carrots","Chickpeas ","Fresh Cow/field/blackeye/pigeon (peas)","Asparagus"]
["Boston or bibb lettuce","Chili pepper, hot","Kidney beans ","Green peas, immature","Avocado "]
["Broccoli","Peppers, red, sweet, bell ","Lentils ","Jicama","Bamboo Shoots"]
["Chard","Pumpkin","Lima beans, mature","Lima beans, immature ","Beans, green/snap/yellow"]
["Cilantro","Squash, winter ","Pinto beans","Parsnips","Beets"]
["Collard greens","Sweet potatoes","Refried beans","Plantains ","Brussels sprouts "]
["Grape leaves","Tomato juice ","Soybeans","Potatoes","Cabbage, green/red"]
["Kale","Tomato paste","Split peas ","Water chestnuts","Cactus (nopales)"]
["Mustard greens","Tomato sauce","White beans","Starchy unspecified","Cauliflower/broccoflower "]
["Romaine","Tomatoes","Beans/peas unspecified",null,"Celery"]
["Seaweed","Red/orange unspecified",null,null,"Chili pepper, hot, green"]
["Spinach","TOMATO 6X6 LRG",null,null,"Chives"]
["Turnip greens",null,null,null,"Cucumber "]
["Watercress",null,null,null,"Eggplant"]
["Dark green unspecified",null,null,null,"Garlic"]
["LETTUCE ROMAINE HRTS",null,null,null,"Kohlrabi/celeriac/Fennel"]
[null,null,null,null,"Lettuce, iceberg"]
[null,null,null,null,"Mung bean/alfalfa sprouts"]
[null,null,null,null,"Mushrooms"]
[null,null,null,null,"Okra"]
[null,null,null,null,"Olives"]
[null,null,null,null,"Onions/leeks"]
[null,null,null,null,"Peppers, green, sweet, bell"]
[null,null,null,null,"Pickles"]
[null,null,null,null,"Radishes"]
[null,null,null,null,"Snowpeas"]
[null,null,null,null,"Squash, Summer/yellow/spaghetti/chayote"]
[null,null,null,null,"Tomatillos"]
[null,null,null,null,"Turnips/rutabagas"]
[null,null,null,null,"Zucchini"]
[null,null,null,null,"**Extra dark green used as other**"]
[null,null,null,null,"**Extra red/orange used as other**"]
[null,null,null,null,"**Extra beans/peas used as other**"]
[null,null,null,null,"Other unspecified"]
[null,null,null,null,"PEPPERS COLORED MIXED ASST"]
[null,null,null,null,"CUCUMBER SUPER SELECT"]

{"sheet":"Optional VegBar","index":5,"n_rows":18,"n_cols":36,"rows_kept":18,"cut":false,"hidden":false,"merged":[[19,25,19,28],[0,31,0,35],[22,1,22,4],[22,7,22,10],[22,13,22,16],[22,19,22,22],[22,25,22,28],[20,25,20,28],[21,1,21,4],[21,7,21,10],[21,13,21,16],[21,19,21,22],[21,25,21,28],[20,1,20,4],[20,7,20,10],[20,13,20,16],[17,1,17,4],[17,7,17,10],[17,13,17,16],[17,19,17,22],[19,1,19,4],[19,7,19,10],[19,13,19,16],[19,19,19,22],[18,19,18,22],[20,19,20,22],[17,25,17,28],[18,25,18,28],[2,16,3,16],[2,19,3,19],[2,22,3,22],[2,25,3,25],[2,28,3,28],[16,1,16,28],[2,4,3,4],[2,7,3,7],[2,10,3,10],[2,13,3,13],[18,1,18,4],[18,7,18,10],[18,13,18,16],[12,35,14,35],[15,32,17,32],[15,35,17,35],[5,32,10,32],[0,1,0,28],[1,1,1,28],[1,31,1,33],[3,32,3,35],[11,32,11,35],[2,1,3,1],[12,32,14,32],[4,1,4,4],[4,7,4,10],[4,13,4,16],[4,19,4,22],[4,25,4,28]]}
[null,"OPTIONAL Weekly Vegetable Bar Data Entry\nGrades 9-12",null,null,null,null,null,null,null,null,null,null,null,null,null,null,null,null,null,null,null,null,null,null,null,null,null,null,null,null,null,"Click here for help categorizing vegetables","https://foodbuyingguide.fns.usda.gov/files/Reports/USDA_FBG_Section2_Vegetables_YieldTable.pdf","https://foodbuyingguide.fns.usda.gov/files/Reports/USDA_FBG_Section2_Vegetables_YieldTable.pdf","https://foodbuyingguide.fns.usda.gov/files/Reports/USDA_FBG_Section2_Vegetables_YieldTable.pdf","https://foodbuyingguide.fns.usda.gov/files/Reports/USDA_FBG_Section2_Vegetables_YieldTable.pdf"]
[null,"Use this tab ONLY if there is a vegetable bar offered for the week with the SAME vegetable subgroup offerings multiple times over the week.  \nThe vegetable bar must be accessible to ALL students for the days in which it is offered.\nSelect the name and quantity of each vegetable offered on the vegetable bar in the appropriate subgroup. The quantity is the planned offering amount (serving size) for each student. ",null,null,null,null,null,null,null,null,null,null,null,null,null,null,null,null,null,null,null,null,null,null,null,null,null,null,null,null,null,"Go to Instructions","'Menu Worksheet Instructions'!A75","'Menu Worksheet Instructions'!A75"]
[null,"DARK GREEN vegetables offered  ",null,null,"Quantity (cups)",null,null,"Red/Orange vegetables offered  ",null,null,"Quantity (cups)",null,null,"Beans/Peas (legumes) offered  ",null,null,"Quantity (cups)",null,null,"Starchy vegetables offered  ",null,null,"Quantity (cups)",null,null,"Other vegetables offered  ",null,null,"Quantity (cups)"]
[null,null,"G_T",null,null,"G_I","G_num",null,"R_T",null,null,"R_i","r_num",null,"B_t",null,null,"B_i","B_num",null,"S_T",null,null,"s_i","s_num",null,"O_T",null,null,"o_i","O_num",null,"OPTIONAL Tools to Assist in Fraction and Decimal Calculations"]
[null,{"$f":"IF(OR(COUNTIF(C6:C15, 12)>0, COUNTIF(C6:C15,2)>0, COUNTIF(C6:C15,4)>0, COUNTIF(C6:C15,10)>0, COUNTIF(C6:C15,15)>0, COUNTIF(C6:C15,17)>0,), \"Remember to enter CREDITABLE amounts of leafy greens!\", \"\")","v":null},null,null,null,null,null,{"$f":"IF(COUNTIF(I6:I15,10)>0,\"Remember to enter the CREDITABLE amount of tomato paste!\",\"\")","v":null},null,null,null,null,null,{"$f":"IF(SUM(O6:O15)>10, \"If crediting as a vegetable do not also credit as a meat/meat alternate\", \"\")","v":null}]
[null,null,1,{"$f":"INDEX(GREEN,C6)","v":null},null,1,{"$f":"IF(D6=0,\"\",INDEX(Cups,F6))","v":null},null,1,{"$f":"INDEX(RED,I6)","v":null},null,1,{"$f":"IF(J6=0, \"\", INDEX(Cups,L6))","v":null},null,1,{"$f":"INDEX(BEANS,O6)","v":null},null,1,{"$f":"IF(P6=0,\"\",INDEX(Cups,R6))","v":null},null,1,{"$f":"INDEX(STARCHY,U6)","v":null},null,1,{"$f":"IF(V6=0,\"\",INDEX(Cups,X6))","v":null},null,1,{"$f":"INDEX(OTHER,AA6)","v":null},null,1,{"$f":"IF(AB6=0, \"\", INDEX(Cups,AD6))","v":null},null,"\n\nFraction Calculator: \nUse this calculator to add the number of cups.",1,{"$f":"INDEX(Cups,AH6)","v":null}]
[null,null,1,{"$f":"INDEX(GREEN,C7)","v":null},null,1,{"$f":"IF(D7=0,\"\",INDEX(Cups,F7))","v":null},null,1,{"$f":"INDEX(RED,I7)","v":null},null,1,{"$f":"IF(J7=0, \"\", INDEX(Cups,L7))","v":null},null,1,{"$f":"INDEX(BEANS,O7)","v":null},null,1,{"$f":"IF(P7=0,\"\",INDEX(Cups,R7))","v":null},null,1,{"$f":"INDEX(STARCHY,U7)","v":null},null,1,{"$f":"IF(V7=0,\"\",INDEX(Cups,X7))","v":null},null,1,{"$f":"INDEX(OTHER,AA7)","v":null},null,1,{"$f":"IF(AB7=0, \"\", INDEX(Cups,AD7))","v":null},null,null,1,{"$f":"INDEX(Cups,AH7)","v":null}]
[null,null,1,{"$f":"INDEX(GREEN,C8)","v":null},null,1,{"$f":"IF(D8=0,\"\",INDEX(Cups,F8))","v":null},null,1,{"$f":"INDEX(RED,I8)","v":null},null,1,{"$f":"IF(J8=0, \"\", INDEX(Cups,L8))","v":null},null,1,{"$f":"INDEX(BEANS,O8)","v":null},null,1,{"$f":"IF(P8=0,\"\",INDEX(Cups,R8))","v":null},null,1,{"$f":"INDEX(STARCHY,U8)","v":null},null,1,{"$f":"IF(V8=0,\"\",INDEX(Cups,X8))","v":null},null,1,{"$f":"INDEX(OTHER,AA8)","v":null},null,1,{"$f":"IF(AB8=0, \"\", INDEX(Cups,AD8))","v":null},null,null,1,{"$f":"INDEX(Cups,AH8)","v":null}]
[null,null,1,{"$f":"INDEX(GREEN,C9)","v":null},null,1,{"$f":"IF(D9=0,\"\",INDEX(Cups,F9))","v":null},null,1,{"$f":"INDEX(RED,I9)","v":null},null,1,{"$f":"IF(J9=0, \"\", INDEX(Cups,L9))","v":null},null,1,{"$f":"INDEX(BEANS,O9)","v":null},null,1,{"$f":"IF(P9=0,\"\",INDEX(Cups,R9))","v":null},null,1,{"$f":"INDEX(STARCHY,U9)","v":null},null,1,{"$f":"IF(V9=0,\"\",INDEX(Cups,X9))","v":null},null,1,{"$f":"INDEX(OTHER,AA9)","v":null},null,1,{"$f":"IF(AB9=0, \"\", INDEX(Cups,AD9))","v":null},null,null,1,{"$f":"INDEX(Cups,AH9)","v":null}]
[null,null,1,{"$f":"INDEX(GREEN,C10)","v":null},null,1,{"$f":"IF(D10=0,\"\",INDEX(Cups,F10))","v":null},null,1,{"$f":"INDEX(RED,I10)","v":null},null,1,{"$f":"IF(J10=0, \"\", INDEX(Cups,L10))","v":null},null,1,{"$f":"INDEX(BEANS,O10)","v":null},null,1,{"$f":"IF(P10=0,\"\",INDEX(Cups,R10))","v":null},null,1,{"$f":"INDEX(STARCHY,U10)","v":null},null,1,{"$f":"IF(V10=0,\"\",INDEX(Cups,X10))","v":null},null,1,{"$f":"INDEX(OTHER,AA10)","v":null},null,1,{"$f":"IF(AB10=0, \"\", INDEX(Cups,AD10))","v":null},null,null,1,{"$f":"INDEX(Cups,AH10)","v":null}]
[null,null,1,{"$f":"INDEX(GREEN,C11)","v":null},null,1,{"$f":"IF(D11=0,\"\",INDEX(Cups,F11))","v":null},null,1,{"$f":"INDEX(RED,I11)","v":null},null,1,{"$f":"IF(J11=0, \"\", INDEX(Cups,L11))","v":null},null,1,{"$f":"INDEX(BEANS,O11)","v":null},null,1,{"$f":"IF(P11=0,\"\",INDEX(Cups,R11))","v":null},null,1,{"$f":"INDEX(STARCHY,U11)","v":null},null,1,{"$f":"IF(V11=0,\"\",INDEX(Cups,X11))","v":null},null,1,{"$f":"INDEX(OTHER,AA11)","v":null},null,1,{"$f":"IF(AB11=0, \"\", INDEX(Cups,AD11))","v":null},null,null,null,null,{"$f":"SUM(AI6:AI10)","v":null}]
[null,null,1,{"$f":"INDEX(GREEN,C12)","v":null},null,1,{"$f":"IF(D12=0,\"\",INDEX(Cups,F12))","v":null},null,1,{"$f":"INDEX(RED,I12)","v":null},null,1,{"$f":"IF(J12=0, \"\", INDEX(Cups,L12))","v":null},null,1,{"$f":"INDEX(BEANS,O12)","v":null},null,1,{"$f":"IF(P12=0,\"\",INDEX(Cups,R12))","v":null},null,1,{"$f":"INDEX(STARCHY,U12)","v":null},null,1,{"$f":"IF(V12=0,\"\",INDEX(Cups,X12))","v":null},null,1,{"$f":"INDEX(OTHER,AA12)","v":null},null,1,{"$f":"IF(AB12=0, \"\", INDEX(Cups,AD12))","v":null},null,"Decimal/Fraction Converter\n(Rounded down to the nearest 1/8)"]
[null,null,1,{"$f":"INDEX(GREEN,C13)","v":null},null,1,{"$f":"IF(D13=0,\"\",INDEX(Cups,F13))","v":null},null,1,{"$f":"INDEX(RED,I13)","v":null},null,1,{"$f":"IF(J13=0, \"\", INDEX(Cups,L13))","v":null},null,1,{"$f":"INDEX(BEANS,O13)","v":null},null,1,{"$f":"IF(P13=0,\"\",INDEX(Cups,R13))","v":null},null,1,{"$f":"INDEX(STARCHY,U13)","v":null},null,1,{"$f":"IF(V13=0,\"\",INDEX(Cups,X13))","v":null},null,1,{"$f":"INDEX(OTHER,AA13)","v":null},null,1,{"$f":"IF(AB13=0, \"\", INDEX(Cups,AD13))","v":null},null,"Enter the decimal you wish to convert to a fraction in the box:"]
[null,null,1,{"$f":"INDEX(GREEN,C14)","v":null},null,1,{"$f":"IF(D14=0,\"\",INDEX(Cups,F14))","v":null},null,1,{"$f":"INDEX(RED,I14)","v":null},null,1,{"$f":"IF(J14=0, \"\", INDEX(Cups,L14))","v":null},null,1,{"$f":"INDEX(BEANS,O14)","v":null},null,1,{"$f":"IF(P14=0,\"\",INDEX(Cups,R14))","v":null},null,1,{"$f":"INDEX(STARCHY,U14)","v":null},null,1,{"$f":"IF(V14=0,\"\",INDEX(Cups,X14))","v":null},null,1,{"$f":"INDEX(OTHER,AA14)","v":null},null,1,{"$f":"IF(AB14=0, \"\", INDEX(Cups,AD14))","v":null}]
[null,null,1,{"$f":"INDEX(GREEN,C15)","v":null},null,1,{"$f":"IF(D15=0,\"\",INDEX(Cups,F15))","v":null},null,1,{"$f":"INDEX(RED,I15)","v":null},null,1,{"$f":"IF(J15=0, \"\", INDEX(Cups,L15))","v":null},null,1,{"$f":"INDEX(BEANS,O15)","v":null},null,1,{"$f":"IF(P15=0,\"\",INDEX(Cups,R15))","v":null},null,1,{"$f":"INDEX(STARCHY,U15)","v":null},null,1,{"$f":"IF(V15=0,\"\",INDEX(Cups,X15))","v":null},null,1,{"$f":"INDEX(OTHER,AA15)","v":null},null,1,{"$f":"IF(AB15=0, \"\", INDEX(Cups,AD15))","v":null}]
[null,"Sum of Dark Green Offerings:",null,null,{"$f":"G16","v":null},null,{"$f":"SUM(G6:G15)","v":null},"Sum of Red/Orange Offerings:",null,null,{"$f":"M16","v":null},null,{"$f":"SUM(M6:M15)","v":null},"Sum of Beans/Peas (legumes) Offerings:",null,null,{"$f":"S16","v":null},null,{"$f":"SUM(S6:S15)","v":null},"Sum of Starchy Offerings:",null,null,{"$f":"Y16","v":null},null,{"$f":"SUM(Y6:Y15)","v":null},"Sum of Other Offerings:",null,null,{"$f":"AE16","v":null},null,{"$f":"SUM(AE6:AE15)","v":null},null,"The decimal entered above has been converted to the following fraction:",null,null,{"$f":"FLOOR(AJ13, 0.125)","v":null}]
[null,{"$f":"IF(OR(COUNTIF(C6:C15,18)>0, COUNTIF(I6:I15, 13)>0, COUNTIF(O6:O15, 12)>0, COUNTIF(U6:U15, 11)>0, COUNTIF(AA6:AA15,35)>0, COUNTIF(AA6:AA15,36)>0,COUNTIF(AA6:AA15,37)>0, COUNTIF(AA6:AA15,38)>0, COUNTIF(AA6:AA15,39)>0), \"You entered an unspecified or extra other vegetable above, please enter the name of the vegetable in the appropriate subgroup below\", \"\")","v":null}]
[null,"Unspecified Dark Green Vegetables",null,null,null,null,null,"Unspecified Red/Orange Vegetables",null,null,null,null,null,"Unspecified Beans/Peas",null,null,null,null,null,"Unspecified Starchy Vegetables",null,null,null,null,null,"Unspecified Other Vegetables"]

{"sheet":"Monday","index":6,"n_rows":26,"n_cols":57,"rows_kept":26,"cut":false,"hidden":false,"merged":[[6,18,6,21],[6,42,7,42],[4,36,5,36],[4,14,5,14],[6,27,7,27],[6,37,7,37],[6,38,7,38],[6,39,7,39],[6,30,7,30],[6,32,7,32],[6,29,7,29],[3,2,5,3],[2,2,2,25],[3,10,3,12],[1,27,1,48],[1,51,1,55],[4,6,5,6],[4,9,5,9],[3,13,3,15],[4,15,5,15],[3,6,3,9],[4,45,5,45],[4,18,4,21],[5,18,5,21],[4,55,5,55],[4,42,5,42],[3,4,3,5],[4,4,5,4],[4,25,7,25],[7,18,7,21],[4,5,5,5],[4,17,5,17],[4,11,5,11],[4,7,5,7],[4,8,5,8],[24,51,24,54],[4,33,5,33],[4,39,5,39],[4,12,5,12],[0,19,0,25],[0,27,0,54],[4,27,5,27],[1,19,1,21],[0,2,0,17],[3,18,3,25],[2,27,2,39],[3,27,3,54],[1,3,1,17],[3,16,3,17],[4,13,5,13],[1,24,1,25],[4,30,5,30],[4,16,5,16],[4,10,5,10],[6,28,7,28],[4,54,5,54],[23,33,23,36],[21,33,21,36],[6,31,7,31],[25,27,25,30],[25,33,25,36],[21,19,22,21],[21,24,22,25],[10,19,11,25],[18,19,18,25],[19,19,20,21],[19,24,20,25],[8,27,8,30],[13,24,13,25],[14,24,14,25],[12,19,17,21],[15,24,15,25],[16,24,16,25],[17,24,17,25],[12,24,12,25],[8,18,8,21],[20,27,20,30],[21,27,21,30],[22,27,22,30],[20,45,20,48],[8,39,8,42],[8,33,8,36],[6,36,7,36],[6,34,7,34],[6,33,7,33],[6,35,7,35],[25,51,25,54],[19,27,19,54],[24,33,24,36],[20,51,20,54],[21,51,21,54],[22,51,22,54],[23,51,23,54],[21,45,21,48],[25,45,25,48],[20,39,20,42],[23,39,23,42],[24,39,24,42],[25,39,25,42],[24,45,24,48],[23,45,23,48],[22,33,22,36],[20,33,20,36],[22,45,22,48],[8,45,8,48],[23,27,23,30],[24,27,24,30],[4,56,5,56],[6,47,7,47],[6,48,7,48],[6,49,7,49],[6,50,7,50],[4,48,5,48],[4,51,5,51],[8,51,8,54],[6,52,7,52],[6,53,7,53],[6,54,7,54],[6,43,7,43],[6,44,7,44],[6,45,7,45],[6,51,7,51],[21,39,21,42],[22,39,22,42],[6,40,7,40],[6,41,7,41],[6,46,7,46]]}
[null,null,"Monday Daily Lunch Requirement Check\nGrades 9-12",null,null,null,null,null,null,null,null,null,null,null,null,null,null,null,null,"Scroll to the right to enter vegetable subgroup information",null,null,null,null,null,null,null,"Monday Vegetable Subgroup Data Entry\nGrades 9-12"]
[null,null,null,"The daily worksheet will perform daily requirement checks for the reimbursable meals offered each day. Requirements met are flagged \"Yes\" and the cell turns green. Requirements NOT met are flagged \"No\" and the cell turns red. \nNOTE: The top row is frozen to display the column headers as the daily meals are entered.\nGrains, whole grain rich, and meat/meat alternate oz equivalents are rounded down to the nearest quarter ounce.\nOnce you are finished selecting the meals offered each day, make sure to scroll to the right to enter milk type and vegetable subgroup information.",null,null,null,null,null,null,null,null,null,null,null,null,null,null,null,"Go to Instructions","'Menu Worksheet Instructions'!A1","'Menu Worksheet Instructions'!A1",null,null,"Go to Weekly Report","'Weekly Report'!A1",null,"Creditable Amount of Each Vegetable Subgroup Offered on Monday\nIn the first drop down box, select the largest amount of each vegetable subgroup offered to a student, then in the drop down boxes below, select the name and amount of each vegetable offered in the subgroup. \nIf you want to clear an entry, select the first blank in the drop down box.\nFor additional information on completing the data entry for the vegetable subgroup section, please refer to the Instructions tab. ",null,null,null,null,null,null,null,null,null,null,null,null,null,null,null,null,null,null,null,null,null,null,null,"Click here for help categorizing vegetables\n","https://foodbuyingguide.fns.usda.gov/files/Reports/USDA_FBG_Section2_Vegetables_YieldTable.pdf","https://foodbuyingguide.fns.usda.gov/files/Reports/USDA_FBG_Section2_Vegetables_YieldTable.pdf","https://foodbuyingguide.fns.usda.gov/files/Reports/USDA_FBG_Section2_Vegetables_YieldTable.pdf","https://foodbuyingguide.fns.usda.gov/files/Reports/USDA_FBG_Section2_Vegetables_YieldTable.pdf"]
[null,null,"Monday",null,null,null,null,null,null,null,null,null,null,null,null,null,null,null,null,null,null,null,null,null,null,null,null,"Check this box if you offered the weekly vegetable bar on Monday with NO CHANGES:",null,null,null,null,null,null,null,null,null,null,null,null,null,null,null,false]
[null,null,"1.  Meal Name\nSelect the reimbursable lunches offered for the day\nNote: You may not delete lines, if you want to clear a meal select the first blank in the drop down list",null,"2.  Meat/Meat Alternate (M/MA)",null,"3. Grains",null,null,null,"4. Fruit",null,null,"5. Vegetables",null,null,"6. Milk",null,"Milk Type\nCheck the type of milk below if it is offered to students on Monday. \nAll types of milk included.",null,null,null,null,null,null,null,null,"If you offered any vegetables in addition to the weekly vegetable bar, select the largest amount of the vegetable offered to a student and select the name of each vegetable under the appropriate subgroup.\nNOTE:  If you offered a vegetable bar on Monday that differs from the weekly offerings, all offerings and quantities for each vegetable subgroup must be selected in the section below.",null,null,null,null,null,null,null,null,null,null,null,null,null,null,null,null,null,null,null,null,null,null,null,null,null,null,null,"o_i","O_num"]
[null,null,null,null,"M/MA\noz equivalents","Daily M/MA Requirement Check\n2 oz equivalents","a. Grains\n oz equivalents\n","Daily Grain Requirement Check\n2 oz equivalents","b. Whole Grain Rich\n oz equivalents\n ","c. Grain Based Dessert\n oz equivalents\n ","a. Fruit\ncups","Daily Fruit Requirement Check\n 1 cup","b. Fruit Juice \ncups","a. Vegetables\n cups","Daily Vegetable Requirement Check\n1 cup","b. Vegetable Juice \ncups","Milk\ncups","Daily Milk Requirement Check\n1 cup","Skim/fat-free, unflavored",null,null,null,null,true,null,{"$f":"IF(AND(X5=FALSE,X6=FALSE,X7=FALSE,X8=FALSE),\"\",IF(AND(X5=TRUE,X6=TRUE),\"Yes\",IF(AND(X5=TRUE,X7=TRUE),\"Yes\",IF(AND(X6=TRUE,X7=TRUE),\"Yes\",IF(AND(X5=TRUE,X8=TRUE),\"Yes\",IF(AND(X7=TRUE,X8=TRUE),\"Yes\",\"No\"))))))","v":null},null,"DARK GREEN vegetables offered on Monday",null,null,"Quantity (cups)",null,null,"Red/Orange vegetables offered on Monday",null,null,"Quantity (cups)",null,null,"Beans/Peas (legumes) offered on Monday",null,null,"Quantity (cups)",null,null,"Starchy vegetables offered on Monday",null,null,"Quantity (cups)",null,null,"Other vegetables offered on Monday",null,null,"Quantity (cups)",2,{"$f":"INDEX(Cups,BD5)","v":null}]
[null,null,null,null,null,null,null,null,null,null,null,null,null,null,null,null,null,null,"Skim/fat-free, flavored",null,null,null,null,false,null,null,null,null,"G_T",null,null,"G_I","G_num",null,"R_T",null,null,"R_i","r_num",null,"B_t",null,null,"B_i","B_num",null,"S_T",null,null,"s_i","s_num",null,"O_T"]
[2,{"$f":"INDEX(meals,A7)","v":null},1,null,{"$f":"IF(B7=0,\"\",FLOOR(VLOOKUP(A7,'All Meals'!$A$12:$V$61,4),0.25))","v":null},{"$f":"IF(B7=0,\"\",IF(E7=\"\",\"No\",IF(E7>=2,\"Yes\",\"No\")))","v":null},{"$f":"IF(B7=0,\"\",FLOOR(VLOOKUP(A7,'All Meals'!$A$12:$V$61,5),0.25))","v":null},{"$f":"IF(B7=0,\"\",IF(G7=\"\",\"No\",IF(G7>=2,\"Yes\",\"No\")))","v":null},{"$f":"IF(B7=0,\"\",FLOOR(VLOOKUP(A7,'All Meals'!$A$12:$V$61,6),0.25))","v":null},{"$f":"IF(B7=0,\"\",FLOOR(VLOOKUP(A7,'All Meals'!$A$12:$V$61,7),0.25))","v":null},{"$f":"IF(B7=0, \"\",VLOOKUP(A7,'All Meals'!$A$12:$V$61,10))","v":null},{"$f":"IF(B7=0,\"\",IF(K7=\"\",\"No\",IF(K7>=1,\"Yes\",\"No\")))","v":null},{"$f":"IF(B7=0, \"\",VLOOKUP(A7,'All Meals'!$A$12:$V$61,13))","v":null},{"$f":"IF(B7=0, \"\",VLOOKUP(A7,'All Meals'!$A$12:$V$61,16))","v":null},{"$f":"IF(B7=0,\"\",IF(N7=\"\",\"No\",IF(N7>=1,\"Yes\",\"No\")))","v":null},{"$f":"IF(B7=0, \"\",VLOOKUP(A7,'All Meals'!$A$12:$V$61,19))","v":null},{"$f":"IF(B7=0, \"\",VLOOKUP(A7,'All Meals'!$A$12:$V$61,20))","v":null},{"$f":"IF(B7=0,\"\",IF(Q7=\"\",\"No\",IF(Q7>=1,\"Yes\",\"No\")))","v":null},"Low-fat (1% or less), unflavored",null,null,null,null,false,null,null,null,"Largest amount of dark green vegetables to select on Monday",null,null,null,3,{"$f":"INDEX(Cups,AF7)","v":null},"Largest amount of red/orange vegetables to select on Monday",null,null,null,5,{"$f":"INDEX(Cups,AL7)","v":null},"Largest amount of beans/peas to select on Monday",null,null,null,1,{"$f":"INDEX(Cups,AR7)","v":null},"Largest amount of starchy vegetables to select on Monday",null,null,null,1,{"$f":"INDEX(Cups,AX7)","v":null},"Largest amount of other vegetables to select on Monday"]
[1,{"$f":"INDEX(meals,A8)","v":null},2,null,{"$f":"IF(B8=0,\"\",FLOOR(VLOOKUP(A8,'All Meals'!$A$12:$V$61,4),0.25))","v":null},{"$f":"IF(B8=0,\"\",IF(E8=\"\",\"No\",IF(E8>=2,\"Yes\",\"No\")))","v":null},{"$f":"IF(B8=0,\"\",FLOOR(VLOOKUP(A8,'All Meals'!$A$12:$V$61,5),0.25))","v":null},{"$f":"IF(B8=0,\"\",IF(G8=\"\",\"No\",IF(G8>=2,\"Yes\",\"No\")))","v":null},{"$f":"IF(B8=0,\"\",FLOOR(VLOOKUP(A8,'All Meals'!$A$12:$V$61,6),0.25))","v":null},{"$f":"IF(B8=0,\"\",FLOOR(VLOOKUP(A8,'All Meals'!$A$12:$V$61,7),0.25))","v":null},{"$f":"IF(B8=0, \"\",VLOOKUP(A8,'All Meals'!$A$12:$V$61,10))","v":null},{"$f":"IF(B8=0,\"\",IF(K8=\"\",\"No\",IF(K8>=1,\"Yes\",\"No\")))","v":null},{"$f":"IF(B8=0, \"\",VLOOKUP(A8,'All Meals'!$A$12:$V$61,13))","v":null},{"$f":"IF(B8=0, \"\",VLOOKUP(A8,'All Meals'!$A$12:$V$61,16))","v":null},{"$f":"IF(B8=0,\"\",IF(N8=\"\",\"No\",IF(N8>=1,\"Yes\",\"No\")))","v":null},{"$f":"IF(B8=0, \"\",VLOOKUP(A8,'All Meals'!$A$12:$V$61,19))","v":null},{"$f":"IF(B8=0, \"\",VLOOKUP(A8,'All Meals'!$A$12:$V$61,20))","v":null},{"$f":"IF(B8=0,\"\",IF(Q8=\"\",\"No\",IF(Q8>=1,\"Yes\",\"No\")))","v":null},"Low-fat (1% or less), flavored",null,null,null,null,false]
[1,{"$f":"INDEX(meals,A9)","v":null},3,null,{"$f":"IF(B9=0,\"\",FLOOR(VLOOKUP(A9,'All Meals'!$A$12:$V$61,4),0.25))","v":null},{"$f":"IF(B9=0,\"\",IF(E9=\"\",\"No\",IF(E9>=2,\"Yes\",\"No\")))","v":null},{"$f":"IF(B9=0,\"\",FLOOR(VLOOKUP(A9,'All Meals'!$A$12:$V$61,5),0.25))","v":null},{"$f":"IF(B9=0,\"\",IF(G9=\"\",\"No\",IF(G9>=2,\"Yes\",\"No\")))","v":null},{"$f":"IF(B9=0,\"\",FLOOR(VLOOKUP(A9,'All Meals'!$A$12:$V$61,6),0.25))","v":null},{"$f":"IF(B9=0,\"\",FLOOR(VLOOKUP(A9,'All Meals'!$A$12:$V$61,7),0.25))","v":null},{"$f":"IF(B9=0, \"\",VLOOKUP(A9,'All Meals'!$A$12:$V$61,10))","v":null},{"$f":"IF(B9=0,\"\",IF(K9=\"\",\"No\",IF(K9>=1,\"Yes\",\"No\")))","v":null},{"$f":"IF(B9=0, \"\",VLOOKUP(A9,'All Meals'!$A$12:$V$61,13))","v":null},{"$f":"IF(B9=0, \"\",VLOOKUP(A9,'All Meals'!$A$12:$V$61,16))","v":null},{"$f":"IF(B9=0,\"\",IF(N9=\"\",\"No\",IF(N9>=1,\"Yes\",\"No\")))","v":null},{"$f":"IF(B9=0, \"\",VLOOKUP(A9,'All Meals'!$A$12:$V$61,19))","v":null},{"$f":"IF(B9=0, \"\",VLOOKUP(A9,'All Meals'!$A$12:$V$61,20))","v":null},{"$f":"IF(B9=0,\"\",IF(Q9=\"\",\"No\",IF(Q9>=1,\"Yes\",\"No\")))","v":null},"Reduced fat (2% fat) or whole, unflavored and flavored",null,null,null,null,false,null,{"$f":"IF(X9=TRUE,\"No\",\"\")","v":null},null,{"$f":"IF(OR(COUNTIF(AC10:AC19, 12)>0, COUNTIF(AC10:AC19,2)>0, COUNTIF(AC10:AC19,4)>0, COUNTIF(AC10:AC19,10)>0, COUNTIF(AC10:AC19,15)>0, COUNTIF(AC10:AC19,17)>0,), \"Remember to enter CREDITABLE amounts of leafy greens!\", \"\")","v":null},null,null,null,null,null,{"$f":"IF(COUNTIF(AI10:AI19,10)>0,\"Remember to enter the CREDITABLE amount of tomato paste!\",\"\")","v":null},null,null,null,null,null,{"$f":"IF(SUM(AO10:AO19)>10, \"If crediting as a vegetable do not also credit as a meat/meat alternate\", \"\")","v":null}]
[1,{"$f":"INDEX(meals,A10)","v":null},4,null,{"$f":"IF(B10=0,\"\",FLOOR(VLOOKUP(A10,'All Meals'!$A$12:$V$61,4),0.25))","v":null},{"$f":"IF(B10=0,\"\",IF(E10=\"\",\"No\",IF(E10>=2,\"Yes\",\"No\")))","v":null},{"$f":"IF(B10=0,\"\",FLOOR(VLOOKUP(A10,'All Meals'!$A$12:$V$61,5),0.25))","v":null},{"$f":"IF(B10=0,\"\",IF(G10=\"\",\"No\",IF(G10>=2,\"Yes\",\"No\")))","v":null},{"$f":"IF(B10=0,\"\",FLOOR(VLOOKUP(A10,'All Meals'!$A$12:$V$61,6),0.25))","v":null},{"$f":"IF(B10=0,\"\",FLOOR(VLOOKUP(A10,'All Meals'!$A$12:$V$61,7),0.25))","v":null},{"$f":"IF(B10=0, \"\",VLOOKUP(A10,'All Meals'!$A$12:$V$61,10))","v":null},{"$f":"IF(B10=0,\"\",IF(K10=\"\",\"No\",IF(K10>=1,\"Yes\",\"No\")))","v":null},{"$f":"IF(B10=0, \"\",VLOOKUP(A10,'All Meals'!$A$12:$V$61,13))","v":null},{"$f":"IF(B10=0, \"\",VLOOKUP(A10,'All Meals'!$A$12:$V$61,16))","v":null},{"$f":"IF(B10=0,\"\",IF(N10=\"\",\"No\",IF(N10>=1,\"Yes\",\"No\")))","v":null},{"$f":"IF(B10=0, \"\",VLOOKUP(A10,'All Meals'!$A$12:$V$61,19))","v":null},{"$f":"IF(B10=0, \"\",VLOOKUP(A10,'All Meals'!$A$12:$V$61,20))","v":null},{"$f":"IF(B10=0,\"\",IF(Q10=\"\",\"No\",IF(Q10>=1,\"Yes\",\"No\")))","v":null},null,null,null,null,null,null,null,null,null,null,18,{"$f":"INDEX(GREEN,AC10)","v":null},null,3,{"$f":"IF(AD10=0,\"\",INDEX(Cups,AF10))","v":null},null,14,{"$f":"INDEX(RED,AI10)","v":null},null,2,{"$f":"IF(AJ10=0, \"\", INDEX(Cups,AL10))","v":null},null,1,{"$f":"INDEX(BEANS,AO10)","v":null},null,1,{"$f":"IF(AP10=0,\"\",INDEX(Cups,AR10))","v":null},null,1,{"$f":"INDEX(STARCHY,AU10)","v":null},null,1,{"$f":"IF(AV10=0,\"\",INDEX(Cups,AX10))","v":null},null,37,{"$f":"INDEX(OTHER,BA10)","v":null},null,2,{"$f":"IF(BB10=0,\"\",INDEX(Cups,BD10))","v":null}]
[1,{"$f":"INDEX(meals,A11)","v":null},5,null,{"$f":"IF(B11=0,\"\",FLOOR(VLOOKUP(A11,'All Meals'!$A$12:$V$61,4),0.25))","v":null},{"$f":"IF(B11=0,\"\",IF(E11=\"\",\"No\",IF(E11>=2,\"Yes\",\"No\")))","v":null},{"$f":"IF(B11=0,\"\",FLOOR(VLOOKUP(A11,'All Meals'!$A$12:$V$61,5),0.25))","v":null},{"$f":"IF(B11=0,\"\",IF(G11=\"\",\"No\",IF(G11>=2,\"Yes\",\"No\")))","v":null},{"$f":"IF(B11=0,\"\",FLOOR(VLOOKUP(A11,'All Meals'!$A$12:$V$61,6),0.25))","v":null},{"$f":"IF(B11=0,\"\",FLOOR(VLOOKUP(A11,'All Meals'!$A$12:$V$61,7),0.25))","v":null},{"$f":"IF(B11=0, \"\",VLOOKUP(A11,'All Meals'!$A$12:$V$61,10))","v":null},{"$f":"IF(B11=0,\"\",IF(K11=\"\",\"No\",IF(K11>=1,\"Yes\",\"No\")))","v":null},{"$f":"IF(B11=0, \"\",VLOOKUP(A11,'All Meals'!$A$12:$V$61,13))","v":null},{"$f":"IF(B11=0, \"\",VLOOKUP(A11,'All Meals'!$A$12:$V$61,16))","v":null},{"$f":"IF(B11=0,\"\",IF(N11=\"\",\"No\",IF(N11>=1,\"Yes\",\"No\")))","v":null},{"$f":"IF(B11=0, \"\",VLOOKUP(A11,'All Meals'!$A$12:$V$61,19))","v":null},{"$f":"IF(B11=0, \"\",VLOOKUP(A11,'All Meals'!$A$12:$V$61,20))","v":null},{"$f":"IF(B11=0,\"\",IF(Q11=\"\",\"No\",IF(Q11>=1,\"Yes\",\"No\")))","v":null},null,"OPTIONAL Tools to Assist in Fraction and Decimal Calculations",null,null,null,null,null,null,null,null,1,{"$f":"INDEX(GREEN,AC11)","v":null},null,1,{"$f":"IF(AD11=0,\"\",INDEX(Cups,AF11))","v":null},null,1,{"$f":"INDEX(RED,AI11)","v":null},null,1,{"$f":"IF(AJ11=0, \"\", INDEX(Cups,AL11))","v":null},null,1,{"$f":"INDEX(BEANS,AO11)","v":null},null,1,{"$f":"IF(AP11=0,\"\",INDEX(Cups,AR11))","v":null},null,1,{"$f":"INDEX(STARCHY,AU11)","v":null},null,1,{"$f":"IF(AV11=0,\"\",INDEX(Cups,AX11))","v":null},null,38,{"$f":"INDEX(OTHER,BA11)","v":null},null,2,{"$f":"IF(BB11=0,\"\",INDEX(Cups,BD11))","v":null}]
[1,{"$f":"INDEX(meals,A12)","v":null},6,null,{"$f":"IF(B12=0,\"\",FLOOR(VLOOKUP(A12,'All Meals'!$A$12:$V$61,4),0.25))","v":null},{"$f":"IF(B12=0,\"\",IF(E12=\"\",\"No\",IF(E12>=2,\"Yes\",\"No\")))","v":null},{"$f":"IF(B12=0,\"\",FLOOR(VLOOKUP(A12,'All Meals'!$A$12:$V$61,5),0.25))","v":null},{"$f":"IF(B12=0,\"\",IF(G12=\"\",\"No\",IF(G12>=2,\"Yes\",\"No\")))","v":null},{"$f":"IF(B12=0,\"\",FLOOR(VLOOKUP(A12,'All Meals'!$A$12:$V$61,6),0.25))","v":null},{"$f":"IF(B12=0,\"\",FLOOR(VLOOKUP(A12,'All Meals'!$A$12:$V$61,7),0.25))","v":null},{"$f":"IF(B12=0, \"\",VLOOKUP(A12,'All Meals'!$A$12:$V$61,10))","v":null},{"$f":"IF(B12=0,\"\",IF(K12=\"\",\"No\",IF(K12>=1,\"Yes\",\"No\")))","v":null},{"$f":"IF(B12=0, \"\",VLOOKUP(A12,'All Meals'!$A$12:$V$61,13))","v":null},{"$f":"IF(B12=0, \"\",VLOOKUP(A12,'All Meals'!$A$12:$V$61,16))","v":null},{"$f":"IF(B12=0,\"\",IF(N12=\"\",\"No\",IF(N12>=1,\"Yes\",\"No\")))","v":null},{"$f":"IF(B12=0, \"\",VLOOKUP(A12,'All Meals'!$A$12:$V$61,19))","v":null},{"$f":"IF(B12=0, \"\",VLOOKUP(A12,'All Meals'!$A$12:$V$61,20))","v":null},{"$f":"IF(B12=0,\"\",IF(Q12=\"\",\"No\",IF(Q12>=1,\"Yes\",\"No\")))","v":null},null,null,null,null,null,null,null,null,null,null,1,{"$f":"INDEX(GREEN,AC12)","v":null},null,1,{"$f":"IF(AD12=0,\"\",INDEX(Cups,AF12))","v":null},null,1,{"$f":"INDEX(RED,AI12)","v":null},null,1,{"$f":"IF(AJ12=0, \"\", INDEX(Cups,AL12))","v":null},null,1,{"$f":"INDEX(BEANS,AO12)","v":null},null,1,{"$f":"IF(AP12=0,\"\",INDEX(Cups,AR12))","v":null},null,1,{"$f":"INDEX(STARCHY,AU12)","v":null},null,1,{"$f":"IF(AV12=0,\"\",INDEX(Cups,AX12))","v":null},null,1,{"$f":"INDEX(OTHER,BA12)","v":null},null,1,{"$f":"IF(BB12=0,\"\",INDEX(Cups,BD12))","v":null}]
[1,{"$f":"INDEX(meals,A13)","v":null},7,null,{"$f":"IF(B13=0,\"\",FLOOR(VLOOKUP(A13,'All Meals'!$A$12:$V$61,4),0.25))","v":null},{"$f":"IF(B13=0,\"\",IF(E13=\"\",\"No\",IF(E13>=2,\"Yes\",\"No\")))","v":null},{"$f":"IF(B13=0,\"\",FLOOR(VLOOKUP(A13,'All Meals'!$A$12:$V$61,5),0.25))","v":null},{"$f":"IF(B13=0,\"\",IF(G13=\"\",\"No\",IF(G13>=2,\"Yes\",\"No\")))","v":null},{"$f":"IF(B13=0,\"\",FLOOR(VLOOKUP(A13,'All Meals'!$A$12:$V$61,6),0.25))","v":null},{"$f":"IF(B13=0,\"\",FLOOR(VLOOKUP(A13,'All Meals'!$A$12:$V$61,7),0.25))","v":null},{"$f":"IF(B13=0, \"\",VLOOKUP(A13,'All Meals'!$A$12:$V$61,10))","v":null},{"$f":"IF(B13=0,\"\",IF(K13=\"\",\"No\",IF(K13>=1,\"Yes\",\"No\")))","v":null},{"$f":"IF(B13=0, \"\",VLOOKUP(A13,'All Meals'!$A$12:$V$61,13))","v":null},{"$f":"IF(B13=0, \"\",VLOOKUP(A13,'All Meals'!$A$12:$V$61,16))","v":null},{"$f":"IF(B13=0,\"\",IF(N13=\"\",\"No\",IF(N13>=1,\"Yes\",\"No\")))","v":null},{"$f":"IF(B13=0, \"\",VLOOKUP(A13,'All Meals'!$A$12:$V$61,19))","v":null},{"$f":"IF(B13=0, \"\",VLOOKUP(A13,'All Meals'!$A$12:$V$61,20))","v":null},{"$f":"IF(B13=0,\"\",IF(Q13=\"\",\"No\",IF(Q13>=1,\"Yes\",\"No\")))","v":null},null,"Fraction Calculator: \nUse this calculator to add the number of cups.",null,null,1,{"$f":"INDEX(Cups,W13)","v":null},null,null,null,null,1,{"$f":"INDEX(GREEN,AC13)","v":null},null,1,{"$f":"IF(AD13=0,\"\",INDEX(Cups,AF13))","v":null},null,1,{"$f":"INDEX(RED,AI13)","v":null},null,1,{"$f":"IF(AJ13=0, \"\", INDEX(Cups,AL13))","v":null},null,1,{"$f":"INDEX(BEANS,AO13)","v":null},null,1,{"$f":"IF(AP13=0,\"\",INDEX(Cups,AR13))","v":null},null,1,{"$f":"INDEX(STARCHY,AU13)","v":null},null,1,{"$f":"IF(AV13=0,\"\",INDEX(Cups,AX13))","v":null},null,1,{"$f":"INDEX(OTHER,BA13)","v":null},null,1,{"$f":"IF(BB13=0,\"\",INDEX(Cups,BD13))","v":null}]
[1,{"$f":"INDEX(meals,A14)","v":null},8,null,{"$f":"IF(B14=0,\"\",FLOOR(VLOOKUP(A14,'All Meals'!$A$12:$V$61,4),0.25))","v":null},{"$f":"IF(B14=0,\"\",IF(E14=\"\",\"No\",IF(E14>=2,\"Yes\",\"No\")))","v":null},{"$f":"IF(B14=0,\"\",FLOOR(VLOOKUP(A14,'All Meals'!$A$12:$V$61,5),0.25))","v":null},{"$f":"IF(B14=0,\"\",IF(G14=\"\",\"No\",IF(G14>=2,\"Yes\",\"No\")))","v":null},{"$f":"IF(B14=0,\"\",FLOOR(VLOOKUP(A14,'All Meals'!$A$12:$V$61,6),0.25))","v":null},{"$f":"IF(B14=0,\"\",FLOOR(VLOOKUP(A14,'All Meals'!$A$12:$V$61,7),0.25))","v":null},{"$f":"IF(B14=0, \"\",VLOOKUP(A14,'All Meals'!$A$12:$V$61,10))","v":null},{"$f":"IF(B14=0,\"\",IF(K14=\"\",\"No\",IF(K14>=1,\"Yes\",\"No\")))","v":null},{"$f":"IF(B14=0, \"\",VLOOKUP(A14,'All Meals'!$A$12:$V$61,13))","v":null},{"$f":"IF(B14=0, \"\",VLOOKUP(A14,'All Meals'!$A$12:$V$61,16))","v":null},{"$f":"IF(B14=0,\"\",IF(N14=\"\",\"No\",IF(N14>=1,\"Yes\",\"No\")))","v":null},{"$f":"IF(B14=0, \"\",VLOOKUP(A14,'All Meals'!$A$12:$V$61,19))","v":null},{"$f":"IF(B14=0, \"\",VLOOKUP(A14,'All Meals'!$A$12:$V$61,20))","v":null},{"$f":"IF(B14=0,\"\",IF(Q14=\"\",\"No\",IF(Q14>=1,\"Yes\",\"No\")))","v":null},null,null,null,null,1,{"$f":"INDEX(Cups,W14)","v":null},null,null,null,null,1,{"$f":"INDEX(GREEN,AC14)","v":null},null,1,{"$f":"IF(AD14=0,\"\",INDEX(Cups,AF14))","v":null},null,1,{"$f":"INDEX(RED,AI14)","v":null},null,1,{"$f":"IF(AJ14=0, \"\", INDEX(Cups,AL14))","v":null},null,1,{"$f":"INDEX(BEANS,AO14)","v":null},null,1,{"$f":"IF(AP14=0,\"\",INDEX(Cups,AR14))","v":null},null,1,{"$f":"INDEX(STARCHY,AU14)","v":null},null,1,{"$f":"IF(AV14=0,\"\",INDEX(Cups,AX14))","v":null},null,1,{"$f":"INDEX(OTHER,BA14)","v":null},null,1,{"$f":"IF(BB14=0,\"\",INDEX(Cups,BD14))","v":null}]
[1,{"$f":"INDEX(meals,A15)","v":null},9,null,{"$f":"IF(B15=0,\"\",FLOOR(VLOOKUP(A15,'All Meals'!$A$12:$V$61,4),0.25))","v":null},{"$f":"IF(B15=0,\"\",IF(E15=\"\",\"No\",IF(E15>=2,\"Yes\",\"No\")))","v":null},{"$f":"IF(B15=0,\"\",FLOOR(VLOOKUP(A15,'All Meals'!$A$12:$V$61,5),0.25))","v":null},{"$f":"IF(B15=0,\"\",IF(G15=\"\",\"No\",IF(G15>=2,\"Yes\",\"No\")))","v":null},{"$f":"IF(B15=0,\"\",FLOOR(VLOOKUP(A15,'All Meals'!$A$12:$V$61,6),0.25))","v":null},{"$f":"IF(B15=0,\"\",FLOOR(VLOOKUP(A15,'All Meals'!$A$12:$V$61,7),0.25))","v":null},{"$f":"IF(B15=0, \"\",VLOOKUP(A15,'All Meals'!$A$12:$V$61,10))","v":null},{"$f":"IF(B15=0,\"\",IF(K15=\"\",\"No\",IF(K15>=1,\"Yes\",\"No\")))","v":null},{"$f":"IF(B15=0, \"\",VLOOKUP(A15,'All Meals'!$A$12:$V$61,13))","v":null},{"$f":"IF(B15=0, \"\",VLOOKUP(A15,'All Meals'!$A$12:$V$61,16))","v":null},{"$f":"IF(B15=0,\"\",IF(N15=\"\",\"No\",IF(N15>=1,\"Yes\",\"No\")))","v":null},{"$f":"IF(B15=0, \"\",VLOOKUP(A15,'All Meals'!$A$12:$V$61,19))","v":null},{"$f":"IF(B15=0, \"\",VLOOKUP(A15,'All Meals'!$A$12:$V$61,20))","v":null},{"$f":"IF(B15=0,\"\",IF(Q15=\"\",\"No\",IF(Q15>=1,\"Yes\",\"No\")))","v":null},null,null,null,null,1,{"$f":"INDEX(Cups,W15)","v":null},null,null,null,null,1,{"$f":"INDEX(GREEN,AC15)","v":null},null,1,{"$f":"IF(AD15=0,\"\",INDEX(Cups,AF15))","v":null},null,1,{"$f":"INDEX(RED,AI15)","v":null},null,1,{"$f":"IF(AJ15=0, \"\", INDEX(Cups,AL15))","v":null},null,1,{"$f":"INDEX(BEANS,AO15)","v":null},null,1,{"$f":"IF(AP15=0,\"\",INDEX(Cups,AR15))","v":null},null,1,{"$f":"INDEX(STARCHY,AU15)","v":null},null,1,{"$f":"IF(AV15=0,\"\",INDEX(Cups,AX15))","v":null},null,1,{"$f":"INDEX(OTHER,BA15)","v":null},null,1,{"$f":"IF(BB15=0,\"\",INDEX(Cups,BD15))","v":null}]
[1,{"$f":"INDEX(meals,A16)","v":null},10,null,{"$f":"IF(B16=0,\"\",FLOOR(VLOOKUP(A16,'All Meals'!$A$12:$V$61,4),0.25))","v":null},{"$f":"IF(B16=0,\"\",IF(E16=\"\",\"No\",IF(E16>=2,\"Yes\",\"No\")))","v":null},{"$f":"IF(B16=0,\"\",FLOOR(VLOOKUP(A16,'All Meals'!$A$12:$V$61,5),0.25))","v":null},{"$f":"IF(B16=0,\"\",IF(G16=\"\",\"No\",IF(G16>=2,\"Yes\",\"No\")))","v":null},{"$f":"IF(B16=0,\"\",FLOOR(VLOOKUP(A16,'All Meals'!$A$12:$V$61,6),0.25))","v":null},{"$f":"IF(B16=0,\"\",FLOOR(VLOOKUP(A16,'All Meals'!$A$12:$V$61,7),0.25))","v":null},{"$f":"IF(B16=0, \"\",VLOOKUP(A16,'All Meals'!$A$12:$V$61,10))","v":null},{"$f":"IF(B16=0,\"\",IF(K16=\"\",\"No\",IF(K16>=1,\"Yes\",\"No\")))","v":null},{"$f":"IF(B16=0, \"\",VLOOKUP(A16,'All Meals'!$A$12:$V$61,13))","v":null},{"$f":"IF(B16=0, \"\",VLOOKUP(A16,'All Meals'!$A$12:$V$61,16))","v":null},{"$f":"IF(B16=0,\"\",IF(N16=\"\",\"No\",IF(N16>=1,\"Yes\",\"No\")))","v":null},{"$f":"IF(B16=0, \"\",VLOOKUP(A16,'All Meals'!$A$12:$V$61,19))","v":null},{"$f":"IF(B16=0, \"\",VLOOKUP(A16,'All Meals'!$A$12:$V$61,20))","v":null},{"$f":"IF(B16=0,\"\",IF(Q16=\"\",\"No\",IF(Q16>=1,\"Yes\",\"No\")))","v":null},null,null,null,null,1,{"$f":"INDEX(Cups,W16)","v":null},null,null,null,null,1,{"$f":"INDEX(GREEN,AC16)","v":null},null,1,{"$f":"IF(AD16=0,\"\",INDEX(Cups,AF16))","v":null},null,1,{"$f":"INDEX(RED,AI16)","v":null},null,1,{"$f":"IF(AJ16=0, \"\", INDEX(Cups,AL16))","v":null},null,1,{"$f":"INDEX(BEANS,AO16)","v":null},null,1,{"$f":"IF(AP16=0,\"\",INDEX(Cups,AR16))","v":null},null,1,{"$f":"INDEX(STARCHY,AU16)","v":null},null,1,{"$f":"IF(AV16=0,\"\",INDEX(Cups,AX16))","v":null},null,1,{"$f":"INDEX(OTHER,BA16)","v":null},null,1,{"$f":"IF(BB16=0,\"\",INDEX(Cups,BD16))","v":null}]
[1,{"$f":"INDEX(meals,A17)","v":null},11,null,{"$f":"IF(B17=0,\"\",FLOOR(VLOOKUP(A17,'All Meals'!$A$12:$V$61,4),0.25))","v":null},{"$f":"IF(B17=0,\"\",IF(E17=\"\",\"No\",IF(E17>=2,\"Yes\",\"No\")))","v":null},{"$f":"IF(B17=0,\"\",FLOOR(VLOOKUP(A17,'All Meals'!$A$12:$V$61,5),0.25))","v":null},{"$f":"IF(B17=0,\"\",IF(G17=\"\",\"No\",IF(G17>=2,\"Yes\",\"No\")))","v":null},{"$f":"IF(B17=0,\"\",FLOOR(VLOOKUP(A17,'All Meals'!$A$12:$V$61,6),0.25))","v":null},{"$f":"IF(B17=0,\"\",FLOOR(VLOOKUP(A17,'All Meals'!$A$12:$V$61,7),0.25))","v":null},{"$f":"IF(B17=0, \"\",VLOOKUP(A17,'All Meals'!$A$12:$V$61,10))","v":null},{"$f":"IF(B17=0,\"\",IF(K17=\"\",\"No\",IF(K17>=1,\"Yes\",\"No\")))","v":null},{"$f":"IF(B17=0, \"\",VLOOKUP(A17,'All Meals'!$A$12:$V$61,13))","v":null},{"$f":"IF(B17=0, \"\",VLOOKUP(A17,'All Meals'!$A$12:$V$61,16))","v":null},{"$f":"IF(B17=0,\"\",IF(N17=\"\",\"No\",IF(N17>=1,\"Yes\",\"No\")))","v":null},{"$f":"IF(B17=0, \"\",VLOOKUP(A17,'All Meals'!$A$12:$V$61,19))","v":null},{"$f":"IF(B17=0, \"\",VLOOKUP(A17,'All Meals'!$A$12:$V$61,20))","v":null},{"$f":"IF(B17=0,\"\",IF(Q17=\"\",\"No\",IF(Q17>=1,\"Yes\",\"No\")))","v":null},null,null,null,null,1,{"$f":"INDEX(Cups,W17)","v":null},null,null,null,null,1,{"$f":"INDEX(GREEN,AC17)","v":null},null,1,{"$f":"IF(AD17=0,\"\",INDEX(Cups,AF17))","v":null},null,1,{"$f":"INDEX(RED,AI17)","v":null},null,1,{"$f":"IF(AJ17=0, \"\", INDEX(Cups,AL17))","v":null},null,1,{"$f":"INDEX(BEANS,AO17)","v":null},null,1,{"$f":"IF(AP17=0,\"\",INDEX(Cups,AR17))","v":null},null,1,{"$f":"INDEX(STARCHY,AU17)","v":null},null,1,{"$f":"IF(AV17=0,\"\",INDEX(Cups,AX17))","v":null},null,1,{"$f":"INDEX(OTHER,BA17)","v":null},null,1,{"$f":"IF(BB17=0,\"\",INDEX(Cups,BD17))","v":null}]
[1,{"$f":"INDEX(meals,A18)","v":null},12,null,{"$f":"IF(B18=0,\"\",FLOOR(VLOOKUP(A18,'All Meals'!$A$12:$V$61,4),0.25))","v":null},{"$f":"IF(B18=0,\"\",IF(E18=\"\",\"No\",IF(E18>=2,\"Yes\",\"No\")))","v":null},{"$f":"IF(B18=0,\"\",FLOOR(VLOOKUP(A18,'All Meals'!$A$12:$V$61,5),0.25))","v":null},{"$f":"IF(B18=0,\"\",IF(G18=\"\",\"No\",IF(G18>=2,\"Yes\",\"No\")))","v":null},{"$f":"IF(B18=0,\"\",FLOOR(VLOOKUP(A18,'All Meals'!$A$12:$V$61,6),0.25))","v":null},{"$f":"IF(B18=0,\"\",FLOOR(VLOOKUP(A18,'All Meals'!$A$12:$V$61,7),0.25))","v":null},{"$f":"IF(B18=0, \"\",VLOOKUP(A18,'All Meals'!$A$12:$V$61,10))","v":null},{"$f":"IF(B18=0,\"\",IF(K18=\"\",\"No\",IF(K18>=1,\"Yes\",\"No\")))","v":null},{"$f":"IF(B18=0, \"\",VLOOKUP(A18,'All Meals'!$A$12:$V$61,13))","v":null},{"$f":"IF(B18=0, \"\",VLOOKUP(A18,'All Meals'!$A$12:$V$61,16))","v":null},{"$f":"IF(B18=0,\"\",IF(N18=\"\",\"No\",IF(N18>=1,\"Yes\",\"No\")))","v":null},{"$f":"IF(B18=0, \"\",VLOOKUP(A18,'All Meals'!$A$12:$V$61,19))","v":null},{"$f":"IF(B18=0, \"\",VLOOKUP(A18,'All Meals'!$A$12:$V$61,20))","v":null},{"$f":"IF(B18=0,\"\",IF(Q18=\"\",\"No\",IF(Q18>=1,\"Yes\",\"No\")))","v":null},null,null,null,null,null,null,{"$f":"SUM(X13:X17)","v":null},null,null,null,1,{"$f":"INDEX(GREEN,AC18)","v":null},null,1,{"$f":"IF(AD18=0,\"\",INDEX(Cups,AF18))","v":null},null,1,{"$f":"INDEX(RED,AI18)","v":null},null,1,{"$f":"IF(AJ18=0, \"\", INDEX(Cups,AL18))","v":null},null,1,{"$f":"INDEX(BEANS,AO18)","v":null},null,1,{"$f":"IF(AP18=0,\"\",INDEX(Cups,AR18))","v":null},null,1,{"$f":"INDEX(STARCHY,AU18)","v":null},null,1,{"$f":"IF(AV18=0,\"\",INDEX(Cups,AX18))","v":null},null,1,{"$f":"INDEX(OTHER,BA18)","v":null},null,1,{"$f":"IF(BB18=0,\"\",INDEX(Cups,BD18))","v":null}]
[1,{"$f":"INDEX(meals,A19)","v":null},13,null,{"$f":"IF(B19=0,\"\",FLOOR(VLOOKUP(A19,'All Meals'!$A$12:$V$61,4),0.25))","v":null},{"$f":"IF(B19=0,\"\",IF(E19=\"\",\"No\",IF(E19>=2,\"Yes\",\"No\")))","v":null},{"$f":"IF(B19=0,\"\",FLOOR(VLOOKUP(A19,'All Meals'!$A$12:$V$61,5),0.25))","v":null},{"$f":"IF(B19=0,\"\",IF(G19=\"\",\"No\",IF(G19>=2,\"Yes\",\"No\")))","v":null},{"$f":"IF(B19=0,\"\",FLOOR(VLOOKUP(A19,'All Meals'!$A$12:$V$61,6),0.25))","v":null},{"$f":"IF(B19=0,\"\",FLOOR(VLOOKUP(A19,'All Meals'!$A$12:$V$61,7),0.25))","v":null},{"$f":"IF(B19=0, \"\",VLOOKUP(A19,'All Meals'!$A$12:$V$61,10))","v":null},{"$f":"IF(B19=0,\"\",IF(K19=\"\",\"No\",IF(K19>=1,\"Yes\",\"No\")))","v":null},{"$f":"IF(B19=0, \"\",VLOOKUP(A19,'All Meals'!$A$12:$V$61,13))","v":null},{"$f":"IF(B19=0, \"\",VLOOKUP(A19,'All Meals'!$A$12:$V$61,16))","v":null},{"$f":"IF(B19=0,\"\",IF(N19=\"\",\"No\",IF(N19>=1,\"Yes\",\"No\")))","v":null},{"$f":"IF(B19=0, \"\",VLOOKUP(A19,'All Meals'!$A$12:$V$61,19))","v":null},{"$f":"IF(B19=0, \"\",VLOOKUP(A19,'All Meals'!$A$12:$V$61,20))","v":null},{"$f":"IF(B19=0,\"\",IF(Q19=\"\",\"No\",IF(Q19>=1,\"Yes\",\"No\")))","v":null},null,"Decimal/Fraction Converter\n(Rounded down to the nearest 1/8)",null,null,null,null,null,null,null,null,1,{"$f":"INDEX(GREEN,AC19)","v":null},null,1,{"$f":"IF(AD19=0,\"\",INDEX(Cups,AF19))","v":null},null,1,{"$f":"INDEX(RED,AI19)","v":null},null,1,{"$f":"IF(AJ19=0, \"\", INDEX(Cups,AL19))","v":null},null,1,{"$f":"INDEX(BEANS,AO19)","v":null},null,1,{"$f":"IF(AP19=0,\"\",INDEX(Cups,AR19))","v":null},null,1,{"$f":"INDEX(STARCHY,AU19)","v":null},null,1,{"$f":"IF(AV19=0,\"\",INDEX(Cups,AX19))","v":null},null,1,{"$f":"INDEX(OTHER,BA19)","v":null},null,1,{"$f":"IF(BB19=0,\"\",INDEX(Cups,BD19))","v":null}]
[1,{"$f":"INDEX(meals,A20)","v":null},14,null,{"$f":"IF(B20=0,\"\",FLOOR(VLOOKUP(A20,'All Meals'!$A$12:$V$61,4),0.25))","v":null},{"$f":"IF(B20=0,\"\",IF(E20=\"\",\"No\",IF(E20>=2,\"Yes\",\"No\")))","v":null},{"$f":"IF(B20=0,\"\",FLOOR(VLOOKUP(A20,'All Meals'!$A$12:$V$61,5),0.25))","v":null},{"$f":"IF(B20=0,\"\",IF(G20=\"\",\"No\",IF(G20>=2,\"Yes\",\"No\")))","v":null},{"$f":"IF(B20=0,\"\",FLOOR(VLOOKUP(A20,'All Meals'!$A$12:$V$61,6),0.25))","v":null},{"$f":"IF(B20=0,\"\",FLOOR(VLOOKUP(A20,'All Meals'!$A$12:$V$61,7),0.25))","v":null},{"$f":"IF(B20=0, \"\",VLOOKUP(A20,'All Meals'!$A$12:$V$61,10))","v":null},{"$f":"IF(B20=0,\"\",IF(K20=\"\",\"No\",IF(K20>=1,\"Yes\",\"No\")))","v":null},{"$f":"IF(B20=0, \"\",VLOOKUP(A20,'All Meals'!$A$12:$V$61,13))","v":null},{"$f":"IF(B20=0, \"\",VLOOKUP(A20,'All Meals'!$A$12:$V$61,16))","v":null},{"$f":"IF(B20=0,\"\",IF(N20=\"\",\"No\",IF(N20>=1,\"Yes\",\"No\")))","v":null},{"$f":"IF(B20=0, \"\",VLOOKUP(A20,'All Meals'!$A$12:$V$61,19))","v":null},{"$f":"IF(B20=0, \"\",VLOOKUP(A20,'All Meals'!$A$12:$V$61,20))","v":null},{"$f":"IF(B20=0,\"\",IF(Q20=\"\",\"No\",IF(Q20>=1,\"Yes\",\"No\")))","v":null},null,"Enter the decimal you wish to convert to a fraction in the box:",null,null,null,null,null,null,null,{"$f":"IF(OR(COUNTIF(AC10:AC19,18)>0, COUNTIF(AI10:AI19, 13)>0, COUNTIF(AO10:AO19, 12)>0, COUNTIF(AU10:AU19, 11)>0,COUNTIF(BA10:BA19,34)>0, COUNTIF(BA10:BA19,35)>0, COUNTIF(BA10:BA19,36)>0,COUNTIF(BA10:BA19,37)>0, COUNTIF(BA10:BA19,38)>0, COUNTIF(BA10:BA19,39)>0), \"You entered an unspecified or extra other vegetable above, please enter the name of the vegetable in the appropriate subgroup below\", \"\")","v":null}]
[1,{"$f":"INDEX(meals,A21)","v":null},15,null,{"$f":"IF(B21=0,\"\",FLOOR(VLOOKUP(A21,'All Meals'!$A$12:$V$61,4),0.25))","v":null},{"$f":"IF(B21=0,\"\",IF(E21=\"\",\"No\",IF(E21>=2,\"Yes\",\"No\")))","v":null},{"$f":"IF(B21=0,\"\",FLOOR(VLOOKUP(A21,'All Meals'!$A$12:$V$61,5),0.25))","v":null},{"$f":"IF(B21=0,\"\",IF(G21=\"\",\"No\",IF(G21>=2,\"Yes\",\"No\")))","v":null},{"$f":"IF(B21=0,\"\",FLOOR(VLOOKUP(A21,'All Meals'!$A$12:$V$61,6),0.25))","v":null},{"$f":"IF(B21=0,\"\",FLOOR(VLOOKUP(A21,'All Meals'!$A$12:$V$61,7),0.25))","v":null},{"$f":"IF(B21=0, \"\",VLOOKUP(A21,'All Meals'!$A$12:$V$61,10))","v":null},{"$f":"IF(B21=0,\"\",IF(K21=\"\",\"No\",IF(K21>=1,\"Yes\",\"No\")))","v":null},{"$f":"IF(B21=0, \"\",VLOOKUP(A21,'All Meals'!$A$12:$V$61,13))","v":null},{"$f":"IF(B21=0, \"\",VLOOKUP(A21,'All Meals'!$A$12:$V$61,16))","v":null},{"$f":"IF(B21=0,\"\",IF(N21=\"\",\"No\",IF(N21>=1,\"Yes\",\"No\")))","v":null},{"$f":"IF(B21=0, \"\",VLOOKUP(A21,'All Meals'!$A$12:$V$61,19))","v":null},{"$f":"IF(B21=0, \"\",VLOOKUP(A21,'All Meals'!$A$12:$V$61,20))","v":null},{"$f":"IF(B21=0,\"\",IF(Q21=\"\",\"No\",IF(Q21>=1,\"Yes\",\"No\")))","v":null},null,null,null,null,null,null,null,null,null,"Unspecified Dark Green Vegetables",null,null,null,null,null,"Unspecified Red/Orange Vegetables",null,null,null,null,null,"Unspecified Beans/Peas",null,null,null,null,null,"Unspecified Starchy Vegetables",null,null,null,null,null,"Unspecified Other Vegetables"]
[1,{"$f":"INDEX(meals,A22)","v":null},16,null,{"$f":"IF(B22=0,\"\",FLOOR(VLOOKUP(A22,'All Meals'!$A$12:$V$61,4),0.25))","v":null},{"$f":"IF(B22=0,\"\",IF(E22=\"\",\"No\",IF(E22>=2,\"Yes\",\"No\")))","v":null},{"$f":"IF(B22=0,\"\",FLOOR(VLOOKUP(A22,'All Meals'!$A$12:$V$61,5),0.25))","v":null},{"$f":"IF(B22=0,\"\",IF(G22=\"\",\"No\",IF(G22>=2,\"Yes\",\"No\")))","v":null},{"$f":"IF(B22=0,\"\",FLOOR(VLOOKUP(A22,'All Meals'!$A$12:$V$61,6),0.25))","v":null},{"$f":"IF(B22=0,\"\",FLOOR(VLOOKUP(A22,'All Meals'!$A$12:$V$61,7),0.25))","v":null},{"$f":"IF(B22=0, \"\",VLOOKUP(A22,'All Meals'!$A$12:$V$61,10))","v":null},{"$f":"IF(B22=0,\"\",IF(K22=\"\",\"No\",IF(K22>=1,\"Yes\",\"No\")))","v":null},{"$f":"IF(B22=0, \"\",VLOOKUP(A22,'All Meals'!$A$12:$V$61,13))","v":null},{"$f":"IF(B22=0, \"\",VLOOKUP(A22,'All Meals'!$A$12:$V$61,16))","v":null},{"$f":"IF(B22=0,\"\",IF(N22=\"\",\"No\",IF(N22>=1,\"Yes\",\"No\")))","v":null},{"$f":"IF(B22=0, \"\",VLOOKUP(A22,'All Meals'!$A$12:$V$61,19))","v":null},{"$f":"IF(B22=0, \"\",VLOOKUP(A22,'All Meals'!$A$12:$V$61,20))","v":null},{"$f":"IF(B22=0,\"\",IF(Q22=\"\",\"No\",IF(Q22>=1,\"Yes\",\"No\")))","v":null},null,"The decimal entered above has been converted to the following fraction:",null,null,null,null,{"$f":"FLOOR(Y20,0.125)","v":null}]
[1,{"$f":"INDEX(meals,A23)","v":null},17,null,{"$f":"IF(B23=0,\"\",FLOOR(VLOOKUP(A23,'All Meals'!$A$12:$V$61,4),0.25))","v":null},{"$f":"IF(B23=0,\"\",IF(E23=\"\",\"No\",IF(E23>=2,\"Yes\",\"No\")))","v":null},{"$f":"IF(B23=0,\"\",FLOOR(VLOOKUP(A23,'All Meals'!$A$12:$V$61,5),0.25))","v":null},{"$f":"IF(B23=0,\"\",IF(G23=\"\",\"No\",IF(G23>=2,\"Yes\",\"No\")))","v":null},{"$f":"IF(B23=0,\"\",FLOOR(VLOOKUP(A23,'All Meals'!$A$12:$V$61,6),0.25))","v":null},{"$f":"IF(B23=0,\"\",FLOOR(VLOOKUP(A23,'All Meals'!$A$12:$V$61,7),0.25))","v":null},{"$f":"IF(B23=0, \"\",VLOOKUP(A23,'All Meals'!$A$12:$V$61,10))","v":null},{"$f":"IF(B23=0,\"\",IF(K23=\"\",\"No\",IF(K23>=1,\"Yes\",\"No\")))","v":null},{"$f":"IF(B23=0, \"\",VLOOKUP(A23,'All Meals'!$A$12:$V$61,13))","v":null},{"$f":"IF(B23=0, \"\",VLOOKUP(A23,'All Meals'!$A$12:$V$61,16))","v":null},{"$f":"IF(B23=0,\"\",IF(N23=\"\",\"No\",IF(N23>=1,\"Yes\",\"No\")))","v":null},{"$f":"IF(B23=0, \"\",VLOOKUP(A23,'All Meals'!$A$12:$V$61,19))","v":null},{"$f":"IF(B23=0, \"\",VLOOKUP(A23,'All Meals'!$A$12:$V$61,20))","v":null},{"$f":"IF(B23=0,\"\",IF(Q23=\"\",\"No\",IF(Q23>=1,\"Yes\",\"No\")))","v":null}]
[1,{"$f":"INDEX(meals,A24)","v":null},18,null,{"$f":"IF(B24=0,\"\",FLOOR(VLOOKUP(A24,'All Meals'!$A$12:$V$61,4),0.25))","v":null},{"$f":"IF(B24=0,\"\",IF(E24=\"\",\"No\",IF(E24>=2,\"Yes\",\"No\")))","v":null},{"$f":"IF(B24=0,\"\",FLOOR(VLOOKUP(A24,'All Meals'!$A$12:$V$61,5),0.25))","v":null},{"$f":"IF(B24=0,\"\",IF(G24=\"\",\"No\",IF(G24>=2,\"Yes\",\"No\")))","v":null},{"$f":"IF(B24=0,\"\",FLOOR(VLOOKUP(A24,'All Meals'!$A$12:$V$61,6),0.25))","v":null},{"$f":"IF(B24=0,\"\",FLOOR(VLOOKUP(A24,'All Meals'!$A$12:$V$61,7),0.25))","v":null},{"$f":"IF(B24=0, \"\",VLOOKUP(A24,'All Meals'!$A$12:$V$61,10))","v":null},{"$f":"IF(B24=0,\"\",IF(K24=\"\",\"No\",IF(K24>=1,\"Yes\",\"No\")))","v":null},{"$f":"IF(B24=0, \"\",VLOOKUP(A24,'All Meals'!$A$12:$V$61,13))","v":null},{"$f":"IF(B24=0, \"\",VLOOKUP(A24,'All Meals'!$A$12:$V$61,16))","v":null},{"$f":"IF(B24=0,\"\",IF(N24=\"\",\"No\",IF(N24>=1,\"Yes\",\"No\")))","v":null},{"$f":"IF(B24=0, \"\",VLOOKUP(A24,'All Meals'!$A$12:$V$61,19))","v":null},{"$f":"IF(B24=0, \"\",VLOOKUP(A24,'All Meals'!$A$12:$V$61,20))","v":null},{"$f":"IF(B24=0,\"\",IF(Q24=\"\",\"No\",IF(Q24>=1,\"Yes\",\"No\")))","v":null}]
[1,{"$f":"INDEX(meals,A25)","v":null},19,null,{"$f":"IF(B25=0,\"\",FLOOR(VLOOKUP(A25,'All Meals'!$A$12:$V$61,4),0.25))","v":null},{"$f":"IF(B25=0,\"\",IF(E25=\"\",\"No\",IF(E25>=2,\"Yes\",\"No\")))","v":null},{"$f":"IF(B25=0,\"\",FLOOR(VLOOKUP(A25,'All Meals'!$A$12:$V$61,5),0.25))","v":null},{"$f":"IF(B25=0,\"\",IF(G25=\"\",\"No\",IF(G25>=2,\"Yes\",\"No\")))","v":null},{"$f":"IF(B25=0,\"\",FLOOR(VLOOKUP(A25,'All Meals'!$A$12:$V$61,6),0.25))","v":null},{"$f":"IF(B25=0,\"\",FLOOR(VLOOKUP(A25,'All Meals'!$A$12:$V$61,7),0.25))","v":null},{"$f":"IF(B25=0, \"\",VLOOKUP(A25,'All Meals'!$A$12:$V$61,10))","v":null},{"$f":"IF(B25=0,\"\",IF(K25=\"\",\"No\",IF(K25>=1,\"Yes\",\"No\")))","v":null},{"$f":"IF(B25=0, \"\",VLOOKUP(A25,'All Meals'!$A$12:$V$61,13))","v":null},{"$f":"IF(B25=0, \"\",VLOOKUP(A25,'All Meals'!$A$12:$V$61,16))","v":null},{"$f":"IF(B25=0,\"\",IF(N25=\"\",\"No\",IF(N25>=1,\"Yes\",\"No\")))","v":null},{"$f":"IF(B25=0, \"\",VLOOKUP(A25,'All Meals'!$A$12:$V$61,19))","v":null},{"$f":"IF(B25=0, \"\",VLOOKUP(A25,'All Meals'!$A$12:$V$61,20))","v":null},{"$f":"IF(B25=0,\"\",IF(Q25=\"\",\"No\",IF(Q25>=1,\"Yes\",\"No\")))","v":null}]
[1,{"$f":"INDEX(meals,A26)","v":null},20,null,{"$f":"IF(B26=0,\"\",FLOOR(VLOOKUP(A26,'All Meals'!$A$12:$V$61,4),0.25))","v":null},{"$f":"IF(B26=0,\"\",IF(E26=\"\",\"No\",IF(E26>=2,\"Yes\",\"No\")))","v":null},{"$f":"IF(B26=0,\"\",FLOOR(VLOOKUP(A26,'All Meals'!$A$12:$V$61,5),0.25))","v":null},{"$f":"IF(B26=0,\"\",IF(G26=\"\",\"No\",IF(G26>=2,\"Yes\",\"No\")))","v":null},{"$f":"IF(B26=0,\"\",FLOOR(VLOOKUP(A26,'All Meals'!$A$12:$V$61,6),0.25))","v":null},{"$f":"IF(B26=0,\"\",FLOOR(VLOOKUP(A26,'All Meals'!$A$12:$V$61,7),0.25))","v":null},{"$f":"IF(B26=0, \"\",VLOOKUP(A26,'All Meals'!$A$12:$V$61,10))","v":null},{"$f":"IF(B26=0,\"\",IF(K26=\"\",\"No\",IF(K26>=1,\"Yes\",\"No\")))","v":null},{"$f":"IF(B26=0, \"\",VLOOKUP(A26,'All Meals'!$A$12:$V$61,13))","v":null},{"$f":"IF(B26=0, \"\",VLOOKUP(A26,'All Meals'!$A$12:$V$61,16))","v":null},{"$f":"IF(B26=0,\"\",IF(N26=\"\",\"No\",IF(N26>=1,\"Yes\",\"No\")))","v":null},{"$f":"IF(B26=0, \"\",VLOOKUP(A26,'All Meals'!$A$12:$V$61,19))","v":null},{"$f":"IF(B26=0, \"\",VLOOKUP(A26,'All Meals'!$A$12:$V$61,20))","v":null},{"$f":"IF(B26=0,\"\",IF(Q26=\"\",\"No\",IF(Q26>=1,\"Yes\",\"No\")))","v":null}]

{"sheet":"Tuesday","index":7,"n_rows":26,"n_cols":57,"rows_kept":26,"cut":false,"hidden":false,"merged":[[3,2,5,3],[2,2,2,25],[3,13,3,15],[4,15,5,15],[3,4,3,5],[4,4,5,4],[4,5,5,5],[3,6,3,9],[4,6,5,6],[4,7,5,7],[4,8,5,8],[4,9,5,9],[4,14,5,14],[4,17,5,17],[4,12,5,12],[4,13,5,13],[25,27,25,30],[25,33,25,36],[25,39,25,42],[25,45,25,48],[21,19,22,21],[21,24,22,25],[21,45,21,48],[18,19,18,25],[25,51,25,54],[23,27,23,30],[23,33,23,36],[23,39,23,42],[23,45,23,48],[23,51,23,54],[24,27,24,30],[24,33,24,36],[24,39,24,42],[24,45,24,48],[24,51,24,54],[21,51,21,54],[22,27,22,30],[22,33,22,36],[22,39,22,42],[22,45,22,48],[22,51,22,54],[21,27,21,30],[21,33,21,36],[21,39,21,42],[19,19,20,21],[19,24,20,25],[19,27,19,54],[20,27,20,30],[20,33,20,36],[20,39,20,42],[20,45,20,48],[20,51,20,54],[8,51,8,54],[10,19,11,25],[12,19,17,21],[12,24,12,25],[13,24,13,25],[14,24,14,25],[15,24,15,25],[16,24,16,25],[17,24,17,25],[8,18,8,21],[8,27,8,30],[8,33,8,36],[8,39,8,42],[8,45,8,48],[4,56,5,56],[5,18,5,21],[6,18,6,21],[6,27,7,27],[6,28,7,28],[6,29,7,29],[6,30,7,30],[6,31,7,31],[6,34,7,34],[4,39,5,39],[4,42,5,42],[4,45,5,45],[4,48,5,48],[4,51,5,51],[4,54,5,54],[4,33,5,33],[6,32,7,32],[6,33,7,33],[4,36,5,36],[6,46,7,46],[6,47,7,47],[6,48,7,48],[6,49,7,49],[6,50,7,50],[1,3,1,17],[1,19,1,21],[1,24,1,25],[1,27,1,48],[1,51,1,55],[0,2,0,17],[4,30,5,30],[4,25,7,25],[7,18,7,21],[2,27,2,39],[3,10,3,12],[3,16,3,17],[3,18,3,25],[3,27,3,54],[4,16,5,16],[4,10,5,10],[4,11,5,11],[6,41,7,41],[6,42,7,42],[6,43,7,43],[6,44,7,44],[6,45,7,45],[6,51,7,51],[6,37,7,37],[4,55,5,55],[6,53,7,53],[6,54,7,54],[6,35,7,35],[6,36,7,36],[4,18,4,21],[4,27,5,27],[6,52,7,52],[0,19,0,25],[0,27,0,54],[6,38,7,38],[6,39,7,39],[6,40,7,40]]}
[null,null,"Tuesday Daily Lunch Requirement Check\nGrades 9-12",null,null,null,null,null,null,null,null,null,null,null,null,null,null,null,null,"Scroll to the right to enter vegetable subgroup information",null,null,null,null,null,null,null,"Tuesday Vegetable Subgroup Data Entry\nGrades 9-12"]
[null,null,null,"The daily worksheet will perform daily requirement checks for the reimbursable meals offered each day. Requirements met are flagged \"Yes\" and the cell turns green. Requirements NOT met are flagged \"No\" and the cell turns red. \nNOTE: The top row is frozen to display the column headers as the daily meals are entered.\nGrains, whole grain rich, and meat/meat alternate oz equivalents are rounded down to the nearest quarter ounce.\nOnce you are finished selecting the meals offered each day, make sure to scroll to the right to enter milk type and vegetable subgroup information.",null,null,null,null,null,null,null,null,null,null,null,null,null,null,null,"Go to Instructions","'Menu Worksheet Instructions'!A1","'Menu Worksheet Instructions'!A1",null,null,"Go to Weekly Report","'Weekly Report'!A1",null,"Creditable Amount of Each Vegetable Subgroup Offered on Tuesday\nIn the first drop down box, select the largest amount of each vegetable subgroup offered to a student, then in the drop down boxes below, select the name and amount of each vegetable offered in the subgroup. \nIf you want to clear an entry, select the first blank in the drop down box.\nFor additional information on completing the data entry for the vegetable subgroup section, please refer to the Instructions tab. ",null,null,null,null,null,null,null,null,null,null,null,null,null,null,null,null,null,null,null,null,null,null,null,"Click here for help categorizing vegetables\n","https://foodbuyingguide.fns.usda.gov/files/Reports/USDA_FBG_Section2_Vegetables_YieldTable.pdf","https://foodbuyingguide.fns.usda.gov/files/Reports/USDA_FBG_Section2_Vegetables_YieldTable.pdf","https://foodbuyingguide.fns.usda.gov/files/Reports/USDA_FBG_Section2_Vegetables_YieldTable.pdf","https://foodbuyingguide.fns.usda.gov/files/Reports/USDA_FBG_Section2_Vegetables_YieldTable.pdf"]
[null,null,"Tuesday",null,null,null,null,null,null,null,null,null,null,null,null,null,null,null,null,null,null,null,null,null,null,null,null,"Check this box if you offered the weekly vegetable bar on Tuesday with NO CHANGES:",null,null,null,null,null,null,null,null,null,null,null,null,null,null,null,false]
[null,null,"1.  Meal Name\nSelect the reimbursable lunches offered for the day\nNote: You may not delete lines, if you want to clear a meal select the first blank in the drop down list",null,"2.  Meat/Meat Alternate (M/MA)",null,"3. Grains",null,null,null,"4. Fruit",null,null,"5. Vegetables",null,null,"6. Milk",null,"Milk Type\nCheck the type of milk below if it is offered to students on Tuesday. \nAll types of milk included.",null,null,null,null,null,null,null,null,"If you offered any vegetables in addition to the weekly vegetable bar, select the largest amount of the vegetable offered to a student and select the name of each vegetable under the appropriate subgroup.\nNOTE:  If you offered a vegetable bar on Tuesday that differs from the weekly offerings, all offerings and quantities for each vegetable subgroup must be selected in the section below.",null,null,null,null,null,null,null,null,null,null,null,null,null,null,null,null,null,null,null,null,null,null,null,null,null,null,null,"o_i","O_num"]
[null,null,null,null,"M/MA\noz equivalents","Daily M/MA Requirement Check\n2 oz equivalents","a. Grains\n oz equivalents\n ","Daily Grain Requirement Check\n2 oz equivalents","b. Whole Grain Rich\n oz equivalents\n ","c. Grain Based Dessert\n oz equivalents\n ","a. Fruit\ncups","Daily Fruit Requirement Check\n 1 cup","b. Fruit Juice \ncups","a. Vegetables\n cups","Daily Vegetable Requirement Check\n1 cup","b. Vegetable Juice \ncups","Milk\ncups","Daily Milk Requirement Check\n1 cup","Skim/fat-free, unflavored",null,null,null,null,true,null,{"$f":"IF(AND(X5=FALSE,X6=FALSE,X7=FALSE,X8=FALSE),\"\",IF(AND(X5=TRUE,X6=TRUE),\"Yes\",IF(AND(X5=TRUE,X7=TRUE),\"Yes\",IF(AND(X6=TRUE,X7=TRUE),\"Yes\",IF(AND(X5=TRUE,X8=TRUE),\"Yes\",IF(AND(X7=TRUE,X8=TRUE),\"Yes\",\"No\"))))))","v":null},null,"DARK GREEN vegetables offered on Tuesday",null,null,"Quantity (cups)",null,null,"Red/Orange vegetables offered on Tuesday",null,null,"Quantity (cups)",null,null,"Beans/Peas (legumes) offered on Tuesday",null,null,"Quantity (cups)",null,null,"Starchy vegetables offered on Tuesday",null,null,"Quantity (cups)",null,null,"Other vegetables offered on Tuesday",null,null,"Quantity (cups)",5,{"$f":"INDEX(Cups,BD5)","v":null}]
[null,null,null,null,null,null,null,null,null,null,null,null,null,null,null,null,null,null,"Skim/fat-free, flavored",null,null,null,null,false,null,null,null,null,"G_T",null,null,"G_I","G_num",null,"R_T",null,null,"R_i","r_num",null,"B_t",null,null,"B_i","B_num",null,"S_T",null,null,"s_i","s_num",null,"O_T"]
[3,{"$f":"INDEX(meals,A7)","v":null},1,null,{"$f":"IF(B7=0,\"\",FLOOR(VLOOKUP(A7,'All Meals'!$A$12:$V$61,4),0.25))","v":null},{"$f":"IF(B7=0,\"\",IF(E7=\"\",\"No\",IF(E7>=2,\"Yes\",\"No\")))","v":null},{"$f":"IF(B7=0,\"\",FLOOR(VLOOKUP(A7,'All Meals'!$A$12:$V$61,5),0.25))","v":null},{"$f":"IF(B7=0,\"\",IF(G7=\"\",\"No\",IF(G7>=2,\"Yes\",\"No\")))","v":null},{"$f":"IF(B7=0,\"\",FLOOR(VLOOKUP(A7,'All Meals'!$A$12:$V$61,6),0.25))","v":null},{"$f":"IF(B7=0,\"\",FLOOR(VLOOKUP(A7,'All Meals'!$A$12:$V$61,7),0.25))","v":null},{"$f":"IF(B7=0, \"\",VLOOKUP(A7,'All Meals'!$A$12:$V$61,10))","v":null},{"$f":"IF(B7=0,\"\",IF(K7=\"\",\"No\",IF(K7>=1,\"Yes\",\"No\")))","v":null},{"$f":"IF(B7=0, \"\",VLOOKUP(A7,'All Meals'!$A$12:$V$61,13))","v":null},{"$f":"IF(B7=0, \"\",VLOOKUP(A7,'All Meals'!$A$12:$V$61,16))","v":null},{"$f":"IF(B7=0,\"\",IF(N7=\"\",\"No\",IF(N7>=1,\"Yes\",\"No\")))","v":null},{"$f":"IF(B7=0, \"\",VLOOKUP(A7,'All Meals'!$A$12:$V$61,19))","v":null},{"$f":"IF(B7=0, \"\",VLOOKUP(A7,'All Meals'!$A$12:$V$61,20))","v":null},{"$f":"IF(B7=0,\"\",IF(Q7=\"\",\"No\",IF(Q7>=1,\"Yes\",\"No\")))","v":null},"Low-fat (1% or less), unflavored",null,null,null,null,false,null,null,null,"Largest amount of dark green vegetables to select on Tuesday",null,null,null,6,{"$f":"INDEX(Cups,AF7)","v":null},"Largest amount of red/orange vegetables to select on Tuesday",null,null,null,3,{"$f":"INDEX(Cups,AL7)","v":null},"Largest amount of beans/peas to select on Tuesday",null,null,null,1,{"$f":"INDEX(Cups,AR7)","v":null},"Largest amount of starchy vegetables to select on Tuesday",null,null,null,1,{"$f":"INDEX(Cups,AX7)","v":null},"Largest amount of other vegetables to select on Tuesday"]
[1,{"$f":"INDEX(meals,A8)","v":null},2,null,{"$f":"IF(B8=0,\"\",FLOOR(VLOOKUP(A8,'All Meals'!$A$12:$V$61,4),0.25))","v":null},{"$f":"IF(B8=0,\"\",IF(E8=\"\",\"No\",IF(E8>=2,\"Yes\",\"No\")))","v":null},{"$f":"IF(B8=0,\"\",FLOOR(VLOOKUP(A8,'All Meals'!$A$12:$V$61,5),0.25))","v":null},{"$f":"IF(B8=0,\"\",IF(G8=\"\",\"No\",IF(G8>=2,\"Yes\",\"No\")))","v":null},{"$f":"IF(B8=0,\"\",FLOOR(VLOOKUP(A8,'All Meals'!$A$12:$V$61,6),0.25))","v":null},{"$f":"IF(B8=0,\"\",FLOOR(VLOOKUP(A8,'All Meals'!$A$12:$V$61,7),0.25))","v":null},{"$f":"IF(B8=0, \"\",VLOOKUP(A8,'All Meals'!$A$12:$V$61,10))","v":null},{"$f":"IF(B8=0,\"\",IF(K8=\"\",\"No\",IF(K8>=1,\"Yes\",\"No\")))","v":null},{"$f":"IF(B8=0, \"\",VLOOKUP(A8,'All Meals'!$A$12:$V$61,13))","v":null},{"$f":"IF(B8=0, \"\",VLOOKUP(A8,'All Meals'!$A$12:$V$61,16))","v":null},{"$f":"IF(B8=0,\"\",IF(N8=\"\",\"No\",IF(N8>=1,\"Yes\",\"No\")))","v":null},{"$f":"IF(B8=0, \"\",VLOOKUP(A8,'All Meals'!$A$12:$V$61,19))","v":null},{"$f":"IF(B8=0, \"\",VLOOKUP(A8,'All Meals'!$A$12:$V$61,20))","v":null},{"$f":"IF(B8=0,\"\",IF(Q8=\"\",\"No\",IF(Q8>=1,\"Yes\",\"No\")))","v":null},"Low-fat (1% or less), flavored",null,null,null,null,false]
[1,{"$f":"INDEX(meals,A9)","v":null},3,null,{"$f":"IF(B9=0,\"\",FLOOR(VLOOKUP(A9,'All Meals'!$A$12:$V$61,4),0.25))","v":null},{"$f":"IF(B9=0,\"\",IF(E9=\"\",\"No\",IF(E9>=2,\"Yes\",\"No\")))","v":null},{"$f":"IF(B9=0,\"\",FLOOR(VLOOKUP(A9,'All Meals'!$A$12:$V$61,5),0.25))","v":null},{"$f":"IF(B9=0,\"\",IF(G9=\"\",\"No\",IF(G9>=2,\"Yes\",\"No\")))","v":null},{"$f":"IF(B9=0,\"\",FLOOR(VLOOKUP(A9,'All Meals'!$A$12:$V$61,6),0.25))","v":null},{"$f":"IF(B9=0,\"\",FLOOR(VLOOKUP(A9,'All Meals'!$A$12:$V$61,7),0.25))","v":null},{"$f":"IF(B9=0, \"\",VLOOKUP(A9,'All Meals'!$A$12:$V$61,10))","v":null},{"$f":"IF(B9=0,\"\",IF(K9=\"\",\"No\",IF(K9>=1,\"Yes\",\"No\")))","v":null},{"$f":"IF(B9=0, \"\",VLOOKUP(A9,'All Meals'!$A$12:$V$61,13))","v":null},{"$f":"IF(B9=0, \"\",VLOOKUP(A9,'All Meals'!$A$12:$V$61,16))","v":null},{"$f":"IF(B9=0,\"\",IF(N9=\"\",\"No\",IF(N9>=1,\"Yes\",\"No\")))","v":null},{"$f":"IF(B9=0, \"\",VLOOKUP(A9,'All Meals'!$A$12:$V$61,19))","v":null},{"$f":"IF(B9=0, \"\",VLOOKUP(A9,'All Meals'!$A$12:$V$61,20))","v":null},{"$f":"IF(B9=0,\"\",IF(Q9=\"\",\"No\",IF(Q9>=1,\"Yes\",\"No\")))","v":null},"Reduced fat (2% fat) or whole, unflavored and flavored",null,null,null,null,false,null,{"$f":"IF(X9=TRUE,\"No\",\"\")","v":null},null,{"$f":"IF(OR(COUNTIF(AC10:AC19, 12)>0, COUNTIF(AC10:AC19,2)>0, COUNTIF(AC10:AC19,4)>0, COUNTIF(AC10:AC19,10)>0, COUNTIF(AC10:AC19,15)>0, COUNTIF(AC10:AC19,17)>0,), \"Remember to enter CREDITABLE amounts of leafy greens!\", \"\")","v":null},null,null,null,null,null,{"$f":"IF(COUNTIF(AI10:AI19,10)>0,\"Remember to enter the CREDITABLE amount of tomato paste!\",\"\")","v":null},null,null,null,null,null,{"$f":"IF(SUM(AO10:AO19)>10, \"If crediting as a vegetable do not also credit as a meat/meat alternate\", \"\")","v":null}]
[1,{"$f":"INDEX(meals,A10)","v":null},4,null,{"$f":"IF(B10=0,\"\",FLOOR(VLOOKUP(A10,'All Meals'!$A$12:$V$61,4),0.25))","v":null},{"$f":"IF(B10=0,\"\",IF(E10=\"\",\"No\",IF(E10>=2,\"Yes\",\"No\")))","v":null},{"$f":"IF(B10=0,\"\",FLOOR(VLOOKUP(A10,'All Meals'!$A$12:$V$61,5),0.25))","v":null},{"$f":"IF(B10=0,\"\",IF(G10=\"\",\"No\",IF(G10>=2,\"Yes\",\"No\")))","v":null},{"$f":"IF(B10=0,\"\",FLOOR(VLOOKUP(A10,'All Meals'!$A$12:$V$61,6),0.25))","v":null},{"$f":"IF(B10=0,\"\",FLOOR(VLOOKUP(A10,'All Meals'!$A$12:$V$61,7),0.25))","v":null},{"$f":"IF(B10=0, \"\",VLOOKUP(A10,'All Meals'!$A$12:$V$61,10))","v":null},{"$f":"IF(B10=0,\"\",IF(K10=\"\",\"No\",IF(K10>=1,\"Yes\",\"No\")))","v":null},{"$f":"IF(B10=0, \"\",VLOOKUP(A10,'All Meals'!$A$12:$V$61,13))","v":null},{"$f":"IF(B10=0, \"\",VLOOKUP(A10,'All Meals'!$A$12:$V$61,16))","v":null},{"$f":"IF(B10=0,\"\",IF(N10=\"\",\"No\",IF(N10>=1,\"Yes\",\"No\")))","v":null},{"$f":"IF(B10=0, \"\",VLOOKUP(A10,'All Meals'!$A$12:$V$61,19))","v":null},{"$f":"IF(B10=0, \"\",VLOOKUP(A10,'All Meals'!$A$12:$V$61,20))","v":null},{"$f":"IF(B10=0,\"\",IF(Q10=\"\",\"No\",IF(Q10>=1,\"Yes\",\"No\")))","v":null},null,null,null,null,null,null,null,null,null,null,1,{"$f":"INDEX(GREEN,AC10)","v":null},null,1,{"$f":"IF(AD10=0,\"\",INDEX(Cups,AF10))","v":null},null,1,{"$f":"INDEX(RED,AI10)","v":null},null,1,{"$f":"IF(AJ10=0, \"\", INDEX(Cups,AL10))","v":null},null,1,{"$f":"INDEX(BEANS,AO10)","v":null},null,1,{"$f":"IF(AP10=0,\"\",INDEX(Cups,AR10))","v":null},null,1,{"$f":"INDEX(STARCHY,AU10)","v":null},null,1,{"$f":"IF(AV10=0,\"\",INDEX(Cups,AX10))","v":null},null,1,{"$f":"INDEX(OTHER,BA10)","v":null},null,1,{"$f":"IF(BB10=0,\"\",INDEX(Cups,BD10))","v":null}]
[1,{"$f":"INDEX(meals,A11)","v":null},5,null,{"$f":"IF(B11=0,\"\",FLOOR(VLOOKUP(A11,'All Meals'!$A$12:$V$61,4),0.25))","v":null},{"$f":"IF(B11=0,\"\",IF(E11=\"\",\"No\",IF(E11>=2,\"Yes\",\"No\")))","v":null},{"$f":"IF(B11=0,\"\",FLOOR(VLOOKUP(A11,'All Meals'!$A$12:$V$61,5),0.25))","v":null},{"$f":"IF(B11=0,\"\",IF(G11=\"\",\"No\",IF(G11>=2,\"Yes\",\"No\")))","v":null},{"$f":"IF(B11=0,\"\",FLOOR(VLOOKUP(A11,'All Meals'!$A$12:$V$61,6),0.25))","v":null},{"$f":"IF(B11=0,\"\",FLOOR(VLOOKUP(A11,'All Meals'!$A$12:$V$61,7),0.25))","v":null},{"$f":"IF(B11=0, \"\",VLOOKUP(A11,'All Meals'!$A$12:$V$61,10))","v":null},{"$f":"IF(B11=0,\"\",IF(K11=\"\",\"No\",IF(K11>=1,\"Yes\",\"No\")))","v":null},{"$f":"IF(B11=0, \"\",VLOOKUP(A11,'All Meals'!$A$12:$V$61,13))","v":null},{"$f":"IF(B11=0, \"\",VLOOKUP(A11,'All Meals'!$A$12:$V$61,16))","v":null},{"$f":"IF(B11=0,\"\",IF(N11=\"\",\"No\",IF(N11>=1,\"Yes\",\"No\")))","v":null},{"$f":"IF(B11=0, \"\",VLOOKUP(A11,'All Meals'!$A$12:$V$61,19))","v":null},{"$f":"IF(B11=0, \"\",VLOOKUP(A11,'All Meals'!$A$12:$V$61,20))","v":null},{"$f":"IF(B11=0,\"\",IF(Q11=\"\",\"No\",IF(Q11>=1,\"Yes\",\"No\")))","v":null},null,"OPTIONAL Tools to Assist in Fraction and Decimal Calculations",null,null,null,null,null,null,null,null,1,{"$f":"INDEX(GREEN,AC11)","v":null},null,1,{"$f":"IF(AD11=0,\"\",INDEX(Cups,AF11))","v":null},null,1,{"$f":"INDEX(RED,AI11)","v":null},null,1,{"$f":"IF(AJ11=0, \"\", INDEX(Cups,AL11))","v":null},null,1,{"$f":"INDEX(BEANS,AO11)","v":null},null,1,{"$f":"IF(AP11=0,\"\",INDEX(Cups,AR11))","v":null},null,1,{"$f":"INDEX(STARCHY,AU11)","v":null},null,1,{"$f":"IF(AV11=0,\"\",INDEX(Cups,AX11))","v":null},null,1,{"$f":"INDEX(OTHER,BA11)","v":null},null,1,{"$f":"IF(BB11=0,\"\",INDEX(Cups,BD11))","v":null}]
[1,{"$f":"INDEX(meals,A12)","v":null},6,null,{"$f":"IF(B12=0,\"\",FLOOR(VLOOKUP(A12,'All Meals'!$A$12:$V$61,4),0.25))","v":null},{"$f":"IF(B12=0,\"\",IF(E12=\"\",\"No\",IF(E12>=2,\"Yes\",\"No\")))","v":null},{"$f":"IF(B12=0,\"\",FLOOR(VLOOKUP(A12,'All Meals'!$A$12:$V$61,5),0.25))","v":null},{"$f":"IF(B12=0,\"\",IF(G12=\"\",\"No\",IF(G12>=2,\"Yes\",\"No\")))","v":null},{"$f":"IF(B12=0,\"\",FLOOR(VLOOKUP(A12,'All Meals'!$A$12:$V$61,6),0.25))","v":null},{"$f":"IF(B12=0,\"\",FLOOR(VLOOKUP(A12,'All Meals'!$A$12:$V$61,7),0.25))","v":null},{"$f":"IF(B12=0, \"\",VLOOKUP(A12,'All Meals'!$A$12:$V$61,10))","v":null},{"$f":"IF(B12=0,\"\",IF(K12=\"\",\"No\",IF(K12>=1,\"Yes\",\"No\")))","v":null},{"$f":"IF(B12=0, \"\",VLOOKUP(A12,'All Meals'!$A$12:$V$61,13))","v":null},{"$f":"IF(B12=0, \"\",VLOOKUP(A12,'All Meals'!$A$12:$V$61,16))","v":null},{"$f":"IF(B12=0,\"\",IF(N12=\"\",\"No\",IF(N12>=1,\"Yes\",\"No\")))","v":null},{"$f":"IF(B12=0, \"\",VLOOKUP(A12,'All Meals'!$A$12:$V$61,19))","v":null},{"$f":"IF(B12=0, \"\",VLOOKUP(A12,'All Meals'!$A$12:$V$61,20))","v":null},{"$f":"IF(B12=0,\"\",IF(Q12=\"\",\"No\",IF(Q12>=1,\"Yes\",\"No\")))","v":null},null,null,null,null,null,null,null,null,null,null,1,{"$f":"INDEX(GREEN,AC12)","v":null},null,1,{"$f":"IF(AD12=0,\"\",INDEX(Cups,AF12))","v":null},null,1,{"$f":"INDEX(RED,AI12)","v":null},null,1,{"$f":"IF(AJ12=0, \"\", INDEX(Cups,AL12))","v":null},null,1,{"$f":"INDEX(BEANS,AO12)","v":null},null,1,{"$f":"IF(AP12=0,\"\",INDEX(Cups,AR12))","v":null},null,1,{"$f":"INDEX(STARCHY,AU12)","v":null},null,1,{"$f":"IF(AV12=0,\"\",INDEX(Cups,AX12))","v":null},null,1,{"$f":"INDEX(OTHER,BA12)","v":null},null,1,{"$f":"IF(BB12=0,\"\",INDEX(Cups,BD12))","v":null}]
[1,{"$f":"INDEX(meals,A13)","v":null},7,null,{"$f":"IF(B13=0,\"\",FLOOR(VLOOKUP(A13,'All Meals'!$A$12:$V$61,4),0.25))","v":null},{"$f":"IF(B13=0,\"\",IF(E13=\"\",\"No\",IF(E13>=2,\"Yes\",\"No\")))","v":null},{"$f":"IF(B13=0,\"\",FLOOR(VLOOKUP(A13,'All Meals'!$A$12:$V$61,5),0.25))","v":null},{"$f":"IF(B13=0,\"\",IF(G13=\"\",\"No\",IF(G13>=2,\"Yes\",\"No\")))","v":null},{"$f":"IF(B13=0,\"\",FLOOR(VLOOKUP(A13,'All Meals'!$A$12:$V$61,6),0.25))","v":null},{"$f":"IF(B13=0,\"\",FLOOR(VLOOKUP(A13,'All Meals'!$A$12:$V$61,7),0.25))","v":null},{"$f":"IF(B13=0, \"\",VLOOKUP(A13,'All Meals'!$A$12:$V$61,10))","v":null},{"$f":"IF(B13=0,\"\",IF(K13=\"\",\"No\",IF(K13>=1,\"Yes\",\"No\")))","v":null},{"$f":"IF(B13=0, \"\",VLOOKUP(A13,'All Meals'!$A$12:$V$61,13))","v":null},{"$f":"IF(B13=0, \"\",VLOOKUP(A13,'All Meals'!$A$12:$V$61,16))","v":null},{"$f":"IF(B13=0,\"\",IF(N13=\"\",\"No\",IF(N13>=1,\"Yes\",\"No\")))","v":null},{"$f":"IF(B13=0, \"\",VLOOKUP(A13,'All Meals'!$A$12:$V$61,19))","v":null},{"$f":"IF(B13=0, \"\",VLOOKUP(A13,'All Meals'!$A$12:$V$61,20))","v":null},{"$f":"IF(B13=0,\"\",IF(Q13=\"\",\"No\",IF(Q13>=1,\"Yes\",\"No\")))","v":null},null,"Fraction Calculator: \nUse this calculator to add the number of cups.",null,null,1,{"$f":"INDEX(Cups,W13)","v":null},null,null,null,null,1,{"$f":"INDEX(GREEN,AC13)","v":null},null,1,{"$f":"IF(AD13=0,\"\",INDEX(Cups,AF13))","v":null},null,1,{"$f":"INDEX(RED,AI13)","v":null},null,1,{"$f":"IF(AJ13=0, \"\", INDEX(Cups,AL13))","v":null},null,1,{"$f":"INDEX(BEANS,AO13)","v":null},null,1,{"$f":"IF(AP13=0,\"\",INDEX(Cups,AR13))","v":null},null,1,{"$f":"INDEX(STARCHY,AU13)","v":null},null,1,{"$f":"IF(AV13=0,\"\",INDEX(Cups,AX13))","v":null},null,1,{"$f":"INDEX(OTHER,BA13)","v":null},null,1,{"$f":"IF(BB13=0,\"\",INDEX(Cups,BD13))","v":null}]
[1,{"$f":"INDEX(meals,A14)","v":null},8,null,{"$f":"IF(B14=0,\"\",FLOOR(VLOOKUP(A14,'All Meals'!$A$12:$V$61,4),0.25))","v":null},{"$f":"IF(B14=0,\"\",IF(E14=\"\",\"No\",IF(E14>=2,\"Yes\",\"No\")))","v":null},{"$f":"IF(B14=0,\"\",FLOOR(VLOOKUP(A14,'All Meals'!$A$12:$V$61,5),0.25))","v":null},{"$f":"IF(B14=0,\"\",IF(G14=\"\",\"No\",IF(G14>=2,\"Yes\",\"No\")))","v":null},{"$f":"IF(B14=0,\"\",FLOOR(VLOOKUP(A14,'All Meals'!$A$12:$V$61,6),0.25))","v":null},{"$f":"IF(B14=0,\"\",FLOOR(VLOOKUP(A14,'All Meals'!$A$12:$V$61,7),0.25))","v":null},{"$f":"IF(B14=0, \"\",VLOOKUP(A14,'All Meals'!$A$12:$V$61,10))","v":null},{"$f":"IF(B14=0,\"\",IF(K14=\"\",\"No\",IF(K14>=1,\"Yes\",\"No\")))","v":null},{"$f":"IF(B14=0, \"\",VLOOKUP(A14,'All Meals'!$A$12:$V$61,13))","v":null},{"$f":"IF(B14=0, \"\",VLOOKUP(A14,'All Meals'!$A$12:$V$61,16))","v":null},{"$f":"IF(B14=0,\"\",IF(N14=\"\",\"No\",IF(N14>=1,\"Yes\",\"No\")))","v":null},{"$f":"IF(B14=0, \"\",VLOOKUP(A14,'All Meals'!$A$12:$V$61,19))","v":null},{"$f":"IF(B14=0, \"\",VLOOKUP(A14,'All Meals'!$A$12:$V$61,20))","v":null},{"$f":"IF(B14=0,\"\",IF(Q14=\"\",\"No\",IF(Q14>=1,\"Yes\",\"No\")))","v":null},null,null,null,null,1,{"$f":"INDEX(Cups,W14)","v":null},null,null,null,null,1,{"$f":"INDEX(GREEN,AC14)","v":null},null,1,{"$f":"IF(AD14=0,\"\",INDEX(Cups,AF14))","v":null},null,1,{"$f":"INDEX(RED,AI14)","v":null},null,1,{"$f":"IF(AJ14=0, \"\", INDEX(Cups,AL14))","v":null},null,1,{"$f":"INDEX(BEANS,AO14)","v":null},null,1,{"$f":"IF(AP14=0,\"\",INDEX(Cups,AR14))","v":null},null,1,{"$f":"INDEX(STARCHY,AU14)","v":null},null,1,{"$f":"IF(AV14=0,\"\",INDEX(Cups,AX14))","v":null},null,1,{"$f":"INDEX(OTHER,BA14)","v":null},null,1,{"$f":"IF(BB14=0,\"\",INDEX(Cups,BD14))","v":null}]
[1,{"$f":"INDEX(meals,A15)","v":null},9,null,{"$f":"IF(B15=0,\"\",FLOOR(VLOOKUP(A15,'All Meals'!$A$12:$V$61,4),0.25))","v":null},{"$f":"IF(B15=0,\"\",IF(E15=\"\",\"No\",IF(E15>=2,\"Yes\",\"No\")))","v":null},{"$f":"IF(B15=0,\"\",FLOOR(VLOOKUP(A15,'All Meals'!$A$12:$V$61,5),0.25))","v":null},{"$f":"IF(B15=0,\"\",IF(G15=\"\",\"No\",IF(G15>=2,\"Yes\",\"No\")))","v":null},{"$f":"IF(B15=0,\"\",FLOOR(VLOOKUP(A15,'All Meals'!$A$12:$V$61,6),0.25))","v":null},{"$f":"IF(B15=0,\"\",FLOOR(VLOOKUP(A15,'All Meals'!$A$12:$V$61,7),0.25))","v":null},{"$f":"IF(B15=0, \"\",VLOOKUP(A15,'All Meals'!$A$12:$V$61,10))","v":null},{"$f":"IF(B15=0,\"\",IF(K15=\"\",\"No\",IF(K15>=1,\"Yes\",\"No\")))","v":null},{"$f":"IF(B15=0, \"\",VLOOKUP(A15,'All Meals'!$A$12:$V$61,13))","v":null},{"$f":"IF(B15=0, \"\",VLOOKUP(A15,'All Meals'!$A$12:$V$61,16))","v":null},{"$f":"IF(B15=0,\"\",IF(N15=\"\",\"No\",IF(N15>=1,\"Yes\",\"No\")))","v":null},{"$f":"IF(B15=0, \"\",VLOOKUP(A15,'All Meals'!$A$12:$V$61,19))","v":null},{"$f":"IF(B15=0, \"\",VLOOKUP(A15,'All Meals'!$A$12:$V$61,20))","v":null},{"$f":"IF(B15=0,\"\",IF(Q15=\"\",\"No\",IF(Q15>=1,\"Yes\",\"No\")))","v":null},null,null,null,null,1,{"$f":"INDEX(Cups,W15)","v":null},null,null,null,null,1,{"$f":"INDEX(GREEN,AC15)","v":null},null,1,{"$f":"IF(AD15=0,\"\",INDEX(Cups,AF15))","v":null},null,1,{"$f":"INDEX(RED,AI15)","v":null},null,1,{"$f":"IF(AJ15=0, \"\", INDEX(Cups,AL15))","v":null},null,1,{"$f":"INDEX(BEANS,AO15)","v":null},null,1,{"$f":"IF(AP15=0,\"\",INDEX(Cups,AR15))","v":null},null,1,{"$f":"INDEX(STARCHY,AU15)","v":null},null,1,{"$f":"IF(AV15=0,\"\",INDEX(Cups,AX15))","v":null},null,1,{"$f":"INDEX(OTHER,BA15)","v":null},null,1,{"$f":"IF(BB15=0,\"\",INDEX(Cups,BD15))","v":null}]
[1,{"$f":"INDEX(meals,A16)","v":null},10,null,{"$f":"IF(B16=0,\"\",FLOOR(VLOOKUP(A16,'All Meals'!$A$12:$V$61,4),0.25))","v":null},{"$f":"IF(B16=0,\"\",IF(E16=\"\",\"No\",IF(E16>=2,\"Yes\",\"No\")))","v":null},{"$f":"IF(B16=0,\"\",FLOOR(VLOOKUP(A16,'All Meals'!$A$12:$V$61,5),0.25))","v":null},{"$f":"IF(B16=0,\"\",IF(G16=\"\",\"No\",IF(G16>=2,\"Yes\",\"No\")))","v":null},{"$f":"IF(B16=0,\"\",FLOOR(VLOOKUP(A16,'All Meals'!$A$12:$V$61,6),0.25))","v":null},{"$f":"IF(B16=0,\"\",FLOOR(VLOOKUP(A16,'All Meals'!$A$12:$V$61,7),0.25))","v":null},{"$f":"IF(B16=0, \"\",VLOOKUP(A16,'All Meals'!$A$12:$V$61,10))","v":null},{"$f":"IF(B16=0,\"\",IF(K16=\"\",\"No\",IF(K16>=1,\"Yes\",\"No\")))","v":null},{"$f":"IF(B16=0, \"\",VLOOKUP(A16,'All Meals'!$A$12:$V$61,13))","v":null},{"$f":"IF(B16=0, \"\",VLOOKUP(A16,'All Meals'!$A$12:$V$61,16))","v":null},{"$f":"IF(B16=0,\"\",IF(N16=\"\",\"No\",IF(N16>=1,\"Yes\",\"No\")))","v":null},{"$f":"IF(B16=0, \"\",VLOOKUP(A16,'All Meals'!$A$12:$V$61,19))","v":null},{"$f":"IF(B16=0, \"\",VLOOKUP(A16,'All Meals'!$A$12:$V$61,20))","v":null},{"$f":"IF(B16=0,\"\",IF(Q16=\"\",\"No\",IF(Q16>=1,\"Yes\",\"No\")))","v":null},null,null,null,null,1,{"$f":"INDEX(Cups,W16)","v":null},null,null,null,null,1,{"$f":"INDEX(GREEN,AC16)","v":null},null,1,{"$f":"IF(AD16=0,\"\",INDEX(Cups,AF16))","v":null},null,1,{"$f":"INDEX(RED,AI16)","v":null},null,1,{"$f":"IF(AJ16=0, \"\", INDEX(Cups,AL16))","v":null},null,1,{"$f":"INDEX(BEANS,AO16)","v":null},null,1,{"$f":"IF(AP16=0,\"\",INDEX(Cups,AR16))","v":null},null,1,{"$f":"INDEX(STARCHY,AU16)","v":null},null,1,{"$f":"IF(AV16=0,\"\",INDEX(Cups,AX16))","v":null},null,1,{"$f":"INDEX(OTHER,BA16)","v":null},null,1,{"$f":"IF(BB16=0,\"\",INDEX(Cups,BD16))","v":null}]
[1,{"$f":"INDEX(meals,A17)","v":null},11,null,{"$f":"IF(B17=0,\"\",FLOOR(VLOOKUP(A17,'All Meals'!$A$12:$V$61,4),0.25))","v":null},{"$f":"IF(B17=0,\"\",IF(E17=\"\",\"No\",IF(E17>=2,\"Yes\",\"No\")))","v":null},{"$f":"IF(B17=0,\"\",FLOOR(VLOOKUP(A17,'All Meals'!$A$12:$V$61,5),0.25))","v":null},{"$f":"IF(B17=0,\"\",IF(G17=\"\",\"No\",IF(G17>=2,\"Yes\",\"No\")))","v":null},{"$f":"IF(B17=0,\"\",FLOOR(VLOOKUP(A17,'All Meals'!$A$12:$V$61,6),0.25))","v":null},{"$f":"IF(B17=0,\"\",FLOOR(VLOOKUP(A17,'All Meals'!$A$12:$V$61,7),0.25))","v":null},{"$f":"IF(B17=0, \"\",VLOOKUP(A17,'All Meals'!$A$12:$V$61,10))","v":null},{"$f":"IF(B17=0,\"\",IF(K17=\"\",\"No\",IF(K17>=1,\"Yes\",\"No\")))","v":null},{"$f":"IF(B17=0, \"\",VLOOKUP(A17,'All Meals'!$A$12:$V$61,13))","v":null},{"$f":"IF(B17=0, \"\",VLOOKUP(A17,'All Meals'!$A$12:$V$61,16))","v":null},{"$f":"IF(B17=0,\"\",IF(N17=\"\",\"No\",IF(N17>=1,\"Yes\",\"No\")))","v":null},{"$f":"IF(B17=0, \"\",VLOOKUP(A17,'All Meals'!$A$12:$V$61,19))","v":null},{"$f":"IF(B17=0, \"\",VLOOKUP(A17,'All Meals'!$A$12:$V$61,20))","v":null},{"$f":"IF(B17=0,\"\",IF(Q17=\"\",\"No\",IF(Q17>=1,\"Yes\",\"No\")))","v":null},null,null,null,null,1,{"$f":"INDEX(Cups,W17)","v":null},null,null,null,null,1,{"$f":"INDEX(GREEN,AC17)","v":null},null,1,{"$f":"IF(AD17=0,\"\",INDEX(Cups,AF17))","v":null},null,1,{"$f":"INDEX(RED,AI17)","v":null},null,1,{"$f":"IF(AJ17=0, \"\", INDEX(Cups,AL17))","v":null},null,1,{"$f":"INDEX(BEANS,AO17)","v":null},null,1,{"$f":"IF(AP17=0,\"\",INDEX(Cups,AR17))","v":null},null,1,{"$f":"INDEX(STARCHY,AU17)","v":null},null,1,{"$f":"IF(AV17=0,\"\",INDEX(Cups,AX17))","v":null},null,1,{"$f":"INDEX(OTHER,BA17)","v":null},null,1,{"$f":"IF(BB17=0,\"\",INDEX(Cups,BD17))","v":null}]
[1,{"$f":"INDEX(meals,A18)","v":null},12,null,{"$f":"IF(B18=0,\"\",FLOOR(VLOOKUP(A18,'All Meals'!$A$12:$V$61,4),0.25))","v":null},{"$f":"IF(B18=0,\"\",IF(E18=\"\",\"No\",IF(E18>=2,\"Yes\",\"No\")))","v":null},{"$f":"IF(B18=0,\"\",FLOOR(VLOOKUP(A18,'All Meals'!$A$12:$V$61,5),0.25))","v":null},{"$f":"IF(B18=0,\"\",IF(G18=\"\",\"No\",IF(G18>=2,\"Yes\",\"No\")))","v":null},{"$f":"IF(B18=0,\"\",FLOOR(VLOOKUP(A18,'All Meals'!$A$12:$V$61,6),0.25))","v":null},{"$f":"IF(B18=0,\"\",FLOOR(VLOOKUP(A18,'All Meals'!$A$12:$V$61,7),0.25))","v":null},{"$f":"IF(B18=0, \"\",VLOOKUP(A18,'All Meals'!$A$12:$V$61,10))","v":null},{"$f":"IF(B18=0,\"\",IF(K18=\"\",\"No\",IF(K18>=1,\"Yes\",\"No\")))","v":null},{"$f":"IF(B18=0, \"\",VLOOKUP(A18,'All Meals'!$A$12:$V$61,13))","v":null},{"$f":"IF(B18=0, \"\",VLOOKUP(A18,'All Meals'!$A$12:$V$61,16))","v":null},{"$f":"IF(B18=0,\"\",IF(N18=\"\",\"No\",IF(N18>=1,\"Yes\",\"No\")))","v":null},{"$f":"IF(B18=0, \"\",VLOOKUP(A18,'All Meals'!$A$12:$V$61,19))","v":null},{"$f":"IF(B18=0, \"\",VLOOKUP(A18,'All Meals'!$A$12:$V$61,20))","v":null},{"$f":"IF(B18=0,\"\",IF(Q18=\"\",\"No\",IF(Q18>=1,\"Yes\",\"No\")))","v":null},null,null,null,null,null,null,{"$f":"SUM(X13:X17)","v":null},null,null,null,1,{"$f":"INDEX(GREEN,AC18)","v":null},null,1,{"$f":"IF(AD18=0,\"\",INDEX(Cups,AF18))","v":null},null,1,{"$f":"INDEX(RED,AI18)","v":null},null,1,{"$f":"IF(AJ18=0, \"\", INDEX(Cups,AL18))","v":null},null,1,{"$f":"INDEX(BEANS,AO18)","v":null},null,1,{"$f":"IF(AP18=0,\"\",INDEX(Cups,AR18))","v":null},null,1,{"$f":"INDEX(STARCHY,AU18)","v":null},null,1,{"$f":"IF(AV18=0,\"\",INDEX(Cups,AX18))","v":null},null,1,{"$f":"INDEX(OTHER,BA18)","v":null},null,1,{"$f":"IF(BB18=0,\"\",INDEX(Cups,BD18))","v":null}]
[1,{"$f":"INDEX(meals,A19)","v":null},13,null,{"$f":"IF(B19=0,\"\",FLOOR(VLOOKUP(A19,'All Meals'!$A$12:$V$61,4),0.25))","v":null},{"$f":"IF(B19=0,\"\",IF(E19=\"\",\"No\",IF(E19>=2,\"Yes\",\"No\")))","v":null},{"$f":"IF(B19=0,\"\",FLOOR(VLOOKUP(A19,'All Meals'!$A$12:$V$61,5),0.25))","v":null},{"$f":"IF(B19=0,\"\",IF(G19=\"\",\"No\",IF(G19>=2,\"Yes\",\"No\")))","v":null},{"$f":"IF(B19=0,\"\",FLOOR(VLOOKUP(A19,'All Meals'!$A$12:$V$61,6),0.25))","v":null},{"$f":"IF(B19=0,\"\",FLOOR(VLOOKUP(A19,'All Meals'!$A$12:$V$61,7),0.25))","v":null},{"$f":"IF(B19=0, \"\",VLOOKUP(A19,'All Meals'!$A$12:$V$61,10))","v":null},{"$f":"IF(B19=0,\"\",IF(K19=\"\",\"No\",IF(K19>=1,\"Yes\",\"No\")))","v":null},{"$f":"IF(B19=0, \"\",VLOOKUP(A19,'All Meals'!$A$12:$V$61,13))","v":null},{"$f":"IF(B19=0, \"\",VLOOKUP(A19,'All Meals'!$A$12:$V$61,16))","v":null},{"$f":"IF(B19=0,\"\",IF(N19=\"\",\"No\",IF(N19>=1,\"Yes\",\"No\")))","v":null},{"$f":"IF(B19=0, \"\",VLOOKUP(A19,'All Meals'!$A$12:$V$61,19))","v":null},{"$f":"IF(B19=0, \"\",VLOOKUP(A19,'All Meals'!$A$12:$V$61,20))","v":null},{"$f":"IF(B19=0,\"\",IF(Q19=\"\",\"No\",IF(Q19>=1,\"Yes\",\"No\")))","v":null},null,"Decimal/Fraction Converter\n(Rounded down to the nearest 1/8)",null,null,null,null,null,null,null,null,1,{"$f":"INDEX(GREEN,AC19)","v":null},null,1,{"$f":"IF(AD19=0,\"\",INDEX(Cups,AF19))","v":null},null,1,{"$f":"INDEX(RED,AI19)","v":null},null,1,{"$f":"IF(AJ19=0, \"\", INDEX(Cups,AL19))","v":null},null,1,{"$f":"INDEX(BEANS,AO19)","v":null},null,1,{"$f":"IF(AP19=0,\"\",INDEX(Cups,AR19))","v":null},null,1,{"$f":"INDEX(STARCHY,AU19)","v":null},null,1,{"$f":"IF(AV19=0,\"\",INDEX(Cups,AX19))","v":null},null,1,{"$f":"INDEX(OTHER,BA19)","v":null},null,1,{"$f":"IF(BB19=0,\"\",INDEX(Cups,BD19))","v":null}]
[1,{"$f":"INDEX(meals,A20)","v":null},14,null,{"$f":"IF(B20=0,\"\",FLOOR(VLOOKUP(A20,'All Meals'!$A$12:$V$61,4),0.25))","v":null},{"$f":"IF(B20=0,\"\",IF(E20=\"\",\"No\",IF(E20>=2,\"Yes\",\"No\")))","v":null},{"$f":"IF(B20=0,\"\",FLOOR(VLOOKUP(A20,'All Meals'!$A$12:$V$61,5),0.25))","v":null},{"$f":"IF(B20=0,\"\",IF(G20=\"\",\"No\",IF(G20>=2,\"Yes\",\"No\")))","v":null},{"$f":"IF(B20=0,\"\",FLOOR(VLOOKUP(A20,'All Meals'!$A$12:$V$61,6),0.25))","v":null},{"$f":"IF(B20=0,\"\",FLOOR(VLOOKUP(A20,'All Meals'!$A$12:$V$61,7),0.25))","v":null},{"$f":"IF(B20=0, \"\",VLOOKUP(A20,'All Meals'!$A$12:$V$61,10))","v":null},{"$f":"IF(B20=0,\"\",IF(K20=\"\",\"No\",IF(K20>=1,\"Yes\",\"No\")))","v":null},{"$f":"IF(B20=0, \"\",VLOOKUP(A20,'All Meals'!$A$12:$V$61,13))","v":null},{"$f":"IF(B20=0, \"\",VLOOKUP(A20,'All Meals'!$A$12:$V$61,16))","v":null},{"$f":"IF(B20=0,\"\",IF(N20=\"\",\"No\",IF(N20>=1,\"Yes\",\"No\")))","v":null},{"$f":"IF(B20=0, \"\",VLOOKUP(A20,'All Meals'!$A$12:$V$61,19))","v":null},{"$f":"IF(B20=0, \"\",VLOOKUP(A20,'All Meals'!$A$12:$V$61,20))","v":null},{"$f":"IF(B20=0,\"\",IF(Q20=\"\",\"No\",IF(Q20>=1,\"Yes\",\"No\")))","v":null},null,"Enter the decimal you wish to convert to a fraction in the box:",null,null,null,null,null,null,null,{"$f":"IF(OR(COUNTIF(AC10:AC19,18)>0, COUNTIF(AI10:AI19, 13)>0, COUNTIF(AO10:AO19, 12)>0, COUNTIF(AU10:AU19, 11)>0,COUNTIF(BA10:BA19,34)>0, COUNTIF(BA10:BA19,35)>0, COUNTIF(BA10:BA19,36)>0,COUNTIF(BA10:BA19,37)>0, COUNTIF(BA10:BA19,38)>0, COUNTIF(BA10:BA19,39)>0), \"You entered an unspecified or extra other vegetable above, please enter the name of the vegetable in the appropriate subgroup below\", \"\")","v":null}]
[1,{"$f":"INDEX(meals,A21)","v":null},15,null,{"$f":"IF(B21=0,\"\",FLOOR(VLOOKUP(A21,'All Meals'!$A$12:$V$61,4),0.25))","v":null},{"$f":"IF(B21=0,\"\",IF(E21=\"\",\"No\",IF(E21>=2,\"Yes\",\"No\")))","v":null},{"$f":"IF(B21=0,\"\",FLOOR(VLOOKUP(A21,'All Meals'!$A$12:$V$61,5),0.25))","v":null},{"$f":"IF(B21=0,\"\",IF(G21=\"\",\"No\",IF(G21>=2,\"Yes\",\"No\")))","v":null},{"$f":"IF(B21=0,\"\",FLOOR(VLOOKUP(A21,'All Meals'!$A$12:$V$61,6),0.25))","v":null},{"$f":"IF(B21=0,\"\",FLOOR(VLOOKUP(A21,'All Meals'!$A$12:$V$61,7),0.25))","v":null},{"$f":"IF(B21=0, \"\",VLOOKUP(A21,'All Meals'!$A$12:$V$61,10))","v":null},{"$f":"IF(B21=0,\"\",IF(K21=\"\",\"No\",IF(K21>=1,\"Yes\",\"No\")))","v":null},{"$f":"IF(B21=0, \"\",VLOOKUP(A21,'All Meals'!$A$12:$V$61,13))","v":null},{"$f":"IF(B21=0, \"\",VLOOKUP(A21,'All Meals'!$A$12:$V$61,16))","v":null},{"$f":"IF(B21=0,\"\",IF(N21=\"\",\"No\",IF(N21>=1,\"Yes\",\"No\")))","v":null},{"$f":"IF(B21=0, \"\",VLOOKUP(A21,'All Meals'!$A$12:$V$61,19))","v":null},{"$f":"IF(B21=0, \"\",VLOOKUP(A21,'All Meals'!$A$12:$V$61,20))","v":null},{"$f":"IF(B21=0,\"\",IF(Q21=\"\",\"No\",IF(Q21>=1,\"Yes\",\"No\")))","v":null},null,null,null,null,null,null,null,null,null,"Unspecified Dark Green Vegetables",null,null,null,null,null,"Unspecified Red/Orange Vegetables",null,null,null,null,null,"Unspecified Beans/Peas",null,null,null,null,null,"Unspecified Starchy Vegetables",null,null,null,null,null,"Unspecified Other Vegetables"]
[1,{"$f":"INDEX(meals,A22)","v":null},16,null,{"$f":"IF(B22=0,\"\",FLOOR(VLOOKUP(A22,'All Meals'!$A$12:$V$61,4),0.25))","v":null},{"$f":"IF(B22=0,\"\",IF(E22=\"\",\"No\",IF(E22>=2,\"Yes\",\"No\")))","v":null},{"$f":"IF(B22=0,\"\",FLOOR(VLOOKUP(A22,'All Meals'!$A$12:$V$61,5),0.25))","v":null},{"$f":"IF(B22=0,\"\",IF(G22=\"\",\"No\",IF(G22>=2,\"Yes\",\"No\")))","v":null},{"$f":"IF(B22=0,\"\",FLOOR(VLOOKUP(A22,'All Meals'!$A$12:$V$61,6),0.25))","v":null},{"$f":"IF(B22=0,\"\",FLOOR(VLOOKUP(A22,'All Meals'!$A$12:$V$61,7),0.25))","v":null},{"$f":"IF(B22=0, \"\",VLOOKUP(A22,'All Meals'!$A$12:$V$61,10))","v":null},{"$f":"IF(B22=0,\"\",IF(K22=\"\",\"No\",IF(K22>=1,\"Yes\",\"No\")))","v":null},{"$f":"IF(B22=0, \"\",VLOOKUP(A22,'All Meals'!$A$12:$V$61,13))","v":null},{"$f":"IF(B22=0, \"\",VLOOKUP(A22,'All Meals'!$A$12:$V$61,16))","v":null},{"$f":"IF(B22=0,\"\",IF(N22=\"\",\"No\",IF(N22>=1,\"Yes\",\"No\")))","v":null},{"$f":"IF(B22=0, \"\",VLOOKUP(A22,'All Meals'!$A$12:$V$61,19))","v":null},{"$f":"IF(B22=0, \"\",VLOOKUP(A22,'All Meals'!$A$12:$V$61,20))","v":null},{"$f":"IF(B22=0,\"\",IF(Q22=\"\",\"No\",IF(Q22>=1,\"Yes\",\"No\")))","v":null},null,"The decimal entered above has been converted to the following fraction:",null,null,null,null,{"$f":"FLOOR(Y20,0.125)","v":null}]
[1,{"$f":"INDEX(meals,A23)","v":null},17,null,{"$f":"IF(B23=0,\"\",FLOOR(VLOOKUP(A23,'All Meals'!$A$12:$V$61,4),0.25))","v":null},{"$f":"IF(B23=0,\"\",IF(E23=\"\",\"No\",IF(E23>=2,\"Yes\",\"No\")))","v":null},{"$f":"IF(B23=0,\"\",FLOOR(VLOOKUP(A23,'All Meals'!$A$12:$V$61,5),0.25))","v":null},{"$f":"IF(B23=0,\"\",IF(G23=\"\",\"No\",IF(G23>=2,\"Yes\",\"No\")))","v":null},{"$f":"IF(B23=0,\"\",FLOOR(VLOOKUP(A23,'All Meals'!$A$12:$V$61,6),0.25))","v":null},{"$f":"IF(B23=0,\"\",FLOOR(VLOOKUP(A23,'All Meals'!$A$12:$V$61,7),0.25))","v":null},{"$f":"IF(B23=0, \"\",VLOOKUP(A23,'All Meals'!$A$12:$V$61,10))","v":null},{"$f":"IF(B23=0,\"\",IF(K23=\"\",\"No\",IF(K23>=1,\"Yes\",\"No\")))","v":null},{"$f":"IF(B23=0, \"\",VLOOKUP(A23,'All Meals'!$A$12:$V$61,13))","v":null},{"$f":"IF(B23=0, \"\",VLOOKUP(A23,'All Meals'!$A$12:$V$61,16))","v":null},{"$f":"IF(B23=0,\"\",IF(N23=\"\",\"No\",IF(N23>=1,\"Yes\",\"No\")))","v":null},{"$f":"IF(B23=0, \"\",VLOOKUP(A23,'All Meals'!$A$12:$V$61,19))","v":null},{"$f":"IF(B23=0, \"\",VLOOKUP(A23,'All Meals'!$A$12:$V$61,20))","v":null},{"$f":"IF(B23=0,\"\",IF(Q23=\"\",\"No\",IF(Q23>=1,\"Yes\",\"No\")))","v":null}]
[1,{"$f":"INDEX(meals,A24)","v":null},18,null,{"$f":"IF(B24=0,\"\",FLOOR(VLOOKUP(A24,'All Meals'!$A$12:$V$61,4),0.25))","v":null},{"$f":"IF(B24=0,\"\",IF(E24=\"\",\"No\",IF(E24>=2,\"Yes\",\"No\")))","v":null},{"$f":"IF(B24=0,\"\",FLOOR(VLOOKUP(A24,'All Meals'!$A$12:$V$61,5),0.25))","v":null},{"$f":"IF(B24=0,\"\",IF(G24=\"\",\"No\",IF(G24>=2,\"Yes\",\"No\")))","v":null},{"$f":"IF(B24=0,\"\",FLOOR(VLOOKUP(A24,'All Meals'!$A$12:$V$61,6),0.25))","v":null},{"$f":"IF(B24=0,\"\",FLOOR(VLOOKUP(A24,'All Meals'!$A$12:$V$61,7),0.25))","v":null},{"$f":"IF(B24=0, \"\",VLOOKUP(A24,'All Meals'!$A$12:$V$61,10))","v":null},{"$f":"IF(B24=0,\"\",IF(K24=\"\",\"No\",IF(K24>=1,\"Yes\",\"No\")))","v":null},{"$f":"IF(B24=0, \"\",VLOOKUP(A24,'All Meals'!$A$12:$V$61,13))","v":null},{"$f":"IF(B24=0, \"\",VLOOKUP(A24,'All Meals'!$A$12:$V$61,16))","v":null},{"$f":"IF(B24=0,\"\",IF(N24=\"\",\"No\",IF(N24>=1,\"Yes\",\"No\")))","v":null},{"$f":"IF(B24=0, \"\",VLOOKUP(A24,'All Meals'!$A$12:$V$61,19))","v":null},{"$f":"IF(B24=0, \"\",VLOOKUP(A24,'All Meals'!$A$12:$V$61,20))","v":null},{"$f":"IF(B24=0,\"\",IF(Q24=\"\",\"No\",IF(Q24>=1,\"Yes\",\"No\")))","v":null}]
[1,{"$f":"INDEX(meals,A25)","v":null},19,null,{"$f":"IF(B25=0,\"\",FLOOR(VLOOKUP(A25,'All Meals'!$A$12:$V$61,4),0.25))","v":null},{"$f":"IF(B25=0,\"\",IF(E25=\"\",\"No\",IF(E25>=2,\"Yes\",\"No\")))","v":null},{"$f":"IF(B25=0,\"\",FLOOR(VLOOKUP(A25,'All Meals'!$A$12:$V$61,5),0.25))","v":null},{"$f":"IF(B25=0,\"\",IF(G25=\"\",\"No\",IF(G25>=2,\"Yes\",\"No\")))","v":null},{"$f":"IF(B25=0,\"\",FLOOR(VLOOKUP(A25,'All Meals'!$A$12:$V$61,6),0.25))","v":null},{"$f":"IF(B25=0,\"\",FLOOR(VLOOKUP(A25,'All Meals'!$A$12:$V$61,7),0.25))","v":null},{"$f":"IF(B25=0, \"\",VLOOKUP(A25,'All Meals'!$A$12:$V$61,10))","v":null},{"$f":"IF(B25=0,\"\",IF(K25=\"\",\"No\",IF(K25>=1,\"Yes\",\"No\")))","v":null},{"$f":"IF(B25=0, \"\",VLOOKUP(A25,'All Meals'!$A$12:$V$61,13))","v":null},{"$f":"IF(B25=0, \"\",VLOOKUP(A25,'All Meals'!$A$12:$V$61,16))","v":null},{"$f":"IF(B25=0,\"\",IF(N25=\"\",\"No\",IF(N25>=1,\"Yes\",\"No\")))","v":null},{"$f":"IF(B25=0, \"\",VLOOKUP(A25,'All Meals'!$A$12:$V$61,19))","v":null},{"$f":"IF(B25=0, \"\",VLOOKUP(A25,'All Meals'!$A$12:$V$61,20))","v":null},{"$f":"IF(B25=0,\"\",IF(Q25=\"\",\"No\",IF(Q25>=1,\"Yes\",\"No\")))","v":null}]
[1,{"$f":"INDEX(meals,A26)","v":null},20,null,{"$f":"IF(B26=0,\"\",FLOOR(VLOOKUP(A26,'All Meals'!$A$12:$V$61,4),0.25))","v":null},{"$f":"IF(B26=0,\"\",IF(E26=\"\",\"No\",IF(E26>=2,\"Yes\",\"No\")))","v":null},{"$f":"IF(B26=0,\"\",FLOOR(VLOOKUP(A26,'All Meals'!$A$12:$V$61,5),0.25))","v":null},{"$f":"IF(B26=0,\"\",IF(G26=\"\",\"No\",IF(G26>=2,\"Yes\",\"No\")))","v":null},{"$f":"IF(B26=0,\"\",FLOOR(VLOOKUP(A26,'All Meals'!$A$12:$V$61,6),0.25))","v":null},{"$f":"IF(B26=0,\"\",FLOOR(VLOOKUP(A26,'All Meals'!$A$12:$V$61,7),0.25))","v":null},{"$f":"IF(B26=0, \"\",VLOOKUP(A26,'All Meals'!$A$12:$V$61,10))","v":null},{"$f":"IF(B26=0,\"\",IF(K26=\"\",\"No\",IF(K26>=1,\"Yes\",\"No\")))","v":null},{"$f":"IF(B26=0, \"\",VLOOKUP(A26,'All Meals'!$A$12:$V$61,13))","v":null},{"$f":"IF(B26=0, \"\",VLOOKUP(A26,'All Meals'!$A$12:$V$61,16))","v":null},{"$f":"IF(B26=0,\"\",IF(N26=\"\",\"No\",IF(N26>=1,\"Yes\",\"No\")))","v":null},{"$f":"IF(B26=0, \"\",VLOOKUP(A26,'All Meals'!$A$12:$V$61,19))","v":null},{"$f":"IF(B26=0, \"\",VLOOKUP(A26,'All Meals'!$A$12:$V$61,20))","v":null},{"$f":"IF(B26=0,\"\",IF(Q26=\"\",\"No\",IF(Q26>=1,\"Yes\",\"No\")))","v":null}]

{"sheet":"Wednesday","index":8,"n_rows":26,"n_cols":57,"rows_kept":26,"cut":false,"hidden":false,"merged":[[3,2,5,3],[2,2,2,25],[3,13,3,15],[4,15,5,15],[3,4,3,5],[4,4,5,4],[4,5,5,5],[3,6,3,9],[4,6,5,6],[4,7,5,7],[4,8,5,8],[4,9,5,9],[4,14,5,14],[4,17,5,17],[4,12,5,12],[4,13,5,13],[25,27,25,30],[25,33,25,36],[25,39,25,42],[25,45,25,48],[21,19,22,21],[21,24,22,25],[21,45,21,48],[18,19,18,25],[25,51,25,54],[23,27,23,30],[23,33,23,36],[23,39,23,42],[23,45,23,48],[23,51,23,54],[24,27,24,30],[24,33,24,36],[24,39,24,42],[24,45,24,48],[24,51,24,54],[21,51,21,54],[22,27,22,30],[22,33,22,36],[22,39,22,42],[22,45,22,48],[22,51,22,54],[21,27,21,30],[21,33,21,36],[21,39,21,42],[19,19,20,21],[19,24,20,25],[19,27,19,54],[20,27,20,30],[20,33,20,36],[20,39,20,42],[20,45,20,48],[20,51,20,54],[8,51,8,54],[10,19,11,25],[12,19,17,21],[12,24,12,25],[13,24,13,25],[14,24,14,25],[15,24,15,25],[16,24,16,25],[17,24,17,25],[8,18,8,21],[8,27,8,30],[8,33,8,36],[8,39,8,42],[8,45,8,48],[4,56,5,56],[5,18,5,21],[6,18,6,21],[6,27,7,27],[6,28,7,28],[6,29,7,29],[6,30,7,30],[6,31,7,31],[6,34,7,34],[4,39,5,39],[4,42,5,42],[4,45,5,45],[4,48,5,48],[4,51,5,51],[4,54,5,54],[4,33,5,33],[6,32,7,32],[6,33,7,33],[4,36,5,36],[6,46,7,46],[6,47,7,47],[6,48,7,48],[6,49,7,49],[6,50,7,50],[1,3,1,17],[1,19,1,21],[1,24,1,25],[1,27,1,48],[1,51,1,55],[0,2,0,17],[4,30,5,30],[4,25,7,25],[7,18,7,21],[2,27,2,39],[3,10,3,12],[3,16,3,17],[3,18,3,25],[3,27,3,54],[4,16,5,16],[4,10,5,10],[4,11,5,11],[6,41,7,41],[6,42,7,42],[6,43,7,43],[6,44,7,44],[6,45,7,45],[6,51,7,51],[6,37,7,37],[4,55,5,55],[6,53,7,53],[6,54,7,54],[6,35,7,35],[6,36,7,36],[4,18,4,21],[4,27,5,27],[6,52,7,52],[0,19,0,25],[0,27,0,54],[6,38,7,38],[6,39,7,39],[6,40,7,40]]}
[null,null,"Wednesday Daily Lunch Requirement Check\nGrades 9-12",null,null,null,null,null,null,null,null,null,null,null,null,null,null,null,null,"Scroll to the right to enter vegetable subgroup information",null,null,null,null,null,null,null,"Wednesday Vegetable Subgroup Data Entry\nGrades 9-12"]
[null,null,null,"The daily worksheet will perform daily requirement checks for the reimbursable meals offered each day. Requirements met are flagged \"Yes\" and the cell turns green. Requirements NOT met are flagged \"No\" and the cell turns red. \nNOTE: The top row is frozen to display the column headers as the daily meals are entered.\nGrains, whole grain rich, and meat/meat alternate oz equivalents are rounded down to the nearest quarter ounce.\nOnce you are finished selecting the meals offered each day, make sure to scroll to the right to enter milk type and vegetable subgroup information.",null,null,null,null,null,null,null,null,null,null,null,null,null,null,null,"Go to Instructions","'Menu Worksheet Instructions'!A1","'Menu Worksheet Instructions'!A1",null,null,"Go to Weekly Report","'Weekly Report'!A1",null,"Creditable Amount of Each Vegetable Subgroup Offered on Wednesday\nIn the first drop down box, select the largest amount of each vegetable subgroup offered to a student, then in the drop down boxes below, select the name and amount of each vegetable offered in the subgroup. \nIf you want to clear an entry, select the first blank in the drop down box.\nFor additional information on completing the data entry for the vegetable subgroup section, please refer to the Instructions tab. ",null,null,null,null,null,null,null,null,null,null,null,null,null,null,null,null,null,null,null,null,null,null,null,"Click here for help categorizing vegetables\n","https://foodbuyingguide.fns.usda.gov/files/Reports/USDA_FBG_Section2_Vegetables_YieldTable.pdf","https://foodbuyingguide.fns.usda.gov/files/Reports/USDA_FBG_Section2_Vegetables_YieldTable.pdf","https://foodbuyingguide.fns.usda.gov/files/Reports/USDA_FBG_Section2_Vegetables_YieldTable.pdf","https://foodbuyingguide.fns.usda.gov/files/Reports/USDA_FBG_Section2_Vegetables_YieldTable.pdf"]
[null,null,"Wednesday",null,null,null,null,null,null,null,null,null,null,null,null,null,null,null,null,null,null,null,null,null,null,null,null,"Check this box if you offered the weekly vegetable bar on Wednesday with NO CHANGES:",null,null,null,null,null,null,null,null,null,null,null,null,null,null,null,false]
[null,null,"1.  Meal Name\nSelect the reimbursable lunches offered for the day\nNote: You may not delete lines, if you want to clear a meal select the first blank in the drop down list",null,"2.  Meat/Meat Alternate (M/MA)",null,"3. Grains",null,null,null,"4. Fruit",null,null,"5. Vegetables",null,null,"6. Milk",null,"Milk Type\nCheck the type of milk below if it is offered to students on Wednesday. \nAll types of milk included.",null,null,null,null,null,null,null,null,"If you offered any vegetables in addition to the weekly vegetable bar, select the largest amount of the vegetable offered to a student and select the name of each vegetable under the appropriate subgroup.\nNOTE:  If you offered a vegetable bar on Wednesday that differs from the weekly offerings, all offerings and quantities for each vegetable subgroup must be selected in the section below.",null,null,null,null,null,null,null,null,null,null,null,null,null,null,null,null,null,null,null,null,null,null,null,null,null,null,null,"o_i","O_num"]
[null,null,null,null,"M/MA\noz equivalents","Daily M/MA Requirement Check\n2 oz equivalents","a. Grains\n oz equivalents\n ","Daily Grain Requirement Check\n2 oz equivalents","b. Whole Grain Rich\n oz equivalents\n ","c. Grain Based Dessert\n oz equivalents\n ","a. Fruit\ncups","Daily Fruit Requirement Check\n 1 cup","b. Fruit Juice \ncups","a. Vegetables\n cups","Daily Vegetable Requirement Check\n1 cup","b. Vegetable Juice \ncups","Milk\ncups","Daily Milk Requirement Check\n1 cup","Skim/fat-free, unflavored",null,null,null,null,true,null,{"$f":"IF(AND(X5=FALSE,X6=FALSE,X7=FALSE,X8=FALSE),\"\",IF(AND(X5=TRUE,X6=TRUE),\"Yes\",IF(AND(X5=TRUE,X7=TRUE),\"Yes\",IF(AND(X6=TRUE,X7=TRUE),\"Yes\",IF(AND(X5=TRUE,X8=TRUE),\"Yes\",IF(AND(X7=TRUE,X8=TRUE),\"Yes\",\"No\"))))))","v":null},null,"DARK GREEN vegetables offered on Wednesday",null,null,"Quantity (cups)",null,null,"Red/Orange vegetables offered on Wednesday",null,null,"Quantity (cups)",null,null,"Beans/Peas (legumes) offered on Wednesday",null,null,"Quantity (cups)",null,null,"Starchy vegetables offered on Wednesday",null,null,"Quantity (cups)",null,null,"Other vegetables offered on Wednesday",null,null,"Quantity (cups)",5,{"$f":"INDEX(Cups,BD5)","v":null}]
[null,null,null,null,null,null,null,null,null,null,null,null,null,null,null,null,null,null,"Skim/fat-free, flavored",null,null,null,null,false,null,null,null,null,"G_T",null,null,"G_I","G_num",null,"R_T",null,null,"R_i","r_num",null,"B_t",null,null,"B_i","B_num",null,"S_T",null,null,"s_i","s_num",null,"O_T"]
[4,{"$f":"INDEX(meals,A7)","v":null},1,null,{"$f":"IF(B7=0,\"\",FLOOR(VLOOKUP(A7,'All Meals'!$A$12:$V$61,4),0.25))","v":null},{"$f":"IF(B7=0,\"\",IF(E7=\"\",\"No\",IF(E7>=2,\"Yes\",\"No\")))","v":null},{"$f":"IF(B7=0,\"\",FLOOR(VLOOKUP(A7,'All Meals'!$A$12:$V$61,5),0.25))","v":null},{"$f":"IF(B7=0,\"\",IF(G7=\"\",\"No\",IF(G7>=2,\"Yes\",\"No\")))","v":null},{"$f":"IF(B7=0,\"\",FLOOR(VLOOKUP(A7,'All Meals'!$A$12:$V$61,6),0.25))","v":null},{"$f":"IF(B7=0,\"\",FLOOR(VLOOKUP(A7,'All Meals'!$A$12:$V$61,7),0.25))","v":null},{"$f":"IF(B7=0, \"\",VLOOKUP(A7,'All Meals'!$A$12:$V$61,10))","v":null},{"$f":"IF(B7=0,\"\",IF(K7=\"\",\"No\",IF(K7>=1,\"Yes\",\"No\")))","v":null},{"$f":"IF(B7=0, \"\",VLOOKUP(A7,'All Meals'!$A$12:$V$61,13))","v":null},{"$f":"IF(B7=0, \"\",VLOOKUP(A7,'All Meals'!$A$12:$V$61,16))","v":null},{"$f":"IF(B7=0,\"\",IF(N7=\"\",\"No\",IF(N7>=1,\"Yes\",\"No\")))","v":null},{"$f":"IF(B7=0, \"\",VLOOKUP(A7,'All Meals'!$A$12:$V$61,19))","v":null},{"$f":"IF(B7=0, \"\",VLOOKUP(A7,'All Meals'!$A$12:$V$61,20))","v":null},{"$f":"IF(B7=0,\"\",IF(Q7=\"\",\"No\",IF(Q7>=1,\"Yes\",\"No\")))","v":null},"Low-fat (1% or less), unflavored",null,null,null,null,false,null,null,null,"Largest amount of dark green vegetables to select on Wednesday",null,null,null,3,{"$f":"INDEX(Cups,AF7)","v":null},"Largest amount of red/orange vegetables to select on Wednesday",null,null,null,7,{"$f":"INDEX(Cups,AL7)","v":null},"Largest amount of beans/peas to select on Wednesday",null,null,null,1,{"$f":"INDEX(Cups,AR7)","v":null},"Largest amount of starchy vegetables to select on Wednesday",null,null,null,1,{"$f":"INDEX(Cups,AX7)","v":null},"Largest amount of other vegetables to select on Wednesday"]
[1,{"$f":"INDEX(meals,A8)","v":null},2,null,{"$f":"IF(B8=0,\"\",FLOOR(VLOOKUP(A8,'All Meals'!$A$12:$V$61,4),0.25))","v":null},{"$f":"IF(B8=0,\"\",IF(E8=\"\",\"No\",IF(E8>=2,\"Yes\",\"No\")))","v":null},{"$f":"IF(B8=0,\"\",FLOOR(VLOOKUP(A8,'All Meals'!$A$12:$V$61,5),0.25))","v":null},{"$f":"IF(B8=0,\"\",IF(G8=\"\",\"No\",IF(G8>=2,\"Yes\",\"No\")))","v":null},{"$f":"IF(B8=0,\"\",FLOOR(VLOOKUP(A8,'All Meals'!$A$12:$V$61,6),0.25))","v":null},{"$f":"IF(B8=0,\"\",FLOOR(VLOOKUP(A8,'All Meals'!$A$12:$V$61,7),0.25))","v":null},{"$f":"IF(B8=0, \"\",VLOOKUP(A8,'All Meals'!$A$12:$V$61,10))","v":null},{"$f":"IF(B8=0,\"\",IF(K8=\"\",\"No\",IF(K8>=1,\"Yes\",\"No\")))","v":null},{"$f":"IF(B8=0, \"\",VLOOKUP(A8,'All Meals'!$A$12:$V$61,13))","v":null},{"$f":"IF(B8=0, \"\",VLOOKUP(A8,'All Meals'!$A$12:$V$61,16))","v":null},{"$f":"IF(B8=0,\"\",IF(N8=\"\",\"No\",IF(N8>=1,\"Yes\",\"No\")))","v":null},{"$f":"IF(B8=0, \"\",VLOOKUP(A8,'All Meals'!$A$12:$V$61,19))","v":null},{"$f":"IF(B8=0, \"\",VLOOKUP(A8,'All Meals'!$A$12:$V$61,20))","v":null},{"$f":"IF(B8=0,\"\",IF(Q8=\"\",\"No\",IF(Q8>=1,\"Yes\",\"No\")))","v":null},"Low-fat (1% or less), flavored",null,null,null,null,false]
[1,{"$f":"INDEX(meals,A9)","v":null},3,null,{"$f":"IF(B9=0,\"\",FLOOR(VLOOKUP(A9,'All Meals'!$A$12:$V$61,4),0.25))","v":null},{"$f":"IF(B9=0,\"\",IF(E9=\"\",\"No\",IF(E9>=2,\"Yes\",\"No\")))","v":null},{"$f":"IF(B9=0,\"\",FLOOR(VLOOKUP(A9,'All Meals'!$A$12:$V$61,5),0.25))","v":null},{"$f":"IF(B9=0,\"\",IF(G9=\"\",\"No\",IF(G9>=2,\"Yes\",\"No\")))","v":null},{"$f":"IF(B9=0,\"\",FLOOR(VLOOKUP(A9,'All Meals'!$A$12:$V$61,6),0.25))","v":null},{"$f":"IF(B9=0,\"\",FLOOR(VLOOKUP(A9,'All Meals'!$A$12:$V$61,7),0.25))","v":null},{"$f":"IF(B9=0, \"\",VLOOKUP(A9,'All Meals'!$A$12:$V$61,10))","v":null},{"$f":"IF(B9=0,\"\",IF(K9=\"\",\"No\",IF(K9>=1,\"Yes\",\"No\")))","v":null},{"$f":"IF(B9=0, \"\",VLOOKUP(A9,'All Meals'!$A$12:$V$61,13))","v":null},{"$f":"IF(B9=0, \"\",VLOOKUP(A9,'All Meals'!$A$12:$V$61,16))","v":null},{"$f":"IF(B9=0,\"\",IF(N9=\"\",\"No\",IF(N9>=1,\"Yes\",\"No\")))","v":null},{"$f":"IF(B9=0, \"\",VLOOKUP(A9,'All Meals'!$A$12:$V$61,19))","v":null},{"$f":"IF(B9=0, \"\",VLOOKUP(A9,'All Meals'!$A$12:$V$61,20))","v":null},{"$f":"IF(B9=0,\"\",IF(Q9=\"\",\"No\",IF(Q9>=1,\"Yes\",\"No\")))","v":null},"Reduced fat (2% fat) or whole, unflavored and flavored",null,null,null,null,false,null,{"$f":"IF(X9=TRUE,\"No\",\"\")","v":null},null,{"$f":"IF(OR(COUNTIF(AC10:AC19, 12)>0, COUNTIF(AC10:AC19,2)>0, COUNTIF(AC10:AC19,4)>0, COUNTIF(AC10:AC19,10)>0, COUNTIF(AC10:AC19,15)>0, COUNTIF(AC10:AC19,17)>0,), \"Remember to enter CREDITABLE amounts of leafy greens!\", \"\")","v":null},null,null,null,null,null,{"$f":"IF(COUNTIF(AI10:AI19,10)>0,\"Remember to enter the CREDITABLE amount of tomato paste!\",\"\")","v":null},null,null,null,null,null,{"$f":"IF(SUM(AO10:AO19)>10, \"If crediting as a vegetable do not also credit as a meat/meat alternate\", \"\")","v":null}]
[1,{"$f":"INDEX(meals,A10)","v":null},4,null,{"$f":"IF(B10=0,\"\",FLOOR(VLOOKUP(A10,'All Meals'!$A$12:$V$61,4),0.25))","v":null},{"$f":"IF(B10=0,\"\",IF(E10=\"\",\"No\",IF(E10>=2,\"Yes\",\"No\")))","v":null},{"$f":"IF(B10=0,\"\",FLOOR(VLOOKUP(A10,'All Meals'!$A$12:$V$61,5),0.25))","v":null},{"$f":"IF(B10=0,\"\",IF(G10=\"\",\"No\",IF(G10>=2,\"Yes\",\"No\")))","v":null},{"$f":"IF(B10=0,\"\",FLOOR(VLOOKUP(A10,'All Meals'!$A$12:$V$61,6),0.25))","v":null},{"$f":"IF(B10=0,\"\",FLOOR(VLOOKUP(A10,'All Meals'!$A$12:$V$61,7),0.25))","v":null},{"$f":"IF(B10=0, \"\",VLOOKUP(A10,'All Meals'!$A$12:$V$61,10))","v":null},{"$f":"IF(B10=0,\"\",IF(K10=\"\",\"No\",IF(K10>=1,\"Yes\",\"No\")))","v":null},{"$f":"IF(B10=0, \"\",VLOOKUP(A10,'All Meals'!$A$12:$V$61,13))","v":null},{"$f":"IF(B10=0, \"\",VLOOKUP(A10,'All Meals'!$A$12:$V$61,16))","v":null},{"$f":"IF(B10=0,\"\",IF(N10=\"\",\"No\",IF(N10>=1,\"Yes\",\"No\")))","v":null},{"$f":"IF(B10=0, \"\",VLOOKUP(A10,'All Meals'!$A$12:$V$61,19))","v":null},{"$f":"IF(B10=0, \"\",VLOOKUP(A10,'All Meals'!$A$12:$V$61,20))","v":null},{"$f":"IF(B10=0,\"\",IF(Q10=\"\",\"No\",IF(Q10>=1,\"Yes\",\"No\")))","v":null},null,null,null,null,null,null,null,null,null,null,1,{"$f":"INDEX(GREEN,AC10)","v":null},null,1,{"$f":"IF(AD10=0,\"\",INDEX(Cups,AF10))","v":null},null,1,{"$f":"INDEX(RED,AI10)","v":null},null,1,{"$f":"IF(AJ10=0, \"\", INDEX(Cups,AL10))","v":null},null,1,{"$f":"INDEX(BEANS,AO10)","v":null},null,1,{"$f":"IF(AP10=0,\"\",INDEX(Cups,AR10))","v":null},null,1,{"$f":"INDEX(STARCHY,AU10)","v":null},null,1,{"$f":"IF(AV10=0,\"\",INDEX(Cups,AX10))","v":null},null,1,{"$f":"INDEX(OTHER,BA10)","v":null},null,1,{"$f":"IF(BB10=0,\"\",INDEX(Cups,BD10))","v":null}]
[1,{"$f":"INDEX(meals,A11)","v":null},5,null,{"$f":"IF(B11=0,\"\",FLOOR(VLOOKUP(A11,'All Meals'!$A$12:$V$61,4),0.25))","v":null},{"$f":"IF(B11=0,\"\",IF(E11=\"\",\"No\",IF(E11>=2,\"Yes\",\"No\")))","v":null},{"$f":"IF(B11=0,\"\",FLOOR(VLOOKUP(A11,'All Meals'!$A$12:$V$61,5),0.25))","v":null},{"$f":"IF(B11=0,\"\",IF(G11=\"\",\"No\",IF(G11>=2,\"Yes\",\"No\")))","v":null},{"$f":"IF(B11=0,\"\",FLOOR(VLOOKUP(A11,'All Meals'!$A$12:$V$61,6),0.25))","v":null},{"$f":"IF(B11=0,\"\",FLOOR(VLOOKUP(A11,'All Meals'!$A$12:$V$61,7),0.25))","v":null},{"$f":"IF(B11=0, \"\",VLOOKUP(A11,'All Meals'!$A$12:$V$61,10))","v":null},{"$f":"IF(B11=0,\"\",IF(K11=\"\",\"No\",IF(K11>=1,\"Yes\",\"No\")))","v":null},{"$f":"IF(B11=0, \"\",VLOOKUP(A11,'All Meals'!$A$12:$V$61,13))","v":null},{"$f":"IF(B11=0, \"\",VLOOKUP(A11,'All Meals'!$A$12:$V$61,16))","v":null},{"$f":"IF(B11=0,\"\",IF(N11=\"\",\"No\",IF(N11>=1,\"Yes\",\"No\")))","v":null},{"$f":"IF(B11=0, \"\",VLOOKUP(A11,'All Meals'!$A$12:$V$61,19))","v":null},{"$f":"IF(B11=0, \"\",VLOOKUP(A11,'All Meals'!$A$12:$V$61,20))","v":null},{"$f":"IF(B11=0,\"\",IF(Q11=\"\",\"No\",IF(Q11>=1,\"Yes\",\"No\")))","v":null},null,"OPTIONAL Tools to Assist in Fraction and Decimal Calculations",null,null,null,null,null,null,null,null,1,{"$f":"INDEX(GREEN,AC11)","v":null},null,1,{"$f":"IF(AD11=0,\"\",INDEX(Cups,AF11))","v":null},null,1,{"$f":"INDEX(RED,AI11)","v":null},null,1,{"$f":"IF(AJ11=0, \"\", INDEX(Cups,AL11))","v":null},null,1,{"$f":"INDEX(BEANS,AO11)","v":null},null,1,{"$f":"IF(AP11=0,\"\",INDEX(Cups,AR11))","v":null},null,1,{"$f":"INDEX(STARCHY,AU11)","v":null},null,1,{"$f":"IF(AV11=0,\"\",INDEX(Cups,AX11))","v":null},null,1,{"$f":"INDEX(OTHER,BA11)","v":null},null,1,{"$f":"IF(BB11=0,\"\",INDEX(Cups,BD11))","v":null}]
[1,{"$f":"INDEX(meals,A12)","v":null},6,null,{"$f":"IF(B12=0,\"\",FLOOR(VLOOKUP(A12,'All Meals'!$A$12:$V$61,4),0.25))","v":null},{"$f":"IF(B12=0,\"\",IF(E12=\"\",\"No\",IF(E12>=2,\"Yes\",\"No\")))","v":null},{"$f":"IF(B12=0,\"\",FLOOR(VLOOKUP(A12,'All Meals'!$A$12:$V$61,5),0.25))","v":null},{"$f":"IF(B12=0,\"\",IF(G12=\"\",\"No\",IF(G12>=2,\"Yes\",\"No\")))","v":null},{"$f":"IF(B12=0,\"\",FLOOR(VLOOKUP(A12,'All Meals'!$A$12:$V$61,6),0.25))","v":null},{"$f":"IF(B12=0,\"\",FLOOR(VLOOKUP(A12,'All Meals'!$A$12:$V$61,7),0.25))","v":null},{"$f":"IF(B12=0, \"\",VLOOKUP(A12,'All Meals'!$A$12:$V$61,10))","v":null},{"$f":"IF(B12=0,\"\",IF(K12=\"\",\"No\",IF(K12>=1,\"Yes\",\"No\")))","v":null},{"$f":"IF(B12=0, \"\",VLOOKUP(A12,'All Meals'!$A$12:$V$61,13))","v":null},{"$f":"IF(B12=0, \"\",VLOOKUP(A12,'All Meals'!$A$12:$V$61,16))","v":null},{"$f":"IF(B12=0,\"\",IF(N12=\"\",\"No\",IF(N12>=1,\"Yes\",\"No\")))","v":null},{"$f":"IF(B12=0, \"\",VLOOKUP(A12,'All Meals'!$A$12:$V$61,19))","v":null},{"$f":"IF(B12=0, \"\",VLOOKUP(A12,'All Meals'!$A$12:$V$61,20))","v":null},{"$f":"IF(B12=0,\"\",IF(Q12=\"\",\"No\",IF(Q12>=1,\"Yes\",\"No\")))","v":null},null,null,null,null,null,null,null,null,null,null,1,{"$f":"INDEX(GREEN,AC12)","v":null},null,1,{"$f":"IF(AD12=0,\"\",INDEX(Cups,AF12))","v":null},null,1,{"$f":"INDEX(RED,AI12)","v":null},null,1,{"$f":"IF(AJ12=0, \"\", INDEX(Cups,AL12))","v":null},null,1,{"$f":"INDEX(BEANS,AO12)","v":null},null,1,{"$f":"IF(AP12=0,\"\",INDEX(Cups,AR12))","v":null},null,1,{"$f":"INDEX(STARCHY,AU12)","v":null},null,1,{"$f":"IF(AV12=0,\"\",INDEX(Cups,AX12))","v":null},null,1,{"$f":"INDEX(OTHER,BA12)","v":null},null,1,{"$f":"IF(BB12=0,\"\",INDEX(Cups,BD12))","v":null}]
[1,{"$f":"INDEX(meals,A13)","v":null},7,null,{"$f":"IF(B13=0,\"\",FLOOR(VLOOKUP(A13,'All Meals'!$A$12:$V$61,4),0.25))","v":null},{"$f":"IF(B13=0,\"\",IF(E13=\"\",\"No\",IF(E13>=2,\"Yes\",\"No\")))","v":null},{"$f":"IF(B13=0,\"\",FLOOR(VLOOKUP(A13,'All Meals'!$A$12:$V$61,5),0.25))","v":null},{"$f":"IF(B13=0,\"\",IF(G13=\"\",\"No\",IF(G13>=2,\"Yes\",\"No\")))","v":null},{"$f":"IF(B13=0,\"\",FLOOR(VLOOKUP(A13,'All Meals'!$A$12:$V$61,6),0.25))","v":null},{"$f":"IF(B13=0,\"\",FLOOR(VLOOKUP(A13,'All Meals'!$A$12:$V$61,7),0.25))","v":null},{"$f":"IF(B13=0, \"\",VLOOKUP(A13,'All Meals'!$A$12:$V$61,10))","v":null},{"$f":"IF(B13=0,\"\",IF(K13=\"\",\"No\",IF(K13>=1,\"Yes\",\"No\")))","v":null},{"$f":"IF(B13=0, \"\",VLOOKUP(A13,'All Meals'!$A$12:$V$61,13))","v":null},{"$f":"IF(B13=0, \"\",VLOOKUP(A13,'All Meals'!$A$12:$V$61,16))","v":null},{"$f":"IF(B13=0,\"\",IF(N13=\"\",\"No\",IF(N13>=1,\"Yes\",\"No\")))","v":null},{"$f":"IF(B13=0, \"\",VLOOKUP(A13,'All Meals'!$A$12:$V$61,19))","v":null},{"$f":"IF(B13=0, \"\",VLOOKUP(A13,'All Meals'!$A$12:$V$61,20))","v":null},{"$f":"IF(B13=0,\"\",IF(Q13=\"\",\"No\",IF(Q13>=1,\"Yes\",\"No\")))","v":null},null,"Fraction Calculator: \nUse this calculator to add the number of cups.",null,null,1,{"$f":"INDEX(Cups,W13)","v":null},null,null,null,null,1,{"$f":"INDEX(GREEN,AC13)","v":null},null,1,{"$f":"IF(AD13=0,\"\",INDEX(Cups,AF13))","v":null},null,1,{"$f":"INDEX(RED,AI13)","v":null},null,1,{"$f":"IF(AJ13=0, \"\", INDEX(Cups,AL13))","v":null},null,1,{"$f":"INDEX(BEANS,AO13)","v":null},null,1,{"$f":"IF(AP13=0,\"\",INDEX(Cups,AR13))","v":null},null,1,{"$f":"INDEX(STARCHY,AU13)","v":null},null,1,{"$f":"IF(AV13=0,\"\",INDEX(Cups,AX13))","v":null},null,1,{"$f":"INDEX(OTHER,BA13)","v":null},null,1,{"$f":"IF(BB13=0,\"\",INDEX(Cups,BD13))","v":null}]
[1,{"$f":"INDEX(meals,A14)","v":null},8,null,{"$f":"IF(B14=0,\"\",FLOOR(VLOOKUP(A14,'All Meals'!$A$12:$V$61,4),0.25))","v":null},{"$f":"IF(B14=0,\"\",IF(E14=\"\",\"No\",IF(E14>=2,\"Yes\",\"No\")))","v":null},{"$f":"IF(B14=0,\"\",FLOOR(VLOOKUP(A14,'All Meals'!$A$12:$V$61,5),0.25))","v":null},{"$f":"IF(B14=0,\"\",IF(G14=\"\",\"No\",IF(G14>=2,\"Yes\",\"No\")))","v":null},{"$f":"IF(B14=0,\"\",FLOOR(VLOOKUP(A14,'All Meals'!$A$12:$V$61,6),0.25))","v":null},{"$f":"IF(B14=0,\"\",FLOOR(VLOOKUP(A14,'All Meals'!$A$12:$V$61,7),0.25))","v":null},{"$f":"IF(B14=0, \"\",VLOOKUP(A14,'All Meals'!$A$12:$V$61,10))","v":null},{"$f":"IF(B14=0,\"\",IF(K14=\"\",\"No\",IF(K14>=1,\"Yes\",\"No\")))","v":null},{"$f":"IF(B14=0, \"\",VLOOKUP(A14,'All Meals'!$A$12:$V$61,13))","v":null},{"$f":"IF(B14=0, \"\",VLOOKUP(A14,'All Meals'!$A$12:$V$61,16))","v":null},{"$f":"IF(B14=0,\"\",IF(N14=\"\",\"No\",IF(N14>=1,\"Yes\",\"No\")))","v":null},{"$f":"IF(B14=0, \"\",VLOOKUP(A14,'All Meals'!$A$12:$V$61,19))","v":null},{"$f":"IF(B14=0, \"\",VLOOKUP(A14,'All Meals'!$A$12:$V$61,20))","v":null},{"$f":"IF(B14=0,\"\",IF(Q14=\"\",\"No\",IF(Q14>=1,\"Yes\",\"No\")))","v":null},null,null,null,null,1,{"$f":"INDEX(Cups,W14)","v":null},null,null,null,null,1,{"$f":"INDEX(GREEN,AC14)","v":null},null,1,{"$f":"IF(AD14=0,\"\",INDEX(Cups,AF14))","v":null},null,1,{"$f":"INDEX(RED,AI14)","v":null},null,1,{"$f":"IF(AJ14=0, \"\", INDEX(Cups,AL14))","v":null},null,1,{"$f":"INDEX(BEANS,AO14)","v":null},null,1,{"$f":"IF(AP14=0,\"\",INDEX(Cups,AR14))","v":null},null,1,{"$f":"INDEX(STARCHY,AU14)","v":null},null,1,{"$f":"IF(AV14=0,\"\",INDEX(Cups,AX14))","v":null},null,1,{"$f":"INDEX(OTHER,BA14)","v":null},null,1,{"$f":"IF(BB14=0,\"\",INDEX(Cups,BD14))","v":null}]
[1,{"$f":"INDEX(meals,A15)","v":null},9,null,{"$f":"IF(B15=0,\"\",FLOOR(VLOOKUP(A15,'All Meals'!$A$12:$V$61,4),0.25))","v":null},{"$f":"IF(B15=0,\"\",IF(E15=\"\",\"No\",IF(E15>=2,\"Yes\",\"No\")))","v":null},{"$f":"IF(B15=0,\"\",FLOOR(VLOOKUP(A15,'All Meals'!$A$12:$V$61,5),0.25))","v":null},{"$f":"IF(B15=0,\"\",IF(G15=\"\",\"No\",IF(G15>=2,\"Yes\",\"No\")))","v":null},{"$f":"IF(B15=0,\"\",FLOOR(VLOOKUP(A15,'All Meals'!$A$12:$V$61,6),0.25))","v":null},{"$f":"IF(B15=0,\"\",FLOOR(VLOOKUP(A15,'All Meals'!$A$12:$V$61,7),0.25))","v":null},{"$f":"IF(B15=0, \"\",VLOOKUP(A15,'All Meals'!$A$12:$V$61,10))","v":null},{"$f":"IF(B15=0,\"\",IF(K15=\"\",\"No\",IF(K15>=1,\"Yes\",\"No\")))","v":null},{"$f":"IF(B15=0, \"\",VLOOKUP(A15,'All Meals'!$A$12:$V$61,13))","v":null},{"$f":"IF(B15=0, \"\",VLOOKUP(A15,'All Meals'!$A$12:$V$61,16))","v":null},{"$f":"IF(B15=0,\"\",IF(N15=\"\",\"No\",IF(N15>=1,\"Yes\",\"No\")))","v":null},{"$f":"IF(B15=0, \"\",VLOOKUP(A15,'All Meals'!$A$12:$V$61,19))","v":null},{"$f":"IF(B15=0, \"\",VLOOKUP(A15,'All Meals'!$A$12:$V$61,20))","v":null},{"$f":"IF(B15=0,\"\",IF(Q15=\"\",\"No\",IF(Q15>=1,\"Yes\",\"No\")))","v":null},null,null,null,null,1,{"$f":"INDEX(Cups,W15)","v":null},null,null,null,null,1,{"$f":"INDEX(GREEN,AC15)","v":null},null,1,{"$f":"IF(AD15=0,\"\",INDEX(Cups,AF15))","v":null},null,1,{"$f":"INDEX(RED,AI15)","v":null},null,1,{"$f":"IF(AJ15=0, \"\", INDEX(Cups,AL15))","v":null},null,1,{"$f":"INDEX(BEANS,AO15)","v":null},null,1,{"$f":"IF(AP15=0,\"\",INDEX(Cups,AR15))","v":null},null,1,{"$f":"INDEX(STARCHY,AU15)","v":null},null,1,{"$f":"IF(AV15=0,\"\",INDEX(Cups,AX15))","v":null},null,1,{"$f":"INDEX(OTHER,BA15)","v":null},null,1,{"$f":"IF(BB15=0,\"\",INDEX(Cups,BD15))","v":null}]
[1,{"$f":"INDEX(meals,A16)","v":null},10,null,{"$f":"IF(B16=0,\"\",FLOOR(VLOOKUP(A16,'All Meals'!$A$12:$V$61,4),0.25))","v":null},{"$f":"IF(B16=0,\"\",IF(E16=\"\",\"No\",IF(E16>=2,\"Yes\",\"No\")))","v":null},{"$f":"IF(B16=0,\"\",FLOOR(VLOOKUP(A16,'All Meals'!$A$12:$V$61,5),0.25))","v":null},{"$f":"IF(B16=0,\"\",IF(G16=\"\",\"No\",IF(G16>=2,\"Yes\",\"No\")))","v":null},{"$f":"IF(B16=0,\"\",FLOOR(VLOOKUP(A16,'All Meals'!$A$12:$V$61,6),0.25))","v":null},{"$f":"IF(B16=0,\"\",FLOOR(VLOOKUP(A16,'All Meals'!$A$12:$V$61,7),0.25))","v":null},{"$f":"IF(B16=0, \"\",VLOOKUP(A16,'All Meals'!$A$12:$V$61,10))","v":null},{"$f":"IF(B16=0,\"\",IF(K16=\"\",\"No\",IF(K16>=1,\"Yes\",\"No\")))","v":null},{"$f":"IF(B16=0, \"\",VLOOKUP(A16,'All Meals'!$A$12:$V$61,13))","v":null},{"$f":"IF(B16=0, \"\",VLOOKUP(A16,'All Meals'!$A$12:$V$61,16))","v":null},{"$f":"IF(B16=0,\"\",IF(N16=\"\",\"No\",IF(N16>=1,\"Yes\",\"No\")))","v":null},{"$f":"IF(B16=0, \"\",VLOOKUP(A16,'All Meals'!$A$12:$V$61,19))","v":null},{"$f":"IF(B16=0, \"\",VLOOKUP(A16,'All Meals'!$A$12:$V$61,20))","v":null},{"$f":"IF(B16=0,\"\",IF(Q16=\"\",\"No\",IF(Q16>=1,\"Yes\",\"No\")))","v":null},null,null,null,null,1,{"$f":"INDEX(Cups,W16)","v":null},null,null,null,null,1,{"$f":"INDEX(GREEN,AC16)","v":null},null,1,{"$f":"IF(AD16=0,\"\",INDEX(Cups,AF16))","v":null},null,1,{"$f":"INDEX(RED,AI16)","v":null},null,1,{"$f":"IF(AJ16=0, \"\", INDEX(Cups,AL16))","v":null},null,1,{"$f":"INDEX(BEANS,AO16)","v":null},null,1,{"$f":"IF(AP16=0,\"\",INDEX(Cups,AR16))","v":null},null,1,{"$f":"INDEX(STARCHY,AU16)","v":null},null,1,{"$f":"IF(AV16=0,\"\",INDEX(Cups,AX16))","v":null},null,1,{"$f":"INDEX(OTHER,BA16)","v":null},null,1,{"$f":"IF(BB16=0,\"\",INDEX(Cups,BD16))","v":null}]
[1,{"$f":"INDEX(meals,A17)","v":null},11,null,{"$f":"IF(B17=0,\"\",FLOOR(VLOOKUP(A17,'All Meals'!$A$12:$V$61,4),0.25))","v":null},{"$f":"IF(B17=0,\"\",IF(E17=\"\",\"No\",IF(E17>=2,\"Yes\",\"No\")))","v":null},{"$f":"IF(B17=0,\"\",FLOOR(VLOOKUP(A17,'All Meals'!$A$12:$V$61,5),0.25))","v":null},{"$f":"IF(B17=0,\"\",IF(G17=\"\",\"No\",IF(G17>=2,\"Yes\",\"No\")))","v":null},{"$f":"IF(B17=0,\"\",FLOOR(VLOOKUP(A17,'All Meals'!$A$12:$V$61,6),0.25))","v":null},{"$f":"IF(B17=0,\"\",FLOOR(VLOOKUP(A17,'All Meals'!$A$12:$V$61,7),0.25))","v":null},{"$f":"IF(B17=0, \"\",VLOOKUP(A17,'All Meals'!$A$12:$V$61,10))","v":null},{"$f":"IF(B17=0,\"\",IF(K17=\"\",\"No\",IF(K17>=1,\"Yes\",\"No\")))","v":null},{"$f":"IF(B17=0, \"\",VLOOKUP(A17,'All Meals'!$A$12:$V$61,13))","v":null},{"$f":"IF(B17=0, \"\",VLOOKUP(A17,'All Meals'!$A$12:$V$61,16))","v":null},{"$f":"IF(B17=0,\"\",IF(N17=\"\",\"No\",IF(N17>=1,\"Yes\",\"No\")))","v":null},{"$f":"IF(B17=0, \"\",VLOOKUP(A17,'All Meals'!$A$12:$V$61,19))","v":null},{"$f":"IF(B17=0, \"\",VLOOKUP(A17,'All Meals'!$A$12:$V$61,20))","v":null},{"$f":"IF(B17=0,\"\",IF(Q17=\"\",\"No\",IF(Q17>=1,\"Yes\",\"No\")))","v":null},null,null,null,null,1,{"$f":"INDEX(Cups,W17)","v":null},null,null,null,null,1,{"$f":"INDEX(GREEN,AC17)","v":null},null,1,{"$f":"IF(AD17=0,\"\",INDEX(Cups,AF17))","v":null},null,1,{"$f":"INDEX(RED,AI17)","v":null},null,1,{"$f":"IF(AJ17=0, \"\", INDEX(Cups,AL17))","v":null},null,1,{"$f":"INDEX(BEANS,AO17)","v":null},null,1,{"$f":"IF(AP17=0,\"\",INDEX(Cups,AR17))","v":null},null,1,{"$f":"INDEX(STARCHY,AU17)","v":null},null,1,{"$f":"IF(AV17=0,\"\",INDEX(Cups,AX17))","v":null},null,1,{"$f":"INDEX(OTHER,BA17)","v":null},null,1,{"$f":"IF(BB17=0,\"\",INDEX(Cups,BD17))","v":null}]
[1,{"$f":"INDEX(meals,A18)","v":null},12,null,{"$f":"IF(B18=0,\"\",FLOOR(VLOOKUP(A18,'All Meals'!$A$12:$V$61,4),0.25))","v":null},{"$f":"IF(B18=0,\"\",IF(E18=\"\",\"No\",IF(E18>=2,\"Yes\",\"No\")))","v":null},{"$f":"IF(B18=0,\"\",FLOOR(VLOOKUP(A18,'All Meals'!$A$12:$V$61,5),0.25))","v":null},{"$f":"IF(B18=0,\"\",IF(G18=\"\",\"No\",IF(G18>=2,\"Yes\",\"No\")))","v":null},{"$f":"IF(B18=0,\"\",FLOOR(VLOOKUP(A18,'All Meals'!$A$12:$V$61,6),0.25))","v":null},{"$f":"IF(B18=0,\"\",FLOOR(VLOOKUP(A18,'All Meals'!$A$12:$V$61,7),0.25))","v":null},{"$f":"IF(B18=0, \"\",VLOOKUP(A18,'All Meals'!$A$12:$V$61,10))","v":null},{"$f":"IF(B18=0,\"\",IF(K18=\"\",\"No\",IF(K18>=1,\"Yes\",\"No\")))","v":null},{"$f":"IF(B18=0, \"\",VLOOKUP(A18,'All Meals'!$A$12:$V$61,13))","v":null},{"$f":"IF(B18=0, \"\",VLOOKUP(A18,'All Meals'!$A$12:$V$61,16))","v":null},{"$f":"IF(B18=0,\"\",IF(N18=\"\",\"No\",IF(N18>=1,\"Yes\",\"No\")))","v":null},{"$f":"IF(B18=0, \"\",VLOOKUP(A18,'All Meals'!$A$12:$V$61,19))","v":null},{"$f":"IF(B18=0, \"\",VLOOKUP(A18,'All Meals'!$A$12:$V$61,20))","v":null},{"$f":"IF(B18=0,\"\",IF(Q18=\"\",\"No\",IF(Q18>=1,\"Yes\",\"No\")))","v":null},null,null,null,null,null,null,{"$f":"SUM(X13:X17)","v":null},null,null,null,1,{"$f":"INDEX(GREEN,AC18)","v":null},null,1,{"$f":"IF(AD18=0,\"\",INDEX(Cups,AF18))","v":null},null,1,{"$f":"INDEX(RED,AI18)","v":null},null,1,{"$f":"IF(AJ18=0, \"\", INDEX(Cups,AL18))","v":null},null,1,{"$f":"INDEX(BEANS,AO18)","v":null},null,1,{"$f":"IF(AP18=0,\"\",INDEX(Cups,AR18))","v":null},null,1,{"$f":"INDEX(STARCHY,AU18)","v":null},null,1,{"$f":"IF(AV18=0,\"\",INDEX(Cups,AX18))","v":null},null,1,{"$f":"INDEX(OTHER,BA18)","v":null},null,1,{"$f":"IF(BB18=0,\"\",INDEX(Cups,BD18))","v":null}]
[1,{"$f":"INDEX(meals,A19)","v":null},13,null,{"$f":"IF(B19=0,\"\",FLOOR(VLOOKUP(A19,'All Meals'!$A$12:$V$61,4),0.25))","v":null},{"$f":"IF(B19=0,\"\",IF(E19=\"\",\"No\",IF(E19>=2,\"Yes\",\"No\")))","v":null},{"$f":"IF(B19=0,\"\",FLOOR(VLOOKUP(A19,'All Meals'!$A$12:$V$61,5),0.25))","v":null},{"$f":"IF(B19=0,\"\",IF(G19=\"\",\"No\",IF(G19>=2,\"Yes\",\"No\")))","v":null},{"$f":"IF(B19=0,\"\",FLOOR(VLOOKUP(A19,'All Meals'!$A$12:$V$61,6),0.25))","v":null},{"$f":"IF(B19=0,\"\",FLOOR(VLOOKUP(A19,'All Meals'!$A$12:$V$61,7),0.25))","v":null},{"$f":"IF(B19=0, \"\",VLOOKUP(A19,'All Meals'!$A$12:$V$61,10))","v":null},{"$f":"IF(B19=0,\"\",IF(K19=\"\",\"No\",IF(K19>=1,\"Yes\",\"No\")))","v":null},{"$f":"IF(B19=0, \"\",VLOOKUP(A19,'All Meals'!$A$12:$V$61,13))","v":null},{"$f":"IF(B19=0, \"\",VLOOKUP(A19,'All Meals'!$A$12:$V$61,16))","v":null},{"$f":"IF(B19=0,\"\",IF(N19=\"\",\"No\",IF(N19>=1,\"Yes\",\"No\")))","v":null},{"$f":"IF(B19=0, \"\",VLOOKUP(A19,'All Meals'!$A$12:$V$61,19))","v":null},{"$f":"IF(B19=0, \"\",VLOOKUP(A19,'All Meals'!$A$12:$V$61,20))","v":null},{"$f":"IF(B19=0,\"\",IF(Q19=\"\",\"No\",IF(Q19>=1,\"Yes\",\"No\")))","v":null},null,"Decimal/Fraction Converter\n(Rounded down to the nearest 1/8)",null,null,null,null,null,null,null,null,1,{"$f":"INDEX(GREEN,AC19)","v":null},null,1,{"$f":"IF(AD19=0,\"\",INDEX(Cups,AF19))","v":null},null,1,{"$f":"INDEX(RED,AI19)","v":null},null,1,{"$f":"IF(AJ19=0, \"\", INDEX(Cups,AL19))","v":null},null,1,{"$f":"INDEX(BEANS,AO19)","v":null},null,1,{"$f":"IF(AP19=0,\"\",INDEX(Cups,AR19))","v":null},null,1,{"$f":"INDEX(STARCHY,AU19)","v":null},null,1,{"$f":"IF(AV19=0,\"\",INDEX(Cups,AX19))","v":null},null,1,{"$f":"INDEX(OTHER,BA19)","v":null},null,1,{"$f":"IF(BB19=0,\"\",INDEX(Cups,BD19))","v":null}]
[1,{"$f":"INDEX(meals,A20)","v":null},14,null,{"$f":"IF(B20=0,\"\",FLOOR(VLOOKUP(A20,'All Meals'!$A$12:$V$61,4),0.25))","v":null},{"$f":"IF(B20=0,\"\",IF(E20=\"\",\"No\",IF(E20>=2,\"Yes\",\"No\")))","v":null},{"$f":"IF(B20=0,\"\",FLOOR(VLOOKUP(A20,'All Meals'!$A$12:$V$61,5),0.25))","v":null},{"$f":"IF(B20=0,\"\",IF(G20=\"\",\"No\",IF(G20>=2,\"Yes\",\"No\")))","v":null},{"$f":"IF(B20=0,\"\",FLOOR(VLOOKUP(A20,'All Meals'!$A$12:$V$61,6),0.25))","v":null},{"$f":"IF(B20=0,\"\",FLOOR(VLOOKUP(A20,'All Meals'!$A$12:$V$61,7),0.25))","v":null},{"$f":"IF(B20=0, \"\",VLOOKUP(A20,'All Meals'!$A$12:$V$61,10))","v":null},{"$f":"IF(B20=0,\"\",IF(K20=\"\",\"No\",IF(K20>=1,\"Yes\",\"No\")))","v":null},{"$f":"IF(B20=0, \"\",VLOOKUP(A20,'All Meals'!$A$12:$V$61,13))","v":null},{"$f":"IF(B20=0, \"\",VLOOKUP(A20,'All Meals'!$A$12:$V$61,16))","v":null},{"$f":"IF(B20=0,\"\",IF(N20=\"\",\"No\",IF(N20>=1,\"Yes\",\"No\")))","v":null},{"$f":"IF(B20=0, \"\",VLOOKUP(A20,'All Meals'!$A$12:$V$61,19))","v":null},{"$f":"IF(B20=0, \"\",VLOOKUP(A20,'All Meals'!$A$12:$V$61,20))","v":null},{"$f":"IF(B20=0,\"\",IF(Q20=\"\",\"No\",IF(Q20>=1,\"Yes\",\"No\")))","v":null},null,"Enter the decimal you wish to convert to a fraction in the box:",null,null,null,null,null,null,null,{"$f":"IF(OR(COUNTIF(AC10:AC19,18)>0, COUNTIF(AI10:AI19, 13)>0, COUNTIF(AO10:AO19, 12)>0, COUNTIF(AU10:AU19, 11)>0,COUNTIF(BA10:BA19,34)>0, COUNTIF(BA10:BA19,35)>0, COUNTIF(BA10:BA19,36)>0,COUNTIF(BA10:BA19,37)>0, COUNTIF(BA10:BA19,38)>0, COUNTIF(BA10:BA19,39)>0), \"You entered an unspecified or extra other vegetable above, please enter the name of the vegetable in the appropriate subgroup below\", \"\")","v":null}]
[1,{"$f":"INDEX(meals,A21)","v":null},15,null,{"$f":"IF(B21=0,\"\",FLOOR(VLOOKUP(A21,'All Meals'!$A$12:$V$61,4),0.25))","v":null},{"$f":"IF(B21=0,\"\",IF(E21=\"\",\"No\",IF(E21>=2,\"Yes\",\"No\")))","v":null},{"$f":"IF(B21=0,\"\",FLOOR(VLOOKUP(A21,'All Meals'!$A$12:$V$61,5),0.25))","v":null},{"$f":"IF(B21=0,\"\",IF(G21=\"\",\"No\",IF(G21>=2,\"Yes\",\"No\")))","v":null},{"$f":"IF(B21=0,\"\",FLOOR(VLOOKUP(A21,'All Meals'!$A$12:$V$61,6),0.25))","v":null},{"$f":"IF(B21=0,\"\",FLOOR(VLOOKUP(A21,'All Meals'!$A$12:$V$61,7),0.25))","v":null},{"$f":"IF(B21=0, \"\",VLOOKUP(A21,'All Meals'!$A$12:$V$61,10))","v":null},{"$f":"IF(B21=0,\"\",IF(K21=\"\",\"No\",IF(K21>=1,\"Yes\",\"No\")))","v":null},{"$f":"IF(B21=0, \"\",VLOOKUP(A21,'All Meals'!$A$12:$V$61,13))","v":null},{"$f":"IF(B21=0, \"\",VLOOKUP(A21,'All Meals'!$A$12:$V$61,16))","v":null},{"$f":"IF(B21=0,\"\",IF(N21=\"\",\"No\",IF(N21>=1,\"Yes\",\"No\")))","v":null},{"$f":"IF(B21=0, \"\",VLOOKUP(A21,'All Meals'!$A$12:$V$61,19))","v":null},{"$f":"IF(B21=0, \"\",VLOOKUP(A21,'All Meals'!$A$12:$V$61,20))","v":null},{"$f":"IF(B21=0,\"\",IF(Q21=\"\",\"No\",IF(Q21>=1,\"Yes\",\"No\")))","v":null},null,null,null,null,null,null,null,null,null,"Unspecified Dark Green Vegetables",null,null,null,null,null,"Unspecified Red/Orange Vegetables",null,null,null,null,null,"Unspecified Beans/Peas",null,null,null,null,null,"Unspecified Starchy Vegetables",null,null,null,null,null,"Unspecified Other Vegetables"]
[1,{"$f":"INDEX(meals,A22)","v":null},16,null,{"$f":"IF(B22=0,\"\",FLOOR(VLOOKUP(A22,'All Meals'!$A$12:$V$61,4),0.25))","v":null},{"$f":"IF(B22=0,\"\",IF(E22=\"\",\"No\",IF(E22>=2,\"Yes\",\"No\")))","v":null},{"$f":"IF(B22=0,\"\",FLOOR(VLOOKUP(A22,'All Meals'!$A$12:$V$61,5),0.25))","v":null},{"$f":"IF(B22=0,\"\",IF(G22=\"\",\"No\",IF(G22>=2,\"Yes\",\"No\")))","v":null},{"$f":"IF(B22=0,\"\",FLOOR(VLOOKUP(A22,'All Meals'!$A$12:$V$61,6),0.25))","v":null},{"$f":"IF(B22=0,\"\",FLOOR(VLOOKUP(A22,'All Meals'!$A$12:$V$61,7),0.25))","v":null},{"$f":"IF(B22=0, \"\",VLOOKUP(A22,'All Meals'!$A$12:$V$61,10))","v":null},{"$f":"IF(B22=0,\"\",IF(K22=\"\",\"No\",IF(K22>=1,\"Yes\",\"No\")))","v":null},{"$f":"IF(B22=0, \"\",VLOOKUP(A22,'All Meals'!$A$12:$V$61,13))","v":null},{"$f":"IF(B22=0, \"\",VLOOKUP(A22,'All Meals'!$A$12:$V$61,16))","v":null},{"$f":"IF(B22=0,\"\",IF(N22=\"\",\"No\",IF(N22>=1,\"Yes\",\"No\")))","v":null},{"$f":"IF(B22=0, \"\",VLOOKUP(A22,'All Meals'!$A$12:$V$61,19))","v":null},{"$f":"IF(B22=0, \"\",VLOOKUP(A22,'All Meals'!$A$12:$V$61,20))","v":null},{"$f":"IF(B22=0,\"\",IF(Q22=\"\",\"No\",IF(Q22>=1,\"Yes\",\"No\")))","v":null},null,"The decimal entered above has been converted to the following fraction:",null,null,null,null,{"$f":"FLOOR(Y20,0.125)","v":null}]
[1,{"$f":"INDEX(meals,A23)","v":null},17,null,{"$f":"IF(B23=0,\"\",FLOOR(VLOOKUP(A23,'All Meals'!$A$12:$V$61,4),0.25))","v":null},{"$f":"IF(B23=0,\"\",IF(E23=\"\",\"No\",IF(E23>=2,\"Yes\",\"No\")))","v":null},{"$f":"IF(B23=0,\"\",FLOOR(VLOOKUP(A23,'All Meals'!$A$12:$V$61,5),0.25))","v":null},{"$f":"IF(B23=0,\"\",IF(G23=\"\",\"No\",IF(G23>=2,\"Yes\",\"No\")))","v":null},{"$f":"IF(B23=0,\"\",FLOOR(VLOOKUP(A23,'All Meals'!$A$12:$V$61,6),0.25))","v":null},{"$f":"IF(B23=0,\"\",FLOOR(VLOOKUP(A23,'All Meals'!$A$12:$V$61,7),0.25))","v":null},{"$f":"IF(B23=0, \"\",VLOOKUP(A23,'All Meals'!$A$12:$V$61,10))","v":null},{"$f":"IF(B23=0,\"\",IF(K23=\"\",\"No\",IF(K23>=1,\"Yes\",\"No\")))","v":null},{"$f":"IF(B23=0, \"\",VLOOKUP(A23,'All Meals'!$A$12:$V$61,13))","v":null},{"$f":"IF(B23=0, \"\",VLOOKUP(A23,'All Meals'!$A$12:$V$61,16))","v":null},{"$f":"IF(B23=0,\"\",IF(N23=\"\",\"No\",IF(N23>=1,\"Yes\",\"No\")))","v":null},{"$f":"IF(B23=0, \"\",VLOOKUP(A23,'All Meals'!$A$12:$V$61,19))","v":null},{"$f":"IF(B23=0, \"\",VLOOKUP(A23,'All Meals'!$A$12:$V$61,20))","v":null},{"$f":"IF(B23=0,\"\",IF(Q23=\"\",\"No\",IF(Q23>=1,\"Yes\",\"No\")))","v":null}]
[1,{"$f":"INDEX(meals,A24)","v":null},18,null,{"$f":"IF(B24=0,\"\",FLOOR(VLOOKUP(A24,'All Meals'!$A$12:$V$61,4),0.25))","v":null},{"$f":"IF(B24=0,\"\",IF(E24=\"\",\"No\",IF(E24>=2,\"Yes\",\"No\")))","v":null},{"$f":"IF(B24=0,\"\",FLOOR(VLOOKUP(A24,'All Meals'!$A$12:$V$61,5),0.25))","v":null},{"$f":"IF(B24=0,\"\",IF(G24=\"\",\"No\",IF(G24>=2,\"Yes\",\"No\")))","v":null},{"$f":"IF(B24=0,\"\",FLOOR(VLOOKUP(A24,'All Meals'!$A$12:$V$61,6),0.25))","v":null},{"$f":"IF(B24=0,\"\",FLOOR(VLOOKUP(A24,'All Meals'!$A$12:$V$61,7),0.25))","v":null},{"$f":"IF(B24=0, \"\",VLOOKUP(A24,'All Meals'!$A$12:$V$61,10))","v":null},{"$f":"IF(B24=0,\"\",IF(K24=\"\",\"No\",IF(K24>=1,\"Yes\",\"No\")))","v":null},{"$f":"IF(B24=0, \"\",VLOOKUP(A24,'All Meals'!$A$12:$V$61,13))","v":null},{"$f":"IF(B24=0, \"\",VLOOKUP(A24,'All Meals'!$A$12:$V$61,16))","v":null},{"$f":"IF(B24=0,\"\",IF(N24=\"\",\"No\",IF(N24>=1,\"Yes\",\"No\")))","v":null},{"$f":"IF(B24=0, \"\",VLOOKUP(A24,'All Meals'!$A$12:$V$61,19))","v":null},{"$f":"IF(B24=0, \"\",VLOOKUP(A24,'All Meals'!$A$12:$V$61,20))","v":null},{"$f":"IF(B24=0,\"\",IF(Q24=\"\",\"No\",IF(Q24>=1,\"Yes\",\"No\")))","v":null}]
[1,{"$f":"INDEX(meals,A25)","v":null},19,null,{"$f":"IF(B25=0,\"\",FLOOR(VLOOKUP(A25,'All Meals'!$A$12:$V$61,4),0.25))","v":null},{"$f":"IF(B25=0,\"\",IF(E25=\"\",\"No\",IF(E25>=2,\"Yes\",\"No\")))","v":null},{"$f":"IF(B25=0,\"\",FLOOR(VLOOKUP(A25,'All Meals'!$A$12:$V$61,5),0.25))","v":null},{"$f":"IF(B25=0,\"\",IF(G25=\"\",\"No\",IF(G25>=2,\"Yes\",\"No\")))","v":null},{"$f":"IF(B25=0,\"\",FLOOR(VLOOKUP(A25,'All Meals'!$A$12:$V$61,6),0.25))","v":null},{"$f":"IF(B25=0,\"\",FLOOR(VLOOKUP(A25,'All Meals'!$A$12:$V$61,7),0.25))","v":null},{"$f":"IF(B25=0, \"\",VLOOKUP(A25,'All Meals'!$A$12:$V$61,10))","v":null},{"$f":"IF(B25=0,\"\",IF(K25=\"\",\"No\",IF(K25>=1,\"Yes\",\"No\")))","v":null},{"$f":"IF(B25=0, \"\",VLOOKUP(A25,'All Meals'!$A$12:$V$61,13))","v":null},{"$f":"IF(B25=0, \"\",VLOOKUP(A25,'All Meals'!$A$12:$V$61,16))","v":null},{"$f":"IF(B25=0,\"\",IF(N25=\"\",\"No\",IF(N25>=1,\"Yes\",\"No\")))","v":null},{"$f":"IF(B25=0, \"\",VLOOKUP(A25,'All Meals'!$A$12:$V$61,19))","v":null},{"$f":"IF(B25=0, \"\",VLOOKUP(A25,'All Meals'!$A$12:$V$61,20))","v":null},{"$f":"IF(B25=0,\"\",IF(Q25=\"\",\"No\",IF(Q25>=1,\"Yes\",\"No\")))","v":null}]
[1,{"$f":"INDEX(meals,A26)","v":null},20,null,{"$f":"IF(B26=0,\"\",FLOOR(VLOOKUP(A26,'All Meals'!$A$12:$V$61,4),0.25))","v":null},{"$f":"IF(B26=0,\"\",IF(E26=\"\",\"No\",IF(E26>=2,\"Yes\",\"No\")))","v":null},{"$f":"IF(B26=0,\"\",FLOOR(VLOOKUP(A26,'All Meals'!$A$12:$V$61,5),0.25))","v":null},{"$f":"IF(B26=0,\"\",IF(G26=\"\",\"No\",IF(G26>=2,\"Yes\",\"No\")))","v":null},{"$f":"IF(B26=0,\"\",FLOOR(VLOOKUP(A26,'All Meals'!$A$12:$V$61,6),0.25))","v":null},{"$f":"IF(B26=0,\"\",FLOOR(VLOOKUP(A26,'All Meals'!$A$12:$V$61,7),0.25))","v":null},{"$f":"IF(B26=0, \"\",VLOOKUP(A26,'All Meals'!$A$12:$V$61,10))","v":null},{"$f":"IF(B26=0,\"\",IF(K26=\"\",\"No\",IF(K26>=1,\"Yes\",\"No\")))","v":null},{"$f":"IF(B26=0, \"\",VLOOKUP(A26,'All Meals'!$A$12:$V$61,13))","v":null},{"$f":"IF(B26=0, \"\",VLOOKUP(A26,'All Meals'!$A$12:$V$61,16))","v":null},{"$f":"IF(B26=0,\"\",IF(N26=\"\",\"No\",IF(N26>=1,\"Yes\",\"No\")))","v":null},{"$f":"IF(B26=0, \"\",VLOOKUP(A26,'All Meals'!$A$12:$V$61,19))","v":null},{"$f":"IF(B26=0, \"\",VLOOKUP(A26,'All Meals'!$A$12:$V$61,20))","v":null},{"$f":"IF(B26=0,\"\",IF(Q26=\"\",\"No\",IF(Q26>=1,\"Yes\",\"No\")))","v":null}]

{"sheet":"Thursday","index":9,"n_rows":26,"n_cols":57,"rows_kept":26,"cut":false,"hidden":false,"merged":[[3,2,5,3],[2,2,2,25],[3,13,3,15],[4,15,5,15],[3,4,3,5],[4,4,5,4],[4,5,5,5],[3,6,3,9],[4,6,5,6],[4,7,5,7],[4,8,5,8],[4,9,5,9],[4,14,5,14],[4,17,5,17],[4,12,5,12],[4,13,5,13],[25,27,25,30],[25,33,25,36],[25,39,25,42],[25,45,25,48],[21,19,22,21],[21,24,22,25],[21,45,21,48],[18,19,18,25],[25,51,25,54],[23,27,23,30],[23,33,23,36],[23,39,23,42],[23,45,23,48],[23,51,23,54],[24,27,24,30],[24,33,24,36],[24,39,24,42],[24,45,24,48],[24,51,24,54],[21,51,21,54],[22,27,22,30],[22,33,22,36],[22,39,22,42],[22,45,22,48],[22,51,22,54],[21,27,21,30],[21,33,21,36],[21,39,21,42],[19,19,20,21],[19,24,20,25],[19,27,19,54],[20,27,20,30],[20,33,20,36],[20,39,20,42],[20,45,20,48],[20,51,20,54],[8,51,8,54],[10,19,11,25],[12,19,17,21],[12,24,12,25],[13,24,13,25],[14,24,14,25],[15,24,15,25],[16,24,16,25],[17,24,17,25],[8,18,8,21],[8,27,8,30],[8,33,8,36],[8,39,8,42],[8,45,8,48],[4,56,5,56],[5,18,5,21],[6,18,6,21],[6,27,7,27],[6,28,7,28],[6,29,7,29],[6,30,7,30],[6,31,7,31],[6,34,7,34],[4,39,5,39],[4,42,5,42],[4,45,5,45],[4,48,5,48],[4,51,5,51],[4,54,5,54],[4,33,5,33],[6,32,7,32],[6,33,7,33],[4,36,5,36],[6,46,7,46],[6,47,7,47],[6,48,7,48],[6,49,7,49],[6,50,7,50],[1,3,1,17],[1,19,1,21],[1,24,1,25],[1,27,1,48],[1,51,1,55],[0,2,0,17],[4,30,5,30],[4,25,7,25],[7,18,7,21],[2,27,2,39],[3,10,3,12],[3,16,3,17],[3,18,3,25],[3,27,3,54],[4,16,5,16],[4,10,5,10],[4,11,5,11],[6,41,7,41],[6,42,7,42],[6,43,7,43],[6,44,7,44],[6,45,7,45],[6,51,7,51],[6,37,7,37],[4,55,5,55],[6,53,7,53],[6,54,7,54],[6,35,7,35],[6,36,7,36],[4,18,4,21],[4,27,5,27],[6,52,7,52],[0,19,0,25],[0,27,0,54],[6,38,7,38],[6,39,7,39],[6,40,7,40]]}
[null,null,"Thursday Daily Lunch Requirement Check\nGrades 9-12",null,null,null,null,null,null,null,null,null,null,null,null,null,null,null,null,"Scroll to the right to enter vegetable subgroup information",null,null,null,null,null,null,null,"Thursday Vegetable Subgroup Data Entry\nGrades 9-12"]
[null,null,null,"The daily worksheet will perform daily requirement checks for the reimbursable meals offered each day. Requirements met are flagged \"Yes\" and the cell turns green. Requirements NOT met are flagged \"No\" and the cell turns red. \nNOTE: The top row is frozen to display the column headers as the daily meals are entered.\nGrains, whole grain rich, and meat/meat alternate oz equivalents are rounded down to the nearest quarter ounce.\nOnce you are finished selecting the meals offered each day, make sure to scroll to the right to enter milk type and vegetable subgroup information.",null,null,null,null,null,null,null,null,null,null,null,null,null,null,null,"Go to Instructions","'Menu Worksheet Instructions'!A1","'Menu Worksheet Instructions'!A1",null,null,"Go to Weekly Report","'Weekly Report'!A1",null,"Creditable Amount of Each Vegetable Subgroup Offered on Thursday\nIn the first drop down box, select the largest amount of each vegetable subgroup offered to a student, then in the drop down boxes below, select the name and amount of each vegetable offered in the subgroup. \nIf you want to clear an entry, select the first blank in the drop down box.\nFor additional information on completing the data entry for the vegetable subgroup section, please refer to the Instructions tab. ",null,null,null,null,null,null,null,null,null,null,null,null,null,null,null,null,null,null,null,null,null,null,null,"Click here for help categorizing vegetables\n","https://foodbuyingguide.fns.usda.gov/files/Reports/USDA_FBG_Section2_Vegetables_YieldTable.pdf","https://foodbuyingguide.fns.usda.gov/files/Reports/USDA_FBG_Section2_Vegetables_YieldTable.pdf","https://foodbuyingguide.fns.usda.gov/files/Reports/USDA_FBG_Section2_Vegetables_YieldTable.pdf","https://foodbuyingguide.fns.usda.gov/files/Reports/USDA_FBG_Section2_Vegetables_YieldTable.pdf"]
[null,null,"Thursday",null,null,null,null,null,null,null,null,null,null,null,null,null,null,null,null,null,null,null,null,null,null,null,null,"Check this box if you offered the weekly vegetable bar on Thursday with NO CHANGES:",null,null,null,null,null,null,null,null,null,null,null,null,null,null,null,false]
[null,null,"1.  Meal Name\nSelect the reimbursable lunches offered for the day\nNote: You may not delete lines, if you want to clear a meal select the first blank in the drop down list",null,"2.  Meat/Meat Alternate (M/MA)",null,"3. Grains",null,null,null,"4. Fruit",null,null,"5. Vegetables",null,null,"6. Milk",null,"Milk Type\nCheck the type of milk below if it is offered to students on Thursday. \nAll types of milk included.",null,null,null,null,null,null,null,null,"If you offered any vegetables in addition to the weekly vegetable bar, select the largest amount of the vegetable offered to a student and select the name of each vegetable under the appropriate subgroup.\nNOTE:  If you offered a vegetable bar on Thursday that differs from the weekly offerings, all offerings and quantities for each vegetable subgroup must be selected in the section below.",null,null,null,null,null,null,null,null,null,null,null,null,null,null,null,null,null,null,null,null,null,null,null,null,null,null,null,"o_i","O_num"]
[null,null,null,null,"M/MA\noz equivalents","Daily M/MA Requirement Check\n2 oz equivalents","a. Grains\n oz equivalents\n","Daily Grain Requirement Check\n2 oz equivalents","b. Whole Grain Rich\n oz equivalents","c. Grain Based Dessert\n oz equivalents\n ","a. Fruit\ncups","Daily Fruit Requirement Check\n 1 cup","b. Fruit Juice \ncups","a. Vegetables\n cups","Daily Vegetable Requirement Check\n1 cup","b. Vegetable Juice \ncups","Milk\ncups","Daily Milk Requirement Check\n1 cup","Skim/fat-free, unflavored",null,null,null,null,true,null,{"$f":"IF(AND(X5=FALSE,X6=FALSE,X7=FALSE,X8=FALSE),\"\",IF(AND(X5=TRUE,X6=TRUE),\"Yes\",IF(AND(X5=TRUE,X7=TRUE),\"Yes\",IF(AND(X6=TRUE,X7=TRUE),\"Yes\",IF(AND(X5=TRUE,X8=TRUE),\"Yes\",IF(AND(X7=TRUE,X8=TRUE),\"Yes\",\"No\"))))))","v":null},null,"DARK GREEN vegetables offered on Thursday",null,null,"Quantity (cups)",null,null,"Red/Orange vegetables offered on Thursday",null,null,"Quantity (cups)",null,null,"Beans/Peas (legumes) offered on Thursday",null,null,"Quantity (cups)",null,null,"Starchy vegetables offered on Thursday",null,null,"Quantity (cups)",null,null,"Other vegetables offered on Thursday",null,null,"Quantity (cups)",5,{"$f":"INDEX(Cups,BD5)","v":null}]
[null,null,null,null,null,null,null,null,null,null,null,null,null,null,null,null,null,null,"Skim/fat-free, flavored",null,null,null,null,false,null,null,null,null,"G_T",null,null,"G_I","G_num",null,"R_T",null,null,"R_i","r_num",null,"B_t",null,null,"B_i","B_num",null,"S_T",null,null,"s_i","s_num",null,"O_T"]
[5,{"$f":"INDEX(meals,A7)","v":null},1,null,{"$f":"IF(B7=0,\"\",FLOOR(VLOOKUP(A7,'All Meals'!$A$12:$V$61,4),0.25))","v":null},{"$f":"IF(B7=0,\"\",IF(E7=\"\",\"No\",IF(E7>=2,\"Yes\",\"No\")))","v":null},{"$f":"IF(B7=0,\"\",FLOOR(VLOOKUP(A7,'All Meals'!$A$12:$V$61,5),0.25))","v":null},{"$f":"IF(B7=0,\"\",IF(G7=\"\",\"No\",IF(G7>=2,\"Yes\",\"No\")))","v":null},{"$f":"IF(B7=0,\"\",FLOOR(VLOOKUP(A7,'All Meals'!$A$12:$V$61,6),0.25))","v":null},{"$f":"IF(B7=0,\"\",FLOOR(VLOOKUP(A7,'All Meals'!$A$12:$V$61,7),0.25))","v":null},{"$f":"IF(B7=0, \"\",VLOOKUP(A7,'All Meals'!$A$12:$V$61,10))","v":null},{"$f":"IF(B7=0,\"\",IF(K7=\"\",\"No\",IF(K7>=1,\"Yes\",\"No\")))","v":null},{"$f":"IF(B7=0, \"\",VLOOKUP(A7,'All Meals'!$A$12:$V$61,13))","v":null},{"$f":"IF(B7=0, \"\",VLOOKUP(A7,'All Meals'!$A$12:$V$61,16))","v":null},{"$f":"IF(B7=0,\"\",IF(N7=\"\",\"No\",IF(N7>=1,\"Yes\",\"No\")))","v":null},{"$f":"IF(B7=0, \"\",VLOOKUP(A7,'All Meals'!$A$12:$V$61,19))","v":null},{"$f":"IF(B7=0, \"\",VLOOKUP(A7,'All Meals'!$A$12:$V$61,20))","v":null},{"$f":"IF(B7=0,\"\",IF(Q7=\"\",\"No\",IF(Q7>=1,\"Yes\",\"No\")))","v":null},"Low-fat (1% or less), unflavored",null,null,null,null,false,null,null,null,"Largest amount of dark green vegetables to select on Thursday",null,null,null,1,{"$f":"INDEX(Cups,AF7)","v":null},"Largest amount of red/orange vegetables to select on Thursday",null,null,null,1,{"$f":"INDEX(Cups,AL7)","v":null},"Largest amount of beans/peas to select on Thursday",null,null,null,7,{"$f":"INDEX(Cups,AR7)","v":null},"Largest amount of starchy vegetables to select on Thursday",null,null,null,3,{"$f":"INDEX(Cups,AX7)","v":null},"Largest amount of other vegetables to select on Thursday"]
[1,{"$f":"INDEX(meals,A8)","v":null},2,null,{"$f":"IF(B8=0,\"\",FLOOR(VLOOKUP(A8,'All Meals'!$A$12:$V$61,4),0.25))","v":null},{"$f":"IF(B8=0,\"\",IF(E8=\"\",\"No\",IF(E8>=2,\"Yes\",\"No\")))","v":null},{"$f":"IF(B8=0,\"\",FLOOR(VLOOKUP(A8,'All Meals'!$A$12:$V$61,5),0.25))","v":null},{"$f":"IF(B8=0,\"\",IF(G8=\"\",\"No\",IF(G8>=2,\"Yes\",\"No\")))","v":null},{"$f":"IF(B8=0,\"\",FLOOR(VLOOKUP(A8,'All Meals'!$A$12:$V$61,6),0.25))","v":null},{"$f":"IF(B8=0,\"\",FLOOR(VLOOKUP(A8,'All Meals'!$A$12:$V$61,7),0.25))","v":null},{"$f":"IF(B8=0, \"\",VLOOKUP(A8,'All Meals'!$A$12:$V$61,10))","v":null},{"$f":"IF(B8=0,\"\",IF(K8=\"\",\"No\",IF(K8>=1,\"Yes\",\"No\")))","v":null},{"$f":"IF(B8=0, \"\",VLOOKUP(A8,'All Meals'!$A$12:$V$61,13))","v":null},{"$f":"IF(B8=0, \"\",VLOOKUP(A8,'All Meals'!$A$12:$V$61,16))","v":null},{"$f":"IF(B8=0,\"\",IF(N8=\"\",\"No\",IF(N8>=1,\"Yes\",\"No\")))","v":null},{"$f":"IF(B8=0, \"\",VLOOKUP(A8,'All Meals'!$A$12:$V$61,19))","v":null},{"$f":"IF(B8=0, \"\",VLOOKUP(A8,'All Meals'!$A$12:$V$61,20))","v":null},{"$f":"IF(B8=0,\"\",IF(Q8=\"\",\"No\",IF(Q8>=1,\"Yes\",\"No\")))","v":null},"Low-fat (1% or less), flavored",null,null,null,null,false]
[1,{"$f":"INDEX(meals,A9)","v":null},3,null,{"$f":"IF(B9=0,\"\",FLOOR(VLOOKUP(A9,'All Meals'!$A$12:$V$61,4),0.25))","v":null},{"$f":"IF(B9=0,\"\",IF(E9=\"\",\"No\",IF(E9>=2,\"Yes\",\"No\")))","v":null},{"$f":"IF(B9=0,\"\",FLOOR(VLOOKUP(A9,'All Meals'!$A$12:$V$61,5),0.25))","v":null},{"$f":"IF(B9=0,\"\",IF(G9=\"\",\"No\",IF(G9>=2,\"Yes\",\"No\")))","v":null},{"$f":"IF(B9=0,\"\",FLOOR(VLOOKUP(A9,'All Meals'!$A$12:$V$61,6),0.25))","v":null},{"$f":"IF(B9=0,\"\",FLOOR(VLOOKUP(A9,'All Meals'!$A$12:$V$61,7),0.25))","v":null},{"$f":"IF(B9=0, \"\",VLOOKUP(A9,'All Meals'!$A$12:$V$61,10))","v":null},{"$f":"IF(B9=0,\"\",IF(K9=\"\",\"No\",IF(K9>=1,\"Yes\",\"No\")))","v":null},{"$f":"IF(B9=0, \"\",VLOOKUP(A9,'All Meals'!$A$12:$V$61,13))","v":null},{"$f":"IF(B9=0, \"\",VLOOKUP(A9,'All Meals'!$A$12:$V$61,16))","v":null},{"$f":"IF(B9=0,\"\",IF(N9=\"\",\"No\",IF(N9>=1,\"Yes\",\"No\")))","v":null},{"$f":"IF(B9=0, \"\",VLOOKUP(A9,'All Meals'!$A$12:$V$61,19))","v":null},{"$f":"IF(B9=0, \"\",VLOOKUP(A9,'All Meals'!$A$12:$V$61,20))","v":null},{"$f":"IF(B9=0,\"\",IF(Q9=\"\",\"No\",IF(Q9>=1,\"Yes\",\"No\")))","v":null},"Reduced fat (2% fat) or whole, unflavored and flavored",null,null,null,null,false,null,{"$f":"IF(X9=TRUE,\"No\",\"\")","v":null},null,{"$f":"IF(OR(COUNTIF(AC10:AC19, 12)>0, COUNTIF(AC10:AC19,2)>0, COUNTIF(AC10:AC19,4)>0, COUNTIF(AC10:AC19,10)>0, COUNTIF(AC10:AC19,15)>0, COUNTIF(AC10:AC19,17)>0,), \"Remember to enter CREDITABLE amounts of leafy greens!\", \"\")","v":null},null,null,null,null,null,{"$f":"IF(COUNTIF(AI10:AI19,10)>0,\"Remember to enter the CREDITABLE amount of tomato paste!\",\"\")","v":null},null,null,null,null,null,{"$f":"IF(SUM(AO10:AO19)>10, \"If crediting as a vegetable do not also credit as a meat/meat alternate\", \"\")","v":null}]
[1,{"$f":"INDEX(meals,A10)","v":null},4,null,{"$f":"IF(B10=0,\"\",FLOOR(VLOOKUP(A10,'All Meals'!$A$12:$V$61,4),0.25))","v":null},{"$f":"IF(B10=0,\"\",IF(E10=\"\",\"No\",IF(E10>=2,\"Yes\",\"No\")))","v":null},{"$f":"IF(B10=0,\"\",FLOOR(VLOOKUP(A10,'All Meals'!$A$12:$V$61,5),0.25))","v":null},{"$f":"IF(B10=0,\"\",IF(G10=\"\",\"No\",IF(G10>=2,\"Yes\",\"No\")))","v":null},{"$f":"IF(B10=0,\"\",FLOOR(VLOOKUP(A10,'All Meals'!$A$12:$V$61,6),0.25))","v":null},{"$f":"IF(B10=0,\"\",FLOOR(VLOOKUP(A10,'All Meals'!$A$12:$V$61,7),0.25))","v":null},{"$f":"IF(B10=0, \"\",VLOOKUP(A10,'All Meals'!$A$12:$V$61,10))","v":null},{"$f":"IF(B10=0,\"\",IF(K10=\"\",\"No\",IF(K10>=1,\"Yes\",\"No\")))","v":null},{"$f":"IF(B10=0, \"\",VLOOKUP(A10,'All Meals'!$A$12:$V$61,13))","v":null},{"$f":"IF(B10=0, \"\",VLOOKUP(A10,'All Meals'!$A$12:$V$61,16))","v":null},{"$f":"IF(B10=0,\"\",IF(N10=\"\",\"No\",IF(N10>=1,\"Yes\",\"No\")))","v":null},{"$f":"IF(B10=0, \"\",VLOOKUP(A10,'All Meals'!$A$12:$V$61,19))","v":null},{"$f":"IF(B10=0, \"\",VLOOKUP(A10,'All Meals'!$A$12:$V$61,20))","v":null},{"$f":"IF(B10=0,\"\",IF(Q10=\"\",\"No\",IF(Q10>=1,\"Yes\",\"No\")))","v":null},null,null,null,null,null,null,null,null,null,null,1,{"$f":"INDEX(GREEN,AC10)","v":null},null,1,{"$f":"IF(AD10=0,\"\",INDEX(Cups,AF10))","v":null},null,1,{"$f":"INDEX(RED,AI10)","v":null},null,1,{"$f":"IF(AJ10=0, \"\", INDEX(Cups,AL10))","v":null},null,1,{"$f":"INDEX(BEANS,AO10)","v":null},null,1,{"$f":"IF(AP10=0,\"\",INDEX(Cups,AR10))","v":null},null,1,{"$f":"INDEX(STARCHY,AU10)","v":null},null,1,{"$f":"IF(AV10=0,\"\",INDEX(Cups,AX10))","v":null},null,1,{"$f":"INDEX(OTHER,BA10)","v":null},null,1,{"$f":"IF(BB10=0,\"\",INDEX(Cups,BD10))","v":null}]
[1,{"$f":"INDEX(meals,A11)","v":null},5,null,{"$f":"IF(B11=0,\"\",FLOOR(VLOOKUP(A11,'All Meals'!$A$12:$V$61,4),0.25))","v":null},{"$f":"IF(B11=0,\"\",IF(E11=\"\",\"No\",IF(E11>=2,\"Yes\",\"No\")))","v":null},{"$f":"IF(B11=0,\"\",FLOOR(VLOOKUP(A11,'All Meals'!$A$12:$V$61,5),0.25))","v":null},{"$f":"IF(B11=0,\"\",IF(G11=\"\",\"No\",IF(G11>=2,\"Yes\",\"No\")))","v":null},{"$f":"IF(B11=0,\"\",FLOOR(VLOOKUP(A11,'All Meals'!$A$12:$V$61,6),0.25))","v":null},{"$f":"IF(B11=0,\"\",FLOOR(VLOOKUP(A11,'All Meals'!$A$12:$V$61,7),0.25))","v":null},{"$f":"IF(B11=0, \"\",VLOOKUP(A11,'All Meals'!$A$12:$V$61,10))","v":null},{"$f":"IF(B11=0,\"\",IF(K11=\"\",\"No\",IF(K11>=1,\"Yes\",\"No\")))","v":null},{"$f":"IF(B11=0, \"\",VLOOKUP(A11,'All Meals'!$A$12:$V$61,13))","v":null},{"$f":"IF(B11=0, \"\",VLOOKUP(A11,'All Meals'!$A$12:$V$61,16))","v":null},{"$f":"IF(B11=0,\"\",IF(N11=\"\",\"No\",IF(N11>=1,\"Yes\",\"No\")))","v":null},{"$f":"IF(B11=0, \"\",VLOOKUP(A11,'All Meals'!$A$12:$V$61,19))","v":null},{"$f":"IF(B11=0, \"\",VLOOKUP(A11,'All Meals'!$A$12:$V$61,20))","v":null},{"$f":"IF(B11=0,\"\",IF(Q11=\"\",\"No\",IF(Q11>=1,\"Yes\",\"No\")))","v":null},null,"OPTIONAL Tools to Assist in Fraction and Decimal Calculations",null,null,null,null,null,null,null,null,1,{"$f":"INDEX(GREEN,AC11)","v":null},null,1,{"$f":"IF(AD11=0,\"\",INDEX(Cups,AF11))","v":null},null,1,{"$f":"INDEX(RED,AI11)","v":null},null,1,{"$f":"IF(AJ11=0, \"\", INDEX(Cups,AL11))","v":null},null,1,{"$f":"INDEX(BEANS,AO11)","v":null},null,1,{"$f":"IF(AP11=0,\"\",INDEX(Cups,AR11))","v":null},null,1,{"$f":"INDEX(STARCHY,AU11)","v":null},null,1,{"$f":"IF(AV11=0,\"\",INDEX(Cups,AX11))","v":null},null,1,{"$f":"INDEX(OTHER,BA11)","v":null},null,1,{"$f":"IF(BB11=0,\"\",INDEX(Cups,BD11))","v":null}]
[1,{"$f":"INDEX(meals,A12)","v":null},6,null,{"$f":"IF(B12=0,\"\",FLOOR(VLOOKUP(A12,'All Meals'!$A$12:$V$61,4),0.25))","v":null},{"$f":"IF(B12=0,\"\",IF(E12=\"\",\"No\",IF(E12>=2,\"Yes\",\"No\")))","v":null},{"$f":"IF(B12=0,\"\",FLOOR(VLOOKUP(A12,'All Meals'!$A$12:$V$61,5),0.25))","v":null},{"$f":"IF(B12=0,\"\",IF(G12=\"\",\"No\",IF(G12>=2,\"Yes\",\"No\")))","v":null},{"$f":"IF(B12=0,\"\",FLOOR(VLOOKUP(A12,'All Meals'!$A$12:$V$61,6),0.25))","v":null},{"$f":"IF(B12=0,\"\",FLOOR(VLOOKUP(A12,'All Meals'!$A$12:$V$61,7),0.25))","v":null},{"$f":"IF(B12=0, \"\",VLOOKUP(A12,'All Meals'!$A$12:$V$61,10))","v":null},{"$f":"IF(B12=0,\"\",IF(K12=\"\",\"No\",IF(K12>=1,\"Yes\",\"No\")))","v":null},{"$f":"IF(B12=0, \"\",VLOOKUP(A12,'All Meals'!$A$12:$V$61,13))","v":null},{"$f":"IF(B12=0, \"\",VLOOKUP(A12,'All Meals'!$A$12:$V$61,16))","v":null},{"$f":"IF(B12=0,\"\",IF(N12=\"\",\"No\",IF(N12>=1,\"Yes\",\"No\")))","v":null},{"$f":"IF(B12=0, \"\",VLOOKUP(A12,'All Meals'!$A$12:$V$61,19))","v":null},{"$f":"IF(B12=0, \"\",VLOOKUP(A12,'All Meals'!$A$12:$V$61,20))","v":null},{"$f":"IF(B12=0,\"\",IF(Q12=\"\",\"No\",IF(Q12>=1,\"Yes\",\"No\")))","v":null},null,null,null,null,null,null,null,null,null,null,1,{"$f":"INDEX(GREEN,AC12)","v":null},null,1,{"$f":"IF(AD12=0,\"\",INDEX(Cups,AF12))","v":null},null,1,{"$f":"INDEX(RED,AI12)","v":null},null,1,{"$f":"IF(AJ12=0, \"\", INDEX(Cups,AL12))","v":null},null,1,{"$f":"INDEX(BEANS,AO12)","v":null},null,1,{"$f":"IF(AP12=0,\"\",INDEX(Cups,AR12))","v":null},null,1,{"$f":"INDEX(STARCHY,AU12)","v":null},null,1,{"$f":"IF(AV12=0,\"\",INDEX(Cups,AX12))","v":null},null,1,{"$f":"INDEX(OTHER,BA12)","v":null},null,1,{"$f":"IF(BB12=0,\"\",INDEX(Cups,BD12))","v":null}]
[1,{"$f":"INDEX(meals,A13)","v":null},7,null,{"$f":"IF(B13=0,\"\",FLOOR(VLOOKUP(A13,'All Meals'!$A$12:$V$61,4),0.25))","v":null},{"$f":"IF(B13=0,\"\",IF(E13=\"\",\"No\",IF(E13>=2,\"Yes\",\"No\")))","v":null},{"$f":"IF(B13=0,\"\",FLOOR(VLOOKUP(A13,'All Meals'!$A$12:$V$61,5),0.25))","v":null},{"$f":"IF(B13=0,\"\",IF(G13=\"\",\"No\",IF(G13>=2,\"Yes\",\"No\")))","v":null},{"$f":"IF(B13=0,\"\",FLOOR(VLOOKUP(A13,'All Meals'!$A$12:$V$61,6),0.25))","v":null},{"$f":"IF(B13=0,\"\",FLOOR(VLOOKUP(A13,'All Meals'!$A$12:$V$61,7),0.25))","v":null},{"$f":"IF(B13=0, \"\",VLOOKUP(A13,'All Meals'!$A$12:$V$61,10))","v":null},{"$f":"IF(B13=0,\"\",IF(K13=\"\",\"No\",IF(K13>=1,\"Yes\",\"No\")))","v":null},{"$f":"IF(B13=0, \"\",VLOOKUP(A13,'All Meals'!$A$12:$V$61,13))","v":null},{"$f":"IF(B13=0, \"\",VLOOKUP(A13,'All Meals'!$A$12:$V$61,16))","v":null},{"$f":"IF(B13=0,\"\",IF(N13=\"\",\"No\",IF(N13>=1,\"Yes\",\"No\")))","v":null},{"$f":"IF(B13=0, \"\",VLOOKUP(A13,'All Meals'!$A$12:$V$61,19))","v":null},{"$f":"IF(B13=0, \"\",VLOOKUP(A13,'All Meals'!$A$12:$V$61,20))","v":null},{"$f":"IF(B13=0,\"\",IF(Q13=\"\",\"No\",IF(Q13>=1,\"Yes\",\"No\")))","v":null},null,"Fraction Calculator: \nUse this calculator to add the number of cups.",null,null,1,{"$f":"INDEX(Cups,W13)","v":null},null,null,null,null,1,{"$f":"INDEX(GREEN,AC13)","v":null},null,1,{"$f":"IF(AD13=0,\"\",INDEX(Cups,AF13))","v":null},null,1,{"$f":"INDEX(RED,AI13)","v":null},null,1,{"$f":"IF(AJ13=0, \"\", INDEX(Cups,AL13))","v":null},null,1,{"$f":"INDEX(BEANS,AO13)","v":null},null,1,{"$f":"IF(AP13=0,\"\",INDEX(Cups,AR13))","v":null},null,1,{"$f":"INDEX(STARCHY,AU13)","v":null},null,1,{"$f":"IF(AV13=0,\"\",INDEX(Cups,AX13))","v":null},null,1,{"$f":"INDEX(OTHER,BA13)","v":null},null,1,{"$f":"IF(BB13=0,\"\",INDEX(Cups,BD13))","v":null}]
[1,{"$f":"INDEX(meals,A14)","v":null},8,null,{"$f":"IF(B14=0,\"\",FLOOR(VLOOKUP(A14,'All Meals'!$A$12:$V$61,4),0.25))","v":null},{"$f":"IF(B14=0,\"\",IF(E14=\"\",\"No\",IF(E14>=2,\"Yes\",\"No\")))","v":null},{"$f":"IF(B14=0,\"\",FLOOR(VLOOKUP(A14,'All Meals'!$A$12:$V$61,5),0.25))","v":null},{"$f":"IF(B14=0,\"\",IF(G14=\"\",\"No\",IF(G14>=2,\"Yes\",\"No\")))","v":null},{"$f":"IF(B14=0,\"\",FLOOR(VLOOKUP(A14,'All Meals'!$A$12:$V$61,6),0.25))","v":null},{"$f":"IF(B14=0,\"\",FLOOR(VLOOKUP(A14,'All Meals'!$A$12:$V$61,7),0.25))","v":null},{"$f":"IF(B14=0, \"\",VLOOKUP(A14,'All Meals'!$A$12:$V$61,10))","v":null},{"$f":"IF(B14=0,\"\",IF(K14=\"\",\"No\",IF(K14>=1,\"Yes\",\"No\")))","v":null},{"$f":"IF(B14=0, \"\",VLOOKUP(A14,'All Meals'!$A$12:$V$61,13))","v":null},{"$f":"IF(B14=0, \"\",VLOOKUP(A14,'All Meals'!$A$12:$V$61,16))","v":null},{"$f":"IF(B14=0,\"\",IF(N14=\"\",\"No\",IF(N14>=1,\"Yes\",\"No\")))","v":null},{"$f":"IF(B14=0, \"\",VLOOKUP(A14,'All Meals'!$A$12:$V$61,19))","v":null},{"$f":"IF(B14=0, \"\",VLOOKUP(A14,'All Meals'!$A$12:$V$61,20))","v":null},{"$f":"IF(B14=0,\"\",IF(Q14=\"\",\"No\",IF(Q14>=1,\"Yes\",\"No\")))","v":null},null,null,null,null,1,{"$f":"INDEX(Cups,W14)","v":null},null,null,null,null,1,{"$f":"INDEX(GREEN,AC14)","v":null},null,1,{"$f":"IF(AD14=0,\"\",INDEX(Cups,AF14))","v":null},null,1,{"$f":"INDEX(RED,AI14)","v":null},null,1,{"$f":"IF(AJ14=0, \"\", INDEX(Cups,AL14))","v":null},null,1,{"$f":"INDEX(BEANS,AO14)","v":null},null,1,{"$f":"IF(AP14=0,\"\",INDEX(Cups,AR14))","v":null},null,1,{"$f":"INDEX(STARCHY,AU14)","v":null},null,1,{"$f":"IF(AV14=0,\"\",INDEX(Cups,AX14))","v":null},null,1,{"$f":"INDEX(OTHER,BA14)","v":null},null,1,{"$f":"IF(BB14=0,\"\",INDEX(Cups,BD14))","v":null}]
[1,{"$f":"INDEX(meals,A15)","v":null},9,null,{"$f":"IF(B15=0,\"\",FLOOR(VLOOKUP(A15,'All Meals'!$A$12:$V$61,4),0.25))","v":null},{"$f":"IF(B15=0,\"\",IF(E15=\"\",\"No\",IF(E15>=2,\"Yes\",\"No\")))","v":null},{"$f":"IF(B15=0,\"\",FLOOR(VLOOKUP(A15,'All Meals'!$A$12:$V$61,5),0.25))","v":null},{"$f":"IF(B15=0,\"\",IF(G15=\"\",\"No\",IF(G15>=2,\"Yes\",\"No\")))","v":null},{"$f":"IF(B15=0,\"\",FLOOR(VLOOKUP(A15,'All Meals'!$A$12:$V$61,6),0.25))","v":null},{"$f":"IF(B15=0,\"\",FLOOR(VLOOKUP(A15,'All Meals'!$A$12:$V$61,7),0.25))","v":null},{"$f":"IF(B15=0, \"\",VLOOKUP(A15,'All Meals'!$A$12:$V$61,10))","v":null},{"$f":"IF(B15=0,\"\",IF(K15=\"\",\"No\",IF(K15>=1,\"Yes\",\"No\")))","v":null},{"$f":"IF(B15=0, \"\",VLOOKUP(A15,'All Meals'!$A$12:$V$61,13))","v":null},{"$f":"IF(B15=0, \"\",VLOOKUP(A15,'All Meals'!$A$12:$V$61,16))","v":null},{"$f":"IF(B15=0,\"\",IF(N15=\"\",\"No\",IF(N15>=1,\"Yes\",\"No\")))","v":null},{"$f":"IF(B15=0, \"\",VLOOKUP(A15,'All Meals'!$A$12:$V$61,19))","v":null},{"$f":"IF(B15=0, \"\",VLOOKUP(A15,'All Meals'!$A$12:$V$61,20))","v":null},{"$f":"IF(B15=0,\"\",IF(Q15=\"\",\"No\",IF(Q15>=1,\"Yes\",\"No\")))","v":null},null,null,null,null,1,{"$f":"INDEX(Cups,W15)","v":null},null,null,null,null,1,{"$f":"INDEX(GREEN,AC15)","v":null},null,1,{"$f":"IF(AD15=0,\"\",INDEX(Cups,AF15))","v":null},null,1,{"$f":"INDEX(RED,AI15)","v":null},null,1,{"$f":"IF(AJ15=0, \"\", INDEX(Cups,AL15))","v":null},null,1,{"$f":"INDEX(BEANS,AO15)","v":null},null,1,{"$f":"IF(AP15=0,\"\",INDEX(Cups,AR15))","v":null},null,1,{"$f":"INDEX(STARCHY,AU15)","v":null},null,1,{"$f":"IF(AV15=0,\"\",INDEX(Cups,AX15))","v":null},null,1,{"$f":"INDEX(OTHER,BA15)","v":null},null,1,{"$f":"IF(BB15=0,\"\",INDEX(Cups,BD15))","v":null}]
[1,{"$f":"INDEX(meals,A16)","v":null},10,null,{"$f":"IF(B16=0,\"\",FLOOR(VLOOKUP(A16,'All Meals'!$A$12:$V$61,4),0.25))","v":null},{"$f":"IF(B16=0,\"\",IF(E16=\"\",\"No\",IF(E16>=2,\"Yes\",\"No\")))","v":null},{"$f":"IF(B16=0,\"\",FLOOR(VLOOKUP(A16,'All Meals'!$A$12:$V$61,5),0.25))","v":null},{"$f":"IF(B16=0,\"\",IF(G16=\"\",\"No\",IF(G16>=2,\"Yes\",\"No\")))","v":null},{"$f":"IF(B16=0,\"\",FLOOR(VLOOKUP(A16,'All Meals'!$A$12:$V$61,6),0.25))","v":null},{"$f":"IF(B16=0,\"\",FLOOR(VLOOKUP(A16,'All Meals'!$A$12:$V$61,7),0.25))","v":null},{"$f":"IF(B16=0, \"\",VLOOKUP(A16,'All Meals'!$A$12:$V$61,10))","v":null},{"$f":"IF(B16=0,\"\",IF(K16=\"\",\"No\",IF(K16>=1,\"Yes\",\"No\")))","v":null},{"$f":"IF(B16=0, \"\",VLOOKUP(A16,'All Meals'!$A$12:$V$61,13))","v":null},{"$f":"IF(B16=0, \"\",VLOOKUP(A16,'All Meals'!$A$12:$V$61,16))","v":null},{"$f":"IF(B16=0,\"\",IF(N16=\"\",\"No\",IF(N16>=1,\"Yes\",\"No\")))","v":null},{"$f":"IF(B16=0, \"\",VLOOKUP(A16,'All Meals'!$A$12:$V$61,19))","v":null},{"$f":"IF(B16=0, \"\",VLOOKUP(A16,'All Meals'!$A$12:$V$61,20))","v":null},{"$f":"IF(B16=0,\"\",IF(Q16=\"\",\"No\",IF(Q16>=1,\"Yes\",\"No\")))","v":null},null,null,null,null,1,{"$f":"INDEX(Cups,W16)","v":null},null,null,null,null,1,{"$f":"INDEX(GREEN,AC16)","v":null},null,1,{"$f":"IF(AD16=0,\"\",INDEX(Cups,AF16))","v":null},null,1,{"$f":"INDEX(RED,AI16)","v":null},null,1,{"$f":"IF(AJ16=0, \"\", INDEX(Cups,AL16))","v":null},null,1,{"$f":"INDEX(BEANS,AO16)","v":null},null,1,{"$f":"IF(AP16=0,\"\",INDEX(Cups,AR16))","v":null},null,1,{"$f":"INDEX(STARCHY,AU16)","v":null},null,1,{"$f":"IF(AV16=0,\"\",INDEX(Cups,AX16))","v":null},null,1,{"$f":"INDEX(OTHER,BA16)","v":null},null,1,{"$f":"IF(BB16=0,\"\",INDEX(Cups,BD16))","v":null}]
[1,{"$f":"INDEX(meals,A17)","v":null},11,null,{"$f":"IF(B17=0,\"\",FLOOR(VLOOKUP(A17,'All Meals'!$A$12:$V$61,4),0.25))","v":null},{"$f":"IF(B17=0,\"\",IF(E17=\"\",\"No\",IF(E17>=2,\"Yes\",\"No\")))","v":null},{"$f":"IF(B17=0,\"\",FLOOR(VLOOKUP(A17,'All Meals'!$A$12:$V$61,5),0.25))","v":null},{"$f":"IF(B17=0,\"\",IF(G17=\"\",\"No\",IF(G17>=2,\"Yes\",\"No\")))","v":null},{"$f":"IF(B17=0,\"\",FLOOR(VLOOKUP(A17,'All Meals'!$A$12:$V$61,6),0.25))","v":null},{"$f":"IF(B17=0,\"\",FLOOR(VLOOKUP(A17,'All Meals'!$A$12:$V$61,7),0.25))","v":null},{"$f":"IF(B17=0, \"\",VLOOKUP(A17,'All Meals'!$A$12:$V$61,10))","v":null},{"$f":"IF(B17=0,\"\",IF(K17=\"\",\"No\",IF(K17>=1,\"Yes\",\"No\")))","v":null},{"$f":"IF(B17=0, \"\",VLOOKUP(A17,'All Meals'!$A$12:$V$61,13))","v":null},{"$f":"IF(B17=0, \"\",VLOOKUP(A17,'All Meals'!$A$12:$V$61,16))","v":null},{"$f":"IF(B17=0,\"\",IF(N17=\"\",\"No\",IF(N17>=1,\"Yes\",\"No\")))","v":null},{"$f":"IF(B17=0, \"\",VLOOKUP(A17,'All Meals'!$A$12:$V$61,19))","v":null},{"$f":"IF(B17=0, \"\",VLOOKUP(A17,'All Meals'!$A$12:$V$61,20))","v":null},{"$f":"IF(B17=0,\"\",IF(Q17=\"\",\"No\",IF(Q17>=1,\"Yes\",\"No\")))","v":null},null,null,null,null,1,{"$f":"INDEX(Cups,W17)","v":null},null,null,null,null,1,{"$f":"INDEX(GREEN,AC17)","v":null},null,1,{"$f":"IF(AD17=0,\"\",INDEX(Cups,AF17))","v":null},null,1,{"$f":"INDEX(RED,AI17)","v":null},null,1,{"$f":"IF(AJ17=0, \"\", INDEX(Cups,AL17))","v":null},null,1,{"$f":"INDEX(BEANS,AO17)","v":null},null,1,{"$f":"IF(AP17=0,\"\",INDEX(Cups,AR17))","v":null},null,1,{"$f":"INDEX(STARCHY,AU17)","v":null},null,1,{"$f":"IF(AV17=0,\"\",INDEX(Cups,AX17))","v":null},null,1,{"$f":"INDEX(OTHER,BA17)","v":null},null,1,{"$f":"IF(BB17=0,\"\",INDEX(Cups,BD17))","v":null}]
[1,{"$f":"INDEX(meals,A18)","v":null},12,null,{"$f":"IF(B18=0,\"\",FLOOR(VLOOKUP(A18,'All Meals'!$A$12:$V$61,4),0.25))","v":null},{"$f":"IF(B18=0,\"\",IF(E18=\"\",\"No\",IF(E18>=2,\"Yes\",\"No\")))","v":null},{"$f":"IF(B18=0,\"\",FLOOR(VLOOKUP(A18,'All Meals'!$A$12:$V$61,5),0.25))","v":null},{"$f":"IF(B18=0,\"\",IF(G18=\"\",\"No\",IF(G18>=2,\"Yes\",\"No\")))","v":null},{"$f":"IF(B18=0,\"\",FLOOR(VLOOKUP(A18,'All Meals'!$A$12:$V$61,6),0.25))","v":null},{"$f":"IF(B18=0,\"\",FLOOR(VLOOKUP(A18,'All Meals'!$A$12:$V$61,7),0.25))","v":null},{"$f":"IF(B18=0, \"\",VLOOKUP(A18,'All Meals'!$A$12:$V$61,10))","v":null},{"$f":"IF(B18=0,\"\",IF(K18=\"\",\"No\",IF(K18>=1,\"Yes\",\"No\")))","v":null},{"$f":"IF(B18=0, \"\",VLOOKUP(A18,'All Meals'!$A$12:$V$61,13))","v":null},{"$f":"IF(B18=0, \"\",VLOOKUP(A18,'All Meals'!$A$12:$V$61,16))","v":null},{"$f":"IF(B18=0,\"\",IF(N18=\"\",\"No\",IF(N18>=1,\"Yes\",\"No\")))","v":null},{"$f":"IF(B18=0, \"\",VLOOKUP(A18,'All Meals'!$A$12:$V$61,19))","v":null},{"$f":"IF(B18=0, \"\",VLOOKUP(A18,'All Meals'!$A$12:$V$61,20))","v":null},{"$f":"IF(B18=0,\"\",IF(Q18=\"\",\"No\",IF(Q18>=1,\"Yes\",\"No\")))","v":null},null,null,null,null,null,null,{"$f":"SUM(X13:X17)","v":null},null,null,null,1,{"$f":"INDEX(GREEN,AC18)","v":null},null,1,{"$f":"IF(AD18=0,\"\",INDEX(Cups,AF18))","v":null},null,1,{"$f":"INDEX(RED,AI18)","v":null},null,1,{"$f":"IF(AJ18=0, \"\", INDEX(Cups,AL18))","v":null},null,1,{"$f":"INDEX(BEANS,AO18)","v":null},null,1,{"$f":"IF(AP18=0,\"\",INDEX(Cups,AR18))","v":null},null,1,{"$f":"INDEX(STARCHY,AU18)","v":null},null,1,{"$f":"IF(AV18=0,\"\",INDEX(Cups,AX18))","v":null},null,1,{"$f":"INDEX(OTHER,BA18)","v":null},null,1,{"$f":"IF(BB18=0,\"\",INDEX(Cups,BD18))","v":null}]
[1,{"$f":"INDEX(meals,A19)","v":null},13,null,{"$f":"IF(B19=0,\"\",FLOOR(VLOOKUP(A19,'All Meals'!$A$12:$V$61,4),0.25))","v":null},{"$f":"IF(B19=0,\"\",IF(E19=\"\",\"No\",IF(E19>=2,\"Yes\",\"No\")))","v":null},{"$f":"IF(B19=0,\"\",FLOOR(VLOOKUP(A19,'All Meals'!$A$12:$V$61,5),0.25))","v":null},{"$f":"IF(B19=0,\"\",IF(G19=\"\",\"No\",IF(G19>=2,\"Yes\",\"No\")))","v":null},{"$f":"IF(B19=0,\"\",FLOOR(VLOOKUP(A19,'All Meals'!$A$12:$V$61,6),0.25))","v":null},{"$f":"IF(B19=0,\"\",FLOOR(VLOOKUP(A19,'All Meals'!$A$12:$V$61,7),0.25))","v":null},{"$f":"IF(B19=0, \"\",VLOOKUP(A19,'All Meals'!$A$12:$V$61,10))","v":null},{"$f":"IF(B19=0,\"\",IF(K19=\"\",\"No\",IF(K19>=1,\"Yes\",\"No\")))","v":null},{"$f":"IF(B19=0, \"\",VLOOKUP(A19,'All Meals'!$A$12:$V$61,13))","v":null},{"$f":"IF(B19=0, \"\",VLOOKUP(A19,'All Meals'!$A$12:$V$61,16))","v":null},{"$f":"IF(B19=0,\"\",IF(N19=\"\",\"No\",IF(N19>=1,\"Yes\",\"No\")))","v":null},{"$f":"IF(B19=0, \"\",VLOOKUP(A19,'All Meals'!$A$12:$V$61,19))","v":null},{"$f":"IF(B19=0, \"\",VLOOKUP(A19,'All Meals'!$A$12:$V$61,20))","v":null},{"$f":"IF(B19=0,\"\",IF(Q19=\"\",\"No\",IF(Q19>=1,\"Yes\",\"No\")))","v":null},null,"Decimal/Fraction Converter\n(Rounded down to the nearest 1/8)",null,null,null,null,null,null,null,null,1,{"$f":"INDEX(GREEN,AC19)","v":null},null,1,{"$f":"IF(AD19=0,\"\",INDEX(Cups,AF19))","v":null},null,1,{"$f":"INDEX(RED,AI19)","v":null},null,1,{"$f":"IF(AJ19=0, \"\", INDEX(Cups,AL19))","v":null},null,1,{"$f":"INDEX(BEANS,AO19)","v":null},null,1,{"$f":"IF(AP19=0,\"\",INDEX(Cups,AR19))","v":null},null,1,{"$f":"INDEX(STARCHY,AU19)","v":null},null,1,{"$f":"IF(AV19=0,\"\",INDEX(Cups,AX19))","v":null},null,1,{"$f":"INDEX(OTHER,BA19)","v":null},null,1,{"$f":"IF(BB19=0,\"\",INDEX(Cups,BD19))","v":null}]
[1,{"$f":"INDEX(meals,A20)","v":null},14,null,{"$f":"IF(B20=0,\"\",FLOOR(VLOOKUP(A20,'All Meals'!$A$12:$V$61,4),0.25))","v":null},{"$f":"IF(B20=0,\"\",IF(E20=\"\",\"No\",IF(E20>=2,\"Yes\",\"No\")))","v":null},{"$f":"IF(B20=0,\"\",FLOOR(VLOOKUP(A20,'All Meals'!$A$12:$V$61,5),0.25))","v":null},{"$f":"IF(B20=0,\"\",IF(G20=\"\",\"No\",IF(G20>=2,\"Yes\",\"No\")))","v":null},{"$f":"IF(B20=0,\"\",FLOOR(VLOOKUP(A20,'All Meals'!$A$12:$V$61,6),0.25))","v":null},{"$f":"IF(B20=0,\"\",FLOOR(VLOOKUP(A20,'All Meals'!$A$12:$V$61,7),0.25))","v":null},{"$f":"IF(B20=0, \"\",VLOOKUP(A20,'All Meals'!$A$12:$V$61,10))","v":null},{"$f":"IF(B20=0,\"\",IF(K20=\"\",\"No\",IF(K20>=1,\"Yes\",\"No\")))","v":null},{"$f":"IF(B20=0, \"\",VLOOKUP(A20,'All Meals'!$A$12:$V$61,13))","v":null},{"$f":"IF(B20=0, \"\",VLOOKUP(A20,'All Meals'!$A$12:$V$61,16))","v":null},{"$f":"IF(B20=0,\"\",IF(N20=\"\",\"No\",IF(N20>=1,\"Yes\",\"No\")))","v":null},{"$f":"IF(B20=0, \"\",VLOOKUP(A20,'All Meals'!$A$12:$V$61,19))","v":null},{"$f":"IF(B20=0, \"\",VLOOKUP(A20,'All Meals'!$A$12:$V$61,20))","v":null},{"$f":"IF(B20=0,\"\",IF(Q20=\"\",\"No\",IF(Q20>=1,\"Yes\",\"No\")))","v":null},null,"Enter the decimal you wish to convert to a fraction in the box:",null,null,null,null,null,null,null,{"$f":"IF(OR(COUNTIF(AC10:AC19,18)>0, COUNTIF(AI10:AI19, 13)>0, COUNTIF(AO10:AO19, 12)>0, COUNTIF(AU10:AU19, 11)>0,COUNTIF(BA10:BA19,34)>0, COUNTIF(BA10:BA19,35)>0, COUNTIF(BA10:BA19,36)>0,COUNTIF(BA10:BA19,37)>0, COUNTIF(BA10:BA19,38)>0, COUNTIF(BA10:BA19,39)>0), \"You entered an unspecified or extra other vegetable above, please enter the name of the vegetable in the appropriate subgroup below\", \"\")","v":null}]
[1,{"$f":"INDEX(meals,A21)","v":null},15,null,{"$f":"IF(B21=0,\"\",FLOOR(VLOOKUP(A21,'All Meals'!$A$12:$V$61,4),0.25))","v":null},{"$f":"IF(B21=0,\"\",IF(E21=\"\",\"No\",IF(E21>=2,\"Yes\",\"No\")))","v":null},{"$f":"IF(B21=0,\"\",FLOOR(VLOOKUP(A21,'All Meals'!$A$12:$V$61,5),0.25))","v":null},{"$f":"IF(B21=0,\"\",IF(G21=\"\",\"No\",IF(G21>=2,\"Yes\",\"No\")))","v":null},{"$f":"IF(B21=0,\"\",FLOOR(VLOOKUP(A21,'All Meals'!$A$12:$V$61,6),0.25))","v":null},{"$f":"IF(B21=0,\"\",FLOOR(VLOOKUP(A21,'All Meals'!$A$12:$V$61,7),0.25))","v":null},{"$f":"IF(B21=0, \"\",VLOOKUP(A21,'All Meals'!$A$12:$V$61,10))","v":null},{"$f":"IF(B21=0,\"\",IF(K21=\"\",\"No\",IF(K21>=1,\"Yes\",\"No\")))","v":null},{"$f":"IF(B21=0, \"\",VLOOKUP(A21,'All Meals'!$A$12:$V$61,13))","v":null},{"$f":"IF(B21=0, \"\",VLOOKUP(A21,'All Meals'!$A$12:$V$61,16))","v":null},{"$f":"IF(B21=0,\"\",IF(N21=\"\",\"No\",IF(N21>=1,\"Yes\",\"No\")))","v":null},{"$f":"IF(B21=0, \"\",VLOOKUP(A21,'All Meals'!$A$12:$V$61,19))","v":null},{"$f":"IF(B21=0, \"\",VLOOKUP(A21,'All Meals'!$A$12:$V$61,20))","v":null},{"$f":"IF(B21=0,\"\",IF(Q21=\"\",\"No\",IF(Q21>=1,\"Yes\",\"No\")))","v":null},null,null,null,null,null,null,null,null,null,"Unspecified Dark Green Vegetables",null,null,null,null,null,"Unspecified Red/Orange Vegetables",null,null,null,null,null,"Unspecified Beans/Peas",null,null,null,null,null,"Unspecified Starchy Vegetables",null,null,null,null,null,"Unspecified Other Vegetables"]
[1,{"$f":"INDEX(meals,A22)","v":null},16,null,{"$f":"IF(B22=0,\"\",FLOOR(VLOOKUP(A22,'All Meals'!$A$12:$V$61,4),0.25))","v":null},{"$f":"IF(B22=0,\"\",IF(E22=\"\",\"No\",IF(E22>=2,\"Yes\",\"No\")))","v":null},{"$f":"IF(B22=0,\"\",FLOOR(VLOOKUP(A22,'All Meals'!$A$12:$V$61,5),0.25))","v":null},{"$f":"IF(B22=0,\"\",IF(G22=\"\",\"No\",IF(G22>=2,\"Yes\",\"No\")))","v":null},{"$f":"IF(B22=0,\"\",FLOOR(VLOOKUP(A22,'All Meals'!$A$12:$V$61,6),0.25))","v":null},{"$f":"IF(B22=0,\"\",FLOOR(VLOOKUP(A22,'All Meals'!$A$12:$V$61,7),0.25))","v":null},{"$f":"IF(B22=0, \"\",VLOOKUP(A22,'All Meals'!$A$12:$V$61,10))","v":null},{"$f":"IF(B22=0,\"\",IF(K22=\"\",\"No\",IF(K22>=1,\"Yes\",\"No\")))","v":null},{"$f":"IF(B22=0, \"\",VLOOKUP(A22,'All Meals'!$A$12:$V$61,13))","v":null},{"$f":"IF(B22=0, \"\",VLOOKUP(A22,'All Meals'!$A$12:$V$61,16))","v":null},{"$f":"IF(B22=0,\"\",IF(N22=\"\",\"No\",IF(N22>=1,\"Yes\",\"No\")))","v":null},{"$f":"IF(B22=0, \"\",VLOOKUP(A22,'All Meals'!$A$12:$V$61,19))","v":null},{"$f":"IF(B22=0, \"\",VLOOKUP(A22,'All Meals'!$A$12:$V$61,20))","v":null},{"$f":"IF(B22=0,\"\",IF(Q22=\"\",\"No\",IF(Q22>=1,\"Yes\",\"No\")))","v":null},null,"The decimal entered above has been converted to the following fraction:",null,null,null,null,{"$f":"FLOOR(Y20,0.125)","v":null}]
[1,{"$f":"INDEX(meals,A23)","v":null},17,null,{"$f":"IF(B23=0,\"\",FLOOR(VLOOKUP(A23,'All Meals'!$A$12:$V$61,4),0.25))","v":null},{"$f":"IF(B23=0,\"\",IF(E23=\"\",\"No\",IF(E23>=2,\"Yes\",\"No\")))","v":null},{"$f":"IF(B23=0,\"\",FLOOR(VLOOKUP(A23,'All Meals'!$A$12:$V$61,5),0.25))","v":null},{"$f":"IF(B23=0,\"\",IF(G23=\"\",\"No\",IF(G23>=2,\"Yes\",\"No\")))","v":null},{"$f":"IF(B23=0,\"\",FLOOR(VLOOKUP(A23,'All Meals'!$A$12:$V$61,6),0.25))","v":null},{"$f":"IF(B23=0,\"\",FLOOR(VLOOKUP(A23,'All Meals'!$A$12:$V$61,7),0.25))","v":null},{"$f":"IF(B23=0, \"\",VLOOKUP(A23,'All Meals'!$A$12:$V$61,10))","v":null},{"$f":"IF(B23=0,\"\",IF(K23=\"\",\"No\",IF(K23>=1,\"Yes\",\"No\")))","v":null},{"$f":"IF(B23=0, \"\",VLOOKUP(A23,'All Meals'!$A$12:$V$61,13))","v":null},{"$f":"IF(B23=0, \"\",VLOOKUP(A23,'All Meals'!$A$12:$V$61,16))","v":null},{"$f":"IF(B23=0,\"\",IF(N23=\"\",\"No\",IF(N23>=1,\"Yes\",\"No\")))","v":null},{"$f":"IF(B23=0, \"\",VLOOKUP(A23,'All Meals'!$A$12:$V$61,19))","v":null},{"$f":"IF(B23=0, \"\",VLOOKUP(A23,'All Meals'!$A$12:$V$61,20))","v":null},{"$f":"IF(B23=0,\"\",IF(Q23=\"\",\"No\",IF(Q23>=1,\"Yes\",\"No\")))","v":null}]
[1,{"$f":"INDEX(meals,A24)","v":null},18,null,{"$f":"IF(B24=0,\"\",FLOOR(VLOOKUP(A24,'All Meals'!$A$12:$V$61,4),0.25))","v":null},{"$f":"IF(B24=0,\"\",IF(E24=\"\",\"No\",IF(E24>=2,\"Yes\",\"No\")))","v":null},{"$f":"IF(B24=0,\"\",FLOOR(VLOOKUP(A24,'All Meals'!$A$12:$V$61,5),0.25))","v":null},{"$f":"IF(B24=0,\"\",IF(G24=\"\",\"No\",IF(G24>=2,\"Yes\",\"No\")))","v":null},{"$f":"IF(B24=0,\"\",FLOOR(VLOOKUP(A24,'All Meals'!$A$12:$V$61,6),0.25))","v":null},{"$f":"IF(B24=0,\"\",FLOOR(VLOOKUP(A24,'All Meals'!$A$12:$V$61,7),0.25))","v":null},{"$f":"IF(B24=0, \"\",VLOOKUP(A24,'All Meals'!$A$12:$V$61,10))","v":null},{"$f":"IF(B24=0,\"\",IF(K24=\"\",\"No\",IF(K24>=1,\"Yes\",\"No\")))","v":null},{"$f":"IF(B24=0, \"\",VLOOKUP(A24,'All Meals'!$A$12:$V$61,13))","v":null},{"$f":"IF(B24=0, \"\",VLOOKUP(A24,'All Meals'!$A$12:$V$61,16))","v":null},{"$f":"IF(B24=0,\"\",IF(N24=\"\",\"No\",IF(N24>=1,\"Yes\",\"No\")))","v":null},{"$f":"IF(B24=0, \"\",VLOOKUP(A24,'All Meals'!$A$12:$V$61,19))","v":null},{"$f":"IF(B24=0, \"\",VLOOKUP(A24,'All Meals'!$A$12:$V$61,20))","v":null},{"$f":"IF(B24=0,\"\",IF(Q24=\"\",\"No\",IF(Q24>=1,\"Yes\",\"No\")))","v":null}]
[1,{"$f":"INDEX(meals,A25)","v":null},19,null,{"$f":"IF(B25=0,\"\",FLOOR(VLOOKUP(A25,'All Meals'!$A$12:$V$61,4),0.25))","v":null},{"$f":"IF(B25=0,\"\",IF(E25=\"\",\"No\",IF(E25>=2,\"Yes\",\"No\")))","v":null},{"$f":"IF(B25=0,\"\",FLOOR(VLOOKUP(A25,'All Meals'!$A$12:$V$61,5),0.25))","v":null},{"$f":"IF(B25=0,\"\",IF(G25=\"\",\"No\",IF(G25>=2,\"Yes\",\"No\")))","v":null},{"$f":"IF(B25=0,\"\",FLOOR(VLOOKUP(A25,'All Meals'!$A$12:$V$61,6),0.25))","v":null},{"$f":"IF(B25=0,\"\",FLOOR(VLOOKUP(A25,'All Meals'!$A$12:$V$61,7),0.25))","v":null},{"$f":"IF(B25=0, \"\",VLOOKUP(A25,'All Meals'!$A$12:$V$61,10))","v":null},{"$f":"IF(B25=0,\"\",IF(K25=\"\",\"No\",IF(K25>=1,\"Yes\",\"No\")))","v":null},{"$f":"IF(B25=0, \"\",VLOOKUP(A25,'All Meals'!$A$12:$V$61,13))","v":null},{"$f":"IF(B25=0, \"\",VLOOKUP(A25,'All Meals'!$A$12:$V$61,16))","v":null},{"$f":"IF(B25=0,\"\",IF(N25=\"\",\"No\",IF(N25>=1,\"Yes\",\"No\")))","v":null},{"$f":"IF(B25=0, \"\",VLOOKUP(A25,'All Meals'!$A$12:$V$61,19))","v":null},{"$f":"IF(B25=0, \"\",VLOOKUP(A25,'All Meals'!$A$12:$V$61,20))","v":null},{"$f":"IF(B25=0,\"\",IF(Q25=\"\",\"No\",IF(Q25>=1,\"Yes\",\"No\")))","v":null}]
[1,{"$f":"INDEX(meals,A26)","v":null},20,null,{"$f":"IF(B26=0,\"\",FLOOR(VLOOKUP(A26,'All Meals'!$A$12:$V$61,4),0.25))","v":null},{"$f":"IF(B26=0,\"\",IF(E26=\"\",\"No\",IF(E26>=2,\"Yes\",\"No\")))","v":null},{"$f":"IF(B26=0,\"\",FLOOR(VLOOKUP(A26,'All Meals'!$A$12:$V$61,5),0.25))","v":null},{"$f":"IF(B26=0,\"\",IF(G26=\"\",\"No\",IF(G26>=2,\"Yes\",\"No\")))","v":null},{"$f":"IF(B26=0,\"\",FLOOR(VLOOKUP(A26,'All Meals'!$A$12:$V$61,6),0.25))","v":null},{"$f":"IF(B26=0,\"\",FLOOR(VLOOKUP(A26,'All Meals'!$A$12:$V$61,7),0.25))","v":null},{"$f":"IF(B26=0, \"\",VLOOKUP(A26,'All Meals'!$A$12:$V$61,10))","v":null},{"$f":"IF(B26=0,\"\",IF(K26=\"\",\"No\",IF(K26>=1,\"Yes\",\"No\")))","v":null},{"$f":"IF(B26=0, \"\",VLOOKUP(A26,'All Meals'!$A$12:$V$61,13))","v":null},{"$f":"IF(B26=0, \"\",VLOOKUP(A26,'All Meals'!$A$12:$V$61,16))","v":null},{"$f":"IF(B26=0,\"\",IF(N26=\"\",\"No\",IF(N26>=1,\"Yes\",\"No\")))","v":null},{"$f":"IF(B26=0, \"\",VLOOKUP(A26,'All Meals'!$A$12:$V$61,19))","v":null},{"$f":"IF(B26=0, \"\",VLOOKUP(A26,'All Meals'!$A$12:$V$61,20))","v":null},{"$f":"IF(B26=0,\"\",IF(Q26=\"\",\"No\",IF(Q26>=1,\"Yes\",\"No\")))","v":null}]

{"sheet":"Friday","index":10,"n_rows":26,"n_cols":57,"rows_kept":26,"cut":false,"hidden":false,"merged":[[3,2,5,3],[2,2,2,25],[3,13,3,15],[4,15,5,15],[3,4,3,5],[4,4,5,4],[4,5,5,5],[3,6,3,9],[4,6,5,6],[4,7,5,7],[4,8,5,8],[4,9,5,9],[4,14,5,14],[4,17,5,17],[4,12,5,12],[4,13,5,13],[25,27,25,30],[25,33,25,36],[25,39,25,42],[25,45,25,48],[21,19,22,21],[21,24,22,25],[21,45,21,48],[18,19,18,25],[25,51,25,54],[23,27,23,30],[23,33,23,36],[23,39,23,42],[23,45,23,48],[23,51,23,54],[24,27,24,30],[24,33,24,36],[24,39,24,42],[24,45,24,48],[24,51,24,54],[21,51,21,54],[22,27,22,30],[22,33,22,36],[22,39,22,42],[22,45,22,48],[22,51,22,54],[21,27,21,30],[21,33,21,36],[21,39,21,42],[19,19,20,21],[19,24,20,25],[19,27,19,54],[20,27,20,30],[20,33,20,36],[20,39,20,42],[20,45,20,48],[20,51,20,54],[8,51,8,54],[10,19,11,25],[12,19,17,21],[12,24,12,25],[13,24,13,25],[14,24,14,25],[15,24,15,25],[16,24,16,25],[17,24,17,25],[8,18,8,21],[8,27,8,30],[8,33,8,36],[8,39,8,42],[8,45,8,48],[4,56,5,56],[5,18,5,21],[6,18,6,21],[6,27,7,27],[6,28,7,28],[6,29,7,29],[6,30,7,30],[6,31,7,31],[6,34,7,34],[4,39,5,39],[4,42,5,42],[4,45,5,45],[4,48,5,48],[4,51,5,51],[4,54,5,54],[4,33,5,33],[6,32,7,32],[6,33,7,33],[4,36,5,36],[6,46,7,46],[6,47,7,47],[6,48,7,48],[6,49,7,49],[6,50,7,50],[1,3,1,17],[1,19,1,21],[1,24,1,25],[1,27,1,48],[1,51,1,55],[0,2,0,17],[4,30,5,30],[4,25,7,25],[7,18,7,21],[2,27,2,39],[3,10,3,12],[3,16,3,17],[3,18,3,25],[3,27,3,54],[4,16,5,16],[4,10,5,10],[4,11,5,11],[6,41,7,41],[6,42,7,42],[6,43,7,43],[6,44,7,44],[6,45,7,45],[6,51,7,51],[6,37,7,37],[4,55,5,55],[6,53,7,53],[6,54,7,54],[6,35,7,35],[6,36,7,36],[4,18,4,21],[4,27,5,27],[6,52,7,52],[0,19,0,25],[0,27,0,54],[6,38,7,38],[6,39,7,39],[6,40,7,40]]}
[null,null,"Friday Daily Lunch Requirement Check\nGrades 9-12",null,null,null,null,null,null,null,null,null,null,null,null,null,null,null,null,"Scroll to the right to enter vegetable subgroup information",null,null,null,null,null,null,null,"Friday Vegetable Subgroup Data Entry\nGrades 9-12"]
[null,null,null,"The daily worksheet will perform daily requirement checks for the reimbursable meals offered each day. Requirements met are flagged \"Yes\" and the cell turns green. Requirements NOT met are flagged \"No\" and the cell turns red. \nNOTE: The top row is frozen to display the column headers as the daily meals are entered.\nGrains, whole grain rich, and meat/meat alternate oz equivalents are rounded down to the nearest quarter ounce.\nOnce you are finished selecting the meals offered each day, make sure to scroll to the right to enter milk type and vegetable subgroup information.",null,null,null,null,null,null,null,null,null,null,null,null,null,null,null,"Go to Instructions","'Menu Worksheet Instructions'!A1","'Menu Worksheet Instructions'!A1",null,null,"Go to Weekly Report","'Weekly Report'!A1",null,"Creditable Amount of Each Vegetable Subgroup Offered on Friday\nIn the first drop down box, select the largest amount of each vegetable subgroup offered to a student, then in the drop down boxes below, select the name and amount of each vegetable offered in the subgroup. \nIf you want to clear an entry, select the first blank in the drop down box.\nFor additional information on completing the data entry for the vegetable subgroup section, please refer to the Instructions tab. ",null,null,null,null,null,null,null,null,null,null,null,null,null,null,null,null,null,null,null,null,null,null,null,"Click here for help categorizing vegetables\n","https://foodbuyingguide.fns.usda.gov/files/Reports/USDA_FBG_Section2_Vegetables_YieldTable.pdf","https://foodbuyingguide.fns.usda.gov/files/Reports/USDA_FBG_Section2_Vegetables_YieldTable.pdf","https://foodbuyingguide.fns.usda.gov/files/Reports/USDA_FBG_Section2_Vegetables_YieldTable.pdf","https://foodbuyingguide.fns.usda.gov/files/Reports/USDA_FBG_Section2_Vegetables_YieldTable.pdf"]
[null,null,"Friday",null,null,null,null,null,null,null,null,null,null,null,null,null,null,null,null,null,null,null,null,null,null,null,null,"Check this box if you offered the weekly vegetable bar on Friday with NO CHANGES:",null,null,null,null,null,null,null,null,null,null,null,null,null,null,null,false]
[null,null,"1.  Meal Name\nSelect the reimbursable lunches offered for the day\nNote: You may not delete lines, if you want to clear a meal select the first blank in the drop down list",null,"2.  Meat/Meat Alternate (M/MA)",null,"3. Grains",null,null,null,"4. Fruit",null,null,"5. Vegetables",null,null,"6. Milk",null,"Milk Type\nCheck the type of milk below if it is offered to students on Friday. \nAll types of milk included.",null,null,null,null,null,null,null,null,"If you offered any vegetables in addition to the weekly vegetable bar, select the largest amount of the vegetable offered to a student and select the name of each vegetable under the appropriate subgroup.\nNOTE:  If you offered a vegetable bar on Friday that differs from the weekly offerings, all offerings and quantities for each vegetable subgroup must be selected in the section below.",null,null,null,null,null,null,null,null,null,null,null,null,null,null,null,null,null,null,null,null,null,null,null,null,null,null,null,"o_i","O_num"]
[null,null,null,null,"M/MA\noz equivalents","Daily M/MA Requirement Check\n2 oz equivalents","a. Grains\n oz equivalents\n","Daily Grain Requirement Check\n2 oz equivalents","b. Whole Grain Rich\n oz equivalents\n ","c. Grain Based Dessert\n oz equivalents\n ","a. Fruit\ncups","Daily Fruit Requirement Check\n 1 cup","b. Fruit Juice \ncups","a. Vegetables\n cups","Daily Vegetable Requirement Check\n1 cup","b. Vegetable Juice \ncups","Milk\ncups","Daily Milk Requirement Check\n1 cup","Skim/fat-free, unflavored",null,null,null,null,true,null,{"$f":"IF(AND(X5=FALSE,X6=FALSE,X7=FALSE,X8=FALSE),\"\",IF(AND(X5=TRUE,X6=TRUE),\"Yes\",IF(AND(X5=TRUE,X7=TRUE),\"Yes\",IF(AND(X6=TRUE,X7=TRUE),\"Yes\",IF(AND(X5=TRUE,X8=TRUE),\"Yes\",IF(AND(X7=TRUE,X8=TRUE),\"Yes\",\"No\"))))))","v":null},null,"DARK GREEN vegetables offered on Friday",null,null,"Quantity (cups)",null,null,"Red/Orange vegetables offered on Friday",null,null,"Quantity (cups)",null,null,"Beans/Peas (legumes) offered on Friday",null,null,"Quantity (cups)",null,null,"Starchy vegetables offered on Friday",null,null,"Quantity (cups)",null,null,"Other vegetables offered on Friday",null,null,"Quantity (cups)",5,{"$f":"INDEX(Cups,BD5)","v":null}]
[null,null,null,null,null,null,null,null,null,null,null,null,null,null,null,null,null,null,"Skim/fat-free, flavored",null,null,null,null,false,null,null,null,null,"G_T",null,null,"G_I","G_num",null,"R_T",null,null,"R_i","r_num",null,"B_t",null,null,"B_i","B_num",null,"S_T",null,null,"s_i","s_num",null,"O_T"]
[6,{"$f":"INDEX(meals,A7)","v":null},1,null,{"$f":"IF(B7=0,\"\",FLOOR(VLOOKUP(A7,'All Meals'!$A$12:$V$61,4),0.25))","v":null},{"$f":"IF(B7=0,\"\",IF(E7=\"\",\"No\",IF(E7>=2,\"Yes\",\"No\")))","v":null},{"$f":"IF(B7=0,\"\",FLOOR(VLOOKUP(A7,'All Meals'!$A$12:$V$61,5),0.25))","v":null},{"$f":"IF(B7=0,\"\",IF(G7=\"\",\"No\",IF(G7>=2,\"Yes\",\"No\")))","v":null},{"$f":"IF(B7=0,\"\",FLOOR(VLOOKUP(A7,'All Meals'!$A$12:$V$61,6),0.25))","v":null},{"$f":"IF(B7=0,\"\",FLOOR(VLOOKUP(A7,'All Meals'!$A$12:$V$61,7),0.25))","v":null},{"$f":"IF(B7=0, \"\",VLOOKUP(A7,'All Meals'!$A$12:$V$61,10))","v":null},{"$f":"IF(B7=0,\"\",IF(K7=\"\",\"No\",IF(K7>=1,\"Yes\",\"No\")))","v":null},{"$f":"IF(B7=0, \"\",VLOOKUP(A7,'All Meals'!$A$12:$V$61,13))","v":null},{"$f":"IF(B7=0, \"\",VLOOKUP(A7,'All Meals'!$A$12:$V$61,16))","v":null},{"$f":"IF(B7=0,\"\",IF(N7=\"\",\"No\",IF(N7>=1,\"Yes\",\"No\")))","v":null},{"$f":"IF(B7=0, \"\",VLOOKUP(A7,'All Meals'!$A$12:$V$61,19))","v":null},{"$f":"IF(B7=0, \"\",VLOOKUP(A7,'All Meals'!$A$12:$V$61,20))","v":null},{"$f":"IF(B7=0,\"\",IF(Q7=\"\",\"No\",IF(Q7>=1,\"Yes\",\"No\")))","v":null},"Low-fat (1% or less), unflavored",null,null,null,null,false,null,null,null,"Largest amount of dark green vegetables to select on Friday",null,null,null,5,{"$f":"INDEX(Cups,AF7)","v":null},"Largest amount of red/orange vegetables to select on Friday",null,null,null,2,{"$f":"INDEX(Cups,AL7)","v":null},"Largest amount of beans/peas to select on Friday",null,null,null,1,{"$f":"INDEX(Cups,AR7)","v":null},"Largest amount of starchy vegetables to select on Friday",null,null,null,5,{"$f":"INDEX(Cups,AX7)","v":null},"Largest amount of other vegetables to select on Friday"]
[1,{"$f":"INDEX(meals,A8)","v":null},2,null,{"$f":"IF(B8=0,\"\",FLOOR(VLOOKUP(A8,'All Meals'!$A$12:$V$61,4),0.25))","v":null},{"$f":"IF(B8=0,\"\",IF(E8=\"\",\"No\",IF(E8>=2,\"Yes\",\"No\")))","v":null},{"$f":"IF(B8=0,\"\",FLOOR(VLOOKUP(A8,'All Meals'!$A$12:$V$61,5),0.25))","v":null},{"$f":"IF(B8=0,\"\",IF(G8=\"\",\"No\",IF(G8>=2,\"Yes\",\"No\")))","v":null},{"$f":"IF(B8=0,\"\",FLOOR(VLOOKUP(A8,'All Meals'!$A$12:$V$61,6),0.25))","v":null},{"$f":"IF(B8=0,\"\",FLOOR(VLOOKUP(A8,'All Meals'!$A$12:$V$61,7),0.25))","v":null},{"$f":"IF(B8=0, \"\",VLOOKUP(A8,'All Meals'!$A$12:$V$61,10))","v":null},{"$f":"IF(B8=0,\"\",IF(K8=\"\",\"No\",IF(K8>=1,\"Yes\",\"No\")))","v":null},{"$f":"IF(B8=0, \"\",VLOOKUP(A8,'All Meals'!$A$12:$V$61,13))","v":null},{"$f":"IF(B8=0, \"\",VLOOKUP(A8,'All Meals'!$A$12:$V$61,16))","v":null},{"$f":"IF(B8=0,\"\",IF(N8=\"\",\"No\",IF(N8>=1,\"Yes\",\"No\")))","v":null},{"$f":"IF(B8=0, \"\",VLOOKUP(A8,'All Meals'!$A$12:$V$61,19))","v":null},{"$f":"IF(B8=0, \"\",VLOOKUP(A8,'All Meals'!$A$12:$V$61,20))","v":null},{"$f":"IF(B8=0,\"\",IF(Q8=\"\",\"No\",IF(Q8>=1,\"Yes\",\"No\")))","v":null},"Low-fat (1% or less), flavored",null,null,null,null,false]
[1,{"$f":"INDEX(meals,A9)","v":null},3,null,{"$f":"IF(B9=0,\"\",FLOOR(VLOOKUP(A9,'All Meals'!$A$12:$V$61,4),0.25))","v":null},{"$f":"IF(B9=0,\"\",IF(E9=\"\",\"No\",IF(E9>=2,\"Yes\",\"No\")))","v":null},{"$f":"IF(B9=0,\"\",FLOOR(VLOOKUP(A9,'All Meals'!$A$12:$V$61,5),0.25))","v":null},{"$f":"IF(B9=0,\"\",IF(G9=\"\",\"No\",IF(G9>=2,\"Yes\",\"No\")))","v":null},{"$f":"IF(B9=0,\"\",FLOOR(VLOOKUP(A9,'All Meals'!$A$12:$V$61,6),0.25))","v":null},{"$f":"IF(B9=0,\"\",FLOOR(VLOOKUP(A9,'All Meals'!$A$12:$V$61,7),0.25))","v":null},{"$f":"IF(B9=0, \"\",VLOOKUP(A9,'All Meals'!$A$12:$V$61,10))","v":null},{"$f":"IF(B9=0,\"\",IF(K9=\"\",\"No\",IF(K9>=1,\"Yes\",\"No\")))","v":null},{"$f":"IF(B9=0, \"\",VLOOKUP(A9,'All Meals'!$A$12:$V$61,13))","v":null},{"$f":"IF(B9=0, \"\",VLOOKUP(A9,'All Meals'!$A$12:$V$61,16))","v":null},{"$f":"IF(B9=0,\"\",IF(N9=\"\",\"No\",IF(N9>=1,\"Yes\",\"No\")))","v":null},{"$f":"IF(B9=0, \"\",VLOOKUP(A9,'All Meals'!$A$12:$V$61,19))","v":null},{"$f":"IF(B9=0, \"\",VLOOKUP(A9,'All Meals'!$A$12:$V$61,20))","v":null},{"$f":"IF(B9=0,\"\",IF(Q9=\"\",\"No\",IF(Q9>=1,\"Yes\",\"No\")))","v":null},"Reduced fat (2% fat) or whole, unflavored and flavored",null,null,null,null,false,null,{"$f":"IF(X9=TRUE,\"No\",\"\")","v":null},null,{"$f":"IF(OR(COUNTIF(AC10:AC19, 12)>0, COUNTIF(AC10:AC19,2)>0, COUNTIF(AC10:AC19,4)>0, COUNTIF(AC10:AC19,10)>0, COUNTIF(AC10:AC19,15)>0, COUNTIF(AC10:AC19,17)>0,), \"Remember to enter CREDITABLE amounts of leafy greens!\", \"\")","v":null},null,null,null,null,null,{"$f":"IF(COUNTIF(AI10:AI19,10)>0,\"Remember to enter the CREDITABLE amount of tomato paste!\",\"\")","v":null},null,null,null,null,null,{"$f":"IF(SUM(AO10:AO19)>10, \"If crediting as a vegetable do not also credit as a meat/meat alternate\", \"\")","v":null}]
[1,{"$f":"INDEX(meals,A10)","v":null},4,null,{"$f":"IF(B10=0,\"\",FLOOR(VLOOKUP(A10,'All Meals'!$A$12:$V$61,4),0.25))","v":null},{"$f":"IF(B10=0,\"\",IF(E10=\"\",\"No\",IF(E10>=2,\"Yes\",\"No\")))","v":null},{"$f":"IF(B10=0,\"\",FLOOR(VLOOKUP(A10,'All Meals'!$A$12:$V$61,5),0.25))","v":null},{"$f":"IF(B10=0,\"\",IF(G10=\"\",\"No\",IF(G10>=2,\"Yes\",\"No\")))","v":null},{"$f":"IF(B10=0,\"\",FLOOR(VLOOKUP(A10,'All Meals'!$A$12:$V$61,6),0.25))","v":null},{"$f":"IF(B10=0,\"\",FLOOR(VLOOKUP(A10,'All Meals'!$A$12:$V$61,7),0.25))","v":null},{"$f":"IF(B10=0, \"\",VLOOKUP(A10,'All Meals'!$A$12:$V$61,10))","v":null},{"$f":"IF(B10=0,\"\",IF(K10=\"\",\"No\",IF(K10>=1,\"Yes\",\"No\")))","v":null},{"$f":"IF(B10=0, \"\",VLOOKUP(A10,'All Meals'!$A$12:$V$61,13))","v":null},{"$f":"IF(B10=0, \"\",VLOOKUP(A10,'All Meals'!$A$12:$V$61,16))","v":null},{"$f":"IF(B10=0,\"\",IF(N10=\"\",\"No\",IF(N10>=1,\"Yes\",\"No\")))","v":null},{"$f":"IF(B10=0, \"\",VLOOKUP(A10,'All Meals'!$A$12:$V$61,19))","v":null},{"$f":"IF(B10=0, \"\",VLOOKUP(A10,'All Meals'!$A$12:$V$61,20))","v":null},{"$f":"IF(B10=0,\"\",IF(Q10=\"\",\"No\",IF(Q10>=1,\"Yes\",\"No\")))","v":null},null,null,null,null,null,null,null,null,null,null,1,{"$f":"INDEX(GREEN,AC10)","v":null},null,1,{"$f":"IF(AD10=0,\"\",INDEX(Cups,AF10))","v":null},null,1,{"$f":"INDEX(RED,AI10)","v":null},null,1,{"$f":"IF(AJ10=0, \"\", INDEX(Cups,AL10))","v":null},null,1,{"$f":"INDEX(BEANS,AO10)","v":null},null,1,{"$f":"IF(AP10=0,\"\",INDEX(Cups,AR10))","v":null},null,1,{"$f":"INDEX(STARCHY,AU10)","v":null},null,1,{"$f":"IF(AV10=0,\"\",INDEX(Cups,AX10))","v":null},null,1,{"$f":"INDEX(OTHER,BA10)","v":null},null,1,{"$f":"IF(BB10=0,\"\",INDEX(Cups,BD10))","v":null}]
[1,{"$f":"INDEX(meals,A11)","v":null},5,null,{"$f":"IF(B11=0,\"\",FLOOR(VLOOKUP(A11,'All Meals'!$A$12:$V$61,4),0.25))","v":null},{"$f":"IF(B11=0,\"\",IF(E11=\"\",\"No\",IF(E11>=2,\"Yes\",\"No\")))","v":null},{"$f":"IF(B11=0,\"\",FLOOR(VLOOKUP(A11,'All Meals'!$A$12:$V$61,5),0.25))","v":null},{"$f":"IF(B11=0,\"\",IF(G11=\"\",\"No\",IF(G11>=2,\"Yes\",\"No\")))","v":null},{"$f":"IF(B11=0,\"\",FLOOR(VLOOKUP(A11,'All Meals'!$A$12:$V$61,6),0.25))","v":null},{"$f":"IF(B11=0,\"\",FLOOR(VLOOKUP(A11,'All Meals'!$A$12:$V$61,7),0.25))","v":null},{"$f":"IF(B11=0, \"\",VLOOKUP(A11,'All Meals'!$A$12:$V$61,10))","v":null},{"$f":"IF(B11=0,\"\",IF(K11=\"\",\"No\",IF(K11>=1,\"Yes\",\"No\")))","v":null},{"$f":"IF(B11=0, \"\",VLOOKUP(A11,'All Meals'!$A$12:$V$61,13))","v":null},{"$f":"IF(B11=0, \"\",VLOOKUP(A11,'All Meals'!$A$12:$V$61,16))","v":null},{"$f":"IF(B11=0,\"\",IF(N11=\"\",\"No\",IF(N11>=1,\"Yes\",\"No\")))","v":null},{"$f":"IF(B11=0, \"\",VLOOKUP(A11,'All Meals'!$A$12:$V$61,19))","v":null},{"$f":"IF(B11=0, \"\",VLOOKUP(A11,'All Meals'!$A$12:$V$61,20))","v":null},{"$f":"IF(B11=0,\"\",IF(Q11=\"\",\"No\",IF(Q11>=1,\"Yes\",\"No\")))","v":null},null,"OPTIONAL Tools to Assist in Fraction and Decimal Calculations",null,null,null,null,null,null,null,null,1,{"$f":"INDEX(GREEN,AC11)","v":null},null,1,{"$f":"IF(AD11=0,\"\",INDEX(Cups,AF11))","v":null},null,1,{"$f":"INDEX(RED,AI11)","v":null},null,1,{"$f":"IF(AJ11=0, \"\", INDEX(Cups,AL11))","v":null},null,1,{"$f":"INDEX(BEANS,AO11)","v":null},null,1,{"$f":"IF(AP11=0,\"\",INDEX(Cups,AR11))","v":null},null,1,{"$f":"INDEX(STARCHY,AU11)","v":null},null,1,{"$f":"IF(AV11=0,\"\",INDEX(Cups,AX11))","v":null},null,1,{"$f":"INDEX(OTHER,BA11)","v":null},null,1,{"$f":"IF(BB11=0,\"\",INDEX(Cups,BD11))","v":null}]
[1,{"$f":"INDEX(meals,A12)","v":null},6,null,{"$f":"IF(B12=0,\"\",FLOOR(VLOOKUP(A12,'All Meals'!$A$12:$V$61,4),0.25))","v":null},{"$f":"IF(B12=0,\"\",IF(E12=\"\",\"No\",IF(E12>=2,\"Yes\",\"No\")))","v":null},{"$f":"IF(B12=0,\"\",FLOOR(VLOOKUP(A12,'All Meals'!$A$12:$V$61,5),0.25))","v":null},{"$f":"IF(B12=0,\"\",IF(G12=\"\",\"No\",IF(G12>=2,\"Yes\",\"No\")))","v":null},{"$f":"IF(B12=0,\"\",FLOOR(VLOOKUP(A12,'All Meals'!$A$12:$V$61,6),0.25))","v":null},{"$f":"IF(B12=0,\"\",FLOOR(VLOOKUP(A12,'All Meals'!$A$12:$V$61,7),0.25))","v":null},{"$f":"IF(B12=0, \"\",VLOOKUP(A12,'All Meals'!$A$12:$V$61,10))","v":null},{"$f":"IF(B12=0,\"\",IF(K12=\"\",\"No\",IF(K12>=1,\"Yes\",\"No\")))","v":null},{"$f":"IF(B12=0, \"\",VLOOKUP(A12,'All Meals'!$A$12:$V$61,13))","v":null},{"$f":"IF(B12=0, \"\",VLOOKUP(A12,'All Meals'!$A$12:$V$61,16))","v":null},{"$f":"IF(B12=0,\"\",IF(N12=\"\",\"No\",IF(N12>=1,\"Yes\",\"No\")))","v":null},{"$f":"IF(B12=0, \"\",VLOOKUP(A12,'All Meals'!$A$12:$V$61,19))","v":null},{"$f":"IF(B12=0, \"\",VLOOKUP(A12,'All Meals'!$A$12:$V$61,20))","v":null},{"$f":"IF(B12=0,\"\",IF(Q12=\"\",\"No\",IF(Q12>=1,\"Yes\",\"No\")))","v":null},null,null,null,null,null,null,null,null,null,null,1,{"$f":"INDEX(GREEN,AC12)","v":null},null,1,{"$f":"IF(AD12=0,\"\",INDEX(Cups,AF12))","v":null},null,1,{"$f":"INDEX(RED,AI12)","v":null},null,1,{"$f":"IF(AJ12=0, \"\", INDEX(Cups,AL12))","v":null},null,1,{"$f":"INDEX(BEANS,AO12)","v":null},null,1,{"$f":"IF(AP12=0,\"\",INDEX(Cups,AR12))","v":null},null,1,{"$f":"INDEX(STARCHY,AU12)","v":null},null,1,{"$f":"IF(AV12=0,\"\",INDEX(Cups,AX12))","v":null},null,1,{"$f":"INDEX(OTHER,BA12)","v":null},null,1,{"$f":"IF(BB12=0,\"\",INDEX(Cups,BD12))","v":null}]
[1,{"$f":"INDEX(meals,A13)","v":null},7,null,{"$f":"IF(B13=0,\"\",FLOOR(VLOOKUP(A13,'All Meals'!$A$12:$V$61,4),0.25))","v":null},{"$f":"IF(B13=0,\"\",IF(E13=\"\",\"No\",IF(E13>=2,\"Yes\",\"No\")))","v":null},{"$f":"IF(B13=0,\"\",FLOOR(VLOOKUP(A13,'All Meals'!$A$12:$V$61,5),0.25))","v":null},{"$f":"IF(B13=0,\"\",IF(G13=\"\",\"No\",IF(G13>=2,\"Yes\",\"No\")))","v":null},{"$f":"IF(B13=0,\"\",FLOOR(VLOOKUP(A13,'All Meals'!$A$12:$V$61,6),0.25))","v":null},{"$f":"IF(B13=0,\"\",FLOOR(VLOOKUP(A13,'All Meals'!$A$12:$V$61,7),0.25))","v":null},{"$f":"IF(B13=0, \"\",VLOOKUP(A13,'All Meals'!$A$12:$V$61,10))","v":null},{"$f":"IF(B13=0,\"\",IF(K13=\"\",\"No\",IF(K13>=1,\"Yes\",\"No\")))","v":null},{"$f":"IF(B13=0, \"\",VLOOKUP(A13,'All Meals'!$A$12:$V$61,13))","v":null},{"$f":"IF(B13=0, \"\",VLOOKUP(A13,'All Meals'!$A$12:$V$61,16))","v":null},{"$f":"IF(B13=0,\"\",IF(N13=\"\",\"No\",IF(N13>=1,\"Yes\",\"No\")))","v":null},{"$f":"IF(B13=0, \"\",VLOOKUP(A13,'All Meals'!$A$12:$V$61,19))","v":null},{"$f":"IF(B13=0, \"\",VLOOKUP(A13,'All Meals'!$A$12:$V$61,20))","v":null},{"$f":"IF(B13=0,\"\",IF(Q13=\"\",\"No\",IF(Q13>=1,\"Yes\",\"No\")))","v":null},null,"Fraction Calculator: \nUse this calculator to add the number of cups.",null,null,1,{"$f":"INDEX(Cups,W13)","v":null},null,null,null,null,1,{"$f":"INDEX(GREEN,AC13)","v":null},null,1,{"$f":"IF(AD13=0,\"\",INDEX(Cups,AF13))","v":null},null,1,{"$f":"INDEX(RED,AI13)","v":null},null,1,{"$f":"IF(AJ13=0, \"\", INDEX(Cups,AL13))","v":null},null,1,{"$f":"INDEX(BEANS,AO13)","v":null},null,1,{"$f":"IF(AP13=0,\"\",INDEX(Cups,AR13))","v":null},null,1,{"$f":"INDEX(STARCHY,AU13)","v":null},null,1,{"$f":"IF(AV13=0,\"\",INDEX(Cups,AX13))","v":null},null,1,{"$f":"INDEX(OTHER,BA13)","v":null},null,1,{"$f":"IF(BB13=0,\"\",INDEX(Cups,BD13))","v":null}]
[1,{"$f":"INDEX(meals,A14)","v":null},8,null,{"$f":"IF(B14=0,\"\",FLOOR(VLOOKUP(A14,'All Meals'!$A$12:$V$61,4),0.25))","v":null},{"$f":"IF(B14=0,\"\",IF(E14=\"\",\"No\",IF(E14>=2,\"Yes\",\"No\")))","v":null},{"$f":"IF(B14=0,\"\",FLOOR(VLOOKUP(A14,'All Meals'!$A$12:$V$61,5),0.25))","v":null},{"$f":"IF(B14=0,\"\",IF(G14=\"\",\"No\",IF(G14>=2,\"Yes\",\"No\")))","v":null},{"$f":"IF(B14=0,\"\",FLOOR(VLOOKUP(A14,'All Meals'!$A$12:$V$61,6),0.25))","v":null},{"$f":"IF(B14=0,\"\",FLOOR(VLOOKUP(A14,'All Meals'!$A$12:$V$61,7),0.25))","v":null},{"$f":"IF(B14=0, \"\",VLOOKUP(A14,'All Meals'!$A$12:$V$61,10))","v":null},{"$f":"IF(B14=0,\"\",IF(K14=\"\",\"No\",IF(K14>=1,\"Yes\",\"No\")))","v":null},{"$f":"IF(B14=0, \"\",VLOOKUP(A14,'All Meals'!$A$12:$V$61,13))","v":null},{"$f":"IF(B14=0, \"\",VLOOKUP(A14,'All Meals'!$A$12:$V$61,16))","v":null},{"$f":"IF(B14=0,\"\",IF(N14=\"\",\"No\",IF(N14>=1,\"Yes\",\"No\")))","v":null},{"$f":"IF(B14=0, \"\",VLOOKUP(A14,'All Meals'!$A$12:$V$61,19))","v":null},{"$f":"IF(B14=0, \"\",VLOOKUP(A14,'All Meals'!$A$12:$V$61,20))","v":null},{"$f":"IF(B14=0,\"\",IF(Q14=\"\",\"No\",IF(Q14>=1,\"Yes\",\"No\")))","v":null},null,null,null,null,1,{"$f":"INDEX(Cups,W14)","v":null},null,null,null,null,1,{"$f":"INDEX(GREEN,AC14)","v":null},null,1,{"$f":"IF(AD14=0,\"\",INDEX(Cups,AF14))","v":null},null,1,{"$f":"INDEX(RED,AI14)","v":null},null,1,{"$f":"IF(AJ14=0, \"\", INDEX(Cups,AL14))","v":null},null,1,{"$f":"INDEX(BEANS,AO14)","v":null},null,1,{"$f":"IF(AP14=0,\"\",INDEX(Cups,AR14))","v":null},null,1,{"$f":"INDEX(STARCHY,AU14)","v":null},null,1,{"$f":"IF(AV14=0,\"\",INDEX(Cups,AX14))","v":null},null,1,{"$f":"INDEX(OTHER,BA14)","v":null},null,1,{"$f":"IF(BB14=0,\"\",INDEX(Cups,BD14))","v":null}]
[1,{"$f":"INDEX(meals,A15)","v":null},9,null,{"$f":"IF(B15=0,\"\",FLOOR(VLOOKUP(A15,'All Meals'!$A$12:$V$61,4),0.25))","v":null},{"$f":"IF(B15=0,\"\",IF(E15=\"\",\"No\",IF(E15>=2,\"Yes\",\"No\")))","v":null},{"$f":"IF(B15=0,\"\",FLOOR(VLOOKUP(A15,'All Meals'!$A$12:$V$61,5),0.25))","v":null},{"$f":"IF(B15=0,\"\",IF(G15=\"\",\"No\",IF(G15>=2,\"Yes\",\"No\")))","v":null},{"$f":"IF(B15=0,\"\",FLOOR(VLOOKUP(A15,'All Meals'!$A$12:$V$61,6),0.25))","v":null},{"$f":"IF(B15=0,\"\",FLOOR(VLOOKUP(A15,'All Meals'!$A$12:$V$61,7),0.25))","v":null},{"$f":"IF(B15=0, \"\",VLOOKUP(A15,'All Meals'!$A$12:$V$61,10))","v":null},{"$f":"IF(B15=0,\"\",IF(K15=\"\",\"No\",IF(K15>=1,\"Yes\",\"No\")))","v":null},{"$f":"IF(B15=0, \"\",VLOOKUP(A15,'All Meals'!$A$12:$V$61,13))","v":null},{"$f":"IF(B15=0, \"\",VLOOKUP(A15,'All Meals'!$A$12:$V$61,16))","v":null},{"$f":"IF(B15=0,\"\",IF(N15=\"\",\"No\",IF(N15>=1,\"Yes\",\"No\")))","v":null},{"$f":"IF(B15=0, \"\",VLOOKUP(A15,'All Meals'!$A$12:$V$61,19))","v":null},{"$f":"IF(B15=0, \"\",VLOOKUP(A15,'All Meals'!$A$12:$V$61,20))","v":null},{"$f":"IF(B15=0,\"\",IF(Q15=\"\",\"No\",IF(Q15>=1,\"Yes\",\"No\")))","v":null},null,null,null,null,1,{"$f":"INDEX(Cups,W15)","v":null},null,null,null,null,1,{"$f":"INDEX(GREEN,AC15)","v":null},null,1,{"$f":"IF(AD15=0,\"\",INDEX(Cups,AF15))","v":null},null,1,{"$f":"INDEX(RED,AI15)","v":null},null,1,{"$f":"IF(AJ15=0, \"\", INDEX(Cups,AL15))","v":null},null,1,{"$f":"INDEX(BEANS,AO15)","v":null},null,1,{"$f":"IF(AP15=0,\"\",INDEX(Cups,AR15))","v":null},null,1,{"$f":"INDEX(STARCHY,AU15)","v":null},null,1,{"$f":"IF(AV15=0,\"\",INDEX(Cups,AX15))","v":null},null,1,{"$f":"INDEX(OTHER,BA15)","v":null},null,1,{"$f":"IF(BB15=0,\"\",INDEX(Cups,BD15))","v":null}]
[1,{"$f":"INDEX(meals,A16)","v":null},10,null,{"$f":"IF(B16=0,\"\",FLOOR(VLOOKUP(A16,'All Meals'!$A$12:$V$61,4),0.25))","v":null},{"$f":"IF(B16=0,\"\",IF(E16=\"\",\"No\",IF(E16>=2,\"Yes\",\"No\")))","v":null},{"$f":"IF(B16=0,\"\",FLOOR(VLOOKUP(A16,'All Meals'!$A$12:$V$61,5),0.25))","v":null},{"$f":"IF(B16=0,\"\",IF(G16=\"\",\"No\",IF(G16>=2,\"Yes\",\"No\")))","v":null},{"$f":"IF(B16=0,\"\",FLOOR(VLOOKUP(A16,'All Meals'!$A$12:$V$61,6),0.25))","v":null},{"$f":"IF(B16=0,\"\",FLOOR(VLOOKUP(A16,'All Meals'!$A$12:$V$61,7),0.25))","v":null},{"$f":"IF(B16=0, \"\",VLOOKUP(A16,'All Meals'!$A$12:$V$61,10))","v":null},{"$f":"IF(B16=0,\"\",IF(K16=\"\",\"No\",IF(K16>=1,\"Yes\",\"No\")))","v":null},{"$f":"IF(B16=0, \"\",VLOOKUP(A16,'All Meals'!$A$12:$V$61,13))","v":null},{"$f":"IF(B16=0, \"\",VLOOKUP(A16,'All Meals'!$A$12:$V$61,16))","v":null},{"$f":"IF(B16=0,\"\",IF(N16=\"\",\"No\",IF(N16>=1,\"Yes\",\"No\")))","v":null},{"$f":"IF(B16=0, \"\",VLOOKUP(A16,'All Meals'!$A$12:$V$61,19))","v":null},{"$f":"IF(B16=0, \"\",VLOOKUP(A16,'All Meals'!$A$12:$V$61,20))","v":null},{"$f":"IF(B16=0,\"\",IF(Q16=\"\",\"No\",IF(Q16>=1,\"Yes\",\"No\")))","v":null},null,null,null,null,1,{"$f":"INDEX(Cups,W16)","v":null},null,null,null,null,1,{"$f":"INDEX(GREEN,AC16)","v":null},null,1,{"$f":"IF(AD16=0,\"\",INDEX(Cups,AF16))","v":null},null,1,{"$f":"INDEX(RED,AI16)","v":null},null,1,{"$f":"IF(AJ16=0, \"\", INDEX(Cups,AL16))","v":null},null,1,{"$f":"INDEX(BEANS,AO16)","v":null},null,1,{"$f":"IF(AP16=0,\"\",INDEX(Cups,AR16))","v":null},null,1,{"$f":"INDEX(STARCHY,AU16)","v":null},null,1,{"$f":"IF(AV16=0,\"\",INDEX(Cups,AX16))","v":null},null,1,{"$f":"INDEX(OTHER,BA16)","v":null},null,1,{"$f":"IF(BB16=0,\"\",INDEX(Cups,BD16))","v":null}]
[1,{"$f":"INDEX(meals,A17)","v":null},11,null,{"$f":"IF(B17=0,\"\",FLOOR(VLOOKUP(A17,'All Meals'!$A$12:$V$61,4),0.25))","v":null},{"$f":"IF(B17=0,\"\",IF(E17=\"\",\"No\",IF(E17>=2,\"Yes\",\"No\")))","v":null},{"$f":"IF(B17=0,\"\",FLOOR(VLOOKUP(A17,'All Meals'!$A$12:$V$61,5),0.25))","v":null},{"$f":"IF(B17=0,\"\",IF(G17=\"\",\"No\",IF(G17>=2,\"Yes\",\"No\")))","v":null},{"$f":"IF(B17=0,\"\",FLOOR(VLOOKUP(A17,'All Meals'!$A$12:$V$61,6),0.25))","v":null},{"$f":"IF(B17=0,\"\",FLOOR(VLOOKUP(A17,'All Meals'!$A$12:$V$61,7),0.25))","v":null},{"$f":"IF(B17=0, \"\",VLOOKUP(A17,'All Meals'!$A$12:$V$61,10))","v":null},{"$f":"IF(B17=0,\"\",IF(K17=\"\",\"No\",IF(K17>=1,\"Yes\",\"No\")))","v":null},{"$f":"IF(B17=0, \"\",VLOOKUP(A17,'All Meals'!$A$12:$V$61,13))","v":null},{"$f":"IF(B17=0, \"\",VLOOKUP(A17,'All Meals'!$A$12:$V$61,16))","v":null},{"$f":"IF(B17=0,\"\",IF(N17=\"\",\"No\",IF(N17>=1,\"Yes\",\"No\")))","v":null},{"$f":"IF(B17=0, \"\",VLOOKUP(A17,'All Meals'!$A$12:$V$61,19))","v":null},{"$f":"IF(B17=0, \"\",VLOOKUP(A17,'All Meals'!$A$12:$V$61,20))","v":null},{"$f":"IF(B17=0,\"\",IF(Q17=\"\",\"No\",IF(Q17>=1,\"Yes\",\"No\")))","v":null},null,null,null,null,1,{"$f":"INDEX(Cups,W17)","v":null},null,null,null,null,1,{"$f":"INDEX(GREEN,AC17)","v":null},null,1,{"$f":"IF(AD17=0,\"\",INDEX(Cups,AF17))","v":null},null,1,{"$f":"INDEX(RED,AI17)","v":null},null,1,{"$f":"IF(AJ17=0, \"\", INDEX(Cups,AL17))","v":null},null,1,{"$f":"INDEX(BEANS,AO17)","v":null},null,1,{"$f":"IF(AP17=0,\"\",INDEX(Cups,AR17))","v":null},null,1,{"$f":"INDEX(STARCHY,AU17)","v":null},null,1,{"$f":"IF(AV17=0,\"\",INDEX(Cups,AX17))","v":null},null,1,{"$f":"INDEX(OTHER,BA17)","v":null},null,1,{"$f":"IF(BB17=0,\"\",INDEX(Cups,BD17))","v":null}]
[1,{"$f":"INDEX(meals,A18)","v":null},12,null,{"$f":"IF(B18=0,\"\",FLOOR(VLOOKUP(A18,'All Meals'!$A$12:$V$61,4),0.25))","v":null},{"$f":"IF(B18=0,\"\",IF(E18=\"\",\"No\",IF(E18>=2,\"Yes\",\"No\")))","v":null},{"$f":"IF(B18=0,\"\",FLOOR(VLOOKUP(A18,'All Meals'!$A$12:$V$61,5),0.25))","v":null},{"$f":"IF(B18=0,\"\",IF(G18=\"\",\"No\",IF(G18>=2,\"Yes\",\"No\")))","v":null},{"$f":"IF(B18=0,\"\",FLOOR(VLOOKUP(A18,'All Meals'!$A$12:$V$61,6),0.25))","v":null},{"$f":"IF(B18=0,\"\",FLOOR(VLOOKUP(A18,'All Meals'!$A$12:$V$61,7),0.25))","v":null},{"$f":"IF(B18=0, \"\",VLOOKUP(A18,'All Meals'!$A$12:$V$61,10))","v":null},{"$f":"IF(B18=0,\"\",IF(K18=\"\",\"No\",IF(K18>=1,\"Yes\",\"No\")))","v":null},{"$f":"IF(B18=0, \"\",VLOOKUP(A18,'All Meals'!$A$12:$V$61,13))","v":null},{"$f":"IF(B18=0, \"\",VLOOKUP(A18,'All Meals'!$A$12:$V$61,16))","v":null},{"$f":"IF(B18=0,\"\",IF(N18=\"\",\"No\",IF(N18>=1,\"Yes\",\"No\")))","v":null},{"$f":"IF(B18=0, \"\",VLOOKUP(A18,'All Meals'!$A$12:$V$61,19))","v":null},{"$f":"IF(B18=0, \"\",VLOOKUP(A18,'All Meals'!$A$12:$V$61,20))","v":null},{"$f":"IF(B18=0,\"\",IF(Q18=\"\",\"No\",IF(Q18>=1,\"Yes\",\"No\")))","v":null},null,null,null,null,null,null,{"$f":"SUM(X13:X17)","v":null},null,null,null,1,{"$f":"INDEX(GREEN,AC18)","v":null},null,1,{"$f":"IF(AD18=0,\"\",INDEX(Cups,AF18))","v":null},null,1,{"$f":"INDEX(RED,AI18)","v":null},null,1,{"$f":"IF(AJ18=0, \"\", INDEX(Cups,AL18))","v":null},null,1,{"$f":"INDEX(BEANS,AO18)","v":null},null,1,{"$f":"IF(AP18=0,\"\",INDEX(Cups,AR18))","v":null},null,1,{"$f":"INDEX(STARCHY,AU18)","v":null},null,1,{"$f":"IF(AV18=0,\"\",INDEX(Cups,AX18))","v":null},null,1,{"$f":"INDEX(OTHER,BA18)","v":null},null,1,{"$f":"IF(BB18=0,\"\",INDEX(Cups,BD18))","v":null}]
[1,{"$f":"INDEX(meals,A19)","v":null},13,null,{"$f":"IF(B19=0,\"\",FLOOR(VLOOKUP(A19,'All Meals'!$A$12:$V$61,4),0.25))","v":null},{"$f":"IF(B19=0,\"\",IF(E19=\"\",\"No\",IF(E19>=2,\"Yes\",\"No\")))","v":null},{"$f":"IF(B19=0,\"\",FLOOR(VLOOKUP(A19,'All Meals'!$A$12:$V$61,5),0.25))","v":null},{"$f":"IF(B19=0,\"\",IF(G19=\"\",\"No\",IF(G19>=2,\"Yes\",\"No\")))","v":null},{"$f":"IF(B19=0,\"\",FLOOR(VLOOKUP(A19,'All Meals'!$A$12:$V$61,6),0.25))","v":null},{"$f":"IF(B19=0,\"\",FLOOR(VLOOKUP(A19,'All Meals'!$A$12:$V$61,7),0.25))","v":null},{"$f":"IF(B19=0, \"\",VLOOKUP(A19,'All Meals'!$A$12:$V$61,10))","v":null},{"$f":"IF(B19=0,\"\",IF(K19=\"\",\"No\",IF(K19>=1,\"Yes\",\"No\")))","v":null},{"$f":"IF(B19=0, \"\",VLOOKUP(A19,'All Meals'!$A$12:$V$61,13))","v":null},{"$f":"IF(B19=0, \"\",VLOOKUP(A19,'All Meals'!$A$12:$V$61,16))","v":null},{"$f":"IF(B19=0,\"\",IF(N19=\"\",\"No\",IF(N19>=1,\"Yes\",\"No\")))","v":null},{"$f":"IF(B19=0, \"\",VLOOKUP(A19,'All Meals'!$A$12:$V$61,19))","v":null},{"$f":"IF(B19=0, \"\",VLOOKUP(A19,'All Meals'!$A$12:$V$61,20))","v":null},{"$f":"IF(B19=0,\"\",IF(Q19=\"\",\"No\",IF(Q19>=1,\"Yes\",\"No\")))","v":null},null,"Decimal/Fraction Converter\n(Rounded down to the nearest 1/8)",null,null,null,null,null,null,null,null,1,{"$f":"INDEX(GREEN,AC19)","v":null},null,1,{"$f":"IF(AD19=0,\"\",INDEX(Cups,AF19))","v":null},null,1,{"$f":"INDEX(RED,AI19)","v":null},null,1,{"$f":"IF(AJ19=0, \"\", INDEX(Cups,AL19))","v":null},null,1,{"$f":"INDEX(BEANS,AO19)","v":null},null,1,{"$f":"IF(AP19=0,\"\",INDEX(Cups,AR19))","v":null},null,1,{"$f":"INDEX(STARCHY,AU19)","v":null},null,1,{"$f":"IF(AV19=0,\"\",INDEX(Cups,AX19))","v":null},null,1,{"$f":"INDEX(OTHER,BA19)","v":null},null,1,{"$f":"IF(BB19=0,\"\",INDEX(Cups,BD19))","v":null}]
[1,{"$f":"INDEX(meals,A20)","v":null},14,null,{"$f":"IF(B20=0,\"\",FLOOR(VLOOKUP(A20,'All Meals'!$A$12:$V$61,4),0.25))","v":null},{"$f":"IF(B20=0,\"\",IF(E20=\"\",\"No\",IF(E20>=2,\"Yes\",\"No\")))","v":null},{"$f":"IF(B20=0,\"\",FLOOR(VLOOKUP(A20,'All Meals'!$A$12:$V$61,5),0.25))","v":null},{"$f":"IF(B20=0,\"\",IF(G20=\"\",\"No\",IF(G20>=2,\"Yes\",\"No\")))","v":null},{"$f":"IF(B20=0,\"\",FLOOR(VLOOKUP(A20,'All Meals'!$A$12:$V$61,6),0.25))","v":null},{"$f":"IF(B20=0,\"\",FLOOR(VLOOKUP(A20,'All Meals'!$A$12:$V$61,7),0.25))","v":null},{"$f":"IF(B20=0, \"\",VLOOKUP(A20,'All Meals'!$A$12:$V$61,10))","v":null},{"$f":"IF(B20=0,\"\",IF(K20=\"\",\"No\",IF(K20>=1,\"Yes\",\"No\")))","v":null},{"$f":"IF(B20=0, \"\",VLOOKUP(A20,'All Meals'!$A$12:$V$61,13))","v":null},{"$f":"IF(B20=0, \"\",VLOOKUP(A20,'All Meals'!$A$12:$V$61,16))","v":null},{"$f":"IF(B20=0,\"\",IF(N20=\"\",\"No\",IF(N20>=1,\"Yes\",\"No\")))","v":null},{"$f":"IF(B20=0, \"\",VLOOKUP(A20,'All Meals'!$A$12:$V$61,19))","v":null},{"$f":"IF(B20=0, \"\",VLOOKUP(A20,'All Meals'!$A$12:$V$61,20))","v":null},{"$f":"IF(B20=0,\"\",IF(Q20=\"\",\"No\",IF(Q20>=1,\"Yes\",\"No\")))","v":null},null,"Enter the decimal you wish to convert to a fraction in the box:",null,null,null,null,null,null,null,{"$f":"IF(OR(COUNTIF(AC10:AC19,18)>0, COUNTIF(AI10:AI19, 13)>0, COUNTIF(AO10:AO19, 12)>0, COUNTIF(AU10:AU19, 11)>0,COUNTIF(BA10:BA19,34)>0, COUNTIF(BA10:BA19,35)>0, COUNTIF(BA10:BA19,36)>0,COUNTIF(BA10:BA19,37)>0, COUNTIF(BA10:BA19,38)>0, COUNTIF(BA10:BA19,39)>0), \"You entered an unspecified or extra other vegetable above, please enter the name of the vegetable in the appropriate subgroup below\", \"\")","v":null}]
[1,{"$f":"INDEX(meals,A21)","v":null},15,null,{"$f":"IF(B21=0,\"\",FLOOR(VLOOKUP(A21,'All Meals'!$A$12:$V$61,4),0.25))","v":null},{"$f":"IF(B21=0,\"\",IF(E21=\"\",\"No\",IF(E21>=2,\"Yes\",\"No\")))","v":null},{"$f":"IF(B21=0,\"\",FLOOR(VLOOKUP(A21,'All Meals'!$A$12:$V$61,5),0.25))","v":null},{"$f":"IF(B21=0,\"\",IF(G21=\"\",\"No\",IF(G21>=2,\"Yes\",\"No\")))","v":null},{"$f":"IF(B21=0,\"\",FLOOR(VLOOKUP(A21,'All Meals'!$A$12:$V$61,6),0.25))","v":null},{"$f":"IF(B21=0,\"\",FLOOR(VLOOKUP(A21,'All Meals'!$A$12:$V$61,7),0.25))","v":null},{"$f":"IF(B21=0, \"\",VLOOKUP(A21,'All Meals'!$A$12:$V$61,10))","v":null},{"$f":"IF(B21=0,\"\",IF(K21=\"\",\"No\",IF(K21>=1,\"Yes\",\"No\")))","v":null},{"$f":"IF(B21=0, \"\",VLOOKUP(A21,'All Meals'!$A$12:$V$61,13))","v":null},{"$f":"IF(B21=0, \"\",VLOOKUP(A21,'All Meals'!$A$12:$V$61,16))","v":null},{"$f":"IF(B21=0,\"\",IF(N21=\"\",\"No\",IF(N21>=1,\"Yes\",\"No\")))","v":null},{"$f":"IF(B21=0, \"\",VLOOKUP(A21,'All Meals'!$A$12:$V$61,19))","v":null},{"$f":"IF(B21=0, \"\",VLOOKUP(A21,'All Meals'!$A$12:$V$61,20))","v":null},{"$f":"IF(B21=0,\"\",IF(Q21=\"\",\"No\",IF(Q21>=1,\"Yes\",\"No\")))","v":null},null,null,null,null,null,null,null,null,null,"Unspecified Dark Green Vegetables",null,null,null,null,null,"Unspecified Red/Orange Vegetables",null,null,null,null,null,"Unspecified Beans/Peas",null,null,null,null,null,"Unspecified Starchy Vegetables",null,null,null,null,null,"Unspecified Other Vegetables"]
[1,{"$f":"INDEX(meals,A22)","v":null},16,null,{"$f":"IF(B22=0,\"\",FLOOR(VLOOKUP(A22,'All Meals'!$A$12:$V$61,4),0.25))","v":null},{"$f":"IF(B22=0,\"\",IF(E22=\"\",\"No\",IF(E22>=2,\"Yes\",\"No\")))","v":null},{"$f":"IF(B22=0,\"\",FLOOR(VLOOKUP(A22,'All Meals'!$A$12:$V$61,5),0.25))","v":null},{"$f":"IF(B22=0,\"\",IF(G22=\"\",\"No\",IF(G22>=2,\"Yes\",\"No\")))","v":null},{"$f":"IF(B22=0,\"\",FLOOR(VLOOKUP(A22,'All Meals'!$A$12:$V$61,6),0.25))","v":null},{"$f":"IF(B22=0,\"\",FLOOR(VLOOKUP(A22,'All Meals'!$A$12:$V$61,7),0.25))","v":null},{"$f":"IF(B22=0, \"\",VLOOKUP(A22,'All Meals'!$A$12:$V$61,10))","v":null},{"$f":"IF(B22=0,\"\",IF(K22=\"\",\"No\",IF(K22>=1,\"Yes\",\"No\")))","v":null},{"$f":"IF(B22=0, \"\",VLOOKUP(A22,'All Meals'!$A$12:$V$61,13))","v":null},{"$f":"IF(B22=0, \"\",VLOOKUP(A22,'All Meals'!$A$12:$V$61,16))","v":null},{"$f":"IF(B22=0,\"\",IF(N22=\"\",\"No\",IF(N22>=1,\"Yes\",\"No\")))","v":null},{"$f":"IF(B22=0, \"\",VLOOKUP(A22,'All Meals'!$A$12:$V$61,19))","v":null},{"$f":"IF(B22=0, \"\",VLOOKUP(A22,'All Meals'!$A$12:$V$61,20))","v":null},{"$f":"IF(B22=0,\"\",IF(Q22=\"\",\"No\",IF(Q22>=1,\"Yes\",\"No\")))","v":null},null,"The decimal entered above has been converted to the following fraction:",null,null,null,null,{"$f":"FLOOR(Y20,0.125)","v":null}]
[1,{"$f":"INDEX(meals,A23)","v":null},17,null,{"$f":"IF(B23=0,\"\",FLOOR(VLOOKUP(A23,'All Meals'!$A$12:$V$61,4),0.25))","v":null},{"$f":"IF(B23=0,\"\",IF(E23=\"\",\"No\",IF(E23>=2,\"Yes\",\"No\")))","v":null},{"$f":"IF(B23=0,\"\",FLOOR(VLOOKUP(A23,'All Meals'!$A$12:$V$61,5),0.25))","v":null},{"$f":"IF(B23=0,\"\",IF(G23=\"\",\"No\",IF(G23>=2,\"Yes\",\"No\")))","v":null},{"$f":"IF(B23=0,\"\",FLOOR(VLOOKUP(A23,'All Meals'!$A$12:$V$61,6),0.25))","v":null},{"$f":"IF(B23=0,\"\",FLOOR(VLOOKUP(A23,'All Meals'!$A$12:$V$61,7),0.25))","v":null},{"$f":"IF(B23=0, \"\",VLOOKUP(A23,'All Meals'!$A$12:$V$61,10))","v":null},{"$f":"IF(B23=0,\"\",IF(K23=\"\",\"No\",IF(K23>=1,\"Yes\",\"No\")))","v":null},{"$f":"IF(B23=0, \"\",VLOOKUP(A23,'All Meals'!$A$12:$V$61,13))","v":null},{"$f":"IF(B23=0, \"\",VLOOKUP(A23,'All Meals'!$A$12:$V$61,16))","v":null},{"$f":"IF(B23=0,\"\",IF(N23=\"\",\"No\",IF(N23>=1,\"Yes\",\"No\")))","v":null},{"$f":"IF(B23=0, \"\",VLOOKUP(A23,'All Meals'!$A$12:$V$61,19))","v":null},{"$f":"IF(B23=0, \"\",VLOOKUP(A23,'All Meals'!$A$12:$V$61,20))","v":null},{"$f":"IF(B23=0,\"\",IF(Q23=\"\",\"No\",IF(Q23>=1,\"Yes\",\"No\")))","v":null}]
[1,{"$f":"INDEX(meals,A24)","v":null},18,null,{"$f":"IF(B24=0,\"\",FLOOR(VLOOKUP(A24,'All Meals'!$A$12:$V$61,4),0.25))","v":null},{"$f":"IF(B24=0,\"\",IF(E24=\"\",\"No\",IF(E24>=2,\"Yes\",\"No\")))","v":null},{"$f":"IF(B24=0,\"\",FLOOR(VLOOKUP(A24,'All Meals'!$A$12:$V$61,5),0.25))","v":null},{"$f":"IF(B24=0,\"\",IF(G24=\"\",\"No\",IF(G24>=2,\"Yes\",\"No\")))","v":null},{"$f":"IF(B24=0,\"\",FLOOR(VLOOKUP(A24,'All Meals'!$A$12:$V$61,6),0.25))","v":null},{"$f":"IF(B24=0,\"\",FLOOR(VLOOKUP(A24,'All Meals'!$A$12:$V$61,7),0.25))","v":null},{"$f":"IF(B24=0, \"\",VLOOKUP(A24,'All Meals'!$A$12:$V$61,10))","v":null},{"$f":"IF(B24=0,\"\",IF(K24=\"\",\"No\",IF(K24>=1,\"Yes\",\"No\")))","v":null},{"$f":"IF(B24=0, \"\",VLOOKUP(A24,'All Meals'!$A$12:$V$61,13))","v":null},{"$f":"IF(B24=0, \"\",VLOOKUP(A24,'All Meals'!$A$12:$V$61,16))","v":null},{"$f":"IF(B24=0,\"\",IF(N24=\"\",\"No\",IF(N24>=1,\"Yes\",\"No\")))","v":null},{"$f":"IF(B24=0, \"\",VLOOKUP(A24,'All Meals'!$A$12:$V$61,19))","v":null},{"$f":"IF(B24=0, \"\",VLOOKUP(A24,'All Meals'!$A$12:$V$61,20))","v":null},{"$f":"IF(B24=0,\"\",IF(Q24=\"\",\"No\",IF(Q24>=1,\"Yes\",\"No\")))","v":null}]
[1,{"$f":"INDEX(meals,A25)","v":null},19,null,{"$f":"IF(B25=0,\"\",FLOOR(VLOOKUP(A25,'All Meals'!$A$12:$V$61,4),0.25))","v":null},{"$f":"IF(B25=0,\"\",IF(E25=\"\",\"No\",IF(E25>=2,\"Yes\",\"No\")))","v":null},{"$f":"IF(B25=0,\"\",FLOOR(VLOOKUP(A25,'All Meals'!$A$12:$V$61,5),0.25))","v":null},{"$f":"IF(B25=0,\"\",IF(G25=\"\",\"No\",IF(G25>=2,\"Yes\",\"No\")))","v":null},{"$f":"IF(B25=0,\"\",FLOOR(VLOOKUP(A25,'All Meals'!$A$12:$V$61,6),0.25))","v":null},{"$f":"IF(B25=0,\"\",FLOOR(VLOOKUP(A25,'All Meals'!$A$12:$V$61,7),0.25))","v":null},{"$f":"IF(B25=0, \"\",VLOOKUP(A25,'All Meals'!$A$12:$V$61,10))","v":null},{"$f":"IF(B25=0,\"\",IF(K25=\"\",\"No\",IF(K25>=1,\"Yes\",\"No\")))","v":null},{"$f":"IF(B25=0, \"\",VLOOKUP(A25,'All Meals'!$A$12:$V$61,13))","v":null},{"$f":"IF(B25=0, \"\",VLOOKUP(A25,'All Meals'!$A$12:$V$61,16))","v":null},{"$f":"IF(B25=0,\"\",IF(N25=\"\",\"No\",IF(N25>=1,\"Yes\",\"No\")))","v":null},{"$f":"IF(B25=0, \"\",VLOOKUP(A25,'All Meals'!$A$12:$V$61,19))","v":null},{"$f":"IF(B25=0, \"\",VLOOKUP(A25,'All Meals'!$A$12:$V$61,20))","v":null},{"$f":"IF(B25=0,\"\",IF(Q25=\"\",\"No\",IF(Q25>=1,\"Yes\",\"No\")))","v":null}]
[1,{"$f":"INDEX(meals,A26)","v":null},20,null,{"$f":"IF(B26=0,\"\",FLOOR(VLOOKUP(A26,'All Meals'!$A$12:$V$61,4),0.25))","v":null},{"$f":"IF(B26=0,\"\",IF(E26=\"\",\"No\",IF(E26>=2,\"Yes\",\"No\")))","v":null},{"$f":"IF(B26=0,\"\",FLOOR(VLOOKUP(A26,'All Meals'!$A$12:$V$61,5),0.25))","v":null},{"$f":"IF(B26=0,\"\",IF(G26=\"\",\"No\",IF(G26>=2,\"Yes\",\"No\")))","v":null},{"$f":"IF(B26=0,\"\",FLOOR(VLOOKUP(A26,'All Meals'!$A$12:$V$61,6),0.25))","v":null},{"$f":"IF(B26=0,\"\",FLOOR(VLOOKUP(A26,'All Meals'!$A$12:$V$61,7),0.25))","v":null},{"$f":"IF(B26=0, \"\",VLOOKUP(A26,'All Meals'!$A$12:$V$61,10))","v":null},{"$f":"IF(B26=0,\"\",IF(K26=\"\",\"No\",IF(K26>=1,\"Yes\",\"No\")))","v":null},{"$f":"IF(B26=0, \"\",VLOOKUP(A26,'All Meals'!$A$12:$V$61,13))","v":null},{"$f":"IF(B26=0, \"\",VLOOKUP(A26,'All Meals'!$A$12:$V$61,16))","v":null},{"$f":"IF(B26=0,\"\",IF(N26=\"\",\"No\",IF(N26>=1,\"Yes\",\"No\")))","v":null},{"$f":"IF(B26=0, \"\",VLOOKUP(A26,'All Meals'!$A$12:$V$61,19))","v":null},{"$f":"IF(B26=0, \"\",VLOOKUP(A26,'All Meals'!$A$12:$V$61,20))","v":null},{"$f":"IF(B26=0,\"\",IF(Q26=\"\",\"No\",IF(Q26>=1,\"Yes\",\"No\")))","v":null}]

{"sheet":"Weekly Report","index":11,"n_rows":34,"n_cols":20,"rows_kept":34,"cut":false,"hidden":false,"merged":[[4,17,4,18],[0,0,1,8],[1,13,1,16],[12,11,12,20],[9,13,9,14],[8,11,9,12],[3,13,3,14],[4,13,4,14],[3,15,3,16],[3,11,4,12],[4,15,4,16],[3,19,3,20],[3,17,3,18],[4,19,4,20],[8,19,8,20],[8,15,8,16],[8,17,8,18],[25,0,25,5],[13,11,20,20],[9,15,9,16],[9,17,9,18],[8,13,8,14],[9,19,9,20]]}
["Weekly Report\nLunch, Grades 9-12"]
[null,null,null,null,null,null,null,null,null,null,null,null,null,"Cells shaded this color means the daily minimum for the component is NOT met"]
[]
["Go to instructions","Monday","Tuesday","Wednesday","Thursday","Friday","Weekly Total","Weekly Requirement (cups)","Weekly Requirement Check",null,null,"Weekly Fruit Juice Limit Check\n(no more than half of total fruit)\n",null,"Total Weekly Fruit",null,"Total Weekly Fruit Juice",null,"Percent of total weekly fruit that is juice",null,"Weekly requirement check"]
["Minimum Fruit (cups)",{"$f":"MIN(Monday!K7:K26)","v":null},{"$f":"MIN(Tuesday!K7:K26)","v":null},{"$f":"MIN(Wednesday!K7:K26)","v":null},{"$f":"MIN(Thursday!K7:K26)","v":null},{"$f":"MIN(Friday!K7:K26)","v":null},{"$f":"SUM(B5:F5)","v":null},5,{"$f":"IF(G5>=H5, \"Yes\", \"No\")","v":null},null,null,null,null,{"$f":"S6","v":null},null,{"$f":"S7","v":null},null,{"$f":"IF(ISERROR(P5/N5),0, P5/N5)","v":null},null,{"$f":"IF(R5<=0.5, \"Yes\", \"No\")","v":null}]
[null,null,null,null,null,null,null,null,null,null,null,null,"Fruit",{"$f":"MAX(Monday!K7:K26)","v":null},{"$f":"MAX(Tuesday!K7:K26)","v":null},{"$f":"MAX(Wednesday!K7:K26)","v":null},{"$f":"MAX(Thursday!K7:K26)","v":null},{"$f":"MAX(Friday!K7:K26)","v":null},{"$f":"SUM(N6:R6)","v":null}]
[null,null,null,null,null,null,null,null,null,null,null,null,"Juice",{"$f":"MAX(Monday!M7:M26)","v":null},{"$f":"MAX(Tuesday!M7:M26)","v":null},{"$f":"MAX(Wednesday!M7:M26)","v":null},{"$f":"MAX(Thursday!M7:M26)","v":null},{"$f":"MAX(Friday!M7:M26)","v":null},{"$f":"SUM(N7:R7)","v":null}]
[]
[null,"Monday","Tuesday","Wednesday","Thursday","Friday","Weekly Total","Weekly Requirement (cups)","Weekly Requirement Check",null,null,"Weekly Vegetable Juice Limit Check\n(no more than half of total vegetables)\n",null,"Total Weekly Vegetables",null,"Total Weekly Vegetable Juice",null,"Percent of total weekly vegetables that is juice",null,"Weekly requirement check"]
["Minimum Vegetables",{"$f":"MIN(Monday!N7:N26)","v":null},{"$f":"MIN(Tuesday!N7:N26)","v":null},{"$f":"MIN(Wednesday!N7:N26)","v":null},{"$f":"MIN(Thursday!N7:N26)","v":null},{"$f":"MIN(Friday!N7:N26)","v":null},{"$f":"SUM(B10:F10)","v":null},5,{"$f":"IF(G10>=H10, \"Yes\", \"No\")","v":null},null,null,null,null,{"$f":"S11","v":null},null,{"$f":"S12","v":null},null,{"$f":"IF(ISERROR(P10/N10),0, P10/N10)","v":null},null,{"$f":"IF(R10<=0.5, \"Yes\", \"No\")","v":null}]
[null,null,null,null,null,null,null,null,null,null,null,null,null,{"$f":"MAX(Monday!N7:N26)","v":null},{"$f":"MAX(Tuesday!N7:N26)","v":null},{"$f":"MAX(Wednesday!N7:N26)","v":null},{"$f":"MAX(Thursday!N7:N26)","v":null},{"$f":"MAX(Friday!N7:N26)","v":null},{"$f":"SUM(N11:R11)","v":null}]
[null,null,null,null,null,null,null,null,null,null,null,null,null,{"$f":"MAX(Monday!P7:P26)","v":null},{"$f":"MAX(Tuesday!P7:P26)","v":null},{"$f":"MAX(Wednesday!P7:P26)","v":null},{"$f":"MAX(Thursday!P7:P26)","v":null},{"$f":"MAX(Friday!P7:P26)","v":null},{"$f":"SUM(N12:R12)","v":null}]
["Cups of DARK GREEN ",{"$f":"IF(Monday!AR3=TRUE,SUM('Optional VegBar'!G16,Monday!AG7),Monday!AG7)","v":null},{"$f":"IF(Tuesday!AR3=TRUE,SUM('Optional VegBar'!G16,Tuesday!AG7),Tuesday!AG7)","v":null},{"$f":"IF(Wednesday!AR3=TRUE,SUM('Optional VegBar'!G16,Wednesday!AG7),Wednesday!AG7)","v":null},{"$f":"IF(Thursday!AR3=TRUE,SUM('Optional VegBar'!G16,Thursday!AG7),Thursday!AG7)","v":null},{"$f":"IF(Friday!AR3=TRUE,SUM('Optional VegBar'!G16,Friday!AG7),Friday!AG7)","v":null},{"$f":"SUM(B13:F13)","v":null},0.5,{"$f":"IF(G13>=H13, \"Yes\", \"No\")","v":null},null,null,"Comments Section"]
["Cups of RED/ORANGE",{"$f":"IF(Monday!AR3=TRUE, SUM('Optional VegBar'!M16,Monday!AM7),Monday!AM7)","v":null},{"$f":"IF(Tuesday!AR3=TRUE, SUM('Optional VegBar'!M16,Tuesday!AM7),Tuesday!AM7)","v":null},{"$f":"IF(Wednesday!AR3=TRUE, SUM('Optional VegBar'!M16,Wednesday!AM7),Wednesday!AM7)","v":null},{"$f":"IF(Thursday!AR3=TRUE, SUM('Optional VegBar'!M16,Thursday!AM7),Thursday!AM7)","v":null},{"$f":"IF(Friday!AR3=TRUE, SUM('Optional VegBar'!M16,Friday!AM7),Friday!AM7)","v":null},{"$f":"SUM(B14:F14)","v":null},1.25,{"$f":"IF(G14>=H14, \"Yes\", \"No\")","v":null}]
[" Cups of BEANS/PEAS(Legumes)",{"$f":"IF(Monday!AR3=TRUE, SUM('Optional VegBar'!S16,Monday!AS7),Monday!AS7)","v":null},{"$f":"IF(Tuesday!AR3=TRUE, SUM('Optional VegBar'!S16,Tuesday!AS7),Tuesday!AS7)","v":null},{"$f":"IF(Wednesday!AR3=TRUE, SUM('Optional VegBar'!S16,Wednesday!AS7),Wednesday!AS7)","v":null},{"$f":"IF(Thursday!AR3=TRUE, SUM('Optional VegBar'!S16,Thursday!AS7),Thursday!AS7)","v":null},{"$f":"IF(Friday!AR3=TRUE, SUM('Optional VegBar'!S16,Friday!AS7),Friday!AS7)","v":null},{"$f":"SUM(B15:F15)","v":null},0.5,{"$f":"IF(G15>=H15, \"Yes\", \"No\")","v":null}]
["Cups of STARCHY vegetables",{"$f":"IF(Monday!AR3=TRUE, SUM('Optional VegBar'!Y16,Monday!AY7),Monday!AY7)","v":null},{"$f":"IF(Tuesday!AR3=TRUE, SUM('Optional VegBar'!Y16,Tuesday!AY7),Tuesday!AY7)","v":null},{"$f":"IF(Wednesday!AR3=TRUE, SUM('Optional VegBar'!Y16,Wednesday!AY7),Wednesday!AY7)","v":null},{"$f":"IF(Thursday!AR3=TRUE, SUM('Optional VegBar'!Y16,Thursday!AY7),Thursday!AY7)","v":null},{"$f":"IF(Friday!AR3=TRUE, SUM('Optional VegBar'!Y16,Friday!AY7),Friday!AY7)","v":null},{"$f":"SUM(B16:F16)","v":null},0.5,{"$f":"IF(G16>=H16, \"Yes\", \"No\")","v":null}]
["Cups of OTHER\n (any other type of vegetable)",{"$f":"IF(Monday!AR3=TRUE,SUM('Optional VegBar'!AE16,Monday!BE5),Monday!BE5)","v":null},{"$f":"IF(Tuesday!AR3=TRUE,SUM('Optional VegBar'!AE16,Tuesday!BE5),Tuesday!BE5)","v":null},{"$f":"IF(Wednesday!AR3=TRUE,SUM('Optional VegBar'!AE16,Wednesday!BE5),Wednesday!BE5)","v":null},{"$f":"IF(Thursday!AR3=TRUE,SUM('Optional VegBar'!AE16,Thursday!BE5),Thursday!BE5)","v":null},{"$f":"IF(Friday!AR3=TRUE,SUM('Optional VegBar'!AE16,Friday!BE5),Friday!BE5)","v":null},{"$f":"SUM(B17:F17)","v":null},0.75,{"$f":"IF(G17>=H17, \"Yes\", \"No\")","v":null}]
[]
[null,"Monday","Tuesday","Wednesday","Thursday","Friday","Weekly Total","Weekly Requirement\n (oz equivalents)","Weekly Requirement Check"]
["Minimum Meat/Meat Alternate",{"$f":"MIN(Monday!E7:E26)","v":null},{"$f":"MIN(Tuesday!E7:E26)","v":null},{"$f":"MIN(Wednesday!E7:E26)","v":null},{"$f":"MIN(Thursday!E7:E26)","v":null},{"$f":"MIN(Friday!E7:E26)","v":null},{"$f":"SUM(B20:F20)","v":null},10,{"$f":"IF(G20>=H20, \"Yes\", \"No\")","v":null}]
["Maximum  Meat/Meat Alternate",{"$f":"MAX(Monday!E7:E26)","v":null},{"$f":"MAX(Tuesday!E7:E26)","v":null},{"$f":"MAX(Wednesday!E7:E26)","v":null},{"$f":"MAX(Thursday!E7:E26)","v":null},{"$f":"MAX(Friday!E7:E26)","v":null},{"$f":"SUM(B21:F21)","v":null},12,{"$f":"IF(G21=0,\"No\",IF(AND(G21<=H21,G21>=H20),\"Yes\",\"No\"))","v":null}]
[]
[null,"Monday","Tuesday","Wednesday","Thursday","Friday","Weekly Total","Weekly Requirement\n (oz equivalents)","Weekly Requirement Check"]
["Minimum Grain",{"$f":"MIN(Monday!G7:G26)","v":null},{"$f":"MIN(Tuesday!G7:G26)","v":null},{"$f":"MIN(Wednesday!G7:G26)","v":null},{"$f":"MIN(Thursday!G7:G26)","v":null},{"$f":"MIN(Friday!G7:G26)","v":null},{"$f":"SUM(B24:F24)","v":null},10,{"$f":"IF(G24>=H24, \"Yes\", \"No\")","v":null}]
["Maximum Grain",{"$f":"MAX(Monday!G7:G26)","v":null},{"$f":"MAX(Tuesday!G7:G26)","v":null},{"$f":"MAX(Wednesday!G7:G26)","v":null},{"$f":"MAX(Thursday!G7:G26)","v":null},{"$f":"MAX(Friday!G7:G26)","v":null},{"$f":"SUM(B25:F25)","v":null},12,{"$f":"IF(G25=0,\"No\",IF(AND(G25<=H25,G25>=H24),\"Yes\",\"No\"))","v":null}]
["Grain Based Dessert Total for all weekly meals","'All Meals'!A1","'All Meals'!A1","'All Meals'!A1","'All Meals'!A1","'All Meals'!A1",{"$f":"SUM(B27:F27)","v":null},"No more 2 oz equivalents",{"$f":"IF(G26<=2, \"Yes\", \"No\")","v":null}]
[null,{"$f":"MAX(Monday!J7:J26)","v":null},{"$f":"MAX(Tuesday!J7:J26)","v":null},{"$f":"MAX(Wednesday!J7:J26)","v":null},{"$f":"MAX(Thursday!J7:J26)","v":null},{"$f":"MAX(Friday!J7:J26)","v":null}]
["Whole Grain Rich Weekly Amount","Weekly Grains Total:",{"$f":"SUM(Monday:Friday!G7:G26)","v":null},"Weekly Whole Grain Rich Total:",{"$f":"SUM(Monday:Friday!I7:I26)","v":null},"Percent of Whole Grain Rich ",{"$f":"IF(ISERROR(E28/C28),0, E28/C28)","v":null},"80% whole grain rich",{"$f":"IF(G28>=0.8,\"Yes\",\"No\")","v":null},3]
[]
[]
[null,"Monday","Tuesday","Wednesday","Thursday","Friday","Weekly Total","Weekly Requirement (cups)","Weekly Requirement Check"]
["Minimum Fluid Milk",{"$f":"MIN(Monday!Q7:Q26)","v":null},{"$f":"MIN(Tuesday!Q7:Q26)","v":null},{"$f":"MIN(Wednesday!Q7:Q26)","v":null},{"$f":"MIN(Thursday!Q7:Q26)","v":null},{"$f":"MIN(Friday!Q7:Q26)","v":null},{"$f":"SUM(B32:F32)","v":null},5,{"$f":"IF(G32>=H32, \"Yes\", \"No\")","v":null}]
["Variety: Skim/fat-free unflavored, Skim/fat-free flavored, Low-fat (less than 1%), unflavored, Low-fat (less than 1%), flavored",{"$f":"Monday!Z5","v":null},{"$f":"Tuesday!Z5","v":null},{"$f":"Wednesday!Z5","v":null},{"$f":"Thursday!Z5","v":null},{"$f":"Friday!Z5","v":null}]
["Reduced fat (2% fat) or whole, unflavored and flavored",{"$f":"Monday!Z9","v":null},{"$f":"Tuesday!Z9","v":null},{"$f":"Wednesday!Z9","v":null},{"$f":"Thursday!Z9","v":null},{"$f":"Friday!Z9","v":null}]

{"sheet":"Weekly Menu","index":12,"n_rows":40,"n_cols":10,"rows_kept":40,"cut":false,"hidden":true,"merged":[[39,2,39,3],[3,0,3,1],[14,0,14,1],[2,0,2,1],[15,0,15,1],[21,0,21,1],[27,0,27,1],[33,0,33,1],[39,0,39,1],[2,2,2,3],[14,2,14,3],[15,2,15,3],[21,2,21,3],[27,2,27,3],[33,2,33,3],[33,4,33,5],[27,6,27,7],[39,6,39,7],[2,4,2,5],[3,4,3,5],[14,4,14,5],[15,4,15,5],[21,4,21,5],[27,4,27,5],[39,4,39,5],[0,0,0,9],[2,8,2,9],[3,8,3,9],[14,8,14,9],[15,8,15,9],[1,0,1,9],[3,2,3,3],[21,8,21,9],[2,6,2,7],[33,8,33,9],[33,6,33,7],[39,8,39,9],[27,8,27,9],[3,6,3,7],[14,6,14,7],[15,6,15,7],[21,6,21,7]]}
["Weekly Reimbursable Meals and Vegetable Subgroups for lunch: Grades 9-12"]
["Go to instructions"]
["Monday","Monday!A1","Tuesday","Tuesday!A1","Wednesday","Wednesday!A1","Thursday","Thursday!A1","Friday","Friday!A1"]
["Reimbursable Meals",null,"Reimbursable Meals",null,"Reimbursable Meals",null,"Reimbursable Meals",null,"Reimbursable Meals"]
["aa=IF(Monday!A7aa=1,\"\",Monday!B7)","aa=IF(Monday!A17aa=1, \"\", Monday!B17)","aa=IF(Tuesday!A7aa=1,\"\",Tuesday!B7)","aa=IF(Tuesday!A17aa=1, \"\", Tuesday!B17)","aa=IF(Wednesday!A7aa=1,\"\",Wednesday!B7)","aa=IF(Wednesday!A17aa=1, \"\", Wednesday!B17)","aa=IF(Thursday!A7aa=1,\"\",Thursday!B7)","aa=IF(Thursday!A17aa=1, \"\", Thursday!B17)","aa=IF(Friday!A7aa=1,\"\",Friday!B7)","aa=IF(Friday!A17aa=1, \"\", Friday!B17)"]
["aa=IF(Monday!A8aa=1,\"\",Monday!B8)","aa=IF(Monday!A18aa=1, \"\", Monday!B18)","aa=IF(Tuesday!A8aa=1,\"\",Tuesday!B8)","aa=IF(Tuesday!A18aa=1, \"\", Tuesday!B18)","aa=IF(Wednesday!A8aa=1,\"\",Wednesday!B8)","aa=IF(Wednesday!A18aa=1, \"\", Wednesday!B18)","aa=IF(Thursday!A8aa=1,\"\",Thursday!B8)","aa=IF(Thursday!A18aa=1, \"\", Thursday!B18)","aa=IF(Friday!A8aa=1,\"\",Friday!B8)","aa=IF(Friday!A18aa=1, \"\", Friday!B18)"]
["aa=IF(Monday!A9aa=1,\"\",Monday!B9)","aa=IF(Monday!A19aa=1, \"\", Monday!B19)","aa=IF(Tuesday!A9aa=1,\"\",Tuesday!B9)","aa=IF(Tuesday!A19aa=1, \"\", Tuesday!B19)","aa=IF(Wednesday!A9aa=1,\"\",Wednesday!B9)","aa=IF(Wednesday!A19aa=1, \"\", Wednesday!B19)","aa=IF(Thursday!A9aa=1,\"\",Thursday!B9)","aa=IF(Thursday!A19aa=1, \"\", Thursday!B19)","aa=IF(Friday!A9aa=1,\"\",Friday!B9)","aa=IF(Friday!A19aa=1, \"\", Friday!B19)"]
["aa=IF(Monday!A10aa=1,\"\",Monday!B10)","aa=IF(Monday!A20aa=1, \"\", Monday!B20)","aa=IF(Tuesday!A10aa=1,\"\",Tuesday!B10)","aa=IF(Tuesday!A20aa=1, \"\", Tuesday!B20)","aa=IF(Wednesday!A10aa=1,\"\",Wednesday!B10)","aa=IF(Wednesday!A20aa=1, \"\", Wednesday!B20)","aa=IF(Thursday!A10aa=1,\"\",Thursday!B10)","aa=IF(Thursday!A20aa=1, \"\", Thursday!B20)","aa=IF(Friday!A10aa=1,\"\",Friday!B10)","aa=IF(Friday!A20aa=1, \"\", Friday!B20)"]
["aa=IF(Monday!A11aa=1,\"\",Monday!B11)","aa=IF(Monday!A21aa=1, \"\", Monday!B21)","aa=IF(Tuesday!A11aa=1,\"\",Tuesday!B11)","aa=IF(Tuesday!A21aa=1, \"\", Tuesday!B21)","aa=IF(Wednesday!A11aa=1,\"\",Wednesday!B11)","aa=IF(Wednesday!A21aa=1, \"\", Wednesday!B21)","aa=IF(Thursday!A11aa=1,\"\",Thursday!B11)","aa=IF(Thursday!A21aa=1, \"\", Thursday!B21)","aa=IF(Friday!A11aa=1,\"\",Friday!B11)","aa=IF(Friday!A21aa=1, \"\", Friday!B21)"]
["aa=IF(Monday!A12aa=1,\"\",Monday!B12)","aa=IF(Monday!A22aa=1, \"\", Monday!B22)","aa=IF(Tuesday!A12aa=1,\"\",Tuesday!B12)","aa=IF(Tuesday!A22aa=1, \"\", Tuesday!B22)","aa=IF(Wednesday!A12aa=1,\"\",Wednesday!B12)","aa=IF(Wednesday!A22aa=1, \"\", Wednesday!B22)","aa=IF(Thursday!A12aa=1,\"\",Thursday!B12)","aa=IF(Thursday!A22aa=1, \"\", Thursday!B22)","aa=IF(Friday!A12aa=1,\"\",Friday!B12)","aa=IF(Friday!A22aa=1, \"\", Friday!B22)"]
["aa=IF(Monday!A13aa=1,\"\",Monday!B13)","aa=IF(Monday!A23aa=1, \"\", Monday!B23)","aa=IF(Tuesday!A13aa=1,\"\",Tuesday!B13)","aa=IF(Tuesday!A23aa=1, \"\", Tuesday!B23)","aa=IF(Wednesday!A13aa=1,\"\",Wednesday!B13)","aa=IF(Wednesday!A23aa=1, \"\", Wednesday!B23)","aa=IF(Thursday!A13aa=1,\"\",Thursday!B13)","aa=IF(Thursday!A23aa=1, \"\", Thursday!B23)","aa=IF(Friday!A13aa=1,\"\",Friday!B13)","aa=IF(Friday!A23aa=1, \"\", Friday!B23)"]
["aa=IF(Monday!A14aa=1,\"\",Monday!B14)","aa=IF(Monday!A24aa=1, \"\", Monday!B24)","aa=IF(Tuesday!A14aa=1,\"\",Tuesday!B14)","aa=IF(Tuesday!A24aa=1, \"\", Tuesday!B24)","aa=IF(Wednesday!A14aa=1,\"\",Wednesday!B14)","aa=IF(Wednesday!A24aa=1, \"\", Wednesday!B24)","aa=IF(Thursday!A14aa=1,\"\",Thursday!B14)","aa=IF(Thursday!A24aa=1, \"\", Thursday!B24)","aa=IF(Friday!A14aa=1,\"\",Friday!B14)","aa=IF(Friday!A24aa=1, \"\", Friday!B24)"]
["aa=IF(Monday!A15aa=1,\"\",Monday!B15)","aa=IF(Monday!A25aa=1, \"\", Monday!B25)","aa=IF(Tuesday!A15aa=1,\"\",Tuesday!B15)","aa=IF(Tuesday!A25aa=1, \"\", Tuesday!B25)","aa=IF(Wednesday!A15aa=1,\"\",Wednesday!B15)","aa=IF(Wednesday!A25aa=1, \"\", Wednesday!B25)","aa=IF(Thursday!A15aa=1,\"\",Thursday!B15)","aa=IF(Thursday!A25aa=1, \"\", Thursday!B25)","aa=IF(Friday!A15aa=1,\"\",Friday!B15)","aa=IF(Friday!A25aa=1, \"\", Friday!B25)"]
["aa=IF(Monday!A16aa=1,\"\",Monday!B16)","aa=IF(Monday!A26aa=1, \"\", Monday!B26)","aa=IF(Tuesday!A16aa=1,\"\",Tuesday!B16)","aa=IF(Tuesday!A26aa=1, \"\", Tuesday!B26)","aa=IF(Wednesday!A16aa=1,\"\",Wednesday!B16)","aa=IF(Wednesday!A26aa=1, \"\", Wednesday!B26)","aa=IF(Thursday!A16aa=1,\"\",Thursday!B16)","aa=IF(Thursday!A26aa=1, \"\", Thursday!B26)","aa=IF(Friday!A16aa=1,\"\",Friday!B16)","aa=IF(Friday!A26aa=1, \"\", Friday!B26)"]
["Vegetable Subgroups",null,"Vegetable Subgroups",null,"Vegetable Subgroups",null,"Vegetable Subgroups",null,"Vegetable Subgroups"]
["Dark Green",null,"Dark Green",null,"Dark Green",null,"Dark Green",null,"Dark Green"]
[]
[]
[]
[]
[]
["Red/orange",null,"Red/orange",null,"Red/orange",null,"Red/orange",null,"Red/orange"]
[]
[]
[]
[]
[]
["Beans/peas",null,"Beans/peas",null,"Beans/peas",null,"Beans/peas",null,"Beans/peas"]
[]
[]
[]
[]
[]
["Starchy",null,"Starchy",null,"Starchy",null,"Starchy",null,"Starchy"]
[]
[]
[]
[]
[]
["Other",null,"Other",null,"Other",null,"Other",null,"Other"]

{"sheet":"Monday (2)","index":13,"n_rows":26,"n_cols":52,"rows_kept":26,"cut":false,"hidden":true,"merged":[[4,10,5,10],[4,11,5,11],[4,12,5,12],[4,13,5,13],[4,14,5,14],[4,1,5,1],[4,2,5,2],[4,3,5,3],[4,4,5,4],[4,9,5,9],[3,12,3,13],[3,14,3,15],[8,18,8,21],[4,17,5,17],[4,18,4,21],[4,16,5,16],[4,15,5,15],[3,16,3,17],[3,18,3,25],[4,25,6,25],[5,18,5,21],[6,18,6,21],[7,18,7,21],[0,1,0,17],[1,1,1,18],[1,27,1,49],[2,1,2,17],[2,27,3,27],[2,29,3,29],[2,32,3,32],[2,34,3,34],[2,37,3,37],[2,39,3,39],[2,42,3,42],[2,44,3,44],[2,47,3,47],[2,49,3,49],[3,2,3,9],[3,10,3,11]]}
[null,"Daily Lunch Requirement Check\nGrades 9-12"]
[null,"The daily worksheet will perform daily requirement checks for the reimbursable meals offered each day. Requirements met are flagged \"Yes\" and the cell turns green. Requirements NOT met are flagged \"No\" and the cell turns red. ",null,null,null,null,null,null,null,null,null,null,null,null,null,null,null,null,null,null,null,null,null,null,null,null,null,"Vegetable Subgroup Tracker\nSelect the vegetables offered on Monday from each of the vegetable subgroup and the quantity offered.  Be sure to inlcude vegetables offered as part of an entrée in creditable amounts."]
[null,"Monday",null,null,null,null,null,null,null,null,null,null,null,null,null,null,null,null,null,null,null,null,null,null,null,null,null,"DARK GREEN vegetables offered on Monday",null,"Quantity (cups)",null,null,"Red/Orange  vegetables Offered on Monday",null,"Quantity (cups)",null,null,"Beans/Peas (legumes) offered on Monday",null,"Quantity (cups)",null,null,"Starchy vegetables offered on Monday",null,"Quantity (cups)",null,null,"Other vegetables offered on Monday",null,"Quantity (cups)"]
[null,"Select the reimbursable lunches offered on Monday","Fruit",null,null,null,null,null,null,null,"Vegetables",null,"Grains",null,"Meat/Meat Alternate (M/MA)",null,"Milk",null,"Milk Type\nCheck the type of milk below if it is offered to students on Monday",null,null,null,null,null,null,null,null,null,"G_T",null,"G_I","G_num",null,"R_T",null,"R_i","r_num",null,"B_t",null,"B_i","B_num",null,"S_T",null,"s_i","s_num",null,"O_T",null,"o_i","O_num"]
[null,"Reimbursable Meal","Fruit (cups)","Daily Fruit Requirement Check\n 1 cup","Check if less than half of fruit is juice",null,null,null,null,"Daily Juice Limit","Vegetables (cups)","Daily Vegetable Requirement Check\n1 cup","Grains\n (oz equivalent)","Daily Grain Requirement Check\n2 oz equivalents","M/MA\n (oz equivalent)","Daily M/MA Requirement Check\n2 oz equivalents","Milk (cups)","Daily Vegetable Milk Check\n1 cup","Skim/Nonfat milk, unflavored\nAll Types",null,null,null,null,false,null,{"$f":"IF(AND(X5=TRUE,X6=TRUE),\"Yes\",IF(AND(X5=TRUE,X7=TRUE),\"Yes\",IF(AND(X6=TRUE,X7=TRUE),\"Yes\",\"No\")))","v":null},null,null,1,null,1,{"$f":"IF(AE5=1,\"\",INDEX(Cups,AE5))","v":null},null,1,null,1,{"$f":"IF(AJ5=1, \"\", INDEX(Cups,AJ5))","v":null},null,1,null,1,{"$f":"IF(AO5=1,\"\",INDEX(Cups,AO5))","v":null},null,1,null,1,{"$f":"IF(AT5=1,\"\",INDEX(Cups,AT5))","v":null},null,1,null,1,{"$f":"IF(AY5=1,\"\",INDEX(Cups,AY5))","v":null}]
[null,null,null,null,null,null,"F-c",null,null,null,null,null,null,null,null,null,null,null,"Skim/Nonfat milk, flavored\nAll Types",null,null,null,null,false,null,null,null,null,1,null,1,{"$f":"IF(AE6=1,\"\",INDEX(Cups,AE6))","v":null},null,1,null,1,{"$f":"IF(AJ6=1, \"\", INDEX(Cups,AJ6))","v":null},null,1,null,1,{"$f":"IF(AO6=1,\"\",INDEX(Cups,AO6))","v":null},null,1,null,1,{"$f":"IF(AT6=1,\"\",INDEX(Cups,AT6))","v":null},null,1,null,1,{"$f":"IF(AY6=1,\"\",INDEX(Cups,AY6))","v":null}]
[1,null,{"$f":"IF(A7=1, \"\",VLOOKUP(A7,'All Meals'!$A$11:$V$61,5))","v":null},{"$f":"IF(C7=\"\",\"No\",IF(C7>=1,\"Yes\",\"No\"))","v":null},null,null,false,null,null,{"$f":"IF(G7=TRUE, \"Yes\", \"No\")","v":null},{"$f":"IF(A7=1, \"\",VLOOKUP(A7,'All Meals'!$A$11:$V$61,8))","v":null},{"$f":"IF(K7=\"\",\"No\",IF(K7>=1,\"Yes\",\"No\"))","v":null},{"$f":"IF(A7=1, \"\",VLOOKUP(A7,'All Meals'!$A$11:$V$61,9))","v":null},{"$f":"IF(M7=\"\",\"No\",IF(M7>=2,\"Yes\",\"No\"))","v":null},{"$f":"IF(A7=1, \"\",VLOOKUP(A7,'All Meals'!$A$11:$V$61,14))","v":null},{"$f":"IF(O7=\"\",\"No\",IF(O7>=2,\"Yes\",\"No\"))","v":null},{"$f":"IF(A7=1, \"\",VLOOKUP(A7,'All Meals'!$A$11:$V$61,17))","v":null},{"$f":"IF(Q7=\"\", \"No\", IF(Q7>=1, \"Yes\", \"No\"))","v":null},"1% Milk, unflavored\nAll  Types",null,null,null,null,false,null,null,null,null,1,null,1,{"$f":"IF(AE7=1,\"\",INDEX(Cups,AE7))","v":null},null,1,null,1,{"$f":"IF(AJ7=1, \"\", INDEX(Cups,AJ7))","v":null},null,1,null,1,{"$f":"IF(AO7=1,\"\",INDEX(Cups,AO7))","v":null},null,1,null,1,{"$f":"IF(AT7=1,\"\",INDEX(Cups,AT7))","v":null},null,1,null,1,{"$f":"IF(AY7=1,\"\",INDEX(Cups,AY7))","v":null}]
[1,null,{"$f":"IF(A8=1, \"\",VLOOKUP(A8,'All Meals'!$A$11:$V$61,5))","v":null},{"$f":"IF(C8=\"\",\"No\",IF(C8>=1,\"Yes\",\"No\"))","v":null},null,null,false,null,null,{"$f":"IF(G8=TRUE, \"Yes\", \"No\")","v":null},{"$f":"IF(A8=1, \"\",VLOOKUP(A8,'All Meals'!$A$11:$V$61,8))","v":null},{"$f":"IF(K8=\"\",\"No\",IF(K8>=1,\"Yes\",\"No\"))","v":null},{"$f":"IF(A8=1, \"\",VLOOKUP(A8,'All Meals'!$A$11:$V$61,9))","v":null},{"$f":"IF(M8=\"\",\"No\",IF(M8>=2,\"Yes\",\"No\"))","v":null},{"$f":"IF(A8=1, \"\",VLOOKUP(A8,'All Meals'!$A$11:$V$61,14))","v":null},{"$f":"IF(O8=\"\",\"No\",IF(O8>=2,\"Yes\",\"No\"))","v":null},{"$f":"IF(A8=1, \"\",VLOOKUP(A8,'All Meals'!$A$11:$V$61,17))","v":null},{"$f":"IF(Q8=\"\", \"No\", IF(Q8>=1, \"Yes\", \"No\"))","v":null},"1% Milk, flavored\nAll Types",null,null,null,null,false,null,{"$f":"IF(X8=TRUE, \"No\", \"Yes\")","v":null},null,null,1,null,1,{"$f":"IF(AE8=1,\"\",INDEX(Cups,AE8))","v":null},null,1,null,1,{"$f":"IF(AJ8=1, \"\", INDEX(Cups,AJ8))","v":null},null,1,null,1,{"$f":"IF(AO8=1,\"\",INDEX(Cups,AO8))","v":null},null,1,null,1,{"$f":"IF(AT8=1,\"\",INDEX(Cups,AT8))","v":null},null,1,null,1,{"$f":"IF(AY8=1,\"\",INDEX(Cups,AY8))","v":null}]
[1,null,{"$f":"IF(A9=1, \"\",VLOOKUP(A9,'All Meals'!$A$11:$V$61,5))","v":null},{"$f":"IF(C9=\"\",\"No\",IF(C9>=1,\"Yes\",\"No\"))","v":null},null,null,false,null,null,{"$f":"IF(G9=TRUE, \"Yes\", \"No\")","v":null},{"$f":"IF(A9=1, \"\",VLOOKUP(A9,'All Meals'!$A$11:$V$61,8))","v":null},{"$f":"IF(K9=\"\",\"No\",IF(K9>=1,\"Yes\",\"No\"))","v":null},{"$f":"IF(A9=1, \"\",VLOOKUP(A9,'All Meals'!$A$11:$V$61,9))","v":null},{"$f":"IF(M9=\"\",\"No\",IF(M9>=2,\"Yes\",\"No\"))","v":null},{"$f":"IF(A9=1, \"\",VLOOKUP(A9,'All Meals'!$A$11:$V$61,14))","v":null},{"$f":"IF(O9=\"\",\"No\",IF(O9>=2,\"Yes\",\"No\"))","v":null},{"$f":"IF(A9=1, \"\",VLOOKUP(A9,'All Meals'!$A$11:$V$61,17))","v":null},{"$f":"IF(Q9=\"\", \"No\", IF(Q9>=1, \"Yes\", \"No\"))","v":null},"2% Milk or Whole Milk, flavored or unflavored\nAll Types",null,null,null,null,false,null,{"$f":"IF(X9=TRUE, \"No\", \"Yes\")","v":null},null,null,1,null,1,{"$f":"IF(AE9=1,\"\",INDEX(Cups,AE9))","v":null},null,1,null,1,{"$f":"IF(AJ9=1, \"\", INDEX(Cups,AJ9))","v":null},null,1,null,1,{"$f":"IF(AO9=1,\"\",INDEX(Cups,AO9))","v":null},null,1,null,1,{"$f":"IF(AT9=1,\"\",INDEX(Cups,AT9))","v":null},null,1,null,1,{"$f":"IF(AY9=1,\"\",INDEX(Cups,AY9))","v":null}]
[1,null,{"$f":"IF(A10=1, \"\",VLOOKUP(A10,'All Meals'!$A$11:$V$61,5))","v":null},{"$f":"IF(C10=\"\",\"No\",IF(C10>=1,\"Yes\",\"No\"))","v":null},null,null,false,null,null,{"$f":"IF(G10=TRUE, \"Yes\", \"No\")","v":null},{"$f":"IF(A10=1, \"\",VLOOKUP(A10,'All Meals'!$A$11:$V$61,8))","v":null},{"$f":"IF(K10=\"\",\"No\",IF(K10>=1,\"Yes\",\"No\"))","v":null},{"$f":"IF(A10=1, \"\",VLOOKUP(A10,'All Meals'!$A$11:$V$61,9))","v":null},{"$f":"IF(M10=\"\",\"No\",IF(M10>=2,\"Yes\",\"No\"))","v":null},{"$f":"IF(A10=1, \"\",VLOOKUP(A10,'All Meals'!$A$11:$V$61,14))","v":null},{"$f":"IF(O10=\"\",\"No\",IF(O10>=2,\"Yes\",\"No\"))","v":null},{"$f":"IF(A10=1, \"\",VLOOKUP(A10,'All Meals'!$A$11:$V$61,17))","v":null},{"$f":"IF(Q10=\"\", \"No\", IF(Q10>=1, \"Yes\", \"No\"))","v":null},null,null,null,null,null,null,null,null,null,null,1,null,1,{"$f":"IF(AE10=1,\"\",INDEX(Cups,AE10))","v":null},null,1,null,1,{"$f":"IF(AJ10=1, \"\", INDEX(Cups,AJ10))","v":null},null,1,null,1,{"$f":"IF(AO10=1,\"\",INDEX(Cups,AO10))","v":null},null,1,null,1,{"$f":"IF(AT10=1,\"\",INDEX(Cups,AT10))","v":null},null,1,null,1,{"$f":"IF(AY10=1,\"\",INDEX(Cups,AY10))","v":null}]
[1,null,{"$f":"IF(A11=1, \"\",VLOOKUP(A11,'All Meals'!$A$11:$V$61,5))","v":null},{"$f":"IF(C11=\"\",\"No\",IF(C11>=1,\"Yes\",\"No\"))","v":null},null,null,false,null,null,{"$f":"IF(G11=TRUE, \"Yes\", \"No\")","v":null},{"$f":"IF(A11=1, \"\",VLOOKUP(A11,'All Meals'!$A$11:$V$61,8))","v":null},{"$f":"IF(K11=\"\",\"No\",IF(K11>=1,\"Yes\",\"No\"))","v":null},{"$f":"IF(A11=1, \"\",VLOOKUP(A11,'All Meals'!$A$11:$V$61,9))","v":null},{"$f":"IF(M11=\"\",\"No\",IF(M11>=2,\"Yes\",\"No\"))","v":null},{"$f":"IF(A11=1, \"\",VLOOKUP(A11,'All Meals'!$A$11:$V$61,14))","v":null},{"$f":"IF(O11=\"\",\"No\",IF(O11>=2,\"Yes\",\"No\"))","v":null},{"$f":"IF(A11=1, \"\",VLOOKUP(A11,'All Meals'!$A$11:$V$61,17))","v":null},{"$f":"IF(Q11=\"\", \"No\", IF(Q11>=1, \"Yes\", \"No\"))","v":null},null,null,null,null,null,null,null,null,null,null,1,null,1,{"$f":"IF(AE11=1,\"\",INDEX(Cups,AE11))","v":null},null,1,null,1,{"$f":"IF(AJ11=1, \"\", INDEX(Cups,AJ11))","v":null},null,1,null,1,{"$f":"IF(AO11=1,\"\",INDEX(Cups,AO11))","v":null},null,1,null,1,{"$f":"IF(AT11=1,\"\",INDEX(Cups,AT11))","v":null},null,1,null,1,{"$f":"IF(AY11=1,\"\",INDEX(Cups,AY11))","v":null}]
[1,null,{"$f":"IF(A12=1, \"\",VLOOKUP(A12,'All Meals'!$A$11:$V$61,5))","v":null},{"$f":"IF(C12=\"\",\"No\",IF(C12>=1,\"Yes\",\"No\"))","v":null},null,null,false,null,null,{"$f":"IF(G12=TRUE, \"Yes\", \"No\")","v":null},{"$f":"IF(A12=1, \"\",VLOOKUP(A12,'All Meals'!$A$11:$V$61,8))","v":null},{"$f":"IF(K12=\"\",\"No\",IF(K12>=1,\"Yes\",\"No\"))","v":null},{"$f":"IF(A12=1, \"\",VLOOKUP(A12,'All Meals'!$A$11:$V$61,9))","v":null},{"$f":"IF(M12=\"\",\"No\",IF(M12>=2,\"Yes\",\"No\"))","v":null},{"$f":"IF(A12=1, \"\",VLOOKUP(A12,'All Meals'!$A$11:$V$61,14))","v":null},{"$f":"IF(O12=\"\",\"No\",IF(O12>=2,\"Yes\",\"No\"))","v":null},{"$f":"IF(A12=1, \"\",VLOOKUP(A12,'All Meals'!$A$11:$V$61,17))","v":null},{"$f":"IF(Q12=\"\", \"No\", IF(Q12>=1, \"Yes\", \"No\"))","v":null},null,null,null,null,null,null,null,null,null,null,1,null,1,{"$f":"IF(AE12=1,\"\",INDEX(Cups,AE12))","v":null},null,1,null,1,{"$f":"IF(AJ12=1, \"\", INDEX(Cups,AJ12))","v":null},null,1,null,1,{"$f":"IF(AO12=1,\"\",INDEX(Cups,AO12))","v":null},null,1,null,1,{"$f":"IF(AT12=1,\"\",INDEX(Cups,AT12))","v":null},null,1,null,1,{"$f":"IF(AY12=1,\"\",INDEX(Cups,AY12))","v":null}]
[1,null,{"$f":"IF(A13=1, \"\",VLOOKUP(A13,'All Meals'!$A$11:$V$61,5))","v":null},{"$f":"IF(C13=\"\",\"No\",IF(C13>=1,\"Yes\",\"No\"))","v":null},null,null,false,null,null,{"$f":"IF(G13=TRUE, \"Yes\", \"No\")","v":null},{"$f":"IF(A13=1, \"\",VLOOKUP(A13,'All Meals'!$A$11:$V$61,8))","v":null},{"$f":"IF(K13=\"\",\"No\",IF(K13>=1,\"Yes\",\"No\"))","v":null},{"$f":"IF(A13=1, \"\",VLOOKUP(A13,'All Meals'!$A$11:$V$61,9))","v":null},{"$f":"IF(M13=\"\",\"No\",IF(M13>=2,\"Yes\",\"No\"))","v":null},{"$f":"IF(A13=1, \"\",VLOOKUP(A13,'All Meals'!$A$11:$V$61,14))","v":null},{"$f":"IF(O13=\"\",\"No\",IF(O13>=2,\"Yes\",\"No\"))","v":null},{"$f":"IF(A13=1, \"\",VLOOKUP(A13,'All Meals'!$A$11:$V$61,17))","v":null},{"$f":"IF(Q13=\"\", \"No\", IF(Q13>=1, \"Yes\", \"No\"))","v":null},null,null,null,null,null,null,null,null,null,null,1,null,1,{"$f":"IF(AE13=1,\"\",INDEX(Cups,AE13))","v":null},null,1,null,1,{"$f":"IF(AJ13=1, \"\", INDEX(Cups,AJ13))","v":null},null,1,null,1,{"$f":"IF(AO13=1,\"\",INDEX(Cups,AO13))","v":null},null,1,null,1,{"$f":"IF(AT13=1,\"\",INDEX(Cups,AT13))","v":null},null,1,null,1,{"$f":"IF(AY13=1,\"\",INDEX(Cups,AY13))","v":null}]
[1,null,{"$f":"IF(A14=1, \"\",VLOOKUP(A14,'All Meals'!$A$11:$V$61,5))","v":null},{"$f":"IF(C14=\"\",\"No\",IF(C14>=1,\"Yes\",\"No\"))","v":null},null,null,false,null,null,{"$f":"IF(G14=TRUE, \"Yes\", \"No\")","v":null},{"$f":"IF(A14=1, \"\",VLOOKUP(A14,'All Meals'!$A$11:$V$61,8))","v":null},{"$f":"IF(K14=\"\",\"No\",IF(K14>=1,\"Yes\",\"No\"))","v":null},{"$f":"IF(A14=1, \"\",VLOOKUP(A14,'All Meals'!$A$11:$V$61,9))","v":null},{"$f":"IF(M14=\"\",\"No\",IF(M14>=2,\"Yes\",\"No\"))","v":null},{"$f":"IF(A14=1, \"\",VLOOKUP(A14,'All Meals'!$A$11:$V$61,14))","v":null},{"$f":"IF(O14=\"\",\"No\",IF(O14>=2,\"Yes\",\"No\"))","v":null},{"$f":"IF(A14=1, \"\",VLOOKUP(A14,'All Meals'!$A$11:$V$61,17))","v":null},{"$f":"IF(Q14=\"\", \"No\", IF(Q14>=1, \"Yes\", \"No\"))","v":null},null,null,null,null,null,null,null,null,null,null,1,null,1,{"$f":"IF(AE14=1,\"\",INDEX(Cups,AE14))","v":null},null,1,null,1,{"$f":"IF(AJ14=1, \"\", INDEX(Cups,AJ14))","v":null},null,1,null,1,{"$f":"IF(AO14=1,\"\",INDEX(Cups,AO14))","v":null},null,1,null,1,{"$f":"IF(AT14=1,\"\",INDEX(Cups,AT14))","v":null},null,1,null,1,{"$f":"IF(AY14=1,\"\",INDEX(Cups,AY14))","v":null}]
[1,null,{"$f":"IF(A15=1, \"\",VLOOKUP(A15,'All Meals'!$A$11:$V$61,5))","v":null},{"$f":"IF(C15=\"\",\"No\",IF(C15>=1,\"Yes\",\"No\"))","v":null},null,null,false,null,null,{"$f":"IF(G15=TRUE, \"Yes\", \"No\")","v":null},{"$f":"IF(A15=1, \"\",VLOOKUP(A15,'All Meals'!$A$11:$V$61,8))","v":null},{"$f":"IF(K15=\"\",\"No\",IF(K15>=1,\"Yes\",\"No\"))","v":null},{"$f":"IF(A15=1, \"\",VLOOKUP(A15,'All Meals'!$A$11:$V$61,9))","v":null},{"$f":"IF(M15=\"\",\"No\",IF(M15>=2,\"Yes\",\"No\"))","v":null},{"$f":"IF(A15=1, \"\",VLOOKUP(A15,'All Meals'!$A$11:$V$61,14))","v":null},{"$f":"IF(O15=\"\",\"No\",IF(O15>=2,\"Yes\",\"No\"))","v":null},{"$f":"IF(A15=1, \"\",VLOOKUP(A15,'All Meals'!$A$11:$V$61,17))","v":null},{"$f":"IF(Q15=\"\", \"No\", IF(Q15>=1, \"Yes\", \"No\"))","v":null}]
[1,null,{"$f":"IF(A16=1, \"\",VLOOKUP(A16,'All Meals'!$A$11:$V$61,5))","v":null},{"$f":"IF(C16=\"\",\"No\",IF(C16>=1,\"Yes\",\"No\"))","v":null},null,null,false,null,null,{"$f":"IF(G16=TRUE, \"Yes\", \"No\")","v":null},{"$f":"IF(A16=1, \"\",VLOOKUP(A16,'All Meals'!$A$11:$V$61,8))","v":null},{"$f":"IF(K16=\"\",\"No\",IF(K16>=1,\"Yes\",\"No\"))","v":null},{"$f":"IF(A16=1, \"\",VLOOKUP(A16,'All Meals'!$A$11:$V$61,9))","v":null},{"$f":"IF(M16=\"\",\"No\",IF(M16>=2,\"Yes\",\"No\"))","v":null},{"$f":"IF(A16=1, \"\",VLOOKUP(A16,'All Meals'!$A$11:$V$61,14))","v":null},{"$f":"IF(O16=\"\",\"No\",IF(O16>=2,\"Yes\",\"No\"))","v":null},{"$f":"IF(A16=1, \"\",VLOOKUP(A16,'All Meals'!$A$11:$V$61,17))","v":null},{"$f":"IF(Q16=\"\", \"No\", IF(Q16>=1, \"Yes\", \"No\"))","v":null}]
[1,null,{"$f":"IF(A17=1, \"\",VLOOKUP(A17,'All Meals'!$A$11:$V$61,5))","v":null},{"$f":"IF(C17=\"\",\"No\",IF(C17>=1,\"Yes\",\"No\"))","v":null},null,null,false,null,null,{"$f":"IF(G17=TRUE, \"Yes\", \"No\")","v":null},{"$f":"IF(A17=1, \"\",VLOOKUP(A17,'All Meals'!$A$11:$V$61,8))","v":null},{"$f":"IF(K17=\"\",\"No\",IF(K17>=1,\"Yes\",\"No\"))","v":null},{"$f":"IF(A17=1, \"\",VLOOKUP(A17,'All Meals'!$A$11:$V$61,9))","v":null},{"$f":"IF(M17=\"\",\"No\",IF(M17>=2,\"Yes\",\"No\"))","v":null},{"$f":"IF(A17=1, \"\",VLOOKUP(A17,'All Meals'!$A$11:$V$61,14))","v":null},{"$f":"IF(O17=\"\",\"No\",IF(O17>=2,\"Yes\",\"No\"))","v":null},{"$f":"IF(A17=1, \"\",VLOOKUP(A17,'All Meals'!$A$11:$V$61,17))","v":null},{"$f":"IF(Q17=\"\", \"No\", IF(Q17>=1, \"Yes\", \"No\"))","v":null}]
[1,null,{"$f":"IF(A18=1, \"\",VLOOKUP(A18,'All Meals'!$A$11:$V$61,5))","v":null},{"$f":"IF(C18=\"\",\"No\",IF(C18>=1,\"Yes\",\"No\"))","v":null},null,null,false,null,null,{"$f":"IF(G18=TRUE, \"Yes\", \"No\")","v":null},{"$f":"IF(A18=1, \"\",VLOOKUP(A18,'All Meals'!$A$11:$V$61,8))","v":null},{"$f":"IF(K18=\"\",\"No\",IF(K18>=1,\"Yes\",\"No\"))","v":null},{"$f":"IF(A18=1, \"\",VLOOKUP(A18,'All Meals'!$A$11:$V$61,9))","v":null},{"$f":"IF(M18=\"\",\"No\",IF(M18>=2,\"Yes\",\"No\"))","v":null},{"$f":"IF(A18=1, \"\",VLOOKUP(A18,'All Meals'!$A$11:$V$61,14))","v":null},{"$f":"IF(O18=\"\",\"No\",IF(O18>=2,\"Yes\",\"No\"))","v":null},{"$f":"IF(A18=1, \"\",VLOOKUP(A18,'All Meals'!$A$11:$V$61,17))","v":null},{"$f":"IF(Q18=\"\", \"No\", IF(Q18>=1, \"Yes\", \"No\"))","v":null}]
[1,null,{"$f":"IF(A19=1, \"\",VLOOKUP(A19,'All Meals'!$A$11:$V$61,5))","v":null},{"$f":"IF(C19=\"\",\"No\",IF(C19>=1,\"Yes\",\"No\"))","v":null},null,null,false,null,null,{"$f":"IF(G19=TRUE, \"Yes\", \"No\")","v":null},{"$f":"IF(A19=1, \"\",VLOOKUP(A19,'All Meals'!$A$11:$V$61,8))","v":null},{"$f":"IF(K19=\"\",\"No\",IF(K19>=1,\"Yes\",\"No\"))","v":null},{"$f":"IF(A19=1, \"\",VLOOKUP(A19,'All Meals'!$A$11:$V$61,9))","v":null},{"$f":"IF(M19=\"\",\"No\",IF(M19>=2,\"Yes\",\"No\"))","v":null},{"$f":"IF(A19=1, \"\",VLOOKUP(A19,'All Meals'!$A$11:$V$61,14))","v":null},{"$f":"IF(O19=\"\",\"No\",IF(O19>=2,\"Yes\",\"No\"))","v":null},{"$f":"IF(A19=1, \"\",VLOOKUP(A19,'All Meals'!$A$11:$V$61,17))","v":null},{"$f":"IF(Q19=\"\", \"No\", IF(Q19>=1, \"Yes\", \"No\"))","v":null}]
[1,null,{"$f":"IF(A20=1, \"\",VLOOKUP(A20,'All Meals'!$A$11:$V$61,5))","v":null},{"$f":"IF(C20=\"\",\"No\",IF(C20>=1,\"Yes\",\"No\"))","v":null},null,null,false,null,null,{"$f":"IF(G20=TRUE, \"Yes\", \"No\")","v":null},{"$f":"IF(A20=1, \"\",VLOOKUP(A20,'All Meals'!$A$11:$V$61,8))","v":null},{"$f":"IF(K20=\"\",\"No\",IF(K20>=1,\"Yes\",\"No\"))","v":null},{"$f":"IF(A20=1, \"\",VLOOKUP(A20,'All Meals'!$A$11:$V$61,9))","v":null},{"$f":"IF(M20=\"\",\"No\",IF(M20>=2,\"Yes\",\"No\"))","v":null},{"$f":"IF(A20=1, \"\",VLOOKUP(A20,'All Meals'!$A$11:$V$61,14))","v":null},{"$f":"IF(O20=\"\",\"No\",IF(O20>=2,\"Yes\",\"No\"))","v":null},{"$f":"IF(A20=1, \"\",VLOOKUP(A20,'All Meals'!$A$11:$V$61,17))","v":null},{"$f":"IF(Q20=\"\", \"No\", IF(Q20>=1, \"Yes\", \"No\"))","v":null}]
[1,null,{"$f":"IF(A21=1, \"\",VLOOKUP(A21,'All Meals'!$A$11:$V$61,5))","v":null},{"$f":"IF(C21=\"\",\"No\",IF(C21>=1,\"Yes\",\"No\"))","v":null},null,null,false,null,null,{"$f":"IF(G21=TRUE, \"Yes\", \"No\")","v":null},{"$f":"IF(A21=1, \"\",VLOOKUP(A21,'All Meals'!$A$11:$V$61,8))","v":null},{"$f":"IF(K21=\"\",\"No\",IF(K21>=1,\"Yes\",\"No\"))","v":null},{"$f":"IF(A21=1, \"\",VLOOKUP(A21,'All Meals'!$A$11:$V$61,9))","v":null},{"$f":"IF(M21=\"\",\"No\",IF(M21>=2,\"Yes\",\"No\"))","v":null},{"$f":"IF(A21=1, \"\",VLOOKUP(A21,'All Meals'!$A$11:$V$61,14))","v":null},{"$f":"IF(O21=\"\",\"No\",IF(O21>=2,\"Yes\",\"No\"))","v":null},{"$f":"IF(A21=1, \"\",VLOOKUP(A21,'All Meals'!$A$11:$V$61,17))","v":null},{"$f":"IF(Q21=\"\", \"No\", IF(Q21>=1, \"Yes\", \"No\"))","v":null}]
[1,null,{"$f":"IF(A22=1, \"\",VLOOKUP(A22,'All Meals'!$A$11:$V$61,5))","v":null},{"$f":"IF(C22=\"\",\"No\",IF(C22>=1,\"Yes\",\"No\"))","v":null},null,null,false,null,null,{"$f":"IF(G22=TRUE, \"Yes\", \"No\")","v":null},{"$f":"IF(A22=1, \"\",VLOOKUP(A22,'All Meals'!$A$11:$V$61,8))","v":null},{"$f":"IF(K22=\"\",\"No\",IF(K22>=1,\"Yes\",\"No\"))","v":null},{"$f":"IF(A22=1, \"\",VLOOKUP(A22,'All Meals'!$A$11:$V$61,9))","v":null},{"$f":"IF(M22=\"\",\"No\",IF(M22>=2,\"Yes\",\"No\"))","v":null},{"$f":"IF(A22=1, \"\",VLOOKUP(A22,'All Meals'!$A$11:$V$61,14))","v":null},{"$f":"IF(O22=\"\",\"No\",IF(O22>=2,\"Yes\",\"No\"))","v":null},{"$f":"IF(A22=1, \"\",VLOOKUP(A22,'All Meals'!$A$11:$V$61,17))","v":null},{"$f":"IF(Q22=\"\", \"No\", IF(Q22>=1, \"Yes\", \"No\"))","v":null}]
[1,null,{"$f":"IF(A23=1, \"\",VLOOKUP(A23,'All Meals'!$A$11:$V$61,5))","v":null},{"$f":"IF(C23=\"\",\"No\",IF(C23>=1,\"Yes\",\"No\"))","v":null},null,null,false,null,null,{"$f":"IF(G23=TRUE, \"Yes\", \"No\")","v":null},{"$f":"IF(A23=1, \"\",VLOOKUP(A23,'All Meals'!$A$11:$V$61,8))","v":null},{"$f":"IF(K23=\"\",\"No\",IF(K23>=1,\"Yes\",\"No\"))","v":null},{"$f":"IF(A23=1, \"\",VLOOKUP(A23,'All Meals'!$A$11:$V$61,9))","v":null},{"$f":"IF(M23=\"\",\"No\",IF(M23>=2,\"Yes\",\"No\"))","v":null},{"$f":"IF(A23=1, \"\",VLOOKUP(A23,'All Meals'!$A$11:$V$61,14))","v":null},{"$f":"IF(O23=\"\",\"No\",IF(O23>=2,\"Yes\",\"No\"))","v":null},{"$f":"IF(A23=1, \"\",VLOOKUP(A23,'All Meals'!$A$11:$V$61,17))","v":null},{"$f":"IF(Q23=\"\", \"No\", IF(Q23>=1, \"Yes\", \"No\"))","v":null}]
[1,null,{"$f":"IF(A24=1, \"\",VLOOKUP(A24,'All Meals'!$A$11:$V$61,5))","v":null},{"$f":"IF(C24=\"\",\"No\",IF(C24>=1,\"Yes\",\"No\"))","v":null},null,null,false,null,null,{"$f":"IF(G24=TRUE, \"Yes\", \"No\")","v":null},{"$f":"IF(A24=1, \"\",VLOOKUP(A24,'All Meals'!$A$11:$V$61,8))","v":null},{"$f":"IF(K24=\"\",\"No\",IF(K24>=1,\"Yes\",\"No\"))","v":null},{"$f":"IF(A24=1, \"\",VLOOKUP(A24,'All Meals'!$A$11:$V$61,9))","v":null},{"$f":"IF(M24=\"\",\"No\",IF(M24>=2,\"Yes\",\"No\"))","v":null},{"$f":"IF(A24=1, \"\",VLOOKUP(A24,'All Meals'!$A$11:$V$61,14))","v":null},{"$f":"IF(O24=\"\",\"No\",IF(O24>=2,\"Yes\",\"No\"))","v":null},{"$f":"IF(A24=1, \"\",VLOOKUP(A24,'All Meals'!$A$11:$V$61,17))","v":null},{"$f":"IF(Q24=\"\", \"No\", IF(Q24>=1, \"Yes\", \"No\"))","v":null}]
[1,null,{"$f":"IF(A25=1, \"\",VLOOKUP(A25,'All Meals'!$A$11:$V$61,5))","v":null},{"$f":"IF(C25=\"\",\"No\",IF(C25>=1,\"Yes\",\"No\"))","v":null},null,null,false,null,null,{"$f":"IF(G25=TRUE, \"Yes\", \"No\")","v":null},{"$f":"IF(A25=1, \"\",VLOOKUP(A25,'All Meals'!$A$11:$V$61,8))","v":null},{"$f":"IF(K25=\"\",\"No\",IF(K25>=1,\"Yes\",\"No\"))","v":null},{"$f":"IF(A25=1, \"\",VLOOKUP(A25,'All Meals'!$A$11:$V$61,9))","v":null},{"$f":"IF(M25=\"\",\"No\",IF(M25>=2,\"Yes\",\"No\"))","v":null},{"$f":"IF(A25=1, \"\",VLOOKUP(A25,'All Meals'!$A$11:$V$61,14))","v":null},{"$f":"IF(O25=\"\",\"No\",IF(O25>=2,\"Yes\",\"No\"))","v":null},{"$f":"IF(A25=1, \"\",VLOOKUP(A25,'All Meals'!$A$11:$V$61,17))","v":null},{"$f":"IF(Q25=\"\", \"No\", IF(Q25>=1, \"Yes\", \"No\"))","v":null}]
[1,null,{"$f":"IF(A26=1, \"\",VLOOKUP(A26,'All Meals'!$A$11:$V$61,5))","v":null},{"$f":"IF(C26=\"\",\"No\",IF(C26>=1,\"Yes\",\"No\"))","v":null},null,null,false,null,null,{"$f":"IF(G26=TRUE, \"Yes\", \"No\")","v":null},{"$f":"IF(A26=1, \"\",VLOOKUP(A26,'All Meals'!$A$11:$V$61,8))","v":null},{"$f":"IF(K26=\"\",\"No\",IF(K26>=1,\"Yes\",\"No\"))","v":null},{"$f":"IF(A26=1, \"\",VLOOKUP(A26,'All Meals'!$A$11:$V$61,9))","v":null},{"$f":"IF(M26=\"\",\"No\",IF(M26>=2,\"Yes\",\"No\"))","v":null},{"$f":"IF(A26=1, \"\",VLOOKUP(A26,'All Meals'!$A$11:$V$61,14))","v":null},{"$f":"IF(O26=\"\",\"No\",IF(O26>=2,\"Yes\",\"No\"))","v":null},{"$f":"IF(A26=1, \"\",VLOOKUP(A26,'All Meals'!$A$11:$V$61,17))","v":null},{"$f":"IF(Q26=\"\", \"No\", IF(Q26>=1, \"Yes\", \"No\"))","v":null}]

{"sheet":"Nutrient Instructions","index":14,"n_rows":126,"n_cols":256,"rows_kept":126,"cut":false,"hidden":false,"merged":[]}
[]
["Simplified Nutrient Assessment Instructions"]
["REMEMBER TO PERIODICALLY SAVE THE WORKSHEET AS IT IS BEING COMPLETED!!!!",null,"REMEMBER TO PERIODICALLY SAVE THE WORKSHEET AS IT IS BEING COMPLETED!!!!","REMEMBER TO PERIODICALLY SAVE THE WORKSHEET AS IT IS BEING COMPLETED!!!!","REMEMBER TO PERIODICALLY SAVE THE WORKSHEET AS IT IS BEING COMPLETED!!!!","REMEMBER TO PERIODICALLY SAVE THE WORKSHEET AS IT IS BEING COMPLETED!!!!","REMEMBER TO PERIODICALLY SAVE THE WORKSHEET AS IT IS BEING COMPLETED!!!!","REMEMBER TO PERIODICALLY SAVE THE WORKSHEET AS IT IS BEING COMPLETED!!!!","REMEMBER TO PERIODICALLY SAVE THE WORKSHEET AS IT IS BEING COMPLETED!!!!","REMEMBER TO PERIODICALLY SAVE THE WORKSHEET AS IT IS BEING COMPLETED!!!!","REMEMBER TO PERIODICALLY SAVE THE WORKSHEET AS IT IS BEING COMPLETED!!!!","REMEMBER TO PERIODICALLY SAVE THE WORKSHEET AS IT IS BEING COMPLETED!!!!","REMEMBER TO PERIODICALLY SAVE THE WORKSHEET AS IT IS BEING COMPLETED!!!!","REMEMBER TO PERIODICALLY SAVE THE WORKSHEET AS IT IS BEING COMPLETED!!!!","REMEMBER TO PERIODICALLY SAVE THE WORKSHEET AS IT IS BEING COMPLETED!!!!","REMEMBER TO PERIODICALLY SAVE THE WORKSHEET AS IT IS BEING COMPLETED!!!!","REMEMBER TO PERIODICALLY SAVE THE WORKSHEET AS IT IS BEING COMPLETED!!!!","REMEMBER TO PERIODICALLY SAVE THE WORKSHEET AS IT IS BEING COMPLETED!!!!","REMEMBER TO PERIODICALLY SAVE THE WORKSHEET AS IT IS BEING COMPLETED!!!!","REMEMBER TO PERIODICALLY SAVE THE WORKSHEET AS IT IS BEING COMPLETED!!!!","REMEMBER TO PERIODICALLY SAVE THE WORKSHEET AS IT IS BEING COMPLETED!!!!","REMEMBER TO PERIODICALLY SAVE THE WORKSHEET AS IT IS BEING COMPLETED!!!!","REMEMBER TO PERIODICALLY SAVE THE WORKSHEET AS IT IS BEING COMPLETED!!!!","REMEMBER TO PERIODICALLY SAVE THE WORKSHEET AS IT IS BEING COMPLETED!!!!","REMEMBER TO PERIODICALLY SAVE THE WORKSHEET AS IT IS BEING COMPLETED!!!!","REMEMBER TO PERIODICALLY SAVE THE WORKSHEET AS IT IS BEING COMPLETED!!!!","REMEMBER TO PERIODICALLY SAVE THE WORKSHEET AS IT IS BEING COMPLETED!!!!","REMEMBER TO PERIODICALLY SAVE THE WORKSHEET AS IT IS BEING COMPLETED!!!!","REMEMBER TO PERIODICALLY SAVE THE WORKSHEET AS IT IS BEING COMPLETED!!!!","REMEMBER TO PERIODICALLY SAVE THE WORKSHEET AS IT IS BEING COMPLETED!!!!","REMEMBER TO PERIODICALLY SAVE THE WORKSHEET AS IT IS BEING COMPLETED!!!!","REMEMBER TO PERIODICALLY SAVE THE WORKSHEET AS IT IS BEING COMPLETED!!!!","REMEMBER TO PERIODICALLY SAVE THE WORKSHEET AS IT IS BEING COMPLETED!!!!","REMEMBER TO PERIODICALLY SAVE THE WORKSHEET AS IT IS BEING COMPLETED!!!!","REMEMBER TO PERIODICALLY SAVE THE WORKSHEET AS IT IS BEING COMPLETED!!!!","REMEMBER TO PERIODICALLY SAVE THE WORKSHEET AS IT IS BEING COMPLETED!!!!","REMEMBER TO PERIODICALLY SAVE THE WORKSHEET AS IT IS BEING COMPLETED!!!!","REMEMBER TO PERIODICALLY SAVE THE WORKSHEET AS IT IS BEING COMPLETED!!!!","REMEMBER TO PERIODICALLY SAVE THE WORKSHEET AS IT IS BEING COMPLETED!!!!","REMEMBER TO PERIODICALLY SAVE THE WORKSHEET AS IT IS BEING COMPLETED!!!!","REMEMBER TO PERIODICALLY SAVE THE WORKSHEET AS IT IS BEING COMPLETED!!!!","REMEMBER TO PERIODICALLY SAVE THE WORKSHEET AS IT IS BEING COMPLETED!!!!","REMEMBER TO PERIODICALLY SAVE THE WORKSHEET AS IT IS BEING COMPLETED!!!!","REMEMBER TO PERIODICALLY SAVE THE WORKSHEET AS IT IS BEING COMPLETED!!!!","REMEMBER TO PERIODICALLY SAVE THE WORKSHEET AS IT IS BEING COMPLETED!!!!","REMEMBER TO PERIODICALLY SAVE THE WORKSHEET AS IT IS BEING COMPLETED!!!!","REMEMBER TO PERIODICALLY SAVE THE WORKSHEET AS IT IS BEING COMPLETED!!!!","REMEMBER TO PERIODICALLY SAVE THE WORKSHEET AS IT IS BEING COMPLETED!!!!","REMEMBER TO PERIODICALLY SAVE THE WORKSHEET AS IT IS BEING COMPLETED!!!!","REMEMBER TO PERIODICALLY SAVE THE WORKSHEET AS IT IS BEING COMPLETED!!!!","REMEMBER TO PERIODICALLY SAVE THE WORKSHEET AS IT IS BEING COMPLETED!!!!","REMEMBER TO PERIODICALLY SAVE THE WORKSHEET AS IT IS BEING COMPLETED!!!!","REMEMBER TO PERIODICALLY SAVE THE WORKSHEET AS IT IS BEING COMPLETED!!!!","REMEMBER TO PERIODICALLY SAVE THE WORKSHEET AS IT IS BEING COMPLETED!!!!","REMEMBER TO PERIODICALLY SAVE THE WORKSHEET AS IT IS BEING COMPLETED!!!!","REMEMBER TO PERIODICALLY SAVE THE WORKSHEET AS IT IS BEING COMPLETED!!!!","REMEMBER TO PERIODICALLY SAVE THE WORKSHEET AS IT IS BEING COMPLETED!!!!","REMEMBER TO PERIODICALLY SAVE THE WORKSHEET AS IT IS BEING COMPLETED!!!!","REMEMBER TO PERIODICALLY SAVE THE WORKSHEET AS IT IS BEING COMPLETED!!!!","REMEMBER TO PERIODICALLY SAVE THE WORKSHEET AS IT IS BEING COMPLETED!!!!","REMEMBER TO PERIODICALLY SAVE THE WORKSHEET AS IT IS BEING COMPLETED!!!!","REMEMBER TO PERIODICALLY SAVE THE WORKSHEET AS IT IS BEING COMPLETED!!!!","REMEMBER TO PERIODICALLY SAVE THE WORKSHEET AS IT IS BEING COMPLETED!!!!","REMEMBER TO PERIODICALLY SAVE THE WORKSHEET AS IT IS BEING COMPLETED!!!!","REMEMBER TO PERIODICALLY SAVE THE WORKSHEET AS IT IS BEING COMPLETED!!!!","REMEMBER TO PERIODICALLY SAVE THE WORKSHEET AS IT IS BEING COMPLETED!!!!","REMEMBER TO PERIODICALLY SAVE THE WORKSHEET AS IT IS BEING COMPLETED!!!!","REMEMBER TO PERIODICALLY SAVE THE WORKSHEET AS IT IS BEING COMPLETED!!!!","REMEMBER TO PERIODICALLY SAVE THE WORKSHEET AS IT IS BEING COMPLETED!!!!","REMEMBER TO PERIODICALLY SAVE THE WORKSHEET AS IT IS BEING COMPLETED!!!!","REMEMBER TO PERIODICALLY SAVE THE WORKSHEET AS IT IS BEING COMPLETED!!!!","REMEMBER TO PERIODICALLY SAVE THE WORKSHEET AS IT IS BEING COMPLETED!!!!","REMEMBER TO PERIODICALLY SAVE THE WORKSHEET AS IT IS BEING COMPLETED!!!!","REMEMBER TO PERIODICALLY SAVE THE WORKSHEET AS IT IS BEING COMPLETED!!!!","REMEMBER TO PERIODICALLY SAVE THE WORKSHEET AS IT IS BEING COMPLETED!!!!","REMEMBER TO PERIODICALLY SAVE THE WORKSHEET AS IT IS BEING COMPLETED!!!!","REMEMBER TO PERIODICALLY SAVE THE WORKSHEET AS IT IS BEING COMPLETED!!!!","REMEMBER TO PERIODICALLY SAVE THE WORKSHEET AS IT IS BEING COMPLETED!!!!","REMEMBER TO PERIODICALLY SAVE THE WORKSHEET AS IT IS BEING COMPLETED!!!!","REMEMBER TO PERIODICALLY SAVE THE WORKSHEET AS IT IS BEING COMPLETED!!!!","REMEMBER TO PERIODICALLY SAVE THE WORKSHEET AS IT IS BEING COMPLETED!!!!","REMEMBER TO PERIODICALLY SAVE THE WORKSHEET AS IT IS BEING COMPLETED!!!!","REMEMBER TO PERIODICALLY SAVE THE WORKSHEET AS IT IS BEING COMPLETED!!!!","REMEMBER TO PERIODICALLY SAVE THE WORKSHEET AS IT IS BEING COMPLETED!!!!","REMEMBER TO PERIODICALLY SAVE THE WORKSHEET AS IT IS BEING COMPLETED!!!!","REMEMBER TO PERIODICALLY SAVE THE WORKSHEET AS IT IS BEING COMPLETED!!!!","REMEMBER TO PERIODICALLY SAVE THE WORKSHEET AS IT IS BEING COMPLETED!!!!","REMEMBER TO PERIODICALLY SAVE THE WORKSHEET AS IT IS BEING COMPLETED!!!!","REMEMBER TO PERIODICALLY SAVE THE WORKSHEET AS IT IS BEING COMPLETED!!!!","REMEMBER TO PERIODICALLY SAVE THE WORKSHEET AS IT IS BEING COMPLETED!!!!","REMEMBER TO PERIODICALLY SAVE THE WORKSHEET AS IT IS BEING COMPLETED!!!!","REMEMBER TO PERIODICALLY SAVE THE WORKSHEET AS IT IS BEING COMPLETED!!!!","REMEMBER TO PERIODICALLY SAVE THE WORKSHEET AS IT IS BEING COMPLETED!!!!","REMEMBER TO PERIODICALLY SAVE THE WORKSHEET AS IT IS BEING COMPLETED!!!!","REMEMBER TO PERIODICALLY SAVE THE WORKSHEET AS IT IS BEING COMPLETED!!!!","REMEMBER TO PERIODICALLY SAVE THE WORKSHEET AS IT IS BEING COMPLETED!!!!","REMEMBER TO PERIODICALLY SAVE THE WORKSHEET AS IT IS BEING COMPLETED!!!!","REMEMBER TO PERIODICALLY SAVE THE WORKSHEET AS IT IS BEING COMPLETED!!!!","REMEMBER TO PERIODICALLY SAVE THE WORKSHEET AS IT IS BEING COMPLETED!!!!","REMEMBER TO PERIODICALLY SAVE THE WORKSHEET AS IT IS BEING COMPLETED!!!!","REMEMBER TO PERIODICALLY SAVE THE WORKSHEET AS IT IS BEING COMPLETED!!!!","REMEMBER TO PERIODICALLY SAVE THE WORKSHEET AS IT IS BEING COMPLETED!!!!","REMEMBER TO PERIODICALLY SAVE THE WORKSHEET AS IT IS BEING COMPLETED!!!!","REMEMBER TO PERIODICALLY SAVE THE WORKSHEET AS IT IS BEING COMPLETED!!!!","REMEMBER TO PERIODICALLY SAVE THE WORKSHEET AS IT IS BEING COMPLETED!!!!","REMEMBER TO PERIODICALLY SAVE THE WORKSHEET AS IT IS BEING COMPLETED!!!!","REMEMBER TO PERIODICALLY SAVE THE WORKSHEET AS IT IS BEING COMPLETED!!!!","REMEMBER TO PERIODICALLY SAVE THE WORKSHEET AS IT IS BEING COMPLETED!!!!","REMEMBER TO PERIODICALLY SAVE THE WORKSHEET AS IT IS BEING COMPLETED!!!!","REMEMBER TO PERIODICALLY SAVE THE WORKSHEET AS IT IS BEING COMPLETED!!!!","REMEMBER TO PERIODICALLY SAVE THE WORKSHEET AS IT IS BEING COMPLETED!!!!","REMEMBER TO PERIODICALLY SAVE THE WORKSHEET AS IT IS BEING COMPLETED!!!!","REMEMBER TO PERIODICALLY SAVE THE WORKSHEET AS IT IS BEING COMPLETED!!!!","REMEMBER TO PERIODICALLY SAVE THE WORKSHEET AS IT IS BEING COMPLETED!!!!","REMEMBER TO PERIODICALLY SAVE THE WORKSHEET AS IT IS BEING COMPLETED!!!!","REMEMBER TO PERIODICALLY SAVE THE WORKSHEET AS IT IS BEING COMPLETED!!!!","REMEMBER TO PERIODICALLY SAVE THE WORKSHEET AS IT IS BEING COMPLETED!!!!","REMEMBER TO PERIODICALLY SAVE THE WORKSHEET AS IT IS BEING COMPLETED!!!!","REMEMBER TO PERIODICALLY SAVE THE WORKSHEET AS IT IS BEING COMPLETED!!!!","REMEMBER TO PERIODICALLY SAVE THE WORKSHEET AS IT IS BEING COMPLETED!!!!","REMEMBER TO PERIODICALLY SAVE THE WORKSHEET AS IT IS BEING COMPLETED!!!!","REMEMBER TO PERIODICALLY SAVE THE WORKSHEET AS IT IS BEING COMPLETED!!!!","REMEMBER TO PERIODICALLY SAVE THE WORKSHEET AS IT IS BEING COMPLETED!!!!","REMEMBER TO PERIODICALLY SAVE THE WORKSHEET AS IT IS BEING COMPLETED!!!!","REMEMBER TO PERIODICALLY SAVE THE WORKSHEET AS IT IS BEING COMPLETED!!!!","REMEMBER TO PERIODICALLY SAVE THE WORKSHEET AS IT IS BEING COMPLETED!!!!","REMEMBER TO PERIODICALLY SAVE THE WORKSHEET AS IT IS BEING COMPLETED!!!!","REMEMBER TO PERIODICALLY SAVE THE WORKSHEET AS IT IS BEING COMPLETED!!!!","REMEMBER TO PERIODICALLY SAVE THE WORKSHEET AS IT IS BEING COMPLETED!!!!","REMEMBER TO PERIODICALLY SAVE THE WORKSHEET AS IT IS BEING COMPLETED!!!!","REMEMBER TO PERIODICALLY SAVE THE WORKSHEET AS IT IS BEING COMPLETED!!!!","REMEMBER TO PERIODICALLY SAVE THE WORKSHEET AS IT IS BEING COMPLETED!!!!","REMEMBER TO PERIODICALLY SAVE THE WORKSHEET AS IT IS BEING COMPLETED!!!!","REMEMBER TO PERIODICALLY SAVE THE WORKSHEET AS IT IS BEING COMPLETED!!!!","REMEMBER TO PERIODICALLY SAVE THE WORKSHEET AS IT IS BEING COMPLETED!!!!","REMEMBER TO PERIODICALLY SAVE THE WORKSHEET AS IT IS BEING COMPLETED!!!!","REMEMBER TO PERIODICALLY SAVE THE WORKSHEET AS IT IS BEING COMPLETED!!!!","REMEMBER TO PERIODICALLY SAVE THE WORKSHEET AS IT IS BEING COMPLETED!!!!","REMEMBER TO PERIODICALLY SAVE THE WORKSHEET AS IT IS BEING COMPLETED!!!!","REMEMBER TO PERIODICALLY SAVE THE WORKSHEET AS IT IS BEING COMPLETED!!!!","REMEMBER TO PERIODICALLY SAVE THE WORKSHEET AS IT IS BEING COMPLETED!!!!","REMEMBER TO PERIODICALLY SAVE THE WORKSHEET AS IT IS BEING COMPLETED!!!!","REMEMBER TO PERIODICALLY SAVE THE WORKSHEET AS IT IS BEING COMPLETED!!!!","REMEMBER TO PERIODICALLY SAVE THE WORKSHEET AS IT IS BEING COMPLETED!!!!","REMEMBER TO PERIODICALLY SAVE THE WORKSHEET AS IT IS BEING COMPLETED!!!!","REMEMBER TO PERIODICALLY SAVE THE WORKSHEET AS IT IS BEING COMPLETED!!!!","REMEMBER TO PERIODICALLY SAVE THE WORKSHEET AS IT IS BEING COMPLETED!!!!","REMEMBER TO PERIODICALLY SAVE THE WORKSHEET AS IT IS BEING COMPLETED!!!!","REMEMBER TO PERIODICALLY SAVE THE WORKSHEET AS IT IS BEING COMPLETED!!!!","REMEMBER TO PERIODICALLY SAVE THE WORKSHEET AS IT IS BEING COMPLETED!!!!","REMEMBER TO PERIODICALLY SAVE THE WORKSHEET AS IT IS BEING COMPLETED!!!!","REMEMBER TO PERIODICALLY SAVE THE WORKSHEET AS IT IS BEING COMPLETED!!!!","REMEMBER TO PERIODICALLY SAVE THE WORKSHEET AS IT IS BEING COMPLETED!!!!","REMEMBER TO PERIODICALLY SAVE THE WORKSHEET AS IT IS BEING COMPLETED!!!!","REMEMBER TO PERIODICALLY SAVE THE WORKSHEET AS IT IS BEING COMPLETED!!!!","REMEMBER TO PERIODICALLY SAVE THE WORKSHEET AS IT IS BEING COMPLETED!!!!","REMEMBER TO PERIODICALLY SAVE THE WORKSHEET AS IT IS BEING COMPLETED!!!!","REMEMBER TO PERIODICALLY SAVE THE WORKSHEET AS IT IS BEING COMPLETED!!!!","REMEMBER TO PERIODICALLY SAVE THE WORKSHEET AS IT IS BEING COMPLETED!!!!","REMEMBER TO PERIODICALLY SAVE THE WORKSHEET AS IT IS BEING COMPLETED!!!!","REMEMBER TO PERIODICALLY SAVE THE WORKSHEET AS IT IS BEING COMPLETED!!!!","REMEMBER TO PERIODICALLY SAVE THE WORKSHEET AS IT IS BEING COMPLETED!!!!","REMEMBER TO PERIODICALLY SAVE THE WORKSHEET AS IT IS BEING COMPLETED!!!!","REMEMBER TO PERIODICALLY SAVE THE WORKSHEET AS IT IS BEING COMPLETED!!!!","REMEMBER TO PERIODICALLY SAVE THE WORKSHEET AS IT IS BEING COMPLETED!!!!","REMEMBER TO PERIODICALLY SAVE THE WORKSHEET AS IT IS BEING COMPLETED!!!!","REMEMBER TO PERIODICALLY SAVE THE WORKSHEET AS IT IS BEING COMPLETED!!!!","REMEMBER TO PERIODICALLY SAVE THE WORKSHEET AS IT IS BEING COMPLETED!!!!","REMEMBER TO PERIODICALLY SAVE THE WORKSHEET AS IT IS BEING COMPLETED!!!!","REMEMBER TO PERIODICALLY SAVE THE WORKSHEET AS IT IS BEING COMPLETED!!!!","REMEMBER TO PERIODICALLY SAVE THE WORKSHEET AS IT IS BEING COMPLETED!!!!","REMEMBER TO PERIODICALLY SAVE THE WORKSHEET AS IT IS BEING COMPLETED!!!!","REMEMBER TO PERIODICALLY SAVE THE WORKSHEET AS IT IS BEING COMPLETED!!!!","REMEMBER TO PERIODICALLY SAVE THE WORKSHEET AS IT IS BEING COMPLETED!!!!","REMEMBER TO PERIODICALLY SAVE THE WORKSHEET AS IT IS BEING COMPLETED!!!!","REMEMBER TO PERIODICALLY SAVE THE WORKSHEET AS IT IS BEING COMPLETED!!!!","REMEMBER TO PERIODICALLY SAVE THE WORKSHEET AS IT IS BEING COMPLETED!!!!","REMEMBER TO PERIODICALLY SAVE THE WORKSHEET AS IT IS BEING COMPLETED!!!!","REMEMBER TO PERIODICALLY SAVE THE WORKSHEET AS IT IS BEING COMPLETED!!!!","REMEMBER TO PERIODICALLY SAVE THE WORKSHEET AS IT IS BEING COMPLETED!!!!","REMEMBER TO PERIODICALLY SAVE THE WORKSHEET AS IT IS BEING COMPLETED!!!!","REMEMBER TO PERIODICALLY SAVE THE WORKSHEET AS IT IS BEING COMPLETED!!!!","REMEMBER TO PERIODICALLY SAVE THE WORKSHEET AS IT IS BEING COMPLETED!!!!","REMEMBER TO PERIODICALLY SAVE THE WORKSHEET AS IT IS BEING COMPLETED!!!!","REMEMBER TO PERIODICALLY SAVE THE WORKSHEET AS IT IS BEING COMPLETED!!!!","REMEMBER TO PERIODICALLY SAVE THE WORKSHEET AS IT IS BEING COMPLETED!!!!","REMEMBER TO PERIODICALLY SAVE THE WORKSHEET AS IT IS BEING COMPLETED!!!!","REMEMBER TO PERIODICALLY SAVE THE WORKSHEET AS IT IS BEING COMPLETED!!!!","REMEMBER TO PERIODICALLY SAVE THE WORKSHEET AS IT IS BEING COMPLETED!!!!","REMEMBER TO PERIODICALLY SAVE THE WORKSHEET AS IT IS BEING COMPLETED!!!!","REMEMBER TO PERIODICALLY SAVE THE WORKSHEET AS IT IS BEING COMPLETED!!!!","REMEMBER TO PERIODICALLY SAVE THE WORKSHEET AS IT IS BEING COMPLETED!!!!","REMEMBER TO PERIODICALLY SAVE THE WORKSHEET AS IT IS BEING COMPLETED!!!!","REMEMBER TO PERIODICALLY SAVE THE WORKSHEET AS IT IS BEING COMPLETED!!!!","REMEMBER TO PERIODICALLY SAVE THE WORKSHEET AS IT IS BEING COMPLETED!!!!","REMEMBER TO PERIODICALLY SAVE THE WORKSHEET AS IT IS BEING COMPLETED!!!!","REMEMBER TO PERIODICALLY SAVE THE WORKSHEET AS IT IS BEING COMPLETED!!!!","REMEMBER TO PERIODICALLY SAVE THE WORKSHEET AS IT IS BEING COMPLETED!!!!","REMEMBER TO PERIODICALLY SAVE THE WORKSHEET AS IT IS BEING COMPLETED!!!!","REMEMBER TO PERIODICALLY SAVE THE WORKSHEET AS IT IS BEING COMPLETED!!!!","REMEMBER TO PERIODICALLY SAVE THE WORKSHEET AS IT IS BEING COMPLETED!!!!","REMEMBER TO PERIODICALLY SAVE THE WORKSHEET AS IT IS BEING COMPLETED!!!!","REMEMBER TO PERIODICALLY SAVE THE WORKSHEET AS IT IS BEING COMPLETED!!!!","REMEMBER TO PERIODICALLY SAVE THE WORKSHEET AS IT IS BEING COMPLETED!!!!","REMEMBER TO PERIODICALLY SAVE THE WORKSHEET AS IT IS BEING COMPLETED!!!!","REMEMBER TO PERIODICALLY SAVE THE WORKSHEET AS IT IS BEING COMPLETED!!!!","REMEMBER TO PERIODICALLY SAVE THE WORKSHEET AS IT IS BEING COMPLETED!!!!","REMEMBER TO PERIODICALLY SAVE THE WORKSHEET AS IT IS BEING COMPLETED!!!!","REMEMBER TO PERIODICALLY SAVE THE WORKSHEET AS IT IS BEING COMPLETED!!!!","REMEMBER TO PERIODICALLY SAVE THE WORKSHEET AS IT IS BEING COMPLETED!!!!","REMEMBER TO PERIODICALLY SAVE THE WORKSHEET AS IT IS BEING COMPLETED!!!!","REMEMBER TO PERIODICALLY SAVE THE WORKSHEET AS IT IS BEING COMPLETED!!!!","REMEMBER TO PERIODICALLY SAVE THE WORKSHEET AS IT IS BEING COMPLETED!!!!","REMEMBER TO PERIODICALLY SAVE THE WORKSHEET AS IT IS BEING COMPLETED!!!!","REMEMBER TO PERIODICALLY SAVE THE WORKSHEET AS IT IS BEING COMPLETED!!!!","REMEMBER TO PERIODICALLY SAVE THE WORKSHEET AS IT IS BEING COMPLETED!!!!","REMEMBER TO PERIODICALLY SAVE THE WORKSHEET AS IT IS BEING COMPLETED!!!!","REMEMBER TO PERIODICALLY SAVE THE WORKSHEET AS IT IS BEING COMPLETED!!!!","REMEMBER TO PERIODICALLY SAVE THE WORKSHEET AS IT IS BEING COMPLETED!!!!","REMEMBER TO PERIODICALLY SAVE THE WORKSHEET AS IT IS BEING COMPLETED!!!!","REMEMBER TO PERIODICALLY SAVE THE WORKSHEET AS IT IS BEING COMPLETED!!!!","REMEMBER TO PERIODICALLY SAVE THE WORKSHEET AS IT IS BEING COMPLETED!!!!","REMEMBER TO PERIODICALLY SAVE THE WORKSHEET AS IT IS BEING COMPLETED!!!!","REMEMBER TO PERIODICALLY SAVE THE WORKSHEET AS IT IS BEING COMPLETED!!!!","REMEMBER TO PERIODICALLY SAVE THE WORKSHEET AS IT IS BEING COMPLETED!!!!","REMEMBER TO PERIODICALLY SAVE THE WORKSHEET AS IT IS BEING COMPLETED!!!!","REMEMBER TO PERIODICALLY SAVE THE WORKSHEET AS IT IS BEING COMPLETED!!!!","REMEMBER TO PERIODICALLY SAVE THE WORKSHEET AS IT IS BEING COMPLETED!!!!","REMEMBER TO PERIODICALLY SAVE THE WORKSHEET AS IT IS BEING COMPLETED!!!!","REMEMBER TO PERIODICALLY SAVE THE WORKSHEET AS IT IS BEING COMPLETED!!!!","REMEMBER TO PERIODICALLY SAVE THE WORKSHEET AS IT IS BEING COMPLETED!!!!","REMEMBER TO PERIODICALLY SAVE THE WORKSHEET AS IT IS BEING COMPLETED!!!!","REMEMBER TO PERIODICALLY SAVE THE WORKSHEET AS IT IS BEING COMPLETED!!!!","REMEMBER TO PERIODICALLY SAVE THE WORKSHEET AS IT IS BEING COMPLETED!!!!","REMEMBER TO PERIODICALLY SAVE THE WORKSHEET AS IT IS BEING COMPLETED!!!!","REMEMBER TO PERIODICALLY SAVE THE WORKSHEET AS IT IS BEING COMPLETED!!!!","REMEMBER TO PERIODICALLY SAVE THE WORKSHEET AS IT IS BEING COMPLETED!!!!","REMEMBER TO PERIODICALLY SAVE THE WORKSHEET AS IT IS BEING COMPLETED!!!!","REMEMBER TO PERIODICALLY SAVE THE WORKSHEET AS IT IS BEING COMPLETED!!!!","REMEMBER TO PERIODICALLY SAVE THE WORKSHEET AS IT IS BEING COMPLETED!!!!","REMEMBER TO PERIODICALLY SAVE THE WORKSHEET AS IT IS BEING COMPLETED!!!!","REMEMBER TO PERIODICALLY SAVE THE WORKSHEET AS IT IS BEING COMPLETED!!!!","REMEMBER TO PERIODICALLY SAVE THE WORKSHEET AS IT IS BEING COMPLETED!!!!","REMEMBER TO PERIODICALLY SAVE THE WORKSHEET AS IT IS BEING COMPLETED!!!!","REMEMBER TO PERIODICALLY SAVE THE WORKSHEET AS IT IS BEING COMPLETED!!!!","REMEMBER TO PERIODICALLY SAVE THE WORKSHEET AS IT IS BEING COMPLETED!!!!","REMEMBER TO PERIODICALLY SAVE THE WORKSHEET AS IT IS BEING COMPLETED!!!!","REMEMBER TO PERIODICALLY SAVE THE WORKSHEET AS IT IS BEING COMPLETED!!!!","REMEMBER TO PERIODICALLY SAVE THE WORKSHEET AS IT IS BEING COMPLETED!!!!","REMEMBER TO PERIODICALLY SAVE THE WORKSHEET AS IT IS BEING COMPLETED!!!!","REMEMBER TO PERIODICALLY SAVE THE WORKSHEET AS IT IS BEING COMPLETED!!!!","REMEMBER TO PERIODICALLY SAVE THE WORKSHEET AS IT IS BEING COMPLETED!!!!","REMEMBER TO PERIODICALLY SAVE THE WORKSHEET AS IT IS BEING COMPLETED!!!!","REMEMBER TO PERIODICALLY SAVE THE WORKSHEET AS IT IS BEING COMPLETED!!!!","REMEMBER TO PERIODICALLY SAVE THE WORKSHEET AS IT IS BEING COMPLETED!!!!","REMEMBER TO PERIODICALLY SAVE THE WORKSHEET AS IT IS BEING COMPLETED!!!!"]
["Key Information"]
["SFAs must provide calorie and saturated fat information for all meal items, side items with grains and/or meat/meat alternates, and desserts. The Simplified Nutrient Assessment does NOT have this capability. Information can be collected from nutrition labels, product specifications, or other sources (including nutrient analysis software or an online system such as the CNPP SuperTracker)."]
["SFAs do not need specific calorie or saturated fat information for milk, fruits, or vegetables. Estimates for these components have been preprogrammed."]
["SFAs that have nutrient analysis software may still choose the FNS simplified assessment option if desired."]
[]
["Below is a list of calorie and fat sources typically added to foods, for reference:"]
[]
["Common fats added to vegetables or fruit"]
["Butter"]
["Margarine"]
["Vegetable oil (soybean, canola, olive, nut based)"]
["Salad dressing"]
["Mayonnaise"]
["Cream/whipped cream/sour cream"]
["Shortening"]
["Bacon crumbles"]
[]
["Common sources of added sugars to vegetables or fruit"]
["Brown or white sugar"]
["Honey"]
["Maple and/or fruit syrup"]
[]
[]
["Begin on the left side of the sheet with the “Fruit, Milk, and Vegetable Subgroup Simplified Nutrient Assessment.”"]
[]
["Fruit, Milk, and Vegetable Subgroup Simplified Nutrient Assessment"]
["This section contains a set of questions to determine how fruits, vegetables, and milk are typically offered.  SFAs will answer a series of questions pertaining to the frequency of adding fats and sugars in the preparation and offering of fruit, milk, and vegetable subgroups for the week of menus submitted for the certification process.  "]
["Fruit "]
["This box has already calculated the menu’s average serving size and total weekly servings from earlier data entered."]
["Select the two buttons that best apply to fruit offerings within the 5-day menu entered for the menu worksheet- the percentage of offerings containing added fat and/or added sugar. Include fats and sugars used during preparation of the food as well as any additional fats and/or sugars accompanying the component."]
["The default option is “Fruit not offered.”"]
["Only ONE selection can be made for added sugar, and ONE selection for added fat. Refer to the above list of commonly added ingredients to fruits for assistance. Select the best choice."]
["Estimates are based on average/typical use of fat and sugar in fruit offerings. Fruits served as part of a grain-based dessert, or with significant (more than 2 teaspoons/cup) added fat and/or sugar may be listed in column O1 (“Dessert, Side or Condiment”) to report, along with total planned servings within the week, exact calorie and saturated fat values."]
["Indicate the following for fruit for both fat and sugar."]
["If FRUIT is offered less than 30% of the time with added fat/sugar."]
["If FRUIT is offered 30% to 70% of the time with added fat/sugar."]
["If FRUIT is offered more than 70% of the time with added fat/sugar."]
["Fruit Example:"]
["5 cups of fruit offered over the week "]
["(2 cups canned in light syrup, 3 cups fresh/plain fruit)"]
["Result: Fruit offered with added sugar 40% of the time (2 divided by 5; select “30% to 70% of the total fruit offerings) "]
["Result: Fruit offered with added fat 0% of the time (0 divided by 5; select “less than 30% of the total fruit offerings”)"]
[]
["Milk "]
[]
["This box has already calculated the menu’s average serving size and total weekly servings from earlier data entered."]
["Select the button describing which two milk offerings are most frequently served  this week. Only ONE selection can be made- refer to historical usage, inventory records, etc. and select the best choice. Default option is “Milk not offered.”"]
[]
["Estimates based on average usage of standard commercial products. Milk offerings with a unique nutrient profile (e.g. reduced sugar flavored milk) may be listed in column O1 (“Dessert, Side or Condiment”) to report, along with total planned servings within the week, exact calorie and saturated fat values."]
["The default option is “Milk not offered.”"]
["Milk Example: "]
["5 cups of milk offered over the week"]
["Nonfat unflavored and low fat unflavored milk daily, chocolate nonfat milk offered Fridays only."]
["Using inventory, offered 450 nonfat unflavored, 450 low fat unflavored, 100 chocolate nonfat"]
["Result: SFA would select the “nonfat unflavored & low-fat (1%) unflavored” option."]
[]
["Vegetable Subgroups "]
["Each of the vegetable subgroups also has a selection chart. The first is Dark Green Vegetables."]
[]
["This box has already calculated the largest amount of dark green vegetables a child is able to select across the 5-day week from earlier data entered."]
["-Select the button that best describes added fat in offered dark green vegetables. The default option is “Dark green vegetables not offered.” Only ONE selection can be made- refer to the above list of common added ingredients to vegetables and select the best choice."]
["If VEGETABLE SUBGROUP are offered less than 30% of the time with added fat."]
["If VEGETABLE SUBGROUP are offered 30% to 70% of the time with added fat."]
["If VEGETABLE SUBGROUP are offered more than 70% of the time with added fat."]
["-Proceed with all remaining subgroups, following the same steps described above."]
["Note that there is a separate set of questions for fat and sugar for the Red/Orange vegetable subgroup."]
["Vegetable Subgroup Example:"]
["1 ½ cups of red/orange vegetables offered"]
["(½ cup carrots w/brown sugar/butter, ½ cup tomatoes, ½ cup sweet potato w/marshmallows) "]
["Result: Red/orange vegetables offered with added sugar 67% of the time (1 cup divided by 1 ½ cups; select “30% to 70% of the total red/orange offerings” for sugar) "]
["Result: Red/orange vegetables offered with added fat 33% of the time (½ cup divided by 1 ½ cups; select “30% to 70% of the total red/orange offerings” for fat"]
[]
["Main Dish Simplified Nutrient Data Entry"]
["The middle section is entitled “Main Dish Simplified Nutrient Data Entry.”"]
[]
["All meals offered over the week have been pre-populated (column M1). "]
["In column M2, enter the Main Dish, the part of the meal associated with the information entered in columns M3-M5 (calories, saturated fat, number of planned weekly servings)."]
["For each meal, the user must enter calories, saturated fat and the number of main dishes prepared over the course of the entire week (columns M3 through M5). If a meal is served more than once per week, add the number of servings for all days offered together."]
[" Only include the calories and saturated fat for the main dish and any components included as part of the main dish. "]
["Use standard rounding procedures to two decimals points"]
["Some double counting may occur with main dishes containing large amounts of fruits or vegetables (e.g. chef salad). If possible to report calorie and saturated fat information for main dish and exclude vegetables/fruits it contains, this is acceptable. Otherwise, report calorie and saturated fat information in entire main dish."]
["Include calorie and saturated fat information for condiments in Main Dish section (columns M3-M5), OR in the Desserts, Sides, and Condiments section (columns O2-O4). "]
["In last column, enter number of servings of each main dish offered over the course of the week. Rely on production records and historical data if this is a new menu."]
["At the top of this section is a link to Optional Serving Size and Fraction Calculators, tools intended to help users with serving size calculations by volume or weight, adding fractions, and converting decimals to fractions."]
["Main Dish Example:  "]
["Submarine sandwich served w/Italian dressing "]
["Reported in Main Dish: 300 sandwiches, each including 1 tablespoon dressing in analysis "]
["Reported in Desserts/Sides/Condiments: 300 servings of 1 packet (tablespoon) of dressing"]
[]
["Other Items Nutrient Assessment"]
["The section to the far right is entitled “Other items: Sides, Desserts, Condiments Nutrient Data Entry.”"]
[]
["Click the following link: \"Click here to go to the calories and saturated fat table for commonly used condiments\" to go to a chart listing calories and saturated fat for commonly used condiments, such as margarine and salad dressings."]
[]
[" Enter the name of the food item (O1), calories per serving (O2), and saturated fat grams per serving (O3). Use standard rounding procedures to two decimals points."]
[]
["These items have NOT been pre-populated. User must enter names of any desserts or sides containing grains or meat/meat alternates (rice pilaf, yogurt cup, whole grain cookie, “snack” items such as cheese sticks, etc). Information can be collected from nutrition labels, product specifications, or other sources."]
[]
["Enter the number of servings of each item offered over the course of the week (O4)."]
[]
["For condiments, amounts may be entered based on a per serving basis or in bulk quantities based on weekly usage data. Total calories and saturated fat over the week is equivalent in either method of reporting. (The denominator for determining averages is the total number of MEALS served over the week [total of all numbers recorded in column O4])."]
["Condiments Example: "]
["Item offered: salad dressing "]
["Per Serving Reporting: 256 planned servings of 1 Tablespoon amounts (73 calories, 1.2 grams saturated fat per serving) "]
["Bulk Quantity Reporting: 1 planned serving of 1 gallon offered over the week (18,688 calories, 307.2 grams saturated fat)"]
[]
["Sodium Portion of Simplified Nutrient Assessment"]
[]
["Beginning in SY 2023-24, SFAs must also meet Target 1A for average daily sodium requirements. In the next section of the assessment, below the vegetable subgroup questions, select “Yes” or “No” for each of the first 4 questions. For Question #5, regarding USDA Foods, select the option that best represents the percentage of USDA food vegetables offered during the week."]
[]
["These questions will provide estimates of sodium content to the total weekly vegetable offering- therefore, there is no need to respond to a separate sodium question for each of the vegetable subgroups."]
[]
[]
["Simplified Nutrient Assessment (results)"]
["Scroll to the bottom/middle of the screen (past the bottom of the Main Dish and Dessert/Side/Condiment chart)."]
[]
["This section, “Daily Amounts Based on the Average for a 5day week,” calculates daily average calories and percentage of calories from saturated fat. The values based on the entered menu are in grey boxes. The required range for the menu type is shown in the yellow boxes."]
[]
["If the menu meets requirements, the Assessment box turns Green. If the menu is within 25 calories of the required calorie range, or within half a percentage point of the saturated fat limit, the Assessment box turns Yellow. This provides SFAs an opportunity to work with their State as to why the menu is not within the range without an immediate rejection."]
[]
[" If calories or saturated fat are beyond the cautionary range, the Assessment box turns Red."]
[]
["Simplified Nutrient Assessment is now complete save this file and submit to the State Agency for review."]

{"sheet":"Simplified Nutrient Assessment","index":15,"n_rows":87,"n_cols":47,"rows_kept":87,"cut":false,"hidden":false,"merged":[[0,0,0,27],[1,0,1,12],[1,13,1,16],[1,23,1,24],[1,25,1,28],[2,0,2,9],[2,13,2,18],[2,23,2,27],[3,0,5,9],[3,13,3,18],[3,23,3,27],[5,32,5,39],[5,41,6,47],[6,0,6,9],[6,32,6,39],[7,32,7,35],[7,38,7,39],[7,41,12,43],[7,46,7,47],[8,0,8,5],[8,6,8,9],[8,32,8,35],[8,38,8,39],[8,46,8,47],[9,32,10,35],[9,38,10,39],[9,46,9,47],[10,46,10,47],[11,32,12,35],[11,38,12,39],[11,46,11,47],[12,46,12,47],[13,32,13,39],[13,41,14,47],[14,0,14,9],[14,32,14,35],[14,38,14,39],[15,32,15,35],[15,38,15,39],[15,41,16,43],[15,46,16,47],[16,0,16,9],[16,32,17,35],[16,38,17,39],[17,5,17,9],[17,41,18,43],[17,46,18,47],[18,5,18,9],[18,32,19,35],[18,38,19,39],[19,5,19,9],[20,5,20,9],[21,32,21,47],[23,10,23,11],[24,0,24,9],[25,0,25,6],[25,33,25,46],[26,0,26,9],[26,33,26,38],[26,39,26,41],[26,42,26,43],[23,0,23,9],[22,0,22,9],[27,5,27,9],[27,33,27,38],[27,39,27,41],[27,42,27,43],[28,5,28,9],[28,33,28,38],[28,39,28,41],[28,42,28,43],[29,5,29,9],[29,33,29,38],[29,39,29,41],[29,42,29,43],[30,5,30,9],[30,33,30,38],[30,39,30,41],[30,42,30,43],[31,33,31,38],[31,39,31,41],[31,42,31,43],[32,0,32,9],[32,10,32,11],[32,33,32,38],[32,39,32,41],[32,42,32,43],[33,0,33,6],[33,33,33,38],[33,39,33,41],[33,42,33,43],[34,0,34,5],[34,6,34,9],[34,33,34,38],[34,39,34,41],[34,42,34,43],[35,33,35,38],[35,39,35,41],[35,42,35,43],[36,33,36,38],[36,39,36,41],[36,42,36,43],[37,33,37,38],[37,39,37,41],[37,42,37,43],[38,33,38,38],[38,39,38,41],[38,42,38,43],[40,0,40,9],[40,10,40,11],[41,0,41,6],[42,0,42,9],[43,5,43,9],[39,32,39,47],[44,5,44,9],[45,5,45,9],[46,5,46,9],[48,0,48,9],[48,10,48,11],[49,0,49,6],[50,0,50,9],[51,5,51,9],[52,5,52,9],[59,23,60,23],[60,5,60,9],[60,16,60,17],[61,5,61,9],[61,15,62,15],[61,16,61,17],[59,18,60,22],[53,5,53,9],[54,5,54,9],[56,0,56,9],[56,10,56,11],[57,0,57,6],[57,15,57,23],[61,18,62,22],[61,23,62,23],[62,5,62,9],[62,16,62,17],[58,0,58,9],[58,16,58,17],[58,18,58,21],[59,5,59,9],[59,15,60,15],[59,16,59,17],[63,15,64,15],[63,16,63,17],[81,0,81,5],[82,0,82,5],[83,0,83,10],[63,18,64,22],[63,23,64,23],[64,16,64,17],[65,6,65,9],[86,0,86,9],[72,15,73,23],[73,0,73,9],[74,0,74,9],[74,15,103,23],[75,0,75,5],[76,0,76,5],[77,0,77,5],[78,0,78,5],[79,0,79,5],[80,0,80,9]]}
["Simplified Nutrient Assessment for Lunch, Grades 9-12"]
["Go to Instructions","'Nutrient Instructions'!A1","'Nutrient Instructions'!A1","'Nutrient Instructions'!A1","'Nutrient Instructions'!A1","'Nutrient Instructions'!A1","'Nutrient Instructions'!A1","'Nutrient Instructions'!A1","'Nutrient Instructions'!A1","'Nutrient Instructions'!A1","'Nutrient Instructions'!A1","'Nutrient Instructions'!A1","'Nutrient Instructions'!A1","Click here to go to Optional Serving Size and Fraction Calculators","'Simplified Nutrient Assessment'!AQ6","'Simplified Nutrient Assessment'!AQ6","'Simplified Nutrient Assessment'!AQ6",null,null,null,null,null,null,"Click here to go to the calories, saturated fat, and sodium table for commonly used condiments","'Simplified Nutrient Assessment'!AH26","Go to Results","'Simplified Nutrient Assessment'!P58","'Simplified Nutrient Assessment'!P58","'Simplified Nutrient Assessment'!P58"]
["Fruit, Milk, and Vegetable Subgroup Nutrient Assessment","'Nutrient Instructions'!A29","'Nutrient Instructions'!A29","'Nutrient Instructions'!A29","'Nutrient Instructions'!A29","'Nutrient Instructions'!A29","'Nutrient Instructions'!A29","'Nutrient Instructions'!A29","'Nutrient Instructions'!A29","'Nutrient Instructions'!A29",null,null,null,"Main Dish Simplified Nutrient Data Entry","'Nutrient Instructions'!A76","'Nutrient Instructions'!A76","'Nutrient Instructions'!A76","'Nutrient Instructions'!A76","'Nutrient Instructions'!A76",null,null,null,null,"Other items: Sides, Desserts, Condiments Nutrient Data Entry","'Nutrient Instructions'!A93","'Nutrient Instructions'!A93","'Nutrient Instructions'!A93","'Nutrient Instructions'!A93"]
["Select the option best representing how each component is offered throughout the week. Only select one option per component. \nInclude fat and sugars used during preparation of the food as well as any additional fats and/or sugars offered with the component.",null,null,null,null,null,null,null,null,null,null,null,null,"Enter the calories and saturated fat for one serving of the main dish and the number of servings planned during the week. Only include the calories and saturated fat for the main dish and any components included as part of the main dish.  The number of planned serving should include all sites serving the menu type.\nUse standard rounding procedures to two decimal points",null,null,null,null,null,null,null,null,null,"Enter the calories and saturated fat for each side, dessert, and condiment offered. Also enter the number of servings planned during the week. Do not include fruit or vegetable based sides.\nUse standard rounding procedures to two decimal points"]
[null,null,null,null,null,null,null,null,null,null,null,null,null,"M1","M2","M3","M4","M5","M6",null,null,null,null,"O1","Q2","O3","O4","O5"]
[null,null,null,null,null,null,null,null,null,null,"Cal_serv","fat_serv",null,"Meal Name\nThis column is pre-populated with the meal names entered\n on the \"All Meals\" tab","Main Dish\nThe part of the meal associated with the information entered in columns M3-M5","Calories/serving (kcal)","Saturated Fat/serving (g)","Sodium/ serving(mg)","Number of planned servings for the week","cal","fat","sodium",null,"Dessert, Side, or Condiment","Calories/serving (kcal)","Saturated Fat/serving (g)","Sodium/ serving(mg)","Number of planned servings for the week","cal","fat","sodium",null,"OPTIONAL Tools to Assist in Serving Calculations",null,null,null,null,null,null,null,null,"OPTIONAL Tools to Assist in Fraction and Decimal Calculations"]
["Fruit (cups)","'Nutrient Instructions'!A31","'Nutrient Instructions'!A31","'Nutrient Instructions'!A31","'Nutrient Instructions'!A31","'Nutrient Instructions'!A31","'Nutrient Instructions'!A31","'Nutrient Instructions'!A31","'Nutrient Instructions'!A31","'Nutrient Instructions'!A31",{"$f":"I14*$F$8","v":null},{"$f":"D14*$F$8","v":null},null,{"$f":"'All Meals'!C11","v":null},"Chicken Nuggets",250,4,150,100,null,null,null,null,"Example: Small cookie",50,1,5,100,null,null,null,null,"Calories and Saturated Fat Serving Size Calculator (cups)"]
["Average serving size:",null,null,null,null,{"$f":"IF(ISERROR(AVERAGE('All Meals'!J12:J62)),0,AVERAGE('All Meals'!J12:J62))","v":null},"Total Weekly servings:",null,null,{"$f":"'Weekly Report'!G5","v":null},null,null,null,{"$f":"IF('All Meals'!C13=\"\",\"\",'All Meals'!C13)","v":null},"CHIX POPCORN BRD WGRAIN FC .28Z 4-8",229.17,2.29,348.33,36,{"$f":"P8*S8","v":null},{"$f":"Q8*S8","v":null},{"$f":"R8*S8","v":null},null,"ROLL HWN UNSLC 1.25Z",100,0.5,150,36,{"$f":"Y8*AB8","v":null},{"$f":"Z8*AB8","v":null},{"$f":"AA8*AB8","v":null},null,"Enter the number of cups offered:",null,null,null,1,{"$f":"INDEX(SIZES,AK8)","v":null},null,null,null,"Fraction Calculator: \nUse this calculator to add the number of cups.",null,null,1,{"$f":"INDEX(SIZES,AS8)","v":null}]
["Fruit is offered throughout the week with added fat:",null,null,null,null,null,"Fruit is offered throughout the week with added sugar:",null,null,null,null,null,null,{"$f":"IF('All Meals'!C14=\"\",\"\",'All Meals'!C14)","v":null},"Beef Patty w/ bun",450,9,255,40,{"$f":"P9*S9","v":null},{"$f":"Q9*S9","v":null},{"$f":"R9*S9","v":null},null,"Minh Vegetable Egg Rolls, Whole Grain, Frozen, 3.1 Oz Package, 72/Case",148,0.6,227.3,40,{"$f":"Y9*AB9","v":null},{"$f":"Z9*AB9","v":null},{"$f":"AA9*AB9","v":null},null,"Enter the number of cups in a serving:",null,null,null,1,{"$f":"INDEX(SIZES,AK9)","v":null},null,null,null,null,null,null,1,{"$f":"INDEX(SIZES,AS9)","v":null}]
[null,4,132.5933333333333,0.3433066666666667,7.4,"Less than 30% of the total fruit offerings",null,4,3.675,"Less than 30% of the total fruit offerings","avg_wk_cal","avg_wk_fat",null,{"$f":"IF('All Meals'!C15=\"\",\"\",'All Meals'!C15)","v":null},"BEEF TACOS",584.5,11.57,410.97,40,{"$f":"P10*S10","v":null},{"$f":"Q10*S10","v":null},{"$f":"R10*S10","v":null},null,"SAUCE BUFF RNCH CUP",60,1,140,15,{"$f":"Y10*AB10","v":null},{"$f":"Z10*AB10","v":null},{"$f":"AA10*AB10","v":null},null,"Enter the number of calories or sat fat grams/serving (cups):",null,null,null,null,null,null,null,null,null,null,null,1,{"$f":"INDEX(SIZES,AS10)","v":null}]
[null,null,154.9933333333333,1.060806666666667,17.4,"30% to 70% of the total fruit offerings",null,null,12.25,"30% to 70% of the total fruit offerings",{"$f":"K7","v":null},{"$f":"L7","v":null},null,{"$f":"IF('All Meals'!C16=\"\",\"\",'All Meals'!C16)","v":null},"Beef Crumbles over rice topped with various toppin",451.76,5.55,385.61,40,{"$f":"P11*S11","v":null},{"$f":"Q11*S11","v":null},{"$f":"R11*S11","v":null},null,"SAUCE CHICKEN DIPPIN CUP",130,2,135,15,{"$f":"Y11*AB11","v":null},{"$f":"Z11*AB11","v":null},{"$f":"AA11*AB11","v":null},null,null,null,null,null,null,null,null,null,null,null,null,null,1,{"$f":"INDEX(SIZES,AS11)","v":null}]
[null,null,177.3933333333333,1.778306666666667,27.4,"More than 70% of the total fruit offerings",null,null,20.825,"More than 70% of the total fruit offerings",null,null,null,{"$f":"IF('All Meals'!C17=\"\",\"\",'All Meals'!C17)","v":null},"Chicken, bacon, lettuce, tomato, cheese on whole grain toast",464.17,6.01,981.29,40,{"$f":"P12*S12","v":null},{"$f":"Q12*S12","v":null},{"$f":"R12*S12","v":null},null,"SAUCE BBQ CUP DUNK LO SOD",40,0,65,15,{"$f":"Y12*AB12","v":null},{"$f":"Z12*AB12","v":null},{"$f":"AA12*AB12","v":null},null,"Number of calories or saturated fat/serving (cups) offered:",null,null,null,null,null,{"$f":"ROUND(IF(ISERROR((AM10*AL8)/AL9),0,(AM10*AL8)/AL9),2)","v":null},null,null,null,null,null,1,{"$f":"INDEX(SIZES,AS12)","v":null}]
[null,null,0,0,0,"Fruit not offered",null,null,0,"Fruit not offered","avg_sodium",{"$f":"E14*F8","v":null},null,{"$f":"IF('All Meals'!C18=\"\",\"\",'All Meals'!C18)","v":null},"Chicken Fried Rice",228.27,2.51,101.52,40,{"$f":"P13*S13","v":null},{"$f":"Q13*S13","v":null},{"$f":"R13*S13","v":null},null,"MARGARINE SPREAD",30,1,30,36,{"$f":"Y13*AB13","v":null},{"$f":"Z13*AB13","v":null},{"$f":"AA13*AB13","v":null},null,null,null,null,null,null,null,null,null,null,null,null,null,null,null,{"$f":"SUM(AT8:AT12)","v":null}]
[null,null,{"$f":"IF($B$10=1,$C$10,IF($B$10=2,C11,IF($B$10=3,C12,IF($B$10=4,C13,0))))","v":null},{"$f":"IF($B$10=1,D10,IF($B$10=2,D11,IF($B$10=3,D12,IF($B$10=4,D13,0))))","v":null},{"$f":"IF($B$10=1,E10,IF($B$10=2,E11,IF($B$10=3,E12,IF($B$10=4,E13,0))))","v":null},null,null,{"$f":"IF($H$10=1,$I$10,IF($H$10=2,I11,IF($H$10=3,I12,IF($H$10=4,I13,0))))","v":null},{"$f":"SUM(C14,H14)","v":null},null,null,null,null,{"$f":"IF('All Meals'!C19=\"\",\"\",'All Meals'!C19)","v":null},"Chicken Bacon Ranch Sandwich",575,6,1670,32,{"$f":"P14*S14","v":null},{"$f":"Q14*S14","v":null},{"$f":"R14*S14","v":null},null,"Ranch",75,1.25,120,32,{"$f":"Y14*AB14","v":null},{"$f":"Z14*AB14","v":null},{"$f":"AA14*AB14","v":null},null,"Calories and Saturated Fat Serving Size Calculator (weight)",null,null,null,null,null,null,null,null,"Decimal/Fraction Converter\n(Rounded down to the nearest 1/8)"]
["Milk (cups)","'Nutrient Instructions'!A47","'Nutrient Instructions'!A47","'Nutrient Instructions'!A47","'Nutrient Instructions'!A47","'Nutrient Instructions'!A47","'Nutrient Instructions'!A47","'Nutrient Instructions'!A47","'Nutrient Instructions'!A47","'Nutrient Instructions'!A47","Cal_serv","fat_serv",null,{"$f":"IF('All Meals'!C20=\"\",\"\",'All Meals'!C20)","v":null},null,null,null,null,null,{"$f":"P15*S15","v":null},{"$f":"Q15*S15","v":null},{"$f":"R15*S15","v":null},null,"MUSTARD PKT",0,0,65,50,{"$f":"Y15*AB15","v":null},{"$f":"Z15*AB15","v":null},{"$f":"AA15*AB15","v":null},null,"Enter food item weight offered:"]
["Average serving size:",null,null,null,null,{"$f":"IF(ISERROR(AVERAGE('All Meals'!T12:T62)),0, AVERAGE('All Meals'!T12:T62))","v":null},"Total weekly servings:",null,null,{"$f":"'Weekly Report'!G32","v":null},{"$f":"C22*$F$16","v":null},{"$f":"D22*$F$16","v":null},null,{"$f":"IF('All Meals'!C21=\"\",\"\",'All Meals'!C21)","v":null},null,null,null,null,null,{"$f":"P16*S16","v":null},{"$f":"Q16*S16","v":null},{"$f":"R16*S16","v":null},null,"MAYONNAISE LT PKT",50,0.5,70,50,{"$f":"Y16*AB16","v":null},{"$f":"Z16*AB16","v":null},{"$f":"AA16*AB16","v":null},null,"Enter food item weight in a serving:",null,null,null,null,null,null,null,null,"Enter the decimal you wish to convert to a fraction in the box:"]
["What two types of milk are offered most during the week?",null,null,null,null,null,null,null,null,null,null,null,null,{"$f":"IF('All Meals'!C22=\"\",\"\",'All Meals'!C22)","v":null},null,null,null,null,null,{"$f":"P17*S17","v":null},{"$f":"Q17*S17","v":null},{"$f":"R17*S17","v":null},null,"KETCHUP PKT LO SOD",10,0,25,82,{"$f":"Y17*AB17","v":null},{"$f":"Z17*AB17","v":null},{"$f":"AA17*AB17","v":null},null,"Enter the number of calories or sat fat grams/serving:"]
[null,4,114.65,0.3595,136,"Nonfat unflavored & nonfat flavored",null,null,null,null,null,null,null,{"$f":"IF('All Meals'!C23=\"\",\"\",'All Meals'!C23)","v":null},null,null,null,null,null,{"$f":"P18*S18","v":null},{"$f":"Q18*S18","v":null},{"$f":"R18*S18","v":null},null,"SOUR CREAM PKT",60,3.5,10,80,{"$f":"Y18*AB18","v":null},{"$f":"Z18*AB18","v":null},{"$f":"AA18*AB18","v":null},null,null,null,null,null,null,null,null,null,null,"The decimal entered above has been converted to the following fraction:",null,null,null,null,{"$f":"FLOOR(AU16,0.125)","v":null}]
[null,null,92.5,0.841,105,"Nonfat unflavored & low-fat (1%) unflavored",null,null,null,null,"avg_wk_cal","avg_wk_fat",null,{"$f":"IF('All Meals'!C24=\"\",\"\",'All Meals'!C24)","v":null},null,null,null,null,null,{"$f":"P19*S19","v":null},{"$f":"Q19*S19","v":null},{"$f":"R19*S19","v":null},null,"SAUCE TACO MILD PKT",5,0,70,80,{"$f":"Y19*AB19","v":null},{"$f":"Z19*AB19","v":null},{"$f":"AA19*AB19","v":null},null,"Number of calories or saturated fat\n (weight offered):",null,null,null,null,null,{"$f":"ROUND(IF(ISERROR((AM17*AM15)/AM16),0,(AM17*AM15)/AM16),2)","v":null}]
[null,null,124.15,1.0635,138,"Low-fat (1%) unflavored & nonfat flavored",null,null,null,null,{"$f":"K16","v":null},{"$f":"L16","v":null},null,{"$f":"IF('All Meals'!C25=\"\",\"\",'All Meals'!C25)","v":null},null,null,null,null,null,{"$f":"P20*S20","v":null},{"$f":"Q20*S20","v":null},{"$f":"R20*S20","v":null},null,null,0,0,0,481,{"$f":"Y20*AB20","v":null},{"$f":"Z20*AB20","v":null},{"$f":"AA20*AB20","v":null}]
[null,null,0,0,0,"Milk not offered",null,null,null,null,"avg_sodium",{"$f":"E22*F16","v":null},null,{"$f":"IF('All Meals'!C26=\"\",\"\",'All Meals'!C26)","v":null},null,null,null,null,null,{"$f":"P21*S21","v":null},{"$f":"Q21*S21","v":null},{"$f":"R21*S21","v":null},null,"PRETZEL ROD SFT WHEAT",140,0,550,31,{"$f":"Y21*AB21","v":null},{"$f":"Z21*AB21","v":null},{"$f":"AA21*AB21","v":null}]
[null,null,{"$f":"IF($B$18=1,C18,IF($B$18=2,C19,IF($B$18=3,C20,IF($B$18=4,C21,0))))","v":null},{"$f":"IF($B$18=1,D18,IF($B$18=2,D19,IF($B$18=3,D20,IF($B$18=4,D21,0))))","v":null},{"$f":"IF($B$18=1,E18,IF($B$18=2,E19,IF($B$18=3,E20,IF($B$18=4,E21,0))))","v":null},null,null,null,null,null,null,null,null,{"$f":"IF('All Meals'!C27=\"\",\"\",'All Meals'!C27)","v":null},null,null,null,null,null,{"$f":"P22*S22","v":null},{"$f":"Q22*S22","v":null},{"$f":"R22*S22","v":null},null,"CHEESE CUP MLD 4Z",90,2,470,31,{"$f":"Y22*AB22","v":null},{"$f":"Z22*AB22","v":null},{"$f":"AA22*AB22","v":null},null,"Go Back to Assessment","'Simplified Nutrient Assessment'!A1","'Simplified Nutrient Assessment'!A1","'Simplified Nutrient Assessment'!A1","'Simplified Nutrient Assessment'!A1","'Simplified Nutrient Assessment'!A1","'Simplified Nutrient Assessment'!A1","'Simplified Nutrient Assessment'!A1","'Simplified Nutrient Assessment'!A1","'Simplified Nutrient Assessment'!A1","'Simplified Nutrient Assessment'!A1","'Simplified Nutrient Assessment'!A1","'Simplified Nutrient Assessment'!A1","'Simplified Nutrient Assessment'!A1","'Simplified Nutrient Assessment'!A1"]
["Vegetable Subgroups\n","'Nutrient Instructions'!A60","'Nutrient Instructions'!A60","'Nutrient Instructions'!A60","'Nutrient Instructions'!A60","'Nutrient Instructions'!A60","'Nutrient Instructions'!A60","'Nutrient Instructions'!A60","'Nutrient Instructions'!A60","'Nutrient Instructions'!A60",null,null,null,{"$f":"IF('All Meals'!C28=\"\",\"\",'All Meals'!C28)","v":null},null,null,null,null,null,{"$f":"P23*S23","v":null},{"$f":"Q23*S23","v":null},{"$f":"R23*S23","v":null},null,"CRACKER GRHM HNY L/F",60,0,70,45,{"$f":"Y23*AB23","v":null},{"$f":"Z23*AB23","v":null},{"$f":"AA23*AB23","v":null}]
["Select the option that best represents how each subgroup is offered throughout the week. Include fats and sugars added during preparation as well as any additional fats and/or sugars offered with the vegetables.",null,null,null,null,null,null,null,null,null,"Sodium calc",null,null,{"$f":"IF('All Meals'!C29=\"\",\"\",'All Meals'!C29)","v":null},null,null,null,null,null,{"$f":"P24*S24","v":null},{"$f":"Q24*S24","v":null},{"$f":"R24*S24","v":null},null,"CHEESE STRING MOZZ LT IW",60,1.5,200,35.25,{"$f":"Y24*AB24","v":null},{"$f":"Z24*AB24","v":null},{"$f":"AA24*AB24","v":null}]
["Dark Green Vegetables (cups)","'Nutrient Instructions'!A60","'Nutrient Instructions'!A60","'Nutrient Instructions'!A60","'Nutrient Instructions'!A60","'Nutrient Instructions'!A60","'Nutrient Instructions'!A60","'Nutrient Instructions'!A60","'Nutrient Instructions'!A60","'Nutrient Instructions'!A60","sod_wk","avg_sod",null,{"$f":"IF('All Meals'!C30=\"\",\"\",'All Meals'!C30)","v":null},null,null,null,null,null,{"$f":"P25*S25","v":null},{"$f":"Q25*S25","v":null},{"$f":"R25*S25","v":null},null,"CRACKER RITZ",70,1,90,35.25,{"$f":"Y25*AB25","v":null},{"$f":"Z25*AB25","v":null},{"$f":"AA25*AB25","v":null}]
["Estimated share of dark green vegetables to select:",null,null,null,null,null,null,null,null,{"$f":"IF(ISERROR(('Weekly Report'!G13/SUM('Weekly Report'!G13:G17))*'Weekly Report'!G10),0,('Weekly Report'!G13)/SUM('Weekly Report'!G13:G17))*'Weekly Report'!G10","v":null},{"$f":"J26*E32","v":null},{"$f":"K26/5","v":null},null,{"$f":"IF('All Meals'!C31=\"\",\"\",'All Meals'!C31)","v":null},null,null,null,null,null,{"$f":"P26*S26","v":null},{"$f":"Q26*S26","v":null},{"$f":"R26*S26","v":null},null,"Tostitos Baked Scoops Tortilla Chips, Reduced-Fat",110,0,95,35.25,{"$f":"Y26*AB26","v":null},{"$f":"Z26*AB26","v":null},{"$f":"AA26*AB26","v":null},null,null,"Calories, Saturated Fat, and Sodium for Commonly Used Condiments"]
["Dark Green vegetables are offered throughout the week with added fat:",null,null,null,null,null,null,null,null,null,"Cal_wk","fat_wk",null,{"$f":"IF('All Meals'!C32=\"\",\"\",'All Meals'!C32)","v":null},null,null,null,null,null,{"$f":"P27*S27","v":null},{"$f":"Q27*S27","v":null},{"$f":"R27*S27","v":null},null,"SALSA CUP",29.3,0,190.5,35.25,{"$f":"Y27*AB27","v":null},{"$f":"Z27*AB27","v":null},{"$f":"AA27*AB27","v":null},null,null,"Source of Fat",null,null,null,null,null,"Calories (kcal)",null,null,"Saturated Fat (gm)",null,null,null,"Sodium (Na)"]
[null,4,40.6,0.3091666666666667,43.96,"Less than 30% of the total dark green offerings",null,null,null,null,{"$f":"C32*J26","v":null},{"$f":"J26*D32","v":null},null,{"$f":"IF('All Meals'!C33=\"\",\"\",'All Meals'!C33)","v":null},null,null,null,null,null,{"$f":"P28*S28","v":null},{"$f":"Q28*S28","v":null},{"$f":"R28*S28","v":null},null,"CRACKER RITZ PNUT BTR",200,2.5,290,32,{"$f":"Y28*AB28","v":null},{"$f":"Z28*AB28","v":null},{"$f":"AA28*AB28","v":null},null,null,"Butter (2tsp)",null,null,null,null,null,68,null,null,4.87,null,null,null,61]
[null,null,63,1.026666666666667,null,"30% to 70% of the total dark green offerings",null,null,null,null,"avg_wk_cal","avg_wk_fat",null,{"$f":"IF('All Meals'!C34=\"\",\"\",'All Meals'!C34)","v":null},null,null,null,null,null,{"$f":"P29*S29","v":null},{"$f":"Q29*S29","v":null},{"$f":"R29*S29","v":null},null,"PRETZEL STIX CINN WGRAIN IW",150,1,115,33.71,{"$f":"Y29*AB29","v":null},{"$f":"Z29*AB29","v":null},{"$f":"AA29*AB29","v":null},null,null,"Margarine (2tsp)",null,null,null,null,null,94,null,null,1.6,null,null,null,70]
[null,null,85.40000000000001,1.744166666666667,null,"More than 70% of the total dark green offerings",null,null,null,null,{"$f":"K28/5","v":null},{"$f":"L28/5","v":null},null,{"$f":"IF('All Meals'!C35=\"\",\"\",'All Meals'!C35)","v":null},null,null,null,null,null,{"$f":"P30*S30","v":null},{"$f":"Q30*S30","v":null},{"$f":"R30*S30","v":null},null,"BAR GRANOLA CHOC CHIP",100,1.5,70,28.29,{"$f":"Y30*AB30","v":null},{"$f":"Z30*AB30","v":null},{"$f":"AA30*AB30","v":null},null,null,"Heavy cream (2 Tbsp)",null,null,null,null,null,52,null,null,3.46,null,null,null,6]
[null,null,0,0,null,"Dark green vegetables not offered",null,null,null,null,null,null,null,{"$f":"IF('All Meals'!C36=\"\",\"\",'All Meals'!C36)","v":null},null,null,null,null,null,{"$f":"P31*S31","v":null},{"$f":"Q31*S31","v":null},{"$f":"R31*S31","v":null},null,"JUICE APPL 100 FZ",60,0,5,28.29,{"$f":"Y31*AB31","v":null},{"$f":"Z31*AB31","v":null},{"$f":"AA31*AB31","v":null},null,null,"Ranch dressing, regular (1 Tbsp)",null,null,null,null,null,73,null,null,1.2,null,null,null,135]
[null,null,{"$f":"IF($B$28=1,C28,IF($B$28=2,C29,IF($B$28=3,C30,IF($B$28=4,C31,0))))","v":null},{"$f":"IF($B$28=1,D28,IF($B$28=2,D29,IF($B$28=3,D30,IF($B$28=4,D31,0))))","v":null},{"$f":"IF($B$28=1,E28,IF($B$28=2,E28,IF($B$28=3,E28,IF($B$28=4,0,0))))","v":null},null,null,null,null,null,null,null,null,{"$f":"IF('All Meals'!C37=\"\",\"\",'All Meals'!C37)","v":null},null,null,null,null,null,{"$f":"P32*S32","v":null},{"$f":"Q32*S32","v":null},{"$f":"R32*S32","v":null},null,null,null,null,null,null,{"$f":"Y32*AB32","v":null},{"$f":"Z32*AB32","v":null},{"$f":"AA32*AB32","v":null},null,null,"Ranch dressing, reduced fat (1 Tbsp)",null,null,null,null,null,29,null,null,0.19,null,null,null,168]
["Red/orange Vegetables (cups)","'Nutrient Instructions'!A60","'Nutrient Instructions'!A60","'Nutrient Instructions'!A60","'Nutrient Instructions'!A60","'Nutrient Instructions'!A60","'Nutrient Instructions'!A60","'Nutrient Instructions'!A60","'Nutrient Instructions'!A60","'Nutrient Instructions'!A60","Sod_calc",null,null,{"$f":"IF('All Meals'!C38=\"\",\"\",'All Meals'!C38)","v":null},null,null,null,null,null,{"$f":"P33*S33","v":null},{"$f":"Q33*S33","v":null},{"$f":"R33*S33","v":null},null,null,null,null,null,null,{"$f":"Y33*AB33","v":null},{"$f":"Z33*AB33","v":null},{"$f":"AA33*AB33","v":null},null,null,"Italian dressing, regular (1 Tbsp)",null,null,null,null,null,43,null,null,0.66,null,null,null,146]
["Estimated share of red/orange vegetables to select:",null,null,null,null,null,null,null,null,{"$f":"IF(ISERROR(('Weekly Report'!G14)/SUM('Weekly Report'!G13:G17)*'Weekly Report'!G10),0,(('Weekly Report'!G14)/SUM('Weekly Report'!G13:G17)*'Weekly Report'!G10))","v":null},{"$f":"IF(SUM(E40:F40)>0,E36,0)","v":null},{"$f":"K34/5","v":null},null,{"$f":"IF('All Meals'!C39=\"\",\"\",'All Meals'!C39)","v":null},null,null,null,null,null,{"$f":"P34*S34","v":null},{"$f":"Q34*S34","v":null},{"$f":"R34*S34","v":null},null,null,null,null,null,null,{"$f":"Y34*AB34","v":null},{"$f":"Z34*AB34","v":null},{"$f":"AA34*AB34","v":null},null,null,"Italian dressing, reduced fat (1 Tbsp)",null,null,null,null,null,11,null,null,0.07000000000000001,null,null,null,134]
["Red/orange Vegetables are offered throughout the week with added fat:",null,null,null,null,null,"Red/orange Vegetables are offered throughout the week with added sugar:",null,null,null,"Cal_wk","fat_wk",null,{"$f":"IF('All Meals'!C40=\"\",\"\",'All Meals'!C40)","v":null},null,null,null,null,null,{"$f":"P35*S35","v":null},{"$f":"Q35*S35","v":null},{"$f":"R35*S35","v":null},null,null,null,null,null,null,{"$f":"Y35*AB35","v":null},{"$f":"Z35*AB35","v":null},{"$f":"AA35*AB35","v":null},null,null,"Mayonnaise (1 Tbsp)",null,null,null,null,null,57,null,null,0.72,null,null,null,88]
[null,4,109.4333333333333,0.3556666666666667,128.97,"Less than 30% of the total red/orange offerings",null,4,3.675,"Less than 30% of the total red/orange offerings",{"$f":"J34*I40","v":null},{"$f":"J34*D40","v":null},null,{"$f":"IF('All Meals'!C41=\"\",\"\",'All Meals'!C41)","v":null},null,null,null,null,null,{"$f":"P36*S36","v":null},{"$f":"Q36*S36","v":null},{"$f":"R36*S36","v":null},null,null,null,null,null,null,{"$f":"Y36*AB36","v":null},{"$f":"Z36*AB36","v":null},{"$f":"AA36*AB36","v":null},null,null,"Ketchup (9gm packet)",null,null,null,null,null,9,null,null,0,null,null,null,82]
[null,null,131.8333333333333,1.073166666666667,null,"30% to 70% of the total red/orange offerings",null,null,12.25,"30% to 70% of the total red/orange offerings","avg_wk_cal","avg_wk_fat",null,{"$f":"IF('All Meals'!C42=\"\",\"\",'All Meals'!C42)","v":null},null,null,null,null,null,{"$f":"P37*S37","v":null},{"$f":"Q37*S37","v":null},{"$f":"R37*S37","v":null},null,null,null,null,null,null,{"$f":"Y37*AB37","v":null},{"$f":"Z37*AB37","v":null},{"$f":"AA37*AB37","v":null},null,null,"Honey (1 Tbsp)",null,null,null,null,null,38,null,null,0,null,null,null,1]
[null,null,154.2333333333333,1.790666666666667,null,"More than 70% of the total red/orange offerings",null,null,20.825,"More than 70% of the total red/orange offerings",{"$f":"K36/5","v":null},{"$f":"L36/5","v":null},null,{"$f":"IF('All Meals'!C43=\"\",\"\",'All Meals'!C43)","v":null},null,null,null,null,null,{"$f":"P38*S38","v":null},{"$f":"Q38*S38","v":null},{"$f":"R38*S38","v":null},null,null,null,null,null,null,{"$f":"Y38*AB38","v":null},{"$f":"Z38*AB38","v":null},{"$f":"AA38*AB38","v":null},null,null,"Maple syrup (2 Tbsp)",null,null,null,null,null,106,null,null,0.01,null,null,null,24]
[null,null,0,0,null,"Red/orange vegetables not offered",null,null,0,"Red/orange vegetables not offered",null,null,null,{"$f":"IF('All Meals'!C44=\"\",\"\",'All Meals'!C44)","v":null},null,null,null,null,null,{"$f":"P39*S39","v":null},{"$f":"Q39*S39","v":null},{"$f":"R39*S39","v":null},null,null,null,null,null,null,{"$f":"Y39*AB39","v":null},{"$f":"Z39*AB39","v":null},{"$f":"AA39*AB39","v":null},null,null,"Mustard (5gm packet)",null,null,null,null,null,3,null,null,0.01,null,null,null,57]
[null,null,{"$f":"IF($B$36=1,C36,IF($B$36=2,C37,IF($B$36=3,C38,IF($B$36=4,C39,0))))","v":null},{"$f":"IF($B$36=1,D36,IF($B$36=2,D37,IF($B$36=3,D38,IF($B$36=4,D39,0))))","v":null},{"$f":"IF($B$36=1,E36,IF($B$36=2,E36,IF($B$36=3,E36,IF($B$36=4,0,0))))","v":null},{"$f":"IF($H$36=1,E36,IF($H$36=2,E36,IF($H$36=3,E36,IF($H$36=4,0,0))))","v":null},null,{"$f":"IF($H$36=1,I36,IF($H$36=2,I37,IF($H$36=3,I38,IF($H$36=4,I39,0))))","v":null},{"$f":"SUM(C40,H40)","v":null},null,null,null,null,{"$f":"IF('All Meals'!C45=\"\",\"\",'All Meals'!C45)","v":null},null,null,null,null,null,{"$f":"P40*S40","v":null},{"$f":"Q40*S40","v":null},{"$f":"R40*S40","v":null},null,null,null,null,null,null,{"$f":"Y40*AB40","v":null},{"$f":"Z40*AB40","v":null},{"$f":"AA40*AB40","v":null},null,"Go Back to Assessment","'Simplified Nutrient Assessment'!A1","'Simplified Nutrient Assessment'!A1","'Simplified Nutrient Assessment'!A1","'Simplified Nutrient Assessment'!A1","'Simplified Nutrient Assessment'!A1","'Simplified Nutrient Assessment'!A1","'Simplified Nutrient Assessment'!A1","'Simplified Nutrient Assessment'!A1","'Simplified Nutrient Assessment'!A1","'Simplified Nutrient Assessment'!A1","'Simplified Nutrient Assessment'!A1","'Simplified Nutrient Assessment'!A1"]
["Beans/peas (legumes) (cups)","'Nutrient Instructions'!A60","'Nutrient Instructions'!A60","'Nutrient Instructions'!A60","'Nutrient Instructions'!A60","'Nutrient Instructions'!A60","'Nutrient Instructions'!A60","'Nutrient Instructions'!A60","'Nutrient Instructions'!A60","'Nutrient Instructions'!A60","Sodium calc",null,null,{"$f":"IF('All Meals'!C46=\"\",\"\",'All Meals'!C46)","v":null},null,null,null,null,null,{"$f":"P41*S41","v":null},{"$f":"Q41*S41","v":null},{"$f":"R41*S41","v":null},null,null,null,null,null,null,{"$f":"Y41*AB41","v":null},{"$f":"Z41*AB41","v":null},{"$f":"AA41*AB41","v":null}]
["Estimated share of beans/peas to select:",null,null,null,null,null,null,null,null,{"$f":"IF(ISERROR(('Weekly Report'!G15)/SUM('Weekly Report'!G13:G17)*'Weekly Report'!G10),0,'Weekly Report'!G15/SUM('Weekly Report'!G13:G17)*'Weekly Report'!G10)","v":null},{"$f":"J42*E48","v":null},{"$f":"K42/5","v":null},null,{"$f":"IF('All Meals'!C47=\"\",\"\",'All Meals'!C47)","v":null},null,null,null,null,null,{"$f":"P42*S42","v":null},{"$f":"Q42*S42","v":null},{"$f":"R42*S42","v":null},null,null,null,null,null,null,{"$f":"Y42*AB42","v":null},{"$f":"Z42*AB42","v":null},{"$f":"AA42*AB42","v":null}]
["Beans/Peas are offered throughout the week with added fat:",null,null,null,null,null,null,null,null,null,"Cal_wk","fat_wk",null,{"$f":"IF('All Meals'!C48=\"\",\"\",'All Meals'!C48)","v":null},null,null,null,null,null,{"$f":"P43*S43","v":null},{"$f":"Q43*S43","v":null},{"$f":"R43*S43","v":null},null,null,null,null,null,null,{"$f":"Y43*AB43","v":null},{"$f":"Z43*AB43","v":null},{"$f":"AA43*AB43","v":null}]
[null,4,246,0.5475000000000001,501.79,"Less than 30% of the total beans/peas (legumes) offerings",null,null,null,null,{"$f":"C48*J42","v":null},{"$f":"J42*D48","v":null},null,{"$f":"IF('All Meals'!C49=\"\",\"\",'All Meals'!C49)","v":null},null,null,null,null,null,{"$f":"P44*S44","v":null},{"$f":"Q44*S44","v":null},{"$f":"R44*S44","v":null},null,null,null,null,null,null,{"$f":"Y44*AB44","v":null},{"$f":"Z44*AB44","v":null},{"$f":"AA44*AB44","v":null}]
[null,null,268.4,1.265,null,"30% to 70% of the total beans/peas (legumes) offerings",null,null,null,null,"avg_wk_cal","avg_wk_fat",null,{"$f":"IF('All Meals'!C50=\"\",\"\",'All Meals'!C50)","v":null},null,null,null,null,null,{"$f":"P45*S45","v":null},{"$f":"Q45*S45","v":null},{"$f":"R45*S45","v":null},null,null,null,null,null,null,{"$f":"Y45*AB45","v":null},{"$f":"Z45*AB45","v":null},{"$f":"AA45*AB45","v":null}]
[null,null,290.8,1.9825,null,"More than 70% of the total beans/peas (legumes) offerings",null,null,null,null,{"$f":"K44/5","v":null},{"$f":"L44/5","v":null},null,{"$f":"IF('All Meals'!C51=\"\",\"\",'All Meals'!C51)","v":null},null,null,null,null,null,{"$f":"P46*S46","v":null},{"$f":"Q46*S46","v":null},{"$f":"R46*S46","v":null},null,null,null,null,null,null,{"$f":"Y46*AB46","v":null},{"$f":"Z46*AB46","v":null},{"$f":"AA46*AB46","v":null}]
[null,null,0,0,null,"Beans/peas not offered",null,null,null,null,null,null,null,{"$f":"IF('All Meals'!C52=\"\",\"\",'All Meals'!C52)","v":null},null,null,null,null,null,{"$f":"P47*S47","v":null},{"$f":"Q47*S47","v":null},{"$f":"R47*S47","v":null},null,null,null,null,null,null,{"$f":"Y47*AB47","v":null},{"$f":"Z47*AB47","v":null},{"$f":"AA47*AB47","v":null}]
[null,null,{"$f":"IF($B$44=1,C44,IF($B$44=2,C45,IF($B$44=3,C46,IF($B$44=4,C47,0))))","v":null},{"$f":"IF($B$44=1,D44,IF($B$44=2,D45,IF($B$44=3,D46,IF($B$44=4,D47,0))))","v":null},{"$f":"IF($B$44=1,E44,IF($B$44=2,E44,IF($B$44=3,E44,IF($B$44=4,0,0))))","v":null},null,null,null,null,null,null,null,null,{"$f":"IF('All Meals'!C53=\"\",\"\",'All Meals'!C53)","v":null},null,null,null,null,null,{"$f":"P48*S48","v":null},{"$f":"Q48*S48","v":null},{"$f":"R48*S48","v":null},null,null,null,null,null,null,{"$f":"Y48*AB48","v":null},{"$f":"Z48*AB48","v":null},{"$f":"AA48*AB48","v":null}]
["Starchy Vegetables (cups)","'Nutrient Instructions'!A60","'Nutrient Instructions'!A60","'Nutrient Instructions'!A60","'Nutrient Instructions'!A60","'Nutrient Instructions'!A60","'Nutrient Instructions'!A60","'Nutrient Instructions'!A60","'Nutrient Instructions'!A60","'Nutrient Instructions'!A60","Sodium calc",null,null,{"$f":"IF('All Meals'!C54=\"\",\"\",'All Meals'!C54)","v":null},null,null,null,null,null,{"$f":"P49*S49","v":null},{"$f":"Q49*S49","v":null},{"$f":"R49*S49","v":null},null,null,null,null,null,null,{"$f":"Y49*AB49","v":null},{"$f":"Z49*AB49","v":null},{"$f":"AA49*AB49","v":null}]
["Estimated share of Starchy vegetables to select:",null,null,null,null,null,null,null,null,{"$f":"IF(ISERROR(('Weekly Report'!G16)/SUM('Weekly Report'!G13:G17)*'Weekly Report'!G10),0,('Weekly Report'!G16)/SUM('Weekly Report'!G13:G17)*'Weekly Report'!G10)","v":null},{"$f":"J50*E56","v":null},{"$f":"K50/5","v":null},null,{"$f":"IF('All Meals'!C55=\"\",\"\",'All Meals'!C55)","v":null},null,null,null,null,null,{"$f":"P50*S50","v":null},{"$f":"Q50*S50","v":null},{"$f":"R50*S50","v":null},null,null,null,null,null,null,{"$f":"Y50*AB50","v":null},{"$f":"Z50*AB50","v":null},{"$f":"AA50*AB50","v":null}]
["Starchy vegetables are offered throughout the week with added fat:",null,null,null,null,null,null,null,null,null,"Cal_wk","fat_wk",null,{"$f":"IF('All Meals'!C56=\"\",\"\",'All Meals'!C56)","v":null},null,null,null,null,null,{"$f":"P51*S51","v":null},{"$f":"Q51*S51","v":null},{"$f":"R51*S51","v":null},null,null,null,null,null,null,{"$f":"Y51*AB51","v":null},{"$f":"Z51*AB51","v":null},{"$f":"AA51*AB51","v":null}]
[null,4,161.0285714285714,0.5055000000000001,269.75,"Less than 30% of the total starchy offerings",null,null,null,null,{"$f":"C56*J50","v":null},{"$f":"J50*D56","v":null},null,{"$f":"IF('All Meals'!C57=\"\",\"\",'All Meals'!C57)","v":null},null,null,null,null,null,{"$f":"P52*S52","v":null},{"$f":"Q52*S52","v":null},{"$f":"R52*S52","v":null},null,null,null,null,null,null,{"$f":"Y52*AB52","v":null},{"$f":"Z52*AB52","v":null},{"$f":"AA52*AB52","v":null}]
[null,null,183.4285714285714,1.223,null,"30% to 70% of the total starchy offerings",null,null,null,null,"avg_wk_cal","avg_wk_fat",null,{"$f":"IF('All Meals'!C58=\"\",\"\",'All Meals'!C58)","v":null},null,null,null,null,null,{"$f":"P53*S53","v":null},{"$f":"Q53*S53","v":null},{"$f":"R53*S53","v":null},null,null,null,null,null,null,{"$f":"Y53*AB53","v":null},{"$f":"Z53*AB53","v":null},{"$f":"AA53*AB53","v":null}]
[null,null,205.8285714285714,1.9405,null,"More than 70% of the total starchy offerings",null,null,null,null,{"$f":"K52/5","v":null},{"$f":"L52/5","v":null},null,{"$f":"IF('All Meals'!C59=\"\",\"\",'All Meals'!C59)","v":null},null,null,null,null,null,{"$f":"P54*S54","v":null},{"$f":"Q54*S54","v":null},{"$f":"R54*S54","v":null},null,null,null,null,null,null,{"$f":"Y54*AB54","v":null},{"$f":"Z54*AB54","v":null},{"$f":"AA54*AB54","v":null}]
[null,null,0,0,null,"Starchy vegetables not offered",null,null,null,null,null,null,null,{"$f":"IF('All Meals'!C60=\"\",\"\",'All Meals'!C60)","v":null},null,null,null,null,null,{"$f":"P55*S55","v":null},{"$f":"Q55*S55","v":null},{"$f":"R55*S55","v":null},null,null,null,null,null,null,{"$f":"Y55*AB55","v":null},{"$f":"Z55*AB55","v":null},{"$f":"AA55*AB55","v":null}]
[null,null,{"$f":"IF($B$52=1,C52,IF($B$52=2,C53,IF($B$52=3,C54,IF($B$52=4,C55,0))))","v":null},{"$f":"IF($B$52=1,D52,IF($B$52=2,D53,IF($B$52=3,D54,IF($B$52=4,D55,0))))","v":null},{"$f":"IF($B$52=1,E52,IF($B$52=2,E52,IF($B$52=3,E52,IF($B$52=4,0,0))))","v":null},null,null,null,null,null,null,null,null,{"$f":"IF('All Meals'!C61=\"\",\"\",'All Meals'!C61)","v":null},null,null,null,null,null,{"$f":"P56*S56","v":null},{"$f":"Q56*S56","v":null},{"$f":"R56*S56","v":null},null,null,null,null,null,null,{"$f":"Y56*AB56","v":null},{"$f":"Z56*AB56","v":null},{"$f":"AA56*AB56","v":null}]
["Other Vegetables (cups)","'Nutrient Instructions'!A60","'Nutrient Instructions'!A60","'Nutrient Instructions'!A60","'Nutrient Instructions'!A60","'Nutrient Instructions'!A60","'Nutrient Instructions'!A60","'Nutrient Instructions'!A60","'Nutrient Instructions'!A60","'Nutrient Instructions'!A60","Sodium calc"]
["Estimated share of Other vegetables to select:",null,null,null,null,null,null,null,null,{"$f":"IF(ISERROR(('Weekly Report'!G17)/SUM('Weekly Report'!G13:G17)*'Weekly Report'!G10),0,('Weekly Report'!G17)/SUM('Weekly Report'!G13:G17)*'Weekly Report'!G10)","v":null},{"$f":"J58*E64","v":null},{"$f":"K58/5","v":null},null,null,null,"Daily Amounts Based on the Average for a 5-day week","'Nutrient Instructions'!A117","'Nutrient Instructions'!A117","'Nutrient Instructions'!A117","'Nutrient Instructions'!A117","'Nutrient Instructions'!A117","'Nutrient Instructions'!A117","'Nutrient Instructions'!A117","'Nutrient Instructions'!A117"]
["Other vegetables are offered throughout the week with added fat:",null,null,null,null,null,null,null,null,null,"Cal_wk","fat_wk",null,null,null,"Nutrient","Measure",null,"Required Range",null,null,null,null,"Assessment"]
[null,4,38.18181818181818,0.06554545454545455,85.11,"Less than 30% of the total other offerings",null,null,null,null,null,null,null,null,null,"Calories","Daily Average",null,"750-850 kcals",null,null,null,null,{"$f":"IF(AND(Q61>=Q66,Q61<=R66),\"Estimated calories are within the required range\", IF(AND(Q61<Q66,Q61>=S66), \"Estimated calories are below the calorie minimum but within 25 calories, follow up with State agency\", IF(AND(Q61>R66,Q61<=T66), \"Estimated calories are above the calorie maximum but within 25 calories, follow up with State agency\", \"Estimated calories are NOT within the required range\")))","v":null}]
[null,null,65.18181818181819,1.939795454545455,null,"30% to 70% of the total other offerings",null,null,null,null,{"$f":"C64*J58","v":null},{"$f":"J58*D64","v":null},null,null,null,null,{"$f":"ROUND(SUM(K67,P72,Y72),2)","v":null}]
[null,null,119.1818181818182,5.688295454545455,null,"More than 70% of the total other offerings",null,null,null,null,null,null,null,null,null,"Saturated Fat","Percent of Calories",null,"Less than 10% of total calories",null,null,null,null,{"$f":"IF(Q63<0.1,\"Estimated percent of saturated fat meets the requirement\",IF(AND(Q63>=0.1,Q63<=0.105),\"Estimated percent of saturated fat is above the requirement by less than a half percent, follow up with State agency\",\"Estimated percent of saturated fat does NOT meet the requirement\"))","v":null}]
[null,null,0,0,null,"Other vegetables not offered",null,null,null,null,"avg_wk_cal","avg_wk_fat",null,null,null,null,{"$f":"ROUND(IF(ISERROR(SUM(L67,Q72,Z72)*9/Q61),0,SUM(L67,Q72,Z72)*9/Q61),2)","v":null}]
[null,null,{"$f":"IF($B$60=1,C60,IF($B$60=2,C61,IF($B$60=3,C62,IF($B$60=4,C63,0))))","v":null},{"$f":"IF($B$60=1,D60,IF($B$60=2,D61,IF($B$60=3,D62,IF($B$60=4,D63,0))))","v":null},{"$f":"IF($B$60=1,E60,IF($B$60=2,E60,IF($B$60=3,E60,IF($B$60=4,0,0))))","v":null},null,null,null,null,null,{"$f":"K61/5","v":null},{"$f":"L61/5","v":null},null,null,null,"Sodium","Daily Average",null,"Less than or equal to 1,280 mg",null,null,null,null,{"$f":"IF(Q65<=V66,\"Estimated sodium level MEETS the requirement\", IF(AND(Q65>V66,Q65<=(V66+40)),\"Estimated sodium level is above the requirement BUT within 40mg, follow up with State agency\",\"Estimated sodium level does NOT meet the requirement\"))","v":null}]
[null,null,null,null,null,null,null,null,null,null,null,null,null,null,null,null,{"$f":"ROUND(SUM(K70,S72,AB72),2)","v":null}]
[null,null,null,null,null,null,"Total_avg_daily for F,M,V",null,null,null,null,null,null,null,null,null,750,850,725,875,null,1280]
[null,null,null,null,null,null,null,null,null,null,{"$f":"SUM(K11,K20,K30,K38,K46,K54,K64)","v":null},{"$f":"SUM(L11,L20,L30,L38,L46,L54,L64)","v":null},null,null,null,null,null,null,{"$f":"SUM(S8:S56)","v":null},null,null,null,null,null,{"$f":"SUM(Y8:Y56)","v":null},{"$f":"SUM(Z8:Z56)","v":null},null,{"$f":"SUM(AB8:AB56)","v":null}]
[null,null,null,null,null,null,null,null,null,null,null,null,null,null,null,"Cal","sat fat",null,"Num_servings",null,null,null,null,null,"cal","sat fat",null,"Num_servings"]
[null,null,null,null,null,null,null,null,null,"sodium base veg",{"$f":"SUM(L13,L21,L26,L34,L42,L50,L58)","v":null},null,null,null,null,"Total cal","Total fat",null,null,null,null,null,null,null,"Total cal","Total fat"]
[null,null,null,null,null,null,null,null,null,"sodium veg total",{"$f":"K69+L84","v":null},null,null,null,null,{"$f":"SUM(T8:T56)","v":null},{"$f":"SUM(U8:U56)","v":null},null,null,null,null,null,null,null,{"$f":"SUM(AC8:AC56)","v":null},{"$f":"SUM(AD8:AD56)","v":null}]
[null,null,null,null,null,null,null,null,null,"Total weekly veg cups",{"$f":"'Weekly Report'!G10","v":null},null,null,null,null,"avg_day_cal","avg_day_fat","sodium total","avg_day_sod",null,null,null,null,null,"avg_day_cal","avg_day_fat","total sod","avg_day_sod"]
[null,null,null,null,null,null,null,null,null,"total starchy cups",{"$f":"'Weekly Report'!G16","v":null},null,null,null,null,{"$f":"IF(ISERROR(P70/$S$67),0, (P70/$S$67))","v":null},{"$f":"IF(ISERROR(Q70/$S$67),0,(Q70/$S$67))","v":null},{"$f":"SUM(V8:V56)","v":null},{"$f":"IF(ISERROR(R72/$S$67),0,(R72/$S$67))","v":null},null,null,null,null,null,{"$f":"IF(ISERROR(Y70/$S$67),0,(Y70/$S$67))","v":null},{"$f":"IF(ISERROR(Z70/$S$67),0, (Z70/$S$67))","v":null},{"$f":"SUM(AE8:AE56)","v":null},{"$f":"IF(ISERROR(AA72/$S$67),0, (AA72/$S$67))","v":null}]
[null,null,null,null,null,null,null,null,null,null,null,null,null,null,null,"Comments Section"]
["Vegetable Sodium Assessment Questions","'Nutrient Instructions'!A110","'Nutrient Instructions'!A110","'Nutrient Instructions'!A110","'Nutrient Instructions'!A110","'Nutrient Instructions'!A110","'Nutrient Instructions'!A110","'Nutrient Instructions'!A110","'Nutrient Instructions'!A110","'Nutrient Instructions'!A110"]
["Select \"Yes\" or \"No\" for each question regarding sodium usage in vegetables throughout the week. "]
["Question",null,null,null,null,null,"Yes",null,null,"No","additionalmg_track"]
["1. Do you serve fresh vegetables two or more days per week?",null,null,null,null,null,null,null,null,null,false,{"$f":"IF(K77=TRUE,K71*140,0)","v":null}]
["2. Do you offer fried potatoes less than two days per week?\n(Select \"No\" if offered MORE than two days)",null,null,null,null,null,null,null,null,null,false,{"$f":"IF(K78=TRUE,K72*110,0)","v":null}]
["3. Do you often or always offer low- or reduced-sodium broths/soups?",null,null,null,null,null,null,null,null,null,false,{"$f":"IF(K79=TRUE,K71*30,0)","v":null}]
["4. Do you often or always offer low or no-sodium varieties of canned vegetables?",null,null,null,null,null,null,null,null,null,false,{"$f":"IF(K80=TRUE,K71*30,0)","v":null}]
["Select the option that best represent the percentage of USDA food vegetables offered during the week"]
["Question",null,null,null,null,null,"Less than 50% of the vegetables are from USDA foods",null,null,"50% or more of the vegetables offered during the week are USDA foods"]
["5. What percentage of vegetables offered each week are USDA foods items?",null,null,null,null,null,null,null,null,null,false,{"$f":"IF(K83=TRUE,K71*30,0)","v":null}]
["Total sodium add-on value based on practices",null,null,null,null,null,null,null,null,null,null,{"$f":"SUM(L77:L83)/5","v":null}]
[]
[]
["Once all questions have been answered for fruits, milk, and vegetables, scroll to the top and begin the \"Main Dish Simplified Nutrient Data Entry\" section and the \"Other items\" data entry section."]